Workbook

Sheet Startseite
A2: Berechnung der Sanierungsdauer | L2: Excel-Version | M2: =INFO("version") -> 16.0
A3: Thermische In-Situ-Sanierung mittels festen Heizelementen (TCH-Verfahren)
A5: Version 1.1

Sheet Schadstoffbelastung (hidden)
U1: FALSE
B2: Schadstoff | D2: MW + 2 s [mg/kg OS] | E2: Inventar [kg] | H2: Geometrie des Schadensherdes | J2: Einheit | K2: Wert | M2: Schadstoffstatistik | O2: Einheit | P2: LCKW | Q2: AKW | R2: Oxigenate | S2: =Stoffdatenbank!A36 -> n-Alkane | U2: Mittl. Konz. (GW) [µg/L] | V2: Mittl. Konz. (GW) [µmol/L] | W2: Ci [µg/L] | X2: Grenzkonz. Boden [mg/kg] | Y2: Mittlere Konz. Boden [mg/kg] | Z2: Residualphase [mg/kg]
R3: TRUE
B4: Tetrachlorethen | C4: PCE | E4: =IF($U$1,'Schadstoffkonzentrationen Unge'!V7+'Schadstoffkonzentrationen Boden'!V26,'Schadstoffkonzentrationen Unge'!V7+'Schadstoffkonzentrationen GW'!V8) -> 0 | H4: Mittlere Länge (Schadensherd) | J4: m | M4: Ungesättigter Boden | U4: ='Schadstoffkonzentrationen GW'!Y8 -> 318.0142857 | V4: =U4/Stoffdatenbank!R5 -> 1.915748709 | W4: =IFERROR(Stoffdatenbank!N5*1000*(Schadstoffbelastung!V4/Schadstoffbelastung!V$17),"") -> 42718.25577 | X4: =W4/1000*Bodencharakterisierung!$E$9*Stoffdatenbank!J5 -> 153.7857208 | Y4: =(E4/$K$12)*1000 ->  | Z4: =IF(Y4<X4,0,Y4-X4) -> 
B5: Trichlorethen | C5: TCE | E5: =IF($U$1,'Schadstoffkonzentrationen Unge'!V8+'Schadstoffkonzentrationen Boden'!V27,'Schadstoffkonzentrationen Unge'!V8+'Schadstoffkonzentrationen GW'!V9) -> 0 | H5: Mittlere Breite (Schadensherd) | J5: m | M5: Minimum | O5: mg/kg OS | P5: ='Schadstoffkonzentrationen Unge'!$W74 -> 0 | Q5: ='Schadstoffkonzentrationen Unge'!$W94 -> 0 | R5: ='Schadstoffkonzentrationen Unge'!$W107 -> 0 | S5: ='Schadstoffkonzentrationen Unge'!$W102 -> 0 | U5: ='Schadstoffkonzentrationen GW'!Y9 -> 72.22857143 | V5: =U5/Stoffdatenbank!R6 -> 0.5513631407 | W5: =IFERROR(Stoffdatenbank!N6*1000*(Schadstoffbelastung!V5/Schadstoffbelastung!V$17),"") -> 76840.94851 | X5: =W5/1000*Bodencharakterisierung!$E$9*Stoffdatenbank!J6 -> 99.89323306 | Y5: =(E5/$K$12)*1000 ->  | Z5: =IF(Y5<X5,0,Y5-X5) -> 
B6: cis-1,2-Dichlorethen | C6: cDCE | E6: =IF($U$1,'Schadstoffkonzentrationen Unge'!V9+'Schadstoffkonzentrationen Boden'!V28,'Schadstoffkonzentrationen Unge'!V9+'Schadstoffkonzentrationen GW'!V10) -> 0 | H6: Fläche der Belastung | J6: m³ | K6: =K4*K5 -> 0 | M6: Maximum | O6: mg/kg OS | P6: ='Schadstoffkonzentrationen Unge'!$X74 -> 0 | Q6: ='Schadstoffkonzentrationen Unge'!$X94 -> 0 | R6: ='Schadstoffkonzentrationen Unge'!$X107 -> 0 | S6: ='Schadstoffkonzentrationen Unge'!$X102 -> 0 | U6: ='Schadstoffkonzentrationen GW'!Y10 -> 169.9285714 | V6: =U6/Stoffdatenbank!R7 -> 1.751840943 | W6: =IFERROR(Stoffdatenbank!N7*1000*(Schadstoffbelastung!V6/Schadstoffbelastung!V$17),"") -> 854511.0909 | X6: =W6/1000*Bodencharakterisierung!$E$9*Stoffdatenbank!J7 -> 427.2555454
B7: trans-1,2-Dichlorethen | C7: tDCE | E7: =IF($U$1,'Schadstoffkonzentrationen Unge'!V10+'Schadstoffkonzentrationen Boden'!V29,'Schadstoffkonzentrationen Unge'!V10+'Schadstoffkonzentrationen GW'!V11) -> 0 | H7: Oberkante der Belastung | J7: m u. GOK | M7: Median | O7: mg/kg OS | P7: ='Schadstoffkonzentrationen Unge'!$Y74 ->  | Q7: ='Schadstoffkonzentrationen Unge'!$Y94 ->  | R7: ='Schadstoffkonzentrationen Unge'!$Y107 ->  | S7: ='Schadstoffkonzentrationen Unge'!$Y102 ->  | U7: ='Schadstoffkonzentrationen GW'!Y11 -> 0.5 | V7: =U7/Stoffdatenbank!R8 -> 0.005154639175 | W7: =IFERROR(Stoffdatenbank!N8*1000*(Schadstoffbelastung!V7/Schadstoffbelastung!V$17),"") -> 4525.783836 | X7: =W7/1000*Bodencharakterisierung!$E$9*Stoffdatenbank!J8 -> 2.715470301
B8: 1,1-Dichlorethen | C8: 11DCE | E8: =IF($U$1,'Schadstoffkonzentrationen Unge'!V11+'Schadstoffkonzentrationen Boden'!V30,'Schadstoffkonzentrationen Unge'!V11+'Schadstoffkonzentrationen GW'!V12) -> 0 | H8: Unterkante der Belastung | J8: m u. GOK | M8: Mittlere Konzentration (arithm.) | O8: mg/kg OS | P8: ='Schadstoffkonzentrationen Unge'!$Z74 ->  | Q8: ='Schadstoffkonzentrationen Unge'!$Z94 ->  | R8: ='Schadstoffkonzentrationen Unge'!$Z107 ->  | S8: ='Schadstoffkonzentrationen Unge'!$Z102 ->  | U8: ='Schadstoffkonzentrationen GW'!Y12 -> 14.77142857 | V8: =U8/Stoffdatenbank!R9 -> 0.1522827688 | W8: =IFERROR(Stoffdatenbank!N9*1000*(Schadstoffbelastung!V8/Schadstoffbelastung!V$17),"") -> 53057.37513 | X8: =W8/1000*Bodencharakterisierung!$E$9*Stoffdatenbank!J9 -> 37.4107552 | Y8: =(E8/$K$12)*1000 -> 
B9: Vinylchlorid | C9: VC | E9: =IF($U$1,'Schadstoffkonzentrationen Unge'!V12+'Schadstoffkonzentrationen Boden'!V31,'Schadstoffkonzentrationen Unge'!V12+'Schadstoffkonzentrationen GW'!V13) -> 0 | H9: Mittlere Mächtigkeit (Schadensherd) | J9: m | K9: =K8-K7 -> 0 | M9: Standardabweichung | O9: mg/kg OS | P9: ='Schadstoffkonzentrationen Unge'!$AA74 ->  | Q9: ='Schadstoffkonzentrationen Unge'!$AA94 ->  | R9: ='Schadstoffkonzentrationen Unge'!$AA107 ->  | S9: ='Schadstoffkonzentrationen Unge'!$AA102 ->  | U9: ='Schadstoffkonzentrationen GW'!Y13 -> 4.714285714 | V9: =U9/Stoffdatenbank!R10 -> 0.07482993197 | W9: =IFERROR(Stoffdatenbank!N10*1000*(Schadstoffbelastung!V9/Schadstoffbelastung!V$17),"") -> 11471.57432 | X9: =W9/1000*Bodencharakterisierung!$E$9*Stoffdatenbank!J10 -> 6.882944591
B10: Tetrachlormethan | C10: CT | E10: =IF($U$1,'Schadstoffkonzentrationen Unge'!V13+'Schadstoffkonzentrationen Boden'!V32,'Schadstoffkonzentrationen Unge'!V13+'Schadstoffkonzentrationen GW'!V14) -> 0 | H10: Bodenlagerungsdichte | J10: kg/L | K10: =Bodencharakterisierung!E11 -> 1.515 | M10: MW + 2 s | O10: mg/kg OS | P10: ='Schadstoffkonzentrationen Unge'!$AB74 ->  | Q10: ='Schadstoffkonzentrationen Unge'!$AB94 ->  | R10: ='Schadstoffkonzentrationen Unge'!$AB107 ->  | S10: ='Schadstoffkonzentrationen Unge'!$AB102 ->  | U10: ='Schadstoffkonzentrationen GW'!Y14 -> 0.2857142857 | V10: =U10/Stoffdatenbank!R11 -> 0.00185528757 | W10: =IFERROR(Stoffdatenbank!N11*1000*(Schadstoffbelastung!V10/Schadstoffbelastung!V$17),"") -> 206.8503258 | X10: =W10/1000*Bodencharakterisierung!$E$9*Stoffdatenbank!J11 -> 0.5907645305
B11: Trichlormethan | C11: CF | E11: =IF($U$1,'Schadstoffkonzentrationen Unge'!V14+'Schadstoffkonzentrationen Boden'!V33,'Schadstoffkonzentrationen Unge'!V14+'Schadstoffkonzentrationen GW'!V15) -> 0 | H11: Volumen kontaminierter Boden | J11: m³ | K11: =K9*K6 -> 0 | M11: Schadstoffinventar (mittelwertbezogen) | O11: kg | P11: ='Schadstoffkonzentrationen Unge'!$AC74 ->  | Q11: ='Schadstoffkonzentrationen Unge'!$AC94 ->  | R11: ='Schadstoffkonzentrationen Unge'!$AC107 ->  | S11: ='Schadstoffkonzentrationen Unge'!$AC102 ->  | U11: ='Schadstoffkonzentrationen GW'!Y15 -> 223.7714286 | V11: =U11/Stoffdatenbank!R12 -> 1.880432173 | W11: =IFERROR(Stoffdatenbank!N12*1000*(Schadstoffbelastung!V11/Schadstoffbelastung!V$17),"") -> 2148951 | X11: =W11/1000*Bodencharakterisierung!$E$9*Stoffdatenbank!J12 -> 1100.477807
B12: Dichlormethan | C12: DCM | E12: =IF($U$1,'Schadstoffkonzentrationen Unge'!V15+'Schadstoffkonzentrationen Boden'!V34,'Schadstoffkonzentrationen Unge'!V15+'Schadstoffkonzentrationen GW'!V16) -> 0 | J12: t | K12: =K11*K10 -> 0 | U12: ='Schadstoffkonzentrationen GW'!Y16 -> 3.428571429 | V12: =U12/Stoffdatenbank!R13 -> 0.04033613445 | W12: =IFERROR(Stoffdatenbank!N13*1000*(Schadstoffbelastung!V12/Schadstoffbelastung!V$17),"") -> 100056.3985 | X12: =W12/1000*Bodencharakterisierung!$E$9*Stoffdatenbank!J13 -> 12.15685242
B13: 1,1,1-Trichlorethan | C13: 111TCA | E13: =IF($U$1,'Schadstoffkonzentrationen Unge'!V16+'Schadstoffkonzentrationen Boden'!V35,'Schadstoffkonzentrationen Unge'!V16+'Schadstoffkonzentrationen GW'!V17) -> 0 | H13: Grundwasserstand | J13: m u. GOK | M13: Gesättigter Boden | U13: ='Schadstoffkonzentrationen GW'!Y17 -> 48.71428571 | V13: =U13/Stoffdatenbank!R14 -> 0.3651636061 | W13: =IFERROR(Stoffdatenbank!N14*1000*(Schadstoffbelastung!V13/Schadstoffbelastung!V$17),"") -> 66158.52697 | X13: =W13/1000*Bodencharakterisierung!$E$9*Stoffdatenbank!J14 -> 95.26827884
B14: 1,1,2-Trichlorethan | C14: 112TCA | E14: =IF($U$1,'Schadstoffkonzentrationen Unge'!V17+'Schadstoffkonzentrationen Boden'!V36,'Schadstoffkonzentrationen Unge'!V17+'Schadstoffkonzentrationen GW'!V18) -> 0 | M14: Minimum | O14: mg/kg OS | P14: =IF($U$1,'Schadstoffkonzentrationen Boden'!$W93,"") ->  | Q14: =IF($U$1,'Schadstoffkonzentrationen Boden'!$W113,"") ->  | R14: =IF($U$1,'Schadstoffkonzentrationen Boden'!$W126,"") ->  | S14: =IF($U$1,'Schadstoffkonzentrationen Boden'!$W121,"") ->  | U14: ='Schadstoffkonzentrationen GW'!Y18 -> 2 | V14: =U14/Stoffdatenbank!R15 -> 0.01499205421 | W14: =IFERROR(Stoffdatenbank!N15*1000*(Schadstoffbelastung!V14/Schadstoffbelastung!V$17),"") -> 9402.181817 | X14: =W14/1000*Bodencharakterisierung!$E$9*Stoffdatenbank!J15 -> 4.103112145
B15: 1,1-Dichlorethan | C15: 11DCA | E15: =IF($U$1,'Schadstoffkonzentrationen Unge'!V18+'Schadstoffkonzentrationen Boden'!V37,'Schadstoffkonzentrationen Unge'!V18+'Schadstoffkonzentrationen GW'!V19) -> 0 | M15: Maximum | O15: mg/kg OS | P15: =IF($U$1,'Schadstoffkonzentrationen Boden'!$X93,"") ->  | Q15: =IF($U$1,'Schadstoffkonzentrationen Boden'!$X113,"") ->  | R15: =IF($U$1,'Schadstoffkonzentrationen Boden'!$X126,"") ->  | S15: =IF($U$1,'Schadstoffkonzentrationen Boden'!$X121,"") ->  | U15: ='Schadstoffkonzentrationen GW'!Y19 -> 20.41428571 | V15: =U15/Stoffdatenbank!R16 -> 0.206288255 | W15: =IFERROR(Stoffdatenbank!N16*1000*(Schadstoffbelastung!V15/Schadstoffbelastung!V$17),"") -> 249832.6911 | X15: =W15/1000*Bodencharakterisierung!$E$9*Stoffdatenbank!J16 -> 89.2902038
B16: 1,2-Dichlorethan | C16: 12DCA | E16: =IF($U$1,'Schadstoffkonzentrationen Unge'!V19+'Schadstoffkonzentrationen Boden'!V38,'Schadstoffkonzentrationen Unge'!V19+'Schadstoffkonzentrationen GW'!V20) -> 0 | M16: Median | O16: mg/kg OS | P16: =IF($U$1,'Schadstoffkonzentrationen Boden'!$Y93,"") ->  | Q16: =IF($U$1,'Schadstoffkonzentrationen Boden'!$Y113,"") ->  | R16: =IF($U$1,'Schadstoffkonzentrationen Boden'!$Y126,"") ->  | S16: =IF($U$1,'Schadstoffkonzentrationen Boden'!$Y121,"") ->  | U16: ='Schadstoffkonzentrationen GW'!Y20 -> 21.28571429 | V16: =U16/Stoffdatenbank!R17 -> 0.2150941217 | W16: =IFERROR(Stoffdatenbank!N17*1000*(Schadstoffbelastung!V16/Schadstoffbelastung!V$17),"") -> 260497.3476 | X16: =W16/1000*Bodencharakterisierung!$E$9*Stoffdatenbank!J17 -> 103.1569497
B17: LCKW | E17: =SUM(E4:E16) -> 0 | M17: Mittlere Konzentration (arithm.) | O17: mg/kg OS | P17: =IF($U$1,'Schadstoffkonzentrationen Boden'!$Z93,"") ->  | Q17: =IF($U$1,'Schadstoffkonzentrationen Boden'!$Z113,"") ->  | R17: =IF($U$1,'Schadstoffkonzentrationen Boden'!$Z126,"") ->  | S17: =IF($U$1,'Schadstoffkonzentrationen Boden'!$Z121,"") ->  | U17: =SUM(U4:U16) -> 900.0571429 | V17: =SUM(V4:V16) -> 7.175381764 | Z17: =SUM(Z4:Z16) -> 
B18: Benzol | C18: B | E18: =IF($U$1,'Schadstoffkonzentrationen Unge'!V22+'Schadstoffkonzentrationen Boden'!V41,'Schadstoffkonzentrationen Unge'!V22+'Schadstoffkonzentrationen GW'!V23) -> 0 | M18: Standardabweichung | O18: mg/kg OS | P18: =IF($U$1,'Schadstoffkonzentrationen Boden'!$AA93,"") ->  | Q18: =IF($U$1,'Schadstoffkonzentrationen Boden'!$AA113,"") ->  | R18: =IF($U$1,'Schadstoffkonzentrationen Boden'!$AA126,"") ->  | S18: =IF($U$1,'Schadstoffkonzentrationen Boden'!$AA121,"") ->  | U18: ='Schadstoffkonzentrationen GW'!Y23 -> 0 | V18: =U18/Stoffdatenbank!R19 -> 0 | W18: =IFERROR(Stoffdatenbank!N19*1000*(Schadstoffbelastung!V18/Schadstoffbelastung!V$35),"") ->  | X18: =IFERROR(W18/1000*Bodencharakterisierung!$E$9*Stoffdatenbank!J19,"") ->  | Y18: =(E18/$K$12)*1000 -> 
B19: Toluol | C19: T | E19: =IF($U$1,'Schadstoffkonzentrationen Unge'!V23+'Schadstoffkonzentrationen Boden'!V42,'Schadstoffkonzentrationen Unge'!V23+'Schadstoffkonzentrationen GW'!V24) -> 0 | M19: MW + 2 s | O19: mg/kg OS | P19: =IF($U$1,'Schadstoffkonzentrationen Boden'!$AB93,"") ->  | Q19: =IF($U$1,'Schadstoffkonzentrationen Boden'!$AB113,"") ->  | R19: =IF($U$1,'Schadstoffkonzentrationen Boden'!$AB126,"") ->  | S19: =IF($U$1,'Schadstoffkonzentrationen Boden'!$AB121,"") ->  | U19: ='Schadstoffkonzentrationen GW'!Y24 -> 0 | V19: =U19/Stoffdatenbank!R20 -> 0 | W19: =IFERROR(Stoffdatenbank!N20*1000*(Schadstoffbelastung!V19/Schadstoffbelastung!V$35),"") ->  | X19: =IFERROR(W19/1000*Bodencharakterisierung!$E$9*Stoffdatenbank!J20,"") -> 
B20: Ethylbenzol | C20: ETBE | E20: =IF($U$1,'Schadstoffkonzentrationen Unge'!V24+'Schadstoffkonzentrationen Boden'!V43,'Schadstoffkonzentrationen Unge'!V24+'Schadstoffkonzentrationen GW'!V25) -> 0 | M20: Schadstoffinventar (mittelwertbezogen) | O20: kg | P20: =IF($U$1,'Schadstoffkonzentrationen Boden'!$AC93,"") ->  | Q20: =IF($U$1,'Schadstoffkonzentrationen Boden'!$AC113,"") ->  | R20: =IF($U$1,'Schadstoffkonzentrationen Boden'!$AC126,"") ->  | S20: =IF($U$1,'Schadstoffkonzentrationen Boden'!$AC121,"") ->  | U20: ='Schadstoffkonzentrationen GW'!Y25 -> 0 | V20: =U20/Stoffdatenbank!R21 -> 0 | W20: =IFERROR(Stoffdatenbank!N21*1000*(Schadstoffbelastung!V20/Schadstoffbelastung!V$35),"") ->  | X20: =IFERROR(W20/1000*Bodencharakterisierung!$E$9*Stoffdatenbank!J21,"") -> 
B21: o-Xylol | C21: oX | E21: =IF($U$1,'Schadstoffkonzentrationen Unge'!V25+'Schadstoffkonzentrationen Boden'!V44,'Schadstoffkonzentrationen Unge'!V25+'Schadstoffkonzentrationen GW'!V26) -> 0 | M21: Residualsättigung | O21: mg/kg OS | P21: =Z17 ->  | Q21: =Z35 ->  | R21: =Z46 ->  | S21: =Z42 ->  | U21: ='Schadstoffkonzentrationen GW'!Y26 -> 0 | V21: =U21/Stoffdatenbank!R22 -> 0 | W21: =IFERROR(Stoffdatenbank!N22*1000*(Schadstoffbelastung!V21/Schadstoffbelastung!V$35),"") ->  | X21: =IFERROR(W21/1000*Bodencharakterisierung!$E$9*Stoffdatenbank!J22,"") -> 
B22: m-Xylol | C22: mX | E22: =IF($U$1,'Schadstoffkonzentrationen Unge'!V26+'Schadstoffkonzentrationen Boden'!V45,'Schadstoffkonzentrationen Unge'!V26+'Schadstoffkonzentrationen GW'!V27) -> 0 | M22: Gesamter Boden | U22: ='Schadstoffkonzentrationen GW'!Y27 -> 0 | V22: =U22/Stoffdatenbank!R23 -> 0 | W22: =IFERROR(Stoffdatenbank!N23*1000*(Schadstoffbelastung!V22/Schadstoffbelastung!V$35),"") ->  | X22: =IFERROR(W22/1000*Bodencharakterisierung!$E$9*Stoffdatenbank!J23,"") -> 
B23: p-Xylol | C23: pX | E23: =IF($U$1,'Schadstoffkonzentrationen Unge'!V27+'Schadstoffkonzentrationen Boden'!V46,'Schadstoffkonzentrationen Unge'!V27+'Schadstoffkonzentrationen GW'!V28) -> 0 | M23: Schadstoffinventar (flächengewichtet) | O23: kg | P23: =E17 -> 0 | Q23: =E35 -> 0 | R23: =E46 -> 0 | S23: =E42 -> 0 | U23: ='Schadstoffkonzentrationen GW'!Y28 -> 0 | V23: =U23/Stoffdatenbank!R24 -> 0 | W23: =IFERROR(Stoffdatenbank!N24*1000*(Schadstoffbelastung!V23/Schadstoffbelastung!V$35),"") ->  | X23: =IFERROR(W23/1000*Bodencharakterisierung!$E$9*Stoffdatenbank!J24,"") -> 
B24: n-Propylbenzol | C24: nPB | E24: =IF($U$1,'Schadstoffkonzentrationen Unge'!V28+'Schadstoffkonzentrationen Boden'!V47,'Schadstoffkonzentrationen Unge'!V28+'Schadstoffkonzentrationen GW'!V29) -> 0 | U24: ='Schadstoffkonzentrationen GW'!Y29 -> 0 | V24: =U24/Stoffdatenbank!R25 -> 0 | W24: =IFERROR(Stoffdatenbank!N25*1000*(Schadstoffbelastung!V24/Schadstoffbelastung!V$35),"") ->  | X24: =IFERROR(W24/1000*Bodencharakterisierung!$E$9*Stoffdatenbank!J25,"") -> 
B25: Isopropylbenzol | C25: iPB | E25: =IF($U$1,'Schadstoffkonzentrationen Unge'!V29+'Schadstoffkonzentrationen Boden'!V48,'Schadstoffkonzentrationen Unge'!V29+'Schadstoffkonzentrationen GW'!V30) -> 0 | U25: ='Schadstoffkonzentrationen GW'!Y30 -> 0 | V25: =U25/Stoffdatenbank!R26 -> 0 | W25: =IFERROR(Stoffdatenbank!N26*1000*(Schadstoffbelastung!V25/Schadstoffbelastung!V$35),"") ->  | X25: =IFERROR(W25/1000*Bodencharakterisierung!$E$9*Stoffdatenbank!J26,"") -> 
B26: o-Ethyltoluol | C26: oET | E26: =IF($U$1,'Schadstoffkonzentrationen Unge'!V30+'Schadstoffkonzentrationen Boden'!V49,'Schadstoffkonzentrationen Unge'!V30+'Schadstoffkonzentrationen GW'!V31) -> 0 | U26: ='Schadstoffkonzentrationen GW'!Y31 -> 0 | V26: =U26/Stoffdatenbank!R27 -> 0 | W26: =IFERROR(Stoffdatenbank!N27*1000*(Schadstoffbelastung!V26/Schadstoffbelastung!V$35),"") ->  | X26: =IFERROR(W26/1000*Bodencharakterisierung!$E$9*Stoffdatenbank!J27,"") -> 
B27: m-Ethyltoluol | C27: oET | E27: =IF($U$1,'Schadstoffkonzentrationen Unge'!V31+'Schadstoffkonzentrationen Boden'!V50,'Schadstoffkonzentrationen Unge'!V31+'Schadstoffkonzentrationen GW'!V32) -> 0 | G27: Berechnung der Schadstoffinventare mit Daten aus | U27: ='Schadstoffkonzentrationen GW'!Y32 -> 0 | V27: =U27/Stoffdatenbank!R28 -> 0 | W27: =IFERROR(Stoffdatenbank!N28*1000*(Schadstoffbelastung!V27/Schadstoffbelastung!V$35),"") ->  | X27: =IFERROR(W27/1000*Bodencharakterisierung!$E$9*Stoffdatenbank!J28,"") -> 
B28: p-Ethyltoluol | C28: pET | E28: =IF($U$1,'Schadstoffkonzentrationen Unge'!V32+'Schadstoffkonzentrationen Boden'!V51,'Schadstoffkonzentrationen Unge'!V32+'Schadstoffkonzentrationen GW'!V33) -> 0 | U28: ='Schadstoffkonzentrationen GW'!Y33 -> 0 | V28: =U28/Stoffdatenbank!R29 -> 0 | W28: =IFERROR(Stoffdatenbank!N29*1000*(Schadstoffbelastung!V28/Schadstoffbelastung!V$35),"") ->  | X28: =IFERROR(W28/1000*Bodencharakterisierung!$E$9*Stoffdatenbank!J29,"") -> 
B29: 1,2-Diethylbenzol | C29: 12DEB | E29: =IF($U$1,'Schadstoffkonzentrationen Unge'!V33+'Schadstoffkonzentrationen Boden'!V52,'Schadstoffkonzentrationen Unge'!V33+'Schadstoffkonzentrationen GW'!V34) -> 0 | U29: ='Schadstoffkonzentrationen GW'!Y34 -> 0 | V29: =U29/Stoffdatenbank!R30 -> 0 | W29: =IFERROR(Stoffdatenbank!N30*1000*(Schadstoffbelastung!V29/Schadstoffbelastung!V$35),"") ->  | X29: =IFERROR(W29/1000*Bodencharakterisierung!$E$9*Stoffdatenbank!J30,"") -> 
B30: 1,3-Diethylbenzol | C30: 13DEB | E30: =IF($U$1,'Schadstoffkonzentrationen Unge'!V34+'Schadstoffkonzentrationen Boden'!V53,'Schadstoffkonzentrationen Unge'!V34+'Schadstoffkonzentrationen GW'!V35) -> 0 | U30: ='Schadstoffkonzentrationen GW'!Y35 -> 0 | V30: =U30/Stoffdatenbank!R31 -> 0 | W30: =IFERROR(Stoffdatenbank!N31*1000*(Schadstoffbelastung!V30/Schadstoffbelastung!V$35),"") ->  | X30: =IFERROR(W30/1000*Bodencharakterisierung!$E$9*Stoffdatenbank!J31,"") -> 
B31: 1,4-Diethylbenzol | C31: 14DEB | E31: =IF($U$1,'Schadstoffkonzentrationen Unge'!V35+'Schadstoffkonzentrationen Boden'!V54,'Schadstoffkonzentrationen Unge'!V35+'Schadstoffkonzentrationen GW'!V36) -> 0 | U31: ='Schadstoffkonzentrationen GW'!Y36 -> 0 | V31: =U31/Stoffdatenbank!R32 -> 0 | W31: =IFERROR(Stoffdatenbank!N32*1000*(Schadstoffbelastung!V31/Schadstoffbelastung!V$35),"") ->  | X31: =IFERROR(W31/1000*Bodencharakterisierung!$E$9*Stoffdatenbank!J32,"") -> 
B32: 1,2,3-Trimethylbenzol | C32: 123TMB | E32: =IF($U$1,'Schadstoffkonzentrationen Unge'!V36+'Schadstoffkonzentrationen Boden'!V55,'Schadstoffkonzentrationen Unge'!V36+'Schadstoffkonzentrationen GW'!V37) -> 0 | U32: ='Schadstoffkonzentrationen GW'!Y37 -> 0 | V32: =U32/Stoffdatenbank!R33 -> 0 | W32: =IFERROR(Stoffdatenbank!N33*1000*(Schadstoffbelastung!V32/Schadstoffbelastung!V$35),"") ->  | X32: =IFERROR(W32/1000*Bodencharakterisierung!$E$9*Stoffdatenbank!J33,"") -> 
B33: 1,2,4-Trimethylbenzol | C33: 124TMB | E33: =IF($U$1,'Schadstoffkonzentrationen Unge'!V37+'Schadstoffkonzentrationen Boden'!V56,'Schadstoffkonzentrationen Unge'!V37+'Schadstoffkonzentrationen GW'!V38) -> 0 | U33: ='Schadstoffkonzentrationen GW'!Y38 -> 0 | V33: =U33/Stoffdatenbank!R34 -> 0 | W33: =IFERROR(Stoffdatenbank!N34*1000*(Schadstoffbelastung!V33/Schadstoffbelastung!V$35),"") ->  | X33: =IFERROR(W33/1000*Bodencharakterisierung!$E$9*Stoffdatenbank!J34,"") -> 
B34: 1,3,5-Trimethylbenzol | C34: 135TMB | E34: =IF($U$1,'Schadstoffkonzentrationen Unge'!V38+'Schadstoffkonzentrationen Boden'!V57,'Schadstoffkonzentrationen Unge'!V38+'Schadstoffkonzentrationen GW'!V39) -> 0 | U34: ='Schadstoffkonzentrationen GW'!Y39 -> 0 | V34: =U34/Stoffdatenbank!R35 -> 0 | W34: =IFERROR(Stoffdatenbank!N35*1000*(Schadstoffbelastung!V34/Schadstoffbelastung!V$35),"") ->  | X34: =IFERROR(W34/1000*Bodencharakterisierung!$E$9*Stoffdatenbank!J35,"") -> 
B35: AKW | E35: =SUM(E18:E34) -> 0 | U35: =SUM(U18:U34) -> 0 | V35: =SUM(V18:V34) -> 0 | Z35: =SUM(Z18:Z34) -> 
B36: =Stoffdatenbank!A37 -> n-Pentan | C36: nC5 | E36: =IF($U$1,'Schadstoffkonzentrationen Unge'!V42+'Schadstoffkonzentrationen Boden'!V61,'Schadstoffkonzentrationen Unge'!V42+'Schadstoffkonzentrationen GW'!V43) -> 0 | U36: ='Schadstoffkonzentrationen GW'!Y43 -> 0 | V36: =U36/Stoffdatenbank!R37 -> 0 | W36: =IFERROR(Stoffdatenbank!N37*1000*(Schadstoffbelastung!V36/Schadstoffbelastung!V$42),"") ->  | X36: =IFERROR(W36/1000*Bodencharakterisierung!$E$9*Stoffdatenbank!J37,"") -> 
B37: =Stoffdatenbank!A38 -> n-Hexan | C37: nC6 | E37: =IF($U$1,'Schadstoffkonzentrationen Unge'!V43+'Schadstoffkonzentrationen Boden'!V62,'Schadstoffkonzentrationen Unge'!V43+'Schadstoffkonzentrationen GW'!V44) -> 0 | U37: ='Schadstoffkonzentrationen GW'!Y44 -> 0 | V37: =U37/Stoffdatenbank!R38 -> 0 | W37: =IFERROR(Stoffdatenbank!N38*1000*(Schadstoffbelastung!V37/Schadstoffbelastung!V$42),"") ->  | X37: =IFERROR(W37/1000*Bodencharakterisierung!$E$9*Stoffdatenbank!J38,"") -> 
B38: =Stoffdatenbank!A39 -> n-Heptan | C38: nC7 | E38: =IF($U$1,'Schadstoffkonzentrationen Unge'!V44+'Schadstoffkonzentrationen Boden'!V63,'Schadstoffkonzentrationen Unge'!V44+'Schadstoffkonzentrationen GW'!V45) -> 0 | U38: ='Schadstoffkonzentrationen GW'!Y45 -> 0 | V38: =U38/Stoffdatenbank!R39 -> 0 | W38: =IFERROR(Stoffdatenbank!N39*1000*(Schadstoffbelastung!V38/Schadstoffbelastung!V$42),"") ->  | X38: =IFERROR(W38/1000*Bodencharakterisierung!$E$9*Stoffdatenbank!J39,"") -> 
B39: =Stoffdatenbank!A40 -> n-Octan | C39: nC8 | E39: =IF($U$1,'Schadstoffkonzentrationen Unge'!V45+'Schadstoffkonzentrationen Boden'!V64,'Schadstoffkonzentrationen Unge'!V45+'Schadstoffkonzentrationen GW'!V46) -> 0 | U39: ='Schadstoffkonzentrationen GW'!Y46 -> 0 | V39: =U39/Stoffdatenbank!R40 -> 0 | W39: =IFERROR(Stoffdatenbank!N40*1000*(Schadstoffbelastung!V39/Schadstoffbelastung!V$42),"") ->  | X39: =IFERROR(W39/1000*Bodencharakterisierung!$E$9*Stoffdatenbank!J40,"") -> 
B40: =Stoffdatenbank!A41 -> n-Nonan | C40: nC9 | E40: =IF($U$1,'Schadstoffkonzentrationen Unge'!V46+'Schadstoffkonzentrationen Boden'!V65,'Schadstoffkonzentrationen Unge'!V46+'Schadstoffkonzentrationen GW'!V47) -> 0 | U40: ='Schadstoffkonzentrationen GW'!Y47 -> 0 | V40: =U40/Stoffdatenbank!R41 -> 0 | W40: =IFERROR(Stoffdatenbank!N41*1000*(Schadstoffbelastung!V40/Schadstoffbelastung!V$42),"") ->  | X40: =IFERROR(W40/1000*Bodencharakterisierung!$E$9*Stoffdatenbank!J41,"") -> 
B41: =Stoffdatenbank!A42 -> n-Decan | C41: nC10 | E41: =IF($U$1,'Schadstoffkonzentrationen Unge'!V47+'Schadstoffkonzentrationen Boden'!V66,'Schadstoffkonzentrationen Unge'!V47+'Schadstoffkonzentrationen GW'!V48) -> 0 | U41: ='Schadstoffkonzentrationen GW'!Y48 -> 0 | V41: =U41/Stoffdatenbank!R42 -> 0 | W41: =IFERROR(Stoffdatenbank!N42*1000*(Schadstoffbelastung!V41/Schadstoffbelastung!V$42),"") ->  | X41: =IFERROR(W41/1000*Bodencharakterisierung!$E$9*Stoffdatenbank!J42,"") -> 
B42: =Stoffdatenbank!A36 -> n-Alkane | E42: =SUM(E36:E41) -> 0 | U42: =SUM(U36:U41) -> 0 | V42: =SUM(V36:V41) -> 0 | Z42: =SUM(Z36:Z41) -> 
B43: Methyl-tert-butylether | C43: MTBE | E43: =IF($U$1,'Schadstoffkonzentrationen Unge'!V50+'Schadstoffkonzentrationen Boden'!V69,'Schadstoffkonzentrationen Unge'!V50+'Schadstoffkonzentrationen GW'!V51) -> 0 | U43: ='Schadstoffkonzentrationen GW'!Y51 -> 0 | V43: =U43/Stoffdatenbank!R44 -> 0 | W43: =IFERROR(Stoffdatenbank!N44*1000*(Schadstoffbelastung!V43/Schadstoffbelastung!V$46),"") ->  | X43: =IFERROR(W43/1000*Bodencharakterisierung!$E$9*Stoffdatenbank!J44,"") -> 
B44: Ethyl-tert-butylether | C44: ETBE | E44: =IF($U$1,'Schadstoffkonzentrationen Unge'!V51+'Schadstoffkonzentrationen Boden'!V70,'Schadstoffkonzentrationen Unge'!V51+'Schadstoffkonzentrationen GW'!V52) -> 0 | U44: ='Schadstoffkonzentrationen GW'!Y52 -> 0 | V44: =U44/Stoffdatenbank!R45 -> 0 | W44: =IFERROR(Stoffdatenbank!N45*1000*(Schadstoffbelastung!V44/Schadstoffbelastung!V$46),"") ->  | X44: =IFERROR(W44/1000*Bodencharakterisierung!$E$9*Stoffdatenbank!J45,"") -> 
B45: tert-Butylalkohol | C45: TBA | E45: =IF($U$1,'Schadstoffkonzentrationen Unge'!V52+'Schadstoffkonzentrationen Boden'!V71,'Schadstoffkonzentrationen Unge'!V52+'Schadstoffkonzentrationen GW'!V53) -> 0 | U45: ='Schadstoffkonzentrationen GW'!Y53 -> 0 | V45: =U45/Stoffdatenbank!R46 -> 0 | W45: =IFERROR(Stoffdatenbank!N46*1000*(Schadstoffbelastung!V45/Schadstoffbelastung!V$46),"") ->  | X45: =IFERROR(W45/1000*Bodencharakterisierung!$E$9*Stoffdatenbank!J46,"") ->  | Z45: =IF(Y45<X45,0,Y45-X45) -> 
B46: Oxigenate | E46: =IF($U$1,'Schadstoffkonzentrationen Unge'!V53+'Schadstoffkonzentrationen Boden'!V72,'Schadstoffkonzentrationen GW'!V54) -> 0 | U46: =SUM(U43:U45) -> 0 | V46: =SUM(V43:V45) -> 0 | Z46: =SUM(Z43:Z45) -> 

Sheet Schadstoffkonzentrationen GW (hidden)
A3: Schadstoffkonzentrationen im Grundwasser (gelöst) [µg/L] | I3: Korrekturfaktor | K3: 10 | Z3: =Schadstoffbelastung!K6*Schadstoffbelastung!K9*Bodencharakterisierung!E7/1000/1000 -> 0 | AA3: =Schadstoffbelastung!K6*Schadstoffbelastung!K9*Bodencharakterisierung!E9*Bodencharakterisierung!E11/1000/1000 -> 0
A5: Messstelle Nr. | B5: 1 | C5: 2 | D5: 3 | E5: 4 | F5: 5 | G5: 6 | H5: 7 | I5: 8 | J5: 9 | K5: 10 | L5: 11 | M5: 12 | N5: 13 | O5: 14 | P5: 15 | Q5: 16 | R5: 17 | S5: 18 | T5: 19 | U5: 20 | V5: Summe Inventar [kg] | Y5: Mittlere Konz. (MW) [µg/L] | Z5: Inventar (gelöst) [kg] | AA5: Inventar (sorbiert) [kg]
A6: Bezeichnung
A7: Leichtflüchtige chlorierte Kohlenwasserstoffe (LCKW)
A8: Tetrachlorethen | B8: 70.7 | C8: 150 | D8: 1 | E8: 0.8 | F8: 1.8 | G8: 1.8 | T8: 2000 | V8: =(Z8+AA8)*$K$3 -> 0 | Y8: =IFERROR(AVERAGE($B8:$U8),0) -> 318.0142857 | Z8: =$Z$3*Y8 -> 0 | AA8: =$AA$3*Y8*Stoffdatenbank!$J5 -> 0
A9: Trichlorethen | B9: 65.4 | C9: 410 | D9: 2.8 | E9: 3.2 | F9: 1.3 | G9: 0.9 | T9: 22 | V9: =(Z9+AA9)*$K$3 -> 0 | Y9: =IFERROR(AVERAGE($B9:$U9),0) -> 72.22857143 | Z9: =$Z$3*Y9 -> 0 | AA9: =$AA$3*Y9*Stoffdatenbank!$J6 -> 0
A10: cis-1,2-Dichlorethen | B10: 25.2 | C10: 810 | D10: 350 | E10: 1.2 | F10: 0 | G10: 1.1 | T10: 2 | V10: 0 | Y10: 169.9285714 | Z10: =$Z$3*Y10 -> 0 | AA10: =$AA$3*Y10*Stoffdatenbank!$J7 -> 0
A11: trans-1,2-Dichlorethen | B11: 0 | C11: 1.5 | D11: 0 | E11: 0 | F11: 0 | G11: 0 | T11: 2 | V11: 0 | Y11: =IFERROR(AVERAGE($B11:$U11),0) -> 0.5 | Z11: =$Z$3*Y11 -> 0 | AA11: =$AA$3*Y11*Stoffdatenbank!$J8 -> 0
A12: 1,1-Dichlorethen | B12: 5.4 | C12: 74 | D12: 22 | E12: 0 | F12: 0 | G12: 0 | T12: 2 | V12: 0 | Y12: 14.77142857 | Z12: 0 | AA12: =$AA$3*Y12*Stoffdatenbank!$J9 -> 0
A13: Vinylchlorid | B13: 0 | C13: 31 | D13: 0 | E13: 0 | F13: 0 | G13: 0 | T13: 2 | V13: 0 | Y13: 4.714285714 | Z13: 0 | AA13: =$AA$3*Y13*Stoffdatenbank!$J10 -> 0
A14: Tetrachlormethan | B14: 0 | C14: 0 | D14: 0 | E14: 0 | F14: 0 | G14: 0 | T14: 2 | V14: 0 | Y14: 0.2857142857 | Z14: 0 | AA14: =$AA$3*Y14*Stoffdatenbank!$J11 -> 0
A15: Trichlormethan | B15: 53.4 | C15: 1500 | D15: 11 | E15: 0 | F15: 0 | G15: 0 | T15: 2 | V15: 0 | Y15: 223.7714286 | Z15: 0 | AA15: =$AA$3*Y15*Stoffdatenbank!$J12 -> 0
A16: Dichlormethan | B16: 0 | C16: 22 | D16: 0 | E16: 0 | F16: 0 | G16: 0 | T16: 2 | V16: 0 | Y16: =IFERROR(AVERAGE($B16:$U16),0) -> 3.428571429 | Z16: 0 | AA16: =$AA$3*Y16*Stoffdatenbank!$J13 -> 0
A17: 1,1,1-Trichlorethan | B17: 99 | C17: 190 | D17: 50 | E17: 0 | F17: 0 | G17: 0 | T17: 2 | V17: 0 | Y17: 48.71428571 | Z17: 0 | AA17: =$AA$3*Y17*Stoffdatenbank!$J14 -> 0
A18: 1,1,2-Trichlorethan | T18: 2 | V18: 0 | Y18: 2 | Z18: 0 | AA18: =$AA$3*Y18*Stoffdatenbank!$J15 -> 0
A19: 1,1-Dichlorethan | B19: 24.7 | C19: 65 | D19: 50 | E19: 0 | F19: 1.2 | G19: 0 | T19: 2 | V19: 0 | Y19: 20.41428571 | Z19: 0 | AA19: =$AA$3*Y19*Stoffdatenbank!$J16 -> 0
A20: 1,2-Dichlorethan | B20: 0 | C20: 110 | D20: 37 | E20: 0 | F20: 0 | G20: 0 | T20: 2 | V20: 0 | Y20: 21.28571429 | Z20: 0 | AA20: =$AA$3*Y20*Stoffdatenbank!$J17 -> 0
A21: LCKW | B21: =IF(SUM(B8:B20)>0,SUM(B8:B20),"") -> 343.8 | C21: =IF(SUM(C8:C20)>0,SUM(C8:C20),"") -> 3363.5 | D21: 523.8 | E21: 5.2 | F21: 4.3 | G21: 3.8 | T21: 2044 | V21: =SUM(V8:V20) -> 0
A22: (Mono)aromatische Kohlenwasserstoffe (AKW)
A23: Benzol | V23: =(Z23+AA23)*$K$3 -> 0 | Y23: =IFERROR(AVERAGE($B23:$U23),0) -> 0 | Z23: =$Z$3*Y23 -> 0 | AA23: =$AA$3*Y23*Stoffdatenbank!$J19 -> 0
A24: Toluol | V24: =(Z24+AA24)*$K$3 -> 0 | Y24: 0 | Z24: 0 | AA24: =$AA$3*Y24*Stoffdatenbank!$J20 -> 0
A25: Ethylbenzol | V25: 0 | Y25: 0 | Z25: 0 | AA25: =$AA$3*Y25*Stoffdatenbank!$J21 -> 0
A26: o-Xylol | V26: 0 | Y26: 0 | Z26: =$Z$3*Y26 -> 0 | AA26: =$AA$3*Y26*Stoffdatenbank!$J22 -> 0
A27: m-Xylol | V27: 0 | Y27: 0 | Z27: 0 | AA27: =$AA$3*Y27*Stoffdatenbank!$J23 -> 0
A28: p-Xylol | V28: 0 | Y28: 0 | Z28: 0 | AA28: =$AA$3*Y28*Stoffdatenbank!$J24 -> 0
A29: n-Propylbenzol | V29: 0 | Y29: 0 | Z29: 0 | AA29: =$AA$3*Y29*Stoffdatenbank!$J25 -> 0
A30: Isopropylbenzol | V30: 0 | Y30: 0 | Z30: 0 | AA30: =$AA$3*Y30*Stoffdatenbank!$J26 -> 0
A31: o-Ethyltoluol | V31: 0 | Y31: 0 | Z31: 0 | AA31: =$AA$3*Y31*Stoffdatenbank!$J27 -> 0
A32: m-Ethyltoluol | V32: 0 | Y32: 0 | Z32: 0 | AA32: =$AA$3*Y32*Stoffdatenbank!$J28 -> 0
A33: p-Ethyltoluol | V33: 0 | Y33: 0 | Z33: 0 | AA33: =$AA$3*Y33*Stoffdatenbank!$J29 -> 0
A34: 1,2-Diethylbenzol | V34: 0 | Y34: 0 | Z34: 0 | AA34: =$AA$3*Y34*Stoffdatenbank!$J30 -> 0
A35: 1,3-Diethylbenzol | V35: 0 | Y35: 0 | Z35: 0 | AA35: =$AA$3*Y35*Stoffdatenbank!$J31 -> 0
A36: 1,4-Diethylbenzol | V36: 0 | Y36: 0 | Z36: 0 | AA36: =$AA$3*Y36*Stoffdatenbank!$J32 -> 0
A37: 1,2,3-Trimethylbenzol | V37: 0 | Y37: 0 | Z37: 0 | AA37: =$AA$3*Y37*Stoffdatenbank!$J33 -> 0
A38: 1,2,4-Trimethylbenzol | V38: 0 | Y38: 0 | Z38: 0 | AA38: =$AA$3*Y38*Stoffdatenbank!$J34 -> 0
A39: 1,3,5-Trimethylbenzol | V39: 0 | Y39: 0 | Z39: 0 | AA39: =$AA$3*Y39*Stoffdatenbank!$J35 -> 0
A40: BTEX | B40: =IF(SUM(B23:B28)>0,SUM(B23:B28),"") ->  | C40: =IF(SUM(C23:C28)>0,SUM(C23:C28),"") ->  | V40: =SUM(V23:V28) -> 0
A41: AKW | B41: =IF(SUM(B23:B39)>0,SUM(B23:B39),"") ->  | C41: =IF(SUM(C23:C39)>0,SUM(C23:C39),"") ->  | V41: =SUM(V23:V39) -> 0
A42: n-Alkane
A43: n-Pentan | V43: =(Z43+AA43)*$K$3 -> 0 | Y43: =IFERROR(AVERAGE($B43:$U43),0) -> 0 | Z43: =$Z$3*Y43 -> 0 | AA43: =$AA$3*Y43*Stoffdatenbank!$J37 -> 0
A44: n-Hexan | V44: 0 | Y44: 0 | Z44: 0 | AA44: =$AA$3*Y44*Stoffdatenbank!$J38 -> 0
A45: n-Heptan | V45: 0 | Y45: 0 | Z45: 0 | AA45: =$AA$3*Y45*Stoffdatenbank!$J39 -> 0
A46: n-Octan | V46: 0 | Y46: 0 | Z46: 0 | AA46: =$AA$3*Y46*Stoffdatenbank!$J40 -> 0
A47: n-Nonan | V47: 0 | Y47: 0 | Z47: 0 | AA47: =$AA$3*Y47*Stoffdatenbank!$J41 -> 0
A48: n-Decan | V48: 0 | Y48: 0 | Z48: 0 | AA48: =$AA$3*Y48*Stoffdatenbank!$J42 -> 0
A49: n-Alkane | B49: =IF(SUM(B43:B48)>0,SUM(B43:B48),"") ->  | C49: =IF(SUM(C43:C48)>0,SUM(C43:C48),"") ->  | H49: =IF(SUM(H43:H48)>0,SUM(H43:H48),"") ->  | T49: =IF(SUM(T43:T48)>0,SUM(T43:T48),"") ->  | V49: =SUM(V43:V48) -> 0
A50: Oxigenate
A51: MTBE (Methyl-tert-butylether) | V51: =(Z51+AA51)*$K$3 -> 0 | Y51: =IFERROR(AVERAGE($B51:$U51),0) -> 0 | Z51: =$Z$3*Y51 -> 0 | AA51: =$AA$3*Y51*Stoffdatenbank!$J44 -> 0
A52: ETBE (Ethyl-tert-butylether) | V52: 0 | Y52: 0 | Z52: 0 | AA52: =$AA$3*Y52*Stoffdatenbank!$J45 -> 0
A53: TBA (tert-Butylalkohol) | V53: 0 | Y53: 0 | Z53: 0 | AA53: =$AA$3*Y53*Stoffdatenbank!$J46 -> 0
A54: Oxigenate | B54: =IF(SUM(B51:B53)>0,SUM(B51:B53),"") ->  | T54: =IF(SUM(T51:T53)>0,SUM(T51:T53),"") ->  | U54: =IF(SUM(U51:U53)>0,SUM(U51:U53),"") ->  | V54: =SUM(V51:V53) -> 0
A56: [mg/m²]
O57: [mg/m²]

Sheet Bodencharakterisierung (hidden)
B2: Parameter | D2: Einheit | E2: Hauptbodenart | F2: Nebenbodenart | M2: Parameter | N2: Einheit | O2: Datenbank
O3: Grobsand | P3: Mittelsand | Q3: Feinsand | R3: Schluff | S3: Ton
B4: Relativer Anteil (geschätzt) | D4: % | E4: 60 | F4: =100-E4 -> 40 | I4: Grobsand | M4: Parameter | N4: Einheit | O4: Grobsand | P4: Mittelsand | Q4: Feinsand | R4: Schluff | S4: Ton
B5: Wassersättigung (ungesättigter Boden) | C5: SW | D5: - | E5: 0.26 | F5: 0.29 | I5: Mittelsand | M5: Wassersättigung (ungesättigter Boden) | N5: - | O5: 0.26 | P5: 0.26 | Q5: 0.26 | R5: 0.27 | S5: 0.29
B6: Durchlässigkeitsbeiwert | C6: kf | D6: m/s | E6: 1e-05 | F6: 1e-10 | H6: =E6/F6 -> 100000 | I6: Feinsand | M6: Durchlässigkeitsbeiwert (kf) | N6: m/s | O6: 0.0002 | P6: 0.000275 | Q6: 1e-05 | R6: 1e-07 | S6: 1e-10
B7: Nutzbare Porosität | C7: neff | D7: - | E7: 0.1 | F7: 0.035 | I7: Schluff | J7: Injizierbarkeit von Schluffböden ist nicht gegeben - injizierte Lösung verteilt sich nicht gleichmäßig und Desorption läuft nur viel langsamer ab. | M7: Nutzbare Porosität (neff) | N7: L/L | O7: 0.2 | P7: 0.125 | Q7: 0.1 | R7: 0.075 | S7: 0.035
B8: Gesamtporosität (Hohlraumvolumen) | C8: n | D8: - | E8: 0.3 | F8: 0.5 | I8: Ton | J8: Injizierbarkeit von Tonböden ist nicht gegeben - injizierte Lösung verteilt sich nicht gleichmäßig und Desorption läuft nur viel langsamer ab. | M8: Gesamtporosität (Hohlraumvolumen) | N8: L/L | O8: 0.38 | P8: 0.34 | Q8: 0.3 | R8: 0.4 | S8: 0.5
B9: Organischer Kohlenstoffgehalt | C9: fOC | D9: - | E9: 0.01 | F9: 0.01 | M9: Organische Kohlenstoffgehalt | N9: g/g | O9: 0.01 | P9: 0.01 | Q9: 0.01 | R9: 0.01 | S9: 0.01
B10: Korndichte | C10: ρs | D10: kg/m³ | E10: 2650 | F10: 2700 | M10: Korndichte | N10: kg/m³ | O10: 2650 | P10: 2650 | Q10: 2650 | R10: 2690 | S10: 2700
B11: Schüttdichte | C11: d | D11: kg/L | E11: 1.515 | F11: 1.64 | M11: Schüttdichte | N11: kg/dm³ | O11: 1.515 | P11: 1.515 | Q11: 1.515 | R11: 1.43 | S11: 1.64
B12: Anteil (Bodenkorn) | C12: nM | D12: kg/m³ | E12: 1060.5 | F12: 820 | M12: Anteil (Bodenkorn) | N12: kg/m³ | O12: =1000*(1-O8)*O11 -> 939.3 | P12: =1000*(1-P8)*P11 -> 999.9 | Q12: =1000*(1-Q8)*Q11 -> 1060.5 | R12: =1000*(1-R8)*R11 -> 858 | S12: =1000*(1-S8)*S11 -> 820
B13: Mittlerer Kornradius | C13: d50 | D13: m | E13: 0.0001315 | F13: 2e-06 | M13: Mittlerer Kornradius (d50) | N13: m | O13: 0.001315 | P13: 0.000415 | Q13: 0.0001315 | R13: 3.25e-05 | S13: 2e-06
B14: Tortouistät in der Wasserphase | C14: tw | D14: - | E14: 10 | F14: 28.57142857 | M14: Tortuoistät in der Wasserphase (tw) | N14: - | O14: =1/O7 -> 5 | P14: =1/P7 -> 8 | Q14: =1/Q7 -> 10 | R14: =1/R7 -> 13.33333333 | S14: =1/S7 -> 28.57142857
B15: Wärmeleitfähigkeit | C15: l | D15: W/(m·K) | E15: 1.2 | F15: 1.63 | M15: Wärmeleitfähigkeit (l) | N15: W/(m·K) | O15: 1.2 | P15: 1.2 | Q15: 1.2 | R15: 1.5 | S15: 1.63
B16: Temperaturleitfähigkeit | C16: a | D16: m²/s | E16: 5.39083558e-07 | F16: 6.70781893e-07 | M16: Temperaturleitfähigkeit (a) | N16: m²/s | O16: =O15/(O18*O10)/1000 -> 5.39083558e-07 | P16: =P15/(P18*P10)/1000 -> 5.39083558e-07 | Q16: =Q15/(Q18*Q10)/1000 -> 5.39083558e-07 | R16: =R15/(R18*R10)/1000 -> 6.195786865e-07 | S16: =S15/(S18*S10)/1000 -> 6.70781893e-07
B17: Untergrundtemperatur | C17: T0 | D17: K | E17: 283.15 | F17: 283.15 | M17: Untergrundtemperatur (T0) | N17: K | O17: 283.15 | P17: 283.15 | Q17: 283.15 | R17: 283.15 | S17: 283.15
B18: Spezifische Wärmekapazität (Bodenkorn) | C18: cM | D18: kJ/(kg·K) | E18: 0.84 | F18: 0.9 | M18: Spezifische Wärmekapazität | N18: kJ/(kg·K) | O18: 0.84 | P18: 0.84 | Q18: 0.84 | R18: 0.9 | S18: 0.9

Sheet Grundwassercharakterisierung (hidden)
B2: Parameter | C2: Einheit | D2: Wert
B3: Mittlerer hydraulischer Gradient (I) | C3: % | D3: 0.01 | H3: 0.01
B4: Grundwasserabstandsgeschwindigkeit (va) | C4: m/a | D4: =Bodencharakterisierung!E6*(Grundwassercharakterisierung!D3/100)/Bodencharakterisierung!E7*3600*24 -> 0.000864
A5: Redoxmilieu (charakteristische Mittelwerte)
B6: pH-Wert | C6: -- | D6: 7 | H6: 7
B7: Redoxspannung (korr.) | C7: mV | D7: 200 | H7: 200
B8: Temperatur | C8: °C | D8: 10 | H8: 10
B9: Gelöster Sauerstoff | C9: mg/L | D9: 3 | H9: 3
B10: Nitrat | C10: mg/L | D10: 20 | H10: 20
B11: Mangan (gelöst) | C11: mg/L | D11: 0 | H11: 0
B12: Eisen (gelöst) | C12: mg/L | D12: 0 | H12: 0
B13: Sulfat | C13: mg/L | D13: 200 | H13: 200
B14: Methan | C14: mg/L | D14: 0 | H14: 0
B15: DOC | C15: mg/L | D15: 2 | H15: 2

Sheet Sanierungsdesign (hidden)
B2: Parameter | D2: Einheit | E2: Wert
B3: Sanierungszielwerte | K3: 20
B4: LCKW | D4: µg/L | E4: 20 | K4: 20
B5: AKW | D5: µg/L | E5: 100 | K5: 100
B6: Bodenluftabsaugung
B7: Absaugrate eines Bodenluftabsaug-Brunnens | C7: ABLA | D7: m³·h-1 | E7: 360 | K7: 360
B8: Anzahl der Bodenluftabsaug-Brunnen | C8: nBLA | D8: - | E8: 8 | K8: 8
B9: Heizelemente (HE)
B10: Länge des Heizelementes | C10: LHE | D10: m | E10: 5 | K10: 5
B11: Anzahl der Heizelemente | C11: nHE | D11: - | E11: 8 | K11: 8
B12: Wärmestromeintrag pro Sondenmeter | C12: q | D12: J·s-1·m-1 | E12: 1300 | K12: 1300
B13: Zielradius | C13: rHE | D13: m | E13: 1.5 | K13: 1.5
B14: Zieltemperatur | C14: T(rHE, t) | D14: °C | E14: =Calculation!U33 -> 0
B15: Wärmeausbreitung außerhalb des Heizbereichs | C15: l | D15: m | E15: 0.5 | K15: 0.5
B16: Anzahl der Überschneidungssegmente | C16: nSegment | D16: - | E16: 0 | K16: 0.5

Sheet Berechnung (hidden)
B2: Parameter | C2: Einheit | D2: Wert
A3: Schadstoffbelastung
B4: Berücksichtigter Schadstoff | C4: - | D4: =Calculation!Q33 -> 
B5: Zieltemperatur | C5: °C | D5: =Calculation!D77 -> 0
B6: Anzahl der Überschneidungssegmente | C6: nSegment | D6: =Sanierungsdesign!$E$16 -> 0
B7: Dauer der Aufheizphase | C7: Tage | D7: =Calculation!U31 -> 
B8: Dauer der Durchheizphase (einschl. Verlust) | C8: Tage | D8: =IF(Calculation!T42<0,"Wärmeeintrag zu gering",Calculation!T42) -> 
B9: Prozentualer Wärmeverlust | C9: % | D9: =Calculation!T32 -> 
B10: Energieverbrauch (gesamt) | C10: kWh | D10: =IFERROR((Sanierungsdesign!E12*Sanierungsdesign!E10*Sanierungsdesign!E11*(Berechnung!D11*86400))/3600000,"Wärmeeintrag zu gering") -> Wärmeeintrag zu gering
B11: Gesamtdauer der Sanierung (Heizphase) | D11: =IFERROR(D7+D8,"Wäremeintrag zu gering") -> Wäremeintrag zu gering

Sheet Calculation (hidden)
A1: Verfahrensspezifische Konstanten | C1: Einheit | D1: Wert | G1: Bodenluft | H1: Masse Bodenluft | J1: mBL | K1: kg | L1: =((Bodencharakterisierung!$E$8*(Bodencharakterisierung!$E$4/100))+(Bodencharakterisierung!$F$8*(Bodencharakterisierung!$F$4/100)))*Schadstoffbelastung!$K$11*(1-((Bodencharakterisierung!$E$5*(Bodencharakterisierung!$E$4/100))+(Bodencharakterisierung!$F$5*(Bodencharakterisierung!$F$4/100))))*D7 -> 0 | O1: Berechnete Parameter | P1: Parameter | S1: Einheit | T1: Wert | AF1: Aufheizphase
A2: Außenlufttemperatur | C2: K | D2: 285.15 | H2: Massenanteil Bodenluft | J2: nBL | K2: kg·kg-1 | L2: =L1/D26 ->  | N2: Bodenluftabsaugung (BLA) | O2: Gesamtabsaugrate | S2: m³·s-1 | T2: =Sanierungsdesign!E7*Sanierungsdesign!E8/3600 -> 0.8 | AF2: Wärmeeintrag (1HE) | AL2: Wärmeverluste (1 HE) | AT2: gesamter Bereich | AX2: 1 HE
A3: Wärmeleitfähigkeit Boden | C3: W· (m·K)-1 | D3: =Bodencharakterisierung!$E$15*Bodencharakterisierung!$E$4/100+Bodencharakterisierung!$F$15*Bodencharakterisierung!$F$4/100 -> 1.372 | G3: Grundwasser (GW) | H3: Masse GW | J3: mGW | K3: kg | L3: =((Bodencharakterisierung!$E$8*(Bodencharakterisierung!$E$4/100))+(Bodencharakterisierung!$F$8*(Bodencharakterisierung!$F$4/100)))*Schadstoffbelastung!$K$11*((Bodencharakterisierung!$E$5*(Bodencharakterisierung!$E$4/100))+(Bodencharakterisierung!$F$5*(Bodencharakterisierung!$F$4/100)))*D13 -> 0 | N3: Heizelemente (HE) | O3: Rasterabstände der HE | S3: m | T3: =SQRT(2)*Sanierungsdesign!$E$13 -> 2.121320344 | AH3: Dauer | AJ3: radiale, verlustfreie Temperaturausbreitung | AL3: Bodenoberfläche - Außenluft | AM3: Bereichsunterseite | AN3: Bereichsmantelfläche | AQ3: GW-Strömung | AS3: BLA-Absaugung | AV3: Segmente | AX3: Gesamtverlustberechnung | BB3: radiale Temperaturausbreitung mit Verlusten
A4: Temperaturleitfähigkeit Boden | C4: m²·s-1 | D4: =Bodencharakterisierung!$E$16*Bodencharakterisierung!$E$4/100+Bodencharakterisierung!$F$16*Bodencharakterisierung!$F$4/100 -> 5.91762892e-07 | H4: Massenanteil GW | J4: nGW | K4: kg·kg-1 | L4: =L3/D26 ->  | O4: Wärmeübergangskoeffizient | S4: (W)·(m²·K)-1 | T4: =T5*(D6/T6) -> 39.30209354 | AF4: Parameter | AG4: Wämemenge HE | AH4: Zeit [Woche = 7 Tage] | AI4: Zeit | AJ4: Temperatur | AL4: Wärmemenge | AM4: Wämemenge | AN4: Temperatur | AP4: Wärmemenge | AQ4: Masse GW-Eintritt | AR4: Wärmemenge | AS4: Wärmemenge pro HE | AT4: Masse des Fluids | AU4: Wämemenge | AV4: Wärmemenge 1 Segment | AW4: Wärmemenge (alle Segmente) | AY4: Qreal | AZ4: Einspeisung real | BA4: Wirkungsgrad | BD4: Zeit [d] für Grafik
A5: Untergrundtemperatur | C5: K | D5: =Bodencharakterisierung!$E$17 -> 283.15 | H5: GW-Strömungsgeschwindigkeit | J5: vGW | K5: m·s-1 | L5: =Grundwassercharakterisierung!$D$4/365/24/3600 -> 2.739726027e-11 | O5: Nußelt-Zahl | S5: - | T5: =0.15*T8^(1/3)*(T11)^(1/5) -> 4179.668822 | AG5: Qverlustfrei | AX5: Qverluste | AY5: Qverlustfrei-Qverluste | AZ5: qreal
A6: Wärmeleitfähigkeit der Luft | C6: W·(m·K)-1 | D6: 0.025 | G6: Schadstoffgemisch | H6: Masse Schadstoffgemisch | J6: mS | K6: kg | L6: =Schadstoffbelastung!$E$17+Schadstoffbelastung!$E$35+Schadstoffbelastung!$E$42+Schadstoffbelastung!$E$46 -> 0 | O6: Repräsentative Kreislänge | S6: m | T6: =SQRT(T7) -> 2.658680776 | AF6: Einheit | AG6: MJ | AH6: s | AI6: Tagen | AJ6: K | AK6: °C | AL6: MJ | AM6: MJ | AN6: K | AO6: °C | AP6: MJ | AQ6: kg | AR6: MJ | AS6: MJ | AT6: kg | AU6: MJ | AV6: MJ | AW6: MJ | AX6: MJ | AY6: MJ | AZ6: J | BA6: - | BB6: K | BC6: °C
A7: Dichte Luft | C7: kg·m-³ | D7: 1.2041 | H7: Massenanteil Schadstoffe | J7: nS | K7: kg·kg-1 | L7: =L6/D26 ->  | O7: Kreisfläche | S7: m² | T7: =PI()*Sanierungsdesign!E13^2 -> 7.068583471 | AG7: =Sanierungsdesign!$E$12*AH7*Sanierungsdesign!$E$10/1000000 -> 46.8 | AH7: =$D$24 -> 7200 | AI7: =AH7/86400 -> 0.08333333333 | AJ7: =$D$5+((-Sanierungsdesign!$E$12)/4*PI()*$D$3)*(-LN((4*$D$4*AH7)/(Sanierungsdesign!$E$13^2))-$D$19) -> -5748.491472 | AK7: =AJ7-273.15 -> -6021.641472 | AL7: =$T$4*$T$7*$AH$7*(AJ7-$D$2)/1000000 -> -12068.68834 | AM7: =$D$3*$T$7*$AH$7*(AK7-$D$5)*(1/Sanierungsdesign!$E$15)/1000000 -> -880.4804579 | AN7: =$D$5+(-Sanierungsdesign!$E$12/(4*PI()*$D$3))*(-LN((4*$D$4*AH7)/(Sanierungsdesign!$E$13+Sanierungsdesign!$E$15)^2)-$D$19) -> -84.89233642 | AO7: =AN7-273.15 -> -358.0423364 | AP7: =(2*PI()*Sanierungsdesign!$E$10*$D$3)*(LN((Sanierungsdesign!$E$13+Sanierungsdesign!$E$15)/Sanierungsdesign!$E$13)*(AJ7-AN7))*$AH$7/1000000 -> -505.640423 | AQ7: =$T$20*AH7 -> 12.40588921 | AR7: =$D$12*AQ7/1000000 -> 28.00009196 | AS7: =AU7/Sanierungsdesign!E11 -> -4.365942969 | AT7: =$T$18/$D$24*AH7 -> 5760 | AU7: =($D$10*$T$18)*(AJ7-$D$2)/1000000 -> -34.92754375 | AV7: =($D$17*$L$10*$T$28+$L$2*$D$10*$T$28+$D$16*$L$4*$T$28+$D$18*$L$7*$T$28)*(AJ7-$D$5)/1000000 ->  | AW7: =AV7*$D$28 ->  | AX7: =AL7+AM7+AR7+(0.5*AP7)-(AW7)+AS7 ->  | AY7: =AG7-AX7 ->  | AZ7: =(AY7/(AH7*Sanierungsdesign!$E$10))*1000000 ->  | BA7: =AZ7/Sanierungsdesign!$E$12 ->  | BB7: =$D$5+((-(Sanierungsdesign!$E$12)*MIN($BA$7:$BA$932))/(4*PI()*$D$3))*(-LN((4*$D$4*AH7)/(Sanierungsdesign!$E$13)^2)-$D$19) ->  | BC7: =(BB7-273.15)/Heterogenität!$D$4 ->  | BD7: =IF(AI7<Berechnung!$D$7,AI7,#N/A) -> 
A8: Dichte Luft (100°C) | C8: kg·m-³ | D8: 1 | H8: mittlere spezifische Verdampfungswärme | J8: rV | K8: J·kg-1 | L8: =C77*1000 -> 0 | O8: Rayleigh-Zahl | S8: - | T8: =T9*T10 -> 36819689062500 | AG8: =Sanierungsdesign!$E$12*AH8*Sanierungsdesign!$E$10/1000000 -> 93.6 | AH8: =AH7+$D$24 -> 14400 | AI8: =AH8/86400 -> 0.1666666667 | AJ8: =$D$5+((-Sanierungsdesign!$E$12)/4*PI()*$D$3)*(-LN((4*$D$4*AH8)/(Sanierungsdesign!$E$13^2))-$D$19) -> -4777.505834 | AK8: -5050.655834 | AL8: =$T$4*$T$7*$AH$7*(AJ8-$D$2)/1000000 -> -10126.4909 | AM8: =$D$3*$T$7*$AH$7*(AK8-$D$5)*(1/Sanierungsdesign!$E$15)/1000000 -> -744.8797988 | AN8: =$D$5+(-Sanierungsdesign!$E$12/(4*PI()*$D$3))*(-LN((4*$D$4*AH8)/(Sanierungsdesign!$E$13+Sanierungsdesign!$E$15)^2)-$D$19) -> -32.62807254 | AO8: =AN8-273.15 -> -305.7780725 | AP8: =(2*PI()*Sanierungsdesign!$E$10*$D$3)*(LN((Sanierungsdesign!$E$13+Sanierungsdesign!$E$15)/Sanierungsdesign!$E$13)*(AJ8-AN8))*$AH$7/1000000 -> -423.6179047 | AQ8: =$T$20*AH8 -> 24.81177843 | AR8: =$D$12*AQ8/1000000 -> 56.00018392 | AS8: =AU8/Sanierungsdesign!$E$11 -> -3.663337762 | AT8: =$T$18/$D$24*AH8 -> 11520 | AU8: =($D$10*$T$18)*(AJ8-$D$2)/1000000 -> -29.30670209 | AV8: =($D$17*$L$10*$T$28+$L$2*$D$10*$T$28+$D$16*$L$4*$T$28+$D$18*$L$7*$T$28)*(AJ8-$D$5)/1000000 ->  | AW8: =AV8*$D$28 ->  | AX8: =AL8+AM8+AR8+(0.5*AP8)-(2*AW8)+AS8 ->  | AY8: =AG8-AX8 ->  | AZ8: =(AY8/(AH8*Sanierungsdesign!$E$10))*1000000 ->  | BA8: =AZ8/Sanierungsdesign!$E$12 ->  | BB8: =$D$5+((-(Sanierungsdesign!$E$12)*MIN($BA$7:$BA$932))/(4*PI()*$D$3))*(-LN((4*$D$4*AH8)/(Sanierungsdesign!$E$13)^2)-$D$19) ->  | BC8: =(BB8-273.15)/Heterogenität!$D$4 ->  | BD8: =IF(AI8<Berechnung!$D$7,AI8,#N/A) -> 
A9: Kinematische Viskosität | C9: m2·s −1 | D9: 1.5e-05 | G9: Bodenmatrix | H9: Masse Bodenmatrix | J9: mMatrix | K9: kg | L9: =Schadstoffbelastung!$K$11*((Bodencharakterisierung!$E$10*(Bodencharakterisierung!$E$4/100))+(Bodencharakterisierung!$F$10*(Bodencharakterisierung!$F$4/100))) -> 0 | O9: Graßhof-Zahl | S9: - | T9: =((D20*T13^3)/(D9^2))*((L11-D8)/D8) -> 49092918750000 | AG9: =Sanierungsdesign!$E$12*AH9*Sanierungsdesign!$E$10/1000000 -> 140.4 | AH9: =AH8+$D$24 -> 21600 | AI9: 0.25 | AJ9: =$D$5+((-Sanierungsdesign!$E$12)/4*PI()*$D$3)*(-LN((4*$D$4*AH9)/(Sanierungsdesign!$E$13^2))-$D$19) -> -4209.515647 | AK9: -4482.665647 | AL9: -8990.378223 | AM9: =$D$3*$T$7*$AH$7*(AK9-$D$5)*(1/Sanierungsdesign!$E$15)/1000000 -> -665.5584982 | AN9: =$D$5+(-Sanierungsdesign!$E$12/(4*PI()*$D$3))*(-LN((4*$D$4*AH9)/(Sanierungsdesign!$E$13+Sanierungsdesign!$E$15)^2)-$D$19) -> -2.055438037 | AO9: -275.205438 | AP9: =(2*PI()*Sanierungsdesign!$E$10*$D$3)*(LN((Sanierungsdesign!$E$13+Sanierungsdesign!$E$15)/Sanierungsdesign!$E$13)*(AJ9-AN9))*$AH$7/1000000 -> -375.6378072 | AQ9: 37.21766764 | AR9: 84.00027587 | AS9: =AU9/Sanierungsdesign!$E$11 -> -3.252340062 | AT9: 17280 | AU9: -26.0187205 | AZ9: =(AY9/(AH9*Sanierungsdesign!$E$10))*1000000 ->  | BA9: =AZ9/Sanierungsdesign!$E$12 ->  | BB9: =$D$5+((-(Sanierungsdesign!$E$12)*MIN($BA$7:$BA$932))/(4*PI()*$D$3))*(-LN((4*$D$4*AH9)/(Sanierungsdesign!$E$13)^2)-$D$19) ->  | BC9: =(BB9-273.15)/Heterogenität!$D$4 ->  | BD9: =IF(AI9<Berechnung!$D$7,AI9,#N/A) -> 
A10: Spezifische Wärmekapazität Bodenluft | C10: kJ·(kg·K)-1 | D10: 1.005 | H10: Massenanteil Matrix | J10: nM | K10: kg·kg-1 | L10: =L9/D26 ->  | O10: Prandtl-Zahl | S10: - | T10: =D9/D11 -> 0.75 | AG10: =Sanierungsdesign!$E$12*AH10*Sanierungsdesign!$E$10/1000000 -> 187.2 | AH10: 28800 | AI10: 0.3333333333 | AJ10: =$D$5+((-Sanierungsdesign!$E$12)/4*PI()*$D$3)*(-LN((4*$D$4*AH10)/(Sanierungsdesign!$E$13^2))-$D$19) -> -3806.520196 | AK10: -4079.670196 | AL10: -8184.293453 | AM10: =$D$3*$T$7*$AH$7*(AK10-$D$5)*(1/Sanierungsdesign!$E$15)/1000000 -> -609.2791398 | AN10: =$D$5+(-Sanierungsdesign!$E$12/(4*PI()*$D$3))*(-LN((4*$D$4*AH10)/(Sanierungsdesign!$E$13+Sanierungsdesign!$E$15)^2)-$D$19) -> 19.63619135 | AO10: -253.5138087 | AP10: =(2*PI()*Sanierungsdesign!$E$10*$D$3)*(LN((Sanierungsdesign!$E$13+Sanierungsdesign!$E$15)/Sanierungsdesign!$E$13)*(AJ10-AN10))*$AH$7/1000000 -> -341.5953863 | AQ10: 49.62355686 | AR10: 112.0003678 | AS10: =AU10/Sanierungsdesign!$E$11 -> -2.960732554 | AT10: 23040 | AU10: -23.68586043 | AZ10: =(AY10/(AH10*Sanierungsdesign!$E$10))*1000000 ->  | BA10: =AZ10/Sanierungsdesign!$E$12 ->  | BB10: =$D$5+((-(Sanierungsdesign!$E$12)*MIN($BA$7:$BA$932))/(4*PI()*$D$3))*(-LN((4*$D$4*AH10)/(Sanierungsdesign!$E$13)^2)-$D$19) ->  | BC10: =(BB10-273.15)/Heterogenität!$D$4 ->  | BD10: =IF(AI10<Berechnung!$D$7,AI10,#N/A) -> 
A11: Temperaturleitfähigkeit Luft | C11: m²·s-1 | D11: 2e-05 | H11: Bodendichte | J11: rBoden | K11: kg·m-³ | L11: =(Bodencharakterisierung!$E$10*(Bodencharakterisierung!$E$4/100)+Bodencharakterisierung!$F$10*(Bodencharakterisierung!$F$4/100)) -> 2670 | T11: =(1+(0.322/T10)^(11/20))^-(20/11) -> 0.4122109604 | AG11: =Sanierungsdesign!$E$12*AH11*Sanierungsdesign!$E$10/1000000 -> 234 | AH11: 36000 | AI11: 0.4166666667 | AJ11: =$D$5+((-Sanierungsdesign!$E$12)/4*PI()*$D$3)*(-LN((4*$D$4*AH11)/(Sanierungsdesign!$E$13^2))-$D$19) -> -3493.93264 | AK11: -3767.08264 | AL11: -7559.04553 | AM11: =$D$3*$T$7*$AH$7*(AK11-$D$5)*(1/Sanierungsdesign!$E$15)/1000000 -> -565.6254779 | AN11: =$D$5+(-Sanierungsdesign!$E$12/(4*PI()*$D$3))*(-LN((4*$D$4*AH11)/(Sanierungsdesign!$E$13+Sanierungsdesign!$E$15)^2)-$D$19) -> 36.46152625 | AO11: -236.6884737 | AP11: =(2*PI()*Sanierungsdesign!$E$10*$D$3)*(LN((Sanierungsdesign!$E$13+Sanierungsdesign!$E$15)/Sanierungsdesign!$E$13)*(AJ11-AN11))*$AH$7/1000000 -> -315.1900332 | AQ11: 62.02944607 | AR11: 140.0004598 | AS11: =AU11/Sanierungsdesign!$E$11 -> -2.734544198 | AT11: 28800 | AU11: -21.87635359 | AZ11: =(AY11/(AH11*Sanierungsdesign!$E$10))*1000000 ->  | BA11: =AZ11/Sanierungsdesign!$E$12 ->  | BB11: =$D$5+((-(Sanierungsdesign!$E$12)*MIN($BA$7:$BA$932))/(4*PI()*$D$3))*(-LN((4*$D$4*AH11)/(Sanierungsdesign!$E$13)^2)-$D$19) ->  | BC11: =(BB11-273.15)/Heterogenität!$D$4 ->  | BD11: =IF(AI11<Berechnung!$D$7,AI11,#N/A) -> 
A12: Spezifische Verdampfungswärme Wasser | C12: J·kg-1 | D12: 2257000 | H12: Zeitintervall (Vorgabe) | J12: t | K12: h | L12: 2 | T12: =T8*T11 -> 1.517747939e+13 | AG12: =Sanierungsdesign!$E$12*AH12*Sanierungsdesign!$E$10/1000000 -> 280.8 | AH12: 43200 | AI12: =AH12/86400 -> 0.5 | AJ12: =$D$5+((-Sanierungsdesign!$E$12)/4*PI()*$D$3)*(-LN((4*$D$4*AH12)/(Sanierungsdesign!$E$13^2))-$D$19) -> -3238.53001 | AK12: -3511.68001 | AL12: -7048.180779 | AM12: =$D$3*$T$7*$AH$7*(AK12-$D$5)*(1/Sanierungsdesign!$E$15)/1000000 -> -529.9578391 | AN12: =$D$5+(-Sanierungsdesign!$E$12/(4*PI()*$D$3))*(-LN((4*$D$4*AH12)/(Sanierungsdesign!$E$13+Sanierungsdesign!$E$15)^2)-$D$19) -> 50.20882585 | AO12: -222.9411742 | AP12: =(2*PI()*Sanierungsdesign!$E$10*$D$3)*(LN((Sanierungsdesign!$E$13+Sanierungsdesign!$E$15)/Sanierungsdesign!$E$13)*(AJ12-AN12))*$AH$7/1000000 -> -293.6152888 | AQ12: 74.43533529 | AR12: 168.0005517 | AS12: =AU12/Sanierungsdesign!$E$11 -> -2.549734855 | AT12: 34560 | AU12: -20.39787884 | AZ12: =(AY12/(AH12*Sanierungsdesign!$E$10))*1000000 ->  | BA12: =AZ12/Sanierungsdesign!$E$12 ->  | BB12: =$D$5+((-(Sanierungsdesign!$E$12)*MIN($BA$7:$BA$932))/(4*PI()*$D$3))*(-LN((4*$D$4*AH12)/(Sanierungsdesign!$E$13)^2)-$D$19) ->  | BC12: =(BB12-273.15)/Heterogenität!$D$4 ->  | BD12: =IF(AI12<Berechnung!$D$7,AI12,#N/A) -> 
A13: Dichte Wasser | C13: kg·m-³ | D13: 1000 | O13: Bezugslänge des Kreises | S13: m | T13: =T7/T14 -> 0.75 | AG13: =Sanierungsdesign!$E$12*AH13*Sanierungsdesign!$E$10/1000000 -> 327.6 | AH13: 50400 | AI13: 0.5833333333 | AJ13: =$D$5+((-Sanierungsdesign!$E$12)/4*PI()*$D$3)*(-LN((4*$D$4*AH13)/(Sanierungsdesign!$E$13^2))-$D$19) -> -3022.590163 | AK13: -3295.740163 | AL13: -6616.250787 | AM13: =$D$3*$T$7*$AH$7*(AK13-$D$5)*(1/Sanierungsdesign!$E$15)/1000000 -> -499.8012802 | AN13: =$D$5+(-Sanierungsdesign!$E$12/(4*PI()*$D$3))*(-LN((4*$D$4*AH13)/(Sanierungsdesign!$E$13+Sanierungsdesign!$E$15)^2)-$D$19) -> 61.83200204 | AO13: -211.317998 | AP13: =(2*PI()*Sanierungsdesign!$E$10*$D$3)*(LN((Sanierungsdesign!$E$13+Sanierungsdesign!$E$15)/Sanierungsdesign!$E$13)*(AJ13-AN13))*$AH$7/1000000 -> -275.3741024 | AQ13: 86.8412245 | AR13: 196.0006437 | AS13: =AU13/Sanierungsdesign!$E$11 -> -2.393480782 | AT13: 40320 | AU13: -19.14784625 | AZ13: =(AY13/(AH13*Sanierungsdesign!$E$10))*1000000 ->  | BA13: =AZ13/Sanierungsdesign!$E$12 ->  | BB13: =$D$5+((-(Sanierungsdesign!$E$12)*MIN($BA$7:$BA$932))/(4*PI()*$D$3))*(-LN((4*$D$4*AH13)/(Sanierungsdesign!$E$13)^2)-$D$19) ->  | BC13: =(BB13-273.15)/Heterogenität!$D$4 ->  | BD13: =IF(AI13<Berechnung!$D$7,AI13,#N/A) -> 
A14: Dichte Wasserdampf (100°C) | C14: kg·m-³ | D14: 0.768 | J14: Summe Massenanteile | L14: =L2+L4+L10 ->  | O14: Kreisumfang | S14: m | T14: =2*PI()*Sanierungsdesign!E13 -> 9.424777961 | AG14: =Sanierungsdesign!$E$12*AH14*Sanierungsdesign!$E$10/1000000 -> 374.4 | AH14: 57600 | AI14: 0.6666666667 | AJ14: =$D$5+((-Sanierungsdesign!$E$12)/4*PI()*$D$3)*(-LN((4*$D$4*AH14)/(Sanierungsdesign!$E$13^2))-$D$19) -> -2835.534559 | AK14: -3108.684559 | AL14: -6242.096009 | AM14: =$D$3*$T$7*$AH$7*(AK14-$D$5)*(1/Sanierungsdesign!$E$15)/1000000 -> -473.6784807 | AN14: =$D$5+(-Sanierungsdesign!$E$12/(4*PI()*$D$3))*(-LN((4*$D$4*AH14)/(Sanierungsdesign!$E$13+Sanierungsdesign!$E$15)^2)-$D$19) -> 71.90045523 | AO14: -201.2495448 | AP14: =(2*PI()*Sanierungsdesign!$E$10*$D$3)*(LN((Sanierungsdesign!$E$13+Sanierungsdesign!$E$15)/Sanierungsdesign!$E$13)*(AJ14-AN14))*$AH$7/1000000 -> -259.5728679 | AQ14: 99.24711372 | AR14: 224.0007357 | AS14: =AU14/Sanierungsdesign!$E$11 -> -2.258127347 | AT14: 46080 | AU14: -18.06501877 | AZ14: =(AY14/(AH14*Sanierungsdesign!$E$10))*1000000 ->  | BA14: =AZ14/Sanierungsdesign!$E$12 ->  | BB14: =$D$5+((-(Sanierungsdesign!$E$12)*MIN($BA$7:$BA$932))/(4*PI()*$D$3))*(-LN((4*$D$4*AH14)/(Sanierungsdesign!$E$13)^2)-$D$19) ->  | BC14: =(BB14-273.15)/Heterogenität!$D$4 ->  | BD14: =IF(AI14<Berechnung!$D$7,AI14,#N/A) -> 
A15: Wärmleitfähigkeit Wasser | C15: W·(m·K)-1 | D15: 0.596 | N15: Wärmeverlust BLA (alle HE) | O15: Gesamtvolumen des Fluids pro Zeitintervall | S15: m³ | T15: =T2*D24 -> 5760 | AG15: =Sanierungsdesign!$E$12*AH15*Sanierungsdesign!$E$10/1000000 -> 421.2 | AH15: 64800 | AI15: 0.75 | AJ15: =$D$5+((-Sanierungsdesign!$E$12)/4*PI()*$D$3)*(-LN((4*$D$4*AH15)/(Sanierungsdesign!$E$13^2))-$D$19) -> -2670.539823 | AK15: -2943.689823 | AL15: -5912.068105 | AM15: =$D$3*$T$7*$AH$7*(AK15-$D$5)*(1/Sanierungsdesign!$E$15)/1000000 -> -450.6365385 | AN15: =$D$5+(-Sanierungsdesign!$E$12/(4*PI()*$D$3))*(-LN((4*$D$4*AH15)/(Sanierungsdesign!$E$13+Sanierungsdesign!$E$15)^2)-$D$19) -> 80.78146035 | AO15: -192.3685397 | AP15: =(2*PI()*Sanierungsdesign!$E$10*$D$3)*(LN((Sanierungsdesign!$E$13+Sanierungsdesign!$E$15)/Sanierungsdesign!$E$13)*(AJ15-AN15))*$AH$7/1000000 -> -245.6351914 | AQ15: 111.6530029 | AR15: 252.0008276 | AS15: =AU15/Sanierungsdesign!$E$11 -> -2.138737156 | AT15: 51840 | AU15: -17.10989725 | AZ15: =(AY15/(AH15*Sanierungsdesign!$E$10))*1000000 ->  | BA15: =AZ15/Sanierungsdesign!$E$12 ->  | BB15: =$D$5+((-(Sanierungsdesign!$E$12)*MIN($BA$7:$BA$932))/(4*PI()*$D$3))*(-LN((4*$D$4*AH15)/(Sanierungsdesign!$E$13)^2)-$D$19) ->  | BC15: =(BB15-273.15)/Heterogenität!$D$4 ->  | BD15: =IF(AI15<Berechnung!$D$7,AI15,#N/A) -> 
A16: Spezifische Wärmekapazität GW | C16: kJ·(kg·K)-1 | D16: 4.182 | AG16: =Sanierungsdesign!$E$12*AH16*Sanierungsdesign!$E$10/1000000 -> 468 | AH16: 72000 | AI16: 0.8333333333 | AJ16: =$D$5+((-Sanierungsdesign!$E$12)/4*PI()*$D$3)*(-LN((4*$D$4*AH16)/(Sanierungsdesign!$E$13^2))-$D$19) -> -2522.947002 | AK16: -2796.097002 | AL16: -5616.848086 | AM16: =$D$3*$T$7*$AH$7*(AK16-$D$5)*(1/Sanierungsdesign!$E$15)/1000000 -> -430.0248188 | AN16: =$D$5+(-Sanierungsdesign!$E$12/(4*PI()*$D$3))*(-LN((4*$D$4*AH16)/(Sanierungsdesign!$E$13+Sanierungsdesign!$E$15)^2)-$D$19) -> 88.72579013 | AO16: -184.4242099 | AP16: =(2*PI()*Sanierungsdesign!$E$10*$D$3)*(LN((Sanierungsdesign!$E$13+Sanierungsdesign!$E$15)/Sanierungsdesign!$E$13)*(AJ16-AN16))*$AH$7/1000000 -> -233.1675149 | AQ16: 124.0588921 | AR16: 280.0009196 | AS16: =AU16/Sanierungsdesign!$E$11 -> -2.031938991 | AT16: 57600 | AU16: -16.25551193 | AZ16: =(AY16/(AH16*Sanierungsdesign!$E$10))*1000000 ->  | BA16: =AZ16/Sanierungsdesign!$E$12 ->  | BB16: =$D$5+((-(Sanierungsdesign!$E$12)*MIN($BA$7:$BA$932))/(4*PI()*$D$3))*(-LN((4*$D$4*AH16)/(Sanierungsdesign!$E$13)^2)-$D$19) ->  | BC16: =(BB16-273.15)/Heterogenität!$D$4 ->  | BD16: =IF(AI16<Berechnung!$D$7,AI16,#N/A) -> 
A17: Spezifische Wärmekapazität Matrix | C17: kJ·(kg·K)-1 | D17: =Bodencharakterisierung!E4/100*Bodencharakterisierung!E18+Bodencharakterisierung!F4/100*Bodencharakterisierung!F18 -> 0.864 | O17: Gesamtdichte des Fluids | S17: kg·m-³ | T17: =D8 -> 1 | AG17: =Sanierungsdesign!$E$12*AH17*Sanierungsdesign!$E$10/1000000 -> 514.8 | AH17: 79200 | AI17: 0.9166666667 | AJ17: =$D$5+((-Sanierungsdesign!$E$12)/4*PI()*$D$3)*(-LN((4*$D$4*AH17)/(Sanierungsdesign!$E$13^2))-$D$19) -> -2389.433056 | AK17: -2662.583056 | AL17: -5349.789093 | AM17: =$D$3*$T$7*$AH$7*(AK17-$D$5)*(1/Sanierungsdesign!$E$15)/1000000 -> -411.3792504 | AN17: =$D$5+(-Sanierungsdesign!$E$12/(4*PI()*$D$3))*(-LN((4*$D$4*AH17)/(Sanierungsdesign!$E$13+Sanierungsdesign!$E$15)^2)-$D$19) -> 95.91231059 | AO17: -177.2376894 | AP17: =(2*PI()*Sanierungsdesign!$E$10*$D$3)*(LN((Sanierungsdesign!$E$13+Sanierungsdesign!$E$15)/Sanierungsdesign!$E$13)*(AJ17-AN17))*$AH$7/1000000 -> -221.8891296 | AQ17: 136.4647814 | AR17: 308.0010115 | AS17: =AU17/Sanierungsdesign!$E$11 -> -1.935328299 | AT17: 63360 | AU17: -15.48262639 | AZ17: =(AY17/(AH17*Sanierungsdesign!$E$10))*1000000 ->  | BA17: =AZ17/Sanierungsdesign!$E$12 ->  | BB17: =$D$5+((-(Sanierungsdesign!$E$12)*MIN($BA$7:$BA$932))/(4*PI()*$D$3))*(-LN((4*$D$4*AH17)/(Sanierungsdesign!$E$13)^2)-$D$19) ->  | BC17: =(BB17-273.15)/Heterogenität!$D$4 ->  | BD17: =IF(AI17<Berechnung!$D$7,AI17,#N/A) -> 
A18: Spezifische Wärmekapazität Schadstoffgemisch | C18: kJ· (kg·K)-1 | D18: 0.96 | O18: Gesamtmasse des Fluids pro Zeitintervall | S18: kg | T18: =T2*D24*T17 -> 5760 | AG18: =Sanierungsdesign!$E$12*AH18*Sanierungsdesign!$E$10/1000000 -> 561.6 | AH18: 86400 | AI18: 1 | AJ18: =$D$5+((-Sanierungsdesign!$E$12)/4*PI()*$D$3)*(-LN((4*$D$4*AH18)/(Sanierungsdesign!$E$13^2))-$D$19) -> -2267.544372 | AK18: -2540.694372 | AL18: -5105.983335 | AM18: =$D$3*$T$7*$AH$7*(AK18-$D$5)*(1/Sanierungsdesign!$E$15)/1000000 -> -394.3571801 | AN18: =$D$5+(-Sanierungsdesign!$E$12/(4*PI()*$D$3))*(-LN((4*$D$4*AH18)/(Sanierungsdesign!$E$13+Sanierungsdesign!$E$15)^2)-$D$19) -> 102.4730897 | AO18: -170.6769103 | AP18: =(2*PI()*Sanierungsdesign!$E$10*$D$3)*(LN((Sanierungsdesign!$E$13+Sanierungsdesign!$E$15)/Sanierungsdesign!$E$13)*(AJ18-AN18))*$AH$7/1000000 -> -211.5927705 | AQ18: 148.8706706 | AR18: 336.0011035 | AS18: =AU18/Sanierungsdesign!$E$11 -> -1.847129648 | AT18: 69120 | AU18: -14.77703718 | AZ18: =(AY18/(AH18*Sanierungsdesign!$E$10))*1000000 ->  | BA18: =AZ18/Sanierungsdesign!$E$12 ->  | BB18: =$D$5+((-(Sanierungsdesign!$E$12)*MIN($BA$7:$BA$932))/(4*PI()*$D$3))*(-LN((4*$D$4*AH18)/(Sanierungsdesign!$E$13)^2)-$D$19) ->  | BC18: =(BB18-273.15)/Heterogenität!$D$4 ->  | BD18: =IF(AI18<Berechnung!$D$7,AI18,#N/A) -> 
A19: Euler-Mascheroni-Konstante | C19: - | D19: 0.5772156649 | N19: Wärmeverlust GW | O19: Wärmemenge Grundwasser pro Zeitintervall | S19: MJ | T19: =D12*AQ7/100000 -> 280.0009196 | AG19: =Sanierungsdesign!$E$12*AH19*Sanierungsdesign!$E$10/1000000 -> 608.4 | AH19: 93600 | AI19: 1.083333333 | AJ19: =$D$5+((-Sanierungsdesign!$E$12)/4*PI()*$D$3)*(-LN((4*$D$4*AH19)/(Sanierungsdesign!$E$13^2))-$D$19) -> -2155.417652 | AK19: -2428.567652 | AL19: -4881.703779 | AM19: =$D$3*$T$7*$AH$7*(AK19-$D$5)*(1/Sanierungsdesign!$E$15)/1000000 -> -378.6983933 | AN19: =$D$5+(-Sanierungsdesign!$E$12/(4*PI()*$D$3))*(-LN((4*$D$4*AH19)/(Sanierungsdesign!$E$13+Sanierungsdesign!$E$15)^2)-$D$19) -> 108.5084215 | AO19: -164.6415785 | AP19: =(2*PI()*Sanierungsdesign!$E$10*$D$3)*(LN((Sanierungsdesign!$E$13+Sanierungsdesign!$E$15)/Sanierungsdesign!$E$13)*(AJ19-AN19))*$AH$7/1000000 -> -202.1210383 | AQ19: 161.2765598 | AR19: 364.0011955 | AS19: =AU19/Sanierungsdesign!$E$11 -> -1.765994753 | AT19: 74880 | AU19: -14.12795803 | AZ19: =(AY19/(AH19*Sanierungsdesign!$E$10))*1000000 ->  | BA19: =AZ19/Sanierungsdesign!$E$12 ->  | BB19: =$D$5+((-(Sanierungsdesign!$E$12)*MIN($BA$7:$BA$932))/(4*PI()*$D$3))*(-LN((4*$D$4*AH19)/(Sanierungsdesign!$E$13)^2)-$D$19) ->  | BC19: =(BB19-273.15)/Heterogenität!$D$4 ->  | BD19: =IF(AI19<Berechnung!$D$7,AI19,#N/A) -> 
A20: Erdbeschleunigung | C20: m·s-² | D20: 9.81 | O20: Masse des GW-Eintritts (pro Sekunde) | S20: kg·s-1 | T20: =T21*(Grundwassercharakterisierung!$D$4*0.0000000317)*(Bodencharakterisierung!$E$10*Bodencharakterisierung!$E$4/100+Bodencharakterisierung!$F$10*Bodencharakterisierung!$F$4/100)*D13 -> 0.001723040169 | AG20: =Sanierungsdesign!$E$12*AH20*Sanierungsdesign!$E$10/1000000 -> 655.2 | AH20: 100800 | AI20: 1.166666667 | AJ20: =$D$5+((-Sanierungsdesign!$E$12)/4*PI()*$D$3)*(-LN((4*$D$4*AH20)/(Sanierungsdesign!$E$13^2))-$D$19) -> -2051.604525 | AK20: -2324.754525 | AL20: -4674.053343 | AM20: =$D$3*$T$7*$AH$7*(AK20-$D$5)*(1/Sanierungsdesign!$E$15)/1000000 -> -364.2006212 | AN20: =$D$5+(-Sanierungsdesign!$E$12/(4*PI()*$D$3))*(-LN((4*$D$4*AH20)/(Sanierungsdesign!$E$13+Sanierungsdesign!$E$15)^2)-$D$19) -> 114.0962659 | AO20: -159.0537341 | AP20: =(2*PI()*Sanierungsdesign!$E$10*$D$3)*(LN((Sanierungsdesign!$E$13+Sanierungsdesign!$E$15)/Sanierungsdesign!$E$13)*(AJ20-AN20))*$AH$7/1000000 -> -193.351584 | AQ20: 173.682449 | AR20: 392.0012874 | AS20: =AU20/Sanierungsdesign!$E$11 -> -1.690875574 | AT20: 80640 | AU20: -13.52700459 | AZ20: =(AY20/(AH20*Sanierungsdesign!$E$10))*1000000 ->  | BA20: =AZ20/Sanierungsdesign!$E$12 ->  | BB20: =$D$5+((-(Sanierungsdesign!$E$12)*MIN($BA$7:$BA$932))/(4*PI()*$D$3))*(-LN((4*$D$4*AH20)/(Sanierungsdesign!$E$13)^2)-$D$19) ->  | BC20: =(BB20-273.15)/Heterogenität!$D$4 ->  | BD20: =IF(AI20<Berechnung!$D$7,AI20,#N/A) -> 
A21: Pi | B21: π | C21: - | D21: 3.14159 | O21: Durchflussquerschnitt | S21: m² | T21: =PI()*Sanierungsdesign!E13*Sanierungsdesign!E10 -> 23.5619449 | AG21: =Sanierungsdesign!$E$12*AH21*Sanierungsdesign!$E$10/1000000 -> 702 | AH21: 108000 | AI21: 1.25 | AJ21: =$D$5+((-Sanierungsdesign!$E$12)/4*PI()*$D$3)*(-LN((4*$D$4*AH21)/(Sanierungsdesign!$E$13^2))-$D$19) -> -1954.956816 | AK21: -2228.106816 | AL21: -4480.735412 | AM21: =$D$3*$T$7*$AH$7*(AK21-$D$5)*(1/Sanierungsdesign!$E$15)/1000000 -> -350.7035182 | AN21: =$D$5+(-Sanierungsdesign!$E$12/(4*PI()*$D$3))*(-LN((4*$D$4*AH21)/(Sanierungsdesign!$E$13+Sanierungsdesign!$E$15)^2)-$D$19) -> 119.2984246 | AO21: -153.8515754 | AP21: =(2*PI()*Sanierungsdesign!$E$10*$D$3)*(LN((Sanierungsdesign!$E$13+Sanierungsdesign!$E$15)/Sanierungsdesign!$E$13)*(AJ21-AN21))*$AH$7/1000000 -> -185.1874174 | AQ21: 186.0883382 | AR21: 420.0013794 | AS21: =AU21/Sanierungsdesign!$E$11 -> -1.620941292 | AT21: 86400 | AU21: -12.96753033 | AZ21: =(AY21/(AH21*Sanierungsdesign!$E$10))*1000000 ->  | BA21: =AZ21/Sanierungsdesign!$E$12 ->  | BB21: =$D$5+((-(Sanierungsdesign!$E$12)*MIN($BA$7:$BA$932))/(4*PI()*$D$3))*(-LN((4*$D$4*AH21)/(Sanierungsdesign!$E$13)^2)-$D$19) ->  | BC21: =(BB21-273.15)/Heterogenität!$D$4 ->  | BD21: =IF(AI21<Berechnung!$D$7,AI21,#N/A) -> 
N22: Überschneidungssegmente | O22: Segmentlänge r | S22: m | T22: =T3 -> 2.121320344 | AG22: =Sanierungsdesign!$E$12*AH22*Sanierungsdesign!$E$10/1000000 -> 748.8 | AH22: 115200 | AI22: 1.333333333 | AJ22: =$D$5+((-Sanierungsdesign!$E$12)/4*PI()*$D$3)*(-LN((4*$D$4*AH22)/(Sanierungsdesign!$E$13^2))-$D$19) -> -1864.548921 | AK22: -2137.698921 | AL22: -4299.898565 | AM22: =$D$3*$T$7*$AH$7*(AK22-$D$5)*(1/Sanierungsdesign!$E$15)/1000000 -> -338.0778216 | AN22: =$D$5+(-Sanierungsdesign!$E$12/(4*PI()*$D$3))*(-LN((4*$D$4*AH22)/(Sanierungsdesign!$E$13+Sanierungsdesign!$E$15)^2)-$D$19) -> 124.1647191 | AO22: -148.9852809 | AP22: =(2*PI()*Sanierungsdesign!$E$10*$D$3)*(LN((Sanierungsdesign!$E$13+Sanierungsdesign!$E$15)/Sanierungsdesign!$E$13)*(AJ22-AN22))*$AH$7/1000000 -> -177.5503496 | AQ22: 198.4942274 | AR22: 448.0014713 | AS22: =AU22/Sanierungsdesign!$E$11 -> -1.555522139 | AT22: 92160 | AU22: -12.44417711 | AZ22: =(AY22/(AH22*Sanierungsdesign!$E$10))*1000000 ->  | BA22: =AZ22/Sanierungsdesign!$E$12 ->  | BB22: =$D$5+((-(Sanierungsdesign!$E$12)*MIN($BA$7:$BA$932))/(4*PI()*$D$3))*(-LN((4*$D$4*AH22)/(Sanierungsdesign!$E$13)^2)-$D$19) ->  | BC22: =(BB22-273.15)/Heterogenität!$D$4 ->  | BD22: =IF(AI22<Berechnung!$D$7,AI22,#N/A) -> 
A23: Aubsaugrate eines BLA-Bunnens | C23: m³·s-1 | D23: =Sanierungsdesign!E7/3600 -> 0.1 | O23: Segmenthöhe | S23: m | T23: =Sanierungsdesign!E13-0.5*SQRT(4*(Sanierungsdesign!$E$13)^2-T22^2) -> 0.4393398282 | AG23: =Sanierungsdesign!$E$12*AH23*Sanierungsdesign!$E$10/1000000 -> 795.6 | AH23: 122400 | AI23: 1.416666667 | AJ23: =$D$5+((-Sanierungsdesign!$E$12)/4*PI()*$D$3)*(-LN((4*$D$4*AH23)/(Sanierungsdesign!$E$13^2))-$D$19) -> -1779.623758 | AK23: -2052.773758 | AL23: -4130.028458 | AM23: =$D$3*$T$7*$AH$7*(AK23-$D$5)*(1/Sanierungsdesign!$E$15)/1000000 -> -326.2178027 | AN23: =$D$5+(-Sanierungsdesign!$E$12/(4*PI()*$D$3))*(-LN((4*$D$4*AH23)/(Sanierungsdesign!$E$13+Sanierungsdesign!$E$15)^2)-$D$19) -> 128.7359001 | AO23: -144.4140999 | AP23: =(2*PI()*Sanierungsdesign!$E$10*$D$3)*(LN((Sanierungsdesign!$E$13+Sanierungsdesign!$E$15)/Sanierungsdesign!$E$13)*(AJ23-AN23))*$AH$7/1000000 -> -170.3764271 | AQ23: 210.9001167 | AR23: 476.0015633 | AS23: =AU23/Sanierungsdesign!$E$11 -> -1.494070292 | AT23: 97920 | AU23: -11.95256233 | AZ23: =(AY23/(AH23*Sanierungsdesign!$E$10))*1000000 ->  | BA23: =AZ23/Sanierungsdesign!$E$12 ->  | BB23: =$D$5+((-(Sanierungsdesign!$E$12)*MIN($BA$7:$BA$932))/(4*PI()*$D$3))*(-LN((4*$D$4*AH23)/(Sanierungsdesign!$E$13)^2)-$D$19) ->  | BC23: =(BB23-273.15)/Heterogenität!$D$4 ->  | BD23: =IF(AI23<Berechnung!$D$7,AI23,#N/A) -> 
A24: Zeitintervall | C24: s | D24: =3600*L12 -> 7200 | O24: Segmengtfläche | S24: m² | T24: =(2/3)*T22*T23 -> 0.6213203436 | AG24: =Sanierungsdesign!$E$12*AH24*Sanierungsdesign!$E$10/1000000 -> 842.4 | AH24: 129600 | AI24: 1.5 | AJ24: =$D$5+((-Sanierungsdesign!$E$12)/4*PI()*$D$3)*(-LN((4*$D$4*AH24)/(Sanierungsdesign!$E$13^2))-$D$19) -> -1699.554185 | AK24: -1972.704185 | AL24: -3969.870661 | AM24: =$D$3*$T$7*$AH$7*(AK24-$D$5)*(1/Sanierungsdesign!$E$15)/1000000 -> -315.0358794 | AN24: =$D$5+(-Sanierungsdesign!$E$12/(4*PI()*$D$3))*(-LN((4*$D$4*AH24)/(Sanierungsdesign!$E$13+Sanierungsdesign!$E$15)^2)-$D$19) -> 133.0457242 | AO24: -140.1042758 | AP24: =(2*PI()*Sanierungsdesign!$E$10*$D$3)*(LN((Sanierungsdesign!$E$13+Sanierungsdesign!$E$15)/Sanierungsdesign!$E$13)*(AJ24-AN24))*$AH$7/1000000 -> -163.612673 | AQ24: 223.3060059 | AR24: 504.0016552 | AS24: =AU24/Sanierungsdesign!$E$11 -> -1.436131948 | AT24: 103680 | AU24: -11.48905559 | AZ24: =(AY24/(AH24*Sanierungsdesign!$E$10))*1000000 ->  | BA24: =AZ24/Sanierungsdesign!$E$12 ->  | BB24: =$D$5+((-(Sanierungsdesign!$E$12)*MIN($BA$7:$BA$932))/(4*PI()*$D$3))*(-LN((4*$D$4*AH24)/(Sanierungsdesign!$E$13)^2)-$D$19) ->  | BC24: =(BB24-273.15)/Heterogenität!$D$4 ->  | BD24: =IF(AI24<Berechnung!$D$7,AI24,#N/A) -> 
A25: Zieltemperatur | C25: K | D25: =273.15+D77 -> 273.15 | O25: Mantelfäche Segment r | S25: m² | T25: =Sanierungsdesign!E10*2*Sanierungsdesign!E13*ASIN(T22/(2*Sanierungsdesign!E13)) -> 11.78097245 | AG25: =Sanierungsdesign!$E$12*AH25*Sanierungsdesign!$E$10/1000000 -> 889.2 | AH25: 136800 | AI25: 1.583333333 | AJ25: =$D$5+((-Sanierungsdesign!$E$12)/4*PI()*$D$3)*(-LN((4*$D$4*AH25)/(Sanierungsdesign!$E$13^2))-$D$19) -> -1623.814866 | AK25: -1896.964866 | AL25: -3818.374382 | AM25: =$D$3*$T$7*$AH$7*(AK25-$D$5)*(1/Sanierungsdesign!$E$15)/1000000 -> -304.4586874 | AN25: =$D$5+(-Sanierungsdesign!$E$12/(4*PI()*$D$3))*(-LN((4*$D$4*AH25)/(Sanierungsdesign!$E$13+Sanierungsdesign!$E$15)^2)-$D$19) -> 137.1224681 | AO25: -136.0275319 | AP25: =(2*PI()*Sanierungsdesign!$E$10*$D$3)*(LN((Sanierungsdesign!$E$13+Sanierungsdesign!$E$15)/Sanierungsdesign!$E$13)*(AJ25-AN25))*$AH$7/1000000 -> -157.2147105 | AQ25: 235.7118951 | AR25: 532.0017472 | AS25: =AU25/Sanierungsdesign!$E$11 -> -1.381326977 | AT25: 109440 | AU25: -11.05061582 | AZ25: =(AY25/(AH25*Sanierungsdesign!$E$10))*1000000 ->  | BA25: =AZ25/Sanierungsdesign!$E$12 ->  | BB25: =$D$5+((-(Sanierungsdesign!$E$12)*MIN($BA$7:$BA$932))/(4*PI()*$D$3))*(-LN((4*$D$4*AH25)/(Sanierungsdesign!$E$13)^2)-$D$19) ->  | BC25: =(BB25-273.15)/Heterogenität!$D$4 ->  | BD25: =IF(AI25<Berechnung!$D$7,AI25,#N/A) -> 
A26: Gesamtmasse | C26: kg | D26: =L1+L6+L9 -> 0 | O26: Segmentlänge r+l | T26: =2*SQRT((T23+Sanierungsdesign!E15)*((2*Sanierungsdesign!E13+Sanierungsdesign!E15)-(T23+Sanierungsdesign!E15))) -> 3.101825324 | AG26: =Sanierungsdesign!$E$12*AH26*Sanierungsdesign!$E$10/1000000 -> 936 | AH26: 144000 | AI26: 1.666666667 | AJ26: =$D$5+((-Sanierungsdesign!$E$12)/4*PI()*$D$3)*(-LN((4*$D$4*AH26)/(Sanierungsdesign!$E$13^2))-$D$19) -> -1551.961365 | AK26: -1825.111365 | AL26: -3674.650642 | AM26: =$D$3*$T$7*$AH$7*(AK26-$D$5)*(1/Sanierungsdesign!$E$15)/1000000 -> -294.4241598 | AN26: =$D$5+(-Sanierungsdesign!$E$12/(4*PI()*$D$3))*(-LN((4*$D$4*AH26)/(Sanierungsdesign!$E$13+Sanierungsdesign!$E$15)^2)-$D$19) -> 140.990054 | AO26: -132.159946 | AP26: =(2*PI()*Sanierungsdesign!$E$10*$D$3)*(LN((Sanierungsdesign!$E$13+Sanierungsdesign!$E$15)/Sanierungsdesign!$E$13)*(AJ26-AN26))*$AH$7/1000000 -> -151.1449965 | AQ26: 248.1177843 | AR26: 560.0018392 | AS26: =AU26/Sanierungsdesign!$E$11 -> -1.329333783 | AT26: 115200 | AU26: -10.63467027 | AZ26: =(AY26/(AH26*Sanierungsdesign!$E$10))*1000000 ->  | BA26: =AZ26/Sanierungsdesign!$E$12 ->  | BB26: =$D$5+((-(Sanierungsdesign!$E$12)*MIN($BA$7:$BA$932))/(4*PI()*$D$3))*(-LN((4*$D$4*AH26)/(Sanierungsdesign!$E$13)^2)-$D$19) ->  | BC26: =(BB26-273.15)/Heterogenität!$D$4 ->  | BD26: =IF(AI26<Berechnung!$D$7,AI26,#N/A) -> 
O27: Mantelfläche Segment r+l | S27: m² | T27: =Sanierungsdesign!E10*2*(Sanierungsdesign!E13+Sanierungsdesign!E15)*ASIN(T26/(2*(Sanierungsdesign!E13+Sanierungsdesign!E15))) -> 17.74875005 | AG27: =Sanierungsdesign!$E$12*AH27*Sanierungsdesign!$E$10/1000000 -> 982.8 | AH27: 151200 | AI27: 1.75 | AJ27: =$D$5+((-Sanierungsdesign!$E$12)/4*PI()*$D$3)*(-LN((4*$D$4*AH27)/(Sanierungsdesign!$E$13^2))-$D$19) -> -1483.614338 | AK27: -1756.764338 | AL27: -3537.940669 | AM27: =$D$3*$T$7*$AH$7*(AK27-$D$5)*(1/Sanierungsdesign!$E$15)/1000000 -> -284.8793205 | AN27: =$D$5+(-Sanierungsdesign!$E$12/(4*PI()*$D$3))*(-LN((4*$D$4*AH27)/(Sanierungsdesign!$E$13+Sanierungsdesign!$E$15)^2)-$D$19) -> 144.6689004 | AO27: -128.4810996 | AP27: =(2*PI()*Sanierungsdesign!$E$10*$D$3)*(LN((Sanierungsdesign!$E$13+Sanierungsdesign!$E$15)/Sanierungsdesign!$E$13)*(AJ27-AN27))*$AH$7/1000000 -> -145.3714866 | AQ27: 260.5236735 | AR27: 588.0019311 | AS27: =AU27/Sanierungsdesign!$E$11 -> -1.279877875 | AT27: 120960 | AU27: -10.239023 | AZ27: =(AY27/(AH27*Sanierungsdesign!$E$10))*1000000 ->  | BA27: =AZ27/Sanierungsdesign!$E$12 ->  | BB27: =$D$5+((-(Sanierungsdesign!$E$12)*MIN($BA$7:$BA$932))/(4*PI()*$D$3))*(-LN((4*$D$4*AH27)/(Sanierungsdesign!$E$13)^2)-$D$19) ->  | BC27: =(BB27-273.15)/Heterogenität!$D$4 ->  | BD27: =IF(AI27<Berechnung!$D$7,AI27,#N/A) -> 
A28: Anzahl der Überschneidungssegmente | C28: - | D28: =Sanierungsdesign!$E$16 -> 0 | O28: Masse Segment r+l | S28: kg | T28: =L11*T27*Sanierungsdesign!E10 -> 236945.8131 | AG28: =Sanierungsdesign!$E$12*AH28*Sanierungsdesign!$E$10/1000000 -> 1029.6 | AH28: 158400 | AI28: 1.833333333 | AJ28: =$D$5+((-Sanierungsdesign!$E$12)/4*PI()*$D$3)*(-LN((4*$D$4*AH28)/(Sanierungsdesign!$E$13^2))-$D$19) -> -1418.447418 | AK28: -1691.597418 | AL28: -3407.591649 | AM28: =$D$3*$T$7*$AH$7*(AK28-$D$5)*(1/Sanierungsdesign!$E$15)/1000000 -> -275.7785913 | AN28: =$D$5+(-Sanierungsdesign!$E$12/(4*PI()*$D$3))*(-LN((4*$D$4*AH28)/(Sanierungsdesign!$E$13+Sanierungsdesign!$E$15)^2)-$D$19) -> 148.1765745 | AO28: -124.9734255 | AP28: =(2*PI()*Sanierungsdesign!$E$10*$D$3)*(LN((Sanierungsdesign!$E$13+Sanierungsdesign!$E$15)/Sanierungsdesign!$E$13)*(AJ28-AN28))*$AH$7/1000000 -> -139.8666112 | AQ28: 272.9295627 | AR28: 616.0020231 | AS28: =AU28/Sanierungsdesign!$E$11 -> -1.232723092 | AT28: 126720 | AU28: -9.861784733 | AZ28: =(AY28/(AH28*Sanierungsdesign!$E$10))*1000000 ->  | BA28: =AZ28/Sanierungsdesign!$E$12 ->  | BB28: =$D$5+((-(Sanierungsdesign!$E$12)*MIN($BA$7:$BA$932))/(4*PI()*$D$3))*(-LN((4*$D$4*AH28)/(Sanierungsdesign!$E$13)^2)-$D$19) ->  | BC28: =(BB28-273.15)/Heterogenität!$D$4 ->  | BD28: =IF(AI28<Berechnung!$D$7,AI28,#N/A) -> 
N29: Aufheizdauer | O29: Gesamtwärmemenge verlustfrei | S29: MJ | T29: =Sanierungsdesign!E12*T30*Sanierungsdesign!E10/100000 -> 34164 | AG29: =Sanierungsdesign!$E$12*AH29*Sanierungsdesign!$E$10/1000000 -> 1076.4 | AH29: 165600 | AI29: 1.916666667 | AJ29: =$D$5+((-Sanierungsdesign!$E$12)/4*PI()*$D$3)*(-LN((4*$D$4*AH29)/(Sanierungsdesign!$E$13^2))-$D$19) -> -1356.177781 | AK29: -1629.327781 | AL29: -3283.037872 | AM29: =$D$3*$T$7*$AH$7*(AK29-$D$5)*(1/Sanierungsdesign!$E$15)/1000000 -> -267.0824753 | AN29: =$D$5+(-Sanierungsdesign!$E$12/(4*PI()*$D$3))*(-LN((4*$D$4*AH29)/(Sanierungsdesign!$E$13+Sanierungsdesign!$E$15)^2)-$D$19) -> 151.5282993 | AO29: -121.6217007 | AP29: =(2*PI()*Sanierungsdesign!$E$10*$D$3)*(LN((Sanierungsdesign!$E$13+Sanierungsdesign!$E$15)/Sanierungsdesign!$E$13)*(AJ29-AN29))*$AH$7/1000000 -> -134.6064794 | AQ29: 285.3354519 | AR29: 644.002115 | AS29: =AU29/Sanierungsdesign!$E$11 -> -1.187664783 | AT29: 132480 | AU29: -9.501318261 | AZ29: =(AY29/(AH29*Sanierungsdesign!$E$10))*1000000 ->  | BA29: =AZ29/Sanierungsdesign!$E$12 ->  | BB29: =$D$5+((-(Sanierungsdesign!$E$12)*MIN($BA$7:$BA$932))/(4*PI()*$D$3))*(-LN((4*$D$4*AH29)/(Sanierungsdesign!$E$13)^2)-$D$19) ->  | BC29: =(BB29-273.15)/Heterogenität!$D$4 ->  | BD29: =IF(AI29<Berechnung!$D$7,AI29,#N/A) -> 
B30: Schadstoffanteil > 10 % ? | C30: Max. Verdampfungswärme | D30: Gemisch-siedetemp. mit Wasser | O30: Dauer ohne Verluste (Aufheizphase) | S30: s | T30: =AK934 -> 525600 | U30: =T30/86400 -> 6.083333333 | V30: Dauer [Tagen] | AG30: =Sanierungsdesign!$E$12*AH30*Sanierungsdesign!$E$10/1000000 -> 1123.2 | AH30: 172800 | AI30: 2 | AJ30: =$D$5+((-Sanierungsdesign!$E$12)/4*PI()*$D$3)*(-LN((4*$D$4*AH30)/(Sanierungsdesign!$E$13^2))-$D$19) -> -1296.558734 | AK30: -1569.708734 | AL30: -3163.785891 | AM30: =$D$3*$T$7*$AH$7*(AK30-$D$5)*(1/Sanierungsdesign!$E$15)/1000000 -> -258.756521 | AN30: =$D$5+(-Sanierungsdesign!$E$12/(4*PI()*$D$3))*(-LN((4*$D$4*AH30)/(Sanierungsdesign!$E$13+Sanierungsdesign!$E$15)^2)-$D$19) -> 154.7373536 | AO30: -118.4126464 | AP30: =(2*PI()*Sanierungsdesign!$E$10*$D$3)*(LN((Sanierungsdesign!$E$13+Sanierungsdesign!$E$15)/Sanierungsdesign!$E$13)*(AJ30-AN30))*$AH$7/1000000 -> -129.5702521 | AQ30: 297.7413412 | AR30: 672.002207 | AS30: =AU30/Sanierungsdesign!$E$11 -> -1.14452444 | AT30: 138240 | AU30: -9.156195521 | AZ30: =(AY30/(AH30*Sanierungsdesign!$E$10))*1000000 ->  | BA30: =AZ30/Sanierungsdesign!$E$12 ->  | BB30: =$D$5+((-(Sanierungsdesign!$E$12)*MIN($BA$7:$BA$932))/(4*PI()*$D$3))*(-LN((4*$D$4*AH30)/(Sanierungsdesign!$E$13)^2)-$D$19) ->  | BC30: =(BB30-273.15)/Heterogenität!$D$4 ->  | BD30: =IF(AI30<Berechnung!$D$7,AI30,#N/A) -> 
O31: Dauer mit Verlusten (Aufheizphase) | S31: s | T31: =BC934 ->  | U31: =T31/86400 ->  | V31: Dauer in [Tagen] | AG31: =Sanierungsdesign!$E$12*AH31*Sanierungsdesign!$E$10/1000000 -> 1170 | AH31: 180000 | AI31: 2.083333333 | AJ31: =$D$5+((-Sanierungsdesign!$E$12)/4*PI()*$D$3)*(-LN((4*$D$4*AH31)/(Sanierungsdesign!$E$13^2))-$D$19) -> -1239.373808 | AK31: -1512.523808 | AL31: -3049.402719 | AM31: =$D$3*$T$7*$AH$7*(AK31-$D$5)*(1/Sanierungsdesign!$E$15)/1000000 -> -250.7704979 | AN31: =$D$5+(-Sanierungsdesign!$E$12/(4*PI()*$D$3))*(-LN((4*$D$4*AH31)/(Sanierungsdesign!$E$13+Sanierungsdesign!$E$15)^2)-$D$19) -> 157.8153889 | AO31: -115.3346111 | AP31: =(2*PI()*Sanierungsdesign!$E$10*$D$3)*(LN((Sanierungsdesign!$E$13+Sanierungsdesign!$E$15)/Sanierungsdesign!$E$13)*(AJ31-AN31))*$AH$7/1000000 -> -124.7396434 | AQ31: 310.1472304 | AR31: 700.002299 | AS31: =AU31/Sanierungsdesign!$E$11 -> -1.103145428 | AT31: 144000 | AU31: -8.825163421 | AZ31: =(AY31/(AH31*Sanierungsdesign!$E$10))*1000000 ->  | BA31: =AZ31/Sanierungsdesign!$E$12 ->  | BB31: =$D$5+((-(Sanierungsdesign!$E$12)*MIN($BA$7:$BA$932))/(4*PI()*$D$3))*(-LN((4*$D$4*AH31)/(Sanierungsdesign!$E$13)^2)-$D$19) ->  | BC31: =(BB31-273.15)/Heterogenität!$D$4 ->  | BD31: =IF(AI31<Berechnung!$D$7,AI31,#N/A) -> 
A32: Tetrachlorethen | B32: =IFERROR(IF(Schadstoffbelastung!E4/$B$45>0.1,1,0),0) -> 0 | C32: =IF(B32=1,Stoffdatenbank!H5,"") ->  | D32: =IF(B32=1,Stoffdatenbank!I5,"") ->  | O32: Wärmeverlustanteil | S32: % | T32: =(1-BA380)*100 ->  | U32: =BC935 ->  | V32: Effizient [-] | AG32: =Sanierungsdesign!$E$12*AH32*Sanierungsdesign!$E$10/1000000 -> 1216.8 | AH32: 187200 | AI32: 2.166666667 | AJ32: =$D$5+((-Sanierungsdesign!$E$12)/4*PI()*$D$3)*(-LN((4*$D$4*AH32)/(Sanierungsdesign!$E$13^2))-$D$19) -> -1184.432015 | AK32: -1457.582015 | AL32: -2939.506335 | AM32: =$D$3*$T$7*$AH$7*(AK32-$D$5)*(1/Sanierungsdesign!$E$15)/1000000 -> -243.0977342 | AN32: =$D$5+(-Sanierungsdesign!$E$12/(4*PI()*$D$3))*(-LN((4*$D$4*AH32)/(Sanierungsdesign!$E$13+Sanierungsdesign!$E$15)^2)-$D$19) -> 160.7726854 | AO32: -112.3773146 | AP32: =(2*PI()*Sanierungsdesign!$E$10*$D$3)*(LN((Sanierungsdesign!$E$13+Sanierungsdesign!$E$15)/Sanierungsdesign!$E$13)*(AJ32-AN32))*$AH$7/1000000 -> -120.0985199 | AQ32: 322.5531196 | AR32: 728.0023909 | AS32: =AU32/Sanierungsdesign!$E$11 -> -1.063389546 | AT32: 149760 | AU32: -8.507116367 | AZ32: =(AY32/(AH32*Sanierungsdesign!$E$10))*1000000 ->  | BA32: =AZ32/Sanierungsdesign!$E$12 ->  | BB32: =$D$5+((-(Sanierungsdesign!$E$12)*MIN($BA$7:$BA$932))/(4*PI()*$D$3))*(-LN((4*$D$4*AH32)/(Sanierungsdesign!$E$13)^2)-$D$19) ->  | BC32: =(BB32-273.15)/Heterogenität!$D$4 ->  | BD32: =IF(AI32<Berechnung!$D$7,AI32,#N/A) -> 
A33: Trichlorethen | B33: =IFERROR(IF(Schadstoffbelastung!E5/$B$45>0.1,1,0),0) -> 0 | C33: =IF(B33=1,Stoffdatenbank!H6,"") ->  | D33: =IF(B33=1,Stoffdatenbank!I6,"") ->  | O33: ausschlaggebender Schadstoff (Zieltemperatur) | Q33: =D76 ->  | U33: =D77 -> 0 | V33: Zieltemperatur [°C] | AG33: =Sanierungsdesign!$E$12*AH33*Sanierungsdesign!$E$10/1000000 -> 1263.6 | AH33: 194400 | AI33: 2.25 | AJ33: =$D$5+((-Sanierungsdesign!$E$12)/4*PI()*$D$3)*(-LN((4*$D$4*AH33)/(Sanierungsdesign!$E$13^2))-$D$19) -> -1131.563998 | AK33: -1404.713998 | AL33: -2833.757988 | AM33: =$D$3*$T$7*$AH$7*(AK33-$D$5)*(1/Sanierungsdesign!$E$15)/1000000 -> -235.7145788 | AN33: =$D$5+(-Sanierungsdesign!$E$12/(4*PI()*$D$3))*(-LN((4*$D$4*AH33)/(Sanierungsdesign!$E$13+Sanierungsdesign!$E$15)^2)-$D$19) -> 163.6183587 | AO33: -109.5316413 | AP33: =(2*PI()*Sanierungsdesign!$E$10*$D$3)*(LN((Sanierungsdesign!$E$13+Sanierungsdesign!$E$15)/Sanierungsdesign!$E$13)*(AJ33-AN33))*$AH$7/1000000 -> -115.6325756 | AQ33: 334.9590088 | AR33: 756.0024829 | AS33: =AU33/Sanierungsdesign!$E$11 -> -1.025134249 | AT33: 155520 | AU33: -8.201073994 | AZ33: =(AY33/(AH33*Sanierungsdesign!$E$10))*1000000 ->  | BA33: =AZ33/Sanierungsdesign!$E$12 ->  | BB33: =$D$5+((-(Sanierungsdesign!$E$12)*MIN($BA$7:$BA$932))/(4*PI()*$D$3))*(-LN((4*$D$4*AH33)/(Sanierungsdesign!$E$13)^2)-$D$19) ->  | BC33: =(BB33-273.15)/Heterogenität!$D$4 ->  | BD33: =IF(AI33<Berechnung!$D$7,AI33,#N/A) -> 
A34: cis-1,2-Dichlorethen | B34: =IFERROR(IF(Schadstoffbelastung!E6/$B$45>0.1,1,0),0) -> 0 | C34: =IF(B34=1,Stoffdatenbank!H7,"") ->  | D34: =IF(B34=1,Stoffdatenbank!I7,"") ->  | N34: Absaugungsdauer (gesamtes Fluid) | O34: Volumen des flüssigen Fluids im Bereich | S34: m³ | T34: =21.245 -> 21.245 | AG34: =Sanierungsdesign!$E$12*AH34*Sanierungsdesign!$E$10/1000000 -> 1310.4 | AH34: 201600 | AI34: 2.333333333 | AJ34: =$D$5+((-Sanierungsdesign!$E$12)/4*PI()*$D$3)*(-LN((4*$D$4*AH34)/(Sanierungsdesign!$E$13^2))-$D$19) -> -1080.618887 | AK34: -1353.768887 | AL34: -2731.855899 | AM34: =$D$3*$T$7*$AH$7*(AK34-$D$5)*(1/Sanierungsdesign!$E$15)/1000000 -> -228.5999621 | AN34: =$D$5+(-Sanierungsdesign!$E$12/(4*PI()*$D$3))*(-LN((4*$D$4*AH34)/(Sanierungsdesign!$E$13+Sanierungsdesign!$E$15)^2)-$D$19) -> 166.3605298 | AO34: -106.7894702 | AP34: =(2*PI()*Sanierungsdesign!$E$10*$D$3)*(LN((Sanierungsdesign!$E$13+Sanierungsdesign!$E$15)/Sanierungsdesign!$E$13)*(AJ34-AN34))*$AH$7/1000000 -> -111.3290657 | AQ34: 347.364898 | AR34: 784.0025748 | AS34: =AU34/Sanierungsdesign!$E$11 -> -0.9882703669 | AT34: 161280 | AU34: -7.906162935 | AZ34: =(AY34/(AH34*Sanierungsdesign!$E$10))*1000000 ->  | BA34: =AZ34/Sanierungsdesign!$E$12 ->  | BB34: =$D$5+((-(Sanierungsdesign!$E$12)*MIN($BA$7:$BA$932))/(4*PI()*$D$3))*(-LN((4*$D$4*AH34)/(Sanierungsdesign!$E$13)^2)-$D$19) ->  | BC34: =(BB34-273.15)/Heterogenität!$D$4 ->  | BD34: =IF(AI34<Berechnung!$D$7,AI34,#N/A) -> 
A35: trans-1,2-Dichlorethen | B35: =IFERROR(IF(Schadstoffbelastung!E7/$B$45>0.1,1,0),0) -> 0 | C35: =IF(B35=1,Stoffdatenbank!H8,"") ->  | D35: =IF(B35=1,Stoffdatenbank!I8,"") ->  | O35: Masse des flüssigen Fluids | S35: kg | T35: =L3+L6 -> 0 | AG35: =Sanierungsdesign!$E$12*AH35*Sanierungsdesign!$E$10/1000000 -> 1357.2 | AH35: 208800 | AI35: 2.416666667 | AJ35: =$D$5+((-Sanierungsdesign!$E$12)/4*PI()*$D$3)*(-LN((4*$D$4*AH35)/(Sanierungsdesign!$E$13^2))-$D$19) -> -1031.461697 | AK35: -1304.611697 | AL35: -2633.530069 | AM35: =$D$3*$T$7*$AH$7*(AK35-$D$5)*(1/Sanierungsdesign!$E$15)/1000000 -> -221.7350332 | AN35: =$D$5+(-Sanierungsdesign!$E$12/(4*PI()*$D$3))*(-LN((4*$D$4*AH35)/(Sanierungsdesign!$E$13+Sanierungsdesign!$E$15)^2)-$D$19) -> 169.0064643 | AO35: -104.1435357 | AP35: =(2*PI()*Sanierungsdesign!$E$10*$D$3)*(LN((Sanierungsdesign!$E$13+Sanierungsdesign!$E$15)/Sanierungsdesign!$E$13)*(AJ35-AN35))*$AH$7/1000000 -> -107.1765876 | AQ35: 359.7707872 | AR35: 812.0026668 | AS35: =AU35/Sanierungsdesign!$E$11 -> -0.9527002243 | AT35: 167040 | AU35: -7.621601794 | AZ35: =(AY35/(AH35*Sanierungsdesign!$E$10))*1000000 ->  | BA35: =AZ35/Sanierungsdesign!$E$12 ->  | BB35: =$D$5+((-(Sanierungsdesign!$E$12)*MIN($BA$7:$BA$932))/(4*PI()*$D$3))*(-LN((4*$D$4*AH35)/(Sanierungsdesign!$E$13)^2)-$D$19) ->  | BC35: =(BB35-273.15)/Heterogenität!$D$4 ->  | BD35: =IF(AI35<Berechnung!$D$7,AI35,#N/A) -> 
A36: 1,1-Dichlorethen | B36: =IFERROR(IF(Schadstoffbelastung!E8/$B$45>0.1,1,0),0) -> 0 | C36: =IF(B36=1,Stoffdatenbank!H9,"") ->  | D36: =IF(B36=1,Stoffdatenbank!I9,"") ->  | O36: Fluidvolumen, das abgesaugt werden muss | S36: m³ | T36: =T35/0.6 -> 0 | U36: =T38/86400 -> 0 | V36: Dauer in [Tagen] | AG36: =Sanierungsdesign!$E$12*AH36*Sanierungsdesign!$E$10/1000000 -> 1404 | AH36: 216000 | AI36: 2.5 | AJ36: =$D$5+((-Sanierungsdesign!$E$12)/4*PI()*$D$3)*(-LN((4*$D$4*AH36)/(Sanierungsdesign!$E$13^2))-$D$19) -> -983.9711779 | AK36: -1257.121178 | AL36: -2538.537968 | AM36: =$D$3*$T$7*$AH$7*(AK36-$D$5)*(1/Sanierungsdesign!$E$15)/1000000 -> -215.1028592 | AN36: =$D$5+(-Sanierungsdesign!$E$12/(4*PI()*$D$3))*(-LN((4*$D$4*AH36)/(Sanierungsdesign!$E$13+Sanierungsdesign!$E$15)^2)-$D$19) -> 171.5626885 | AO36: -101.5873115 | AP36: =(2*PI()*Sanierungsdesign!$E$10*$D$3)*(LN((Sanierungsdesign!$E$13+Sanierungsdesign!$E$15)/Sanierungsdesign!$E$13)*(AJ36-AN36))*$AH$7/1000000 -> -103.164899 | AQ36: 372.1766764 | AR36: 840.0027587 | AS36: =AU36/Sanierungsdesign!$E$11 -> -0.9183360843 | AT36: 172800 | AU36: -7.346688674 | AZ36: =(AY36/(AH36*Sanierungsdesign!$E$10))*1000000 ->  | BA36: =AZ36/Sanierungsdesign!$E$12 ->  | BB36: =$D$5+((-(Sanierungsdesign!$E$12)*MIN($BA$7:$BA$932))/(4*PI()*$D$3))*(-LN((4*$D$4*AH36)/(Sanierungsdesign!$E$13)^2)-$D$19) ->  | BC36: =(BB36-273.15)/Heterogenität!$D$4 ->  | BD36: =IF(AI36<Berechnung!$D$7,AI36,#N/A) -> 
A37: Vinylchlorid | B37: =IFERROR(IF(Schadstoffbelastung!E9/$B$45>0.1,1,0),0) -> 0 | C37: =IF(B37=1,Stoffdatenbank!H10,"") ->  | D37: =IF(B37=1,Stoffdatenbank!I10,"") ->  | O37: Volumen des gasförmigen flüssigen Fluids | S37: m³ | T37: =T34*1700 -> 36116.5 | AG37: =Sanierungsdesign!$E$12*AH37*Sanierungsdesign!$E$10/1000000 -> 1450.8 | AH37: 223200 | AI37: 2.583333333 | AJ37: =$D$5+((-Sanierungsdesign!$E$12)/4*PI()*$D$3)*(-LN((4*$D$4*AH37)/(Sanierungsdesign!$E$13^2))-$D$19) -> -938.0380082 | AK37: -1211.188008 | AL37: -2446.66093 | AM37: =$D$3*$T$7*$AH$7*(AK37-$D$5)*(1/Sanierungsdesign!$E$15)/1000000 -> -208.6881731 | AN37: =$D$5+(-Sanierungsdesign!$E$12/(4*PI()*$D$3))*(-LN((4*$D$4*AH37)/(Sanierungsdesign!$E$13+Sanierungsdesign!$E$15)^2)-$D$19) -> 174.0350869 | AO37: -99.11491312 | AP37: =(2*PI()*Sanierungsdesign!$E$10*$D$3)*(LN((Sanierungsdesign!$E$13+Sanierungsdesign!$E$15)/Sanierungsdesign!$E$13)*(AJ37-AN37))*$AH$7/1000000 -> -99.28476518 | AQ37: 384.5825657 | AR37: 868.0028507 | AS37: =AU37/Sanierungsdesign!$E$11 -> -0.8850988428 | AT37: 178560 | AU37: -7.080790742 | AZ37: =(AY37/(AH37*Sanierungsdesign!$E$10))*1000000 ->  | BA37: =AZ37/Sanierungsdesign!$E$12 ->  | BB37: =$D$5+((-(Sanierungsdesign!$E$12)*MIN($BA$7:$BA$932))/(4*PI()*$D$3))*(-LN((4*$D$4*AH37)/(Sanierungsdesign!$E$13)^2)-$D$19) ->  | BC37: =(BB37-273.15)/Heterogenität!$D$4 ->  | BD37: =IF(AI37<Berechnung!$D$7,AI37,#N/A) -> 
A38: Tetrachlormethan | B38: =IFERROR(IF(Schadstoffbelastung!E10/$B$45>0.1,1,0),0) -> 0 | C38: =IF(B38=1,Stoffdatenbank!H11,"") ->  | D38: =IF(B38=1,Stoffdatenbank!I11,"") ->  | O38: Austragsdauer | S38: s | T38: =T36/T2 -> 0 | AG38: =Sanierungsdesign!$E$12*AH38*Sanierungsdesign!$E$10/1000000 -> 1497.6 | AH38: 230400 | AI38: 2.666666667 | AJ38: =$D$5+((-Sanierungsdesign!$E$12)/4*PI()*$D$3)*(-LN((4*$D$4*AH38)/(Sanierungsdesign!$E$13^2))-$D$19) -> -893.5632835 | AK38: -1166.713283 | AL38: -2357.701121 | AM38: =$D$3*$T$7*$AH$7*(AK38-$D$5)*(1/Sanierungsdesign!$E$15)/1000000 -> -202.4771626 | AN38: =$D$5+(-Sanierungsdesign!$E$12/(4*PI()*$D$3))*(-LN((4*$D$4*AH38)/(Sanierungsdesign!$E$13+Sanierungsdesign!$E$15)^2)-$D$19) -> 176.428983 | AO38: -96.721017 | AP38: =(2*PI()*Sanierungsdesign!$E$10*$D$3)*(LN((Sanierungsdesign!$E$13+Sanierungsdesign!$E$15)/Sanierungsdesign!$E$13)*(AJ38-AN38))*$AH$7/1000000 -> -95.52783121 | AQ38: 396.9884549 | AR38: 896.0029427 | AS38: =AU38/Sanierungsdesign!$E$11 -> -0.8529169319 | AT38: 184320 | AU38: -6.823335455 | AZ38: =(AY38/(AH38*Sanierungsdesign!$E$10))*1000000 ->  | BA38: =AZ38/Sanierungsdesign!$E$12 ->  | BB38: =$D$5+((-(Sanierungsdesign!$E$12)*MIN($BA$7:$BA$932))/(4*PI()*$D$3))*(-LN((4*$D$4*AH38)/(Sanierungsdesign!$E$13)^2)-$D$19) ->  | BC38: =(BB38-273.15)/Heterogenität!$D$4 ->  | BD38: =IF(AI38<Berechnung!$D$7,AI38,#N/A) -> 
A39: Trichlormethan | B39: =IFERROR(IF(Schadstoffbelastung!E11/$B$45>0.1,1,0),0) -> 0 | C39: =IF(B39=1,Stoffdatenbank!H12,"") ->  | D39: =IF(B39=1,Stoffdatenbank!I12,"") ->  | AG39: =Sanierungsdesign!$E$12*AH39*Sanierungsdesign!$E$10/1000000 -> 1544.4 | AH39: 237600 | AI39: 2.75 | AJ39: =$D$5+((-Sanierungsdesign!$E$12)/4*PI()*$D$3)*(-LN((4*$D$4*AH39)/(Sanierungsdesign!$E$13^2))-$D$19) -> -850.4572312 | AK39: -1123.607231 | AL39: -2271.478976 | AM39: =$D$3*$T$7*$AH$7*(AK39-$D$5)*(1/Sanierungsdesign!$E$15)/1000000 -> -196.4572907 | AN39: =$D$5+(-Sanierungsdesign!$E$12/(4*PI()*$D$3))*(-LN((4*$D$4*AH39)/(Sanierungsdesign!$E$13+Sanierungsdesign!$E$15)^2)-$D$19) -> 178.749209 | AO39: -94.40079103 | AP39: =(2*PI()*Sanierungsdesign!$E$10*$D$3)*(LN((Sanierungsdesign!$E$13+Sanierungsdesign!$E$15)/Sanierungsdesign!$E$13)*(AJ39-AN39))*$AH$7/1000000 -> -91.88651374 | AQ39: 409.3943441 | AR39: 924.0030346 | AS39: =AU39/Sanierungsdesign!$E$11 -> -0.8217253925 | AT39: 190080 | AU39: -6.57380314 | AZ39: =(AY39/(AH39*Sanierungsdesign!$E$10))*1000000 ->  | BA39: =AZ39/Sanierungsdesign!$E$12 ->  | BB39: =$D$5+((-(Sanierungsdesign!$E$12)*MIN($BA$7:$BA$932))/(4*PI()*$D$3))*(-LN((4*$D$4*AH39)/(Sanierungsdesign!$E$13)^2)-$D$19) ->  | BC39: =(BB39-273.15)/Heterogenität!$D$4 ->  | BD39: =IF(AI39<Berechnung!$D$7,AI39,#N/A) -> 
A40: Dichlormethan | B40: =IFERROR(IF(Schadstoffbelastung!E12/$B$45>0.1,1,0),0) -> 0 | C40: =IF(B40=1,Stoffdatenbank!H13,"") ->  | D40: =IF(B40=1,Stoffdatenbank!I13,"") ->  | N40: Berechnung der Dauer des Verdampfungswärmeeintrages für die Flüssigphase | AG40: =Sanierungsdesign!$E$12*AH40*Sanierungsdesign!$E$10/1000000 -> 1591.2 | AH40: 244800 | AI40: 2.833333333 | AJ40: =$D$5+((-Sanierungsdesign!$E$12)/4*PI()*$D$3)*(-LN((4*$D$4*AH40)/(Sanierungsdesign!$E$13^2))-$D$19) -> -808.6381208 | AK40: -1081.788121 | AL40: -2187.831014 | AM40: =$D$3*$T$7*$AH$7*(AK40-$D$5)*(1/Sanierungsdesign!$E$15)/1000000 -> -190.6171436 | AN40: =$D$5+(-Sanierungsdesign!$E$12/(4*PI()*$D$3))*(-LN((4*$D$4*AH40)/(Sanierungsdesign!$E$13+Sanierungsdesign!$E$15)^2)-$D$19) -> 181.000164 | AO40: -92.14983598 | AP40: =(2*PI()*Sanierungsdesign!$E$10*$D$3)*(LN((Sanierungsdesign!$E$13+Sanierungsdesign!$E$15)/Sanierungsdesign!$E$13)*(AJ40-AN40))*$AH$7/1000000 -> -88.35390871 | AQ40: 421.8002333 | AR40: 952.0031266 | AS40: =AU40/Sanierungsdesign!$E$11 -> -0.7914650842 | AT40: 195840 | AU40: -6.331720674 | AZ40: =(AY40/(AH40*Sanierungsdesign!$E$10))*1000000 ->  | BA40: =AZ40/Sanierungsdesign!$E$12 ->  | BB40: =$D$5+((-(Sanierungsdesign!$E$12)*MIN($BA$7:$BA$932))/(4*PI()*$D$3))*(-LN((4*$D$4*AH40)/(Sanierungsdesign!$E$13)^2)-$D$19) ->  | BC40: =(BB40-273.15)/Heterogenität!$D$4 ->  | BD40: =IF(AI40<Berechnung!$D$7,AI40,#N/A) -> 
A41: 1,1,1-Trichlorethan | B41: =IFERROR(IF(Schadstoffbelastung!E13/$B$45>0.1,1,0),0) -> 0 | C41: =IF(B41=1,Stoffdatenbank!H14,"") ->  | D41: =IF(B41=1,Stoffdatenbank!I14,"") ->  | N41: =L3*D12 -> 0 | O41: J (GW) | Q41: J (je HE) | T41: =N43/Sanierungsdesign!E11 -> 0 | AG41: =Sanierungsdesign!$E$12*AH41*Sanierungsdesign!$E$10/1000000 -> 1638 | AH41: 252000 | AI41: 2.916666667 | AJ41: =$D$5+((-Sanierungsdesign!$E$12)/4*PI()*$D$3)*(-LN((4*$D$4*AH41)/(Sanierungsdesign!$E$13^2))-$D$19) -> -768.0313308 | AK41: -1041.181331 | AL41: -2106.607976 | AM41: =$D$3*$T$7*$AH$7*(AK41-$D$5)*(1/Sanierungsdesign!$E$15)/1000000 -> -184.9463003 | AN41: =$D$5+(-Sanierungsdesign!$E$12/(4*PI()*$D$3))*(-LN((4*$D$4*AH41)/(Sanierungsdesign!$E$13+Sanierungsdesign!$E$15)^2)-$D$19) -> 183.1858647 | AO41: -89.96413529 | AP41: =(2*PI()*Sanierungsdesign!$E$10*$D$3)*(LN((Sanierungsdesign!$E$13+Sanierungsdesign!$E$15)/Sanierungsdesign!$E$13)*(AJ41-AN41))*$AH$7/1000000 -> -84.92371258 | AQ41: 434.2061225 | AR41: 980.0032185 | AS41: =AU41/Sanierungsdesign!$E$11 -> -0.762082011 | AT41: 201600 | AU41: -6.096656088 | AZ41: =(AY41/(AH41*Sanierungsdesign!$E$10))*1000000 ->  | BA41: =AZ41/Sanierungsdesign!$E$12 ->  | BB41: =$D$5+((-(Sanierungsdesign!$E$12)*MIN($BA$7:$BA$932))/(4*PI()*$D$3))*(-LN((4*$D$4*AH41)/(Sanierungsdesign!$E$13)^2)-$D$19) ->  | BC41: =(BB41-273.15)/Heterogenität!$D$4 ->  | BD41: =IF(AI41<Berechnung!$D$7,AI41,#N/A) -> 
A42: 1,1,2-Trichlorethan | B42: =IFERROR(IF(Schadstoffbelastung!E14/$B$45>0.1,1,0),0) -> 0 | C42: =IF(B42=1,Stoffdatenbank!H15,"") ->  | D42: =IF(B42=1,Stoffdatenbank!I15,"") ->  | N42: =L6*L8 -> 0 | O42: J (Schadstoff) | Q42: Dauer [Tagen] mit Verlust | T42: =T41/((Sanierungsdesign!E12*(U32))*Sanierungsdesign!E10)/86400 ->  | AG42: =Sanierungsdesign!$E$12*AH42*Sanierungsdesign!$E$10/1000000 -> 1684.8 | AH42: 259200 | AI42: 3 | AJ42: =$D$5+((-Sanierungsdesign!$E$12)/4*PI()*$D$3)*(-LN((4*$D$4*AH42)/(Sanierungsdesign!$E$13^2))-$D$19) -> -728.5685476 | AK42: -1001.718548 | AL42: -2027.673217 | AM42: =$D$3*$T$7*$AH$7*(AK42-$D$5)*(1/Sanierungsdesign!$E$15)/1000000 -> -179.4352204 | AN42: =$D$5+(-Sanierungsdesign!$E$12/(4*PI()*$D$3))*(-LN((4*$D$4*AH42)/(Sanierungsdesign!$E$13+Sanierungsdesign!$E$15)^2)-$D$19) -> 185.3099881 | AO42: -87.84001188 | AP42: =(2*PI()*Sanierungsdesign!$E$10*$D$3)*(LN((Sanierungsdesign!$E$13+Sanierungsdesign!$E$15)/Sanierungsdesign!$E$13)*(AJ42-AN42))*$AH$7/1000000 -> -81.59015466 | AQ42: 446.6120117 | AR42: 1008.00331 | AS42: =AU42/Sanierungsdesign!$E$11 -> -0.733526741 | AT42: 207360 | AU42: -5.868213928 | AZ42: =(AY42/(AH42*Sanierungsdesign!$E$10))*1000000 ->  | BA42: =AZ42/Sanierungsdesign!$E$12 ->  | BB42: =$D$5+((-(Sanierungsdesign!$E$12)*MIN($BA$7:$BA$932))/(4*PI()*$D$3))*(-LN((4*$D$4*AH42)/(Sanierungsdesign!$E$13)^2)-$D$19) ->  | BC42: =(BB42-273.15)/Heterogenität!$D$4 ->  | BD42: =IF(AI42<Berechnung!$D$7,AI42,#N/A) -> 
A43: 1,1-Dichlorethan | B43: =IFERROR(IF(Schadstoffbelastung!E15/$B$45>0.1,1,0),0) -> 0 | C43: =IF(B43=1,Stoffdatenbank!H16,"") ->  | D43: =IF(B43=1,Stoffdatenbank!I16,"") ->  | N43: =SUM(N41:N42) -> 0 | O43: J (Gesamt) | Q43: Dauer [Tagen] ohne Verlust | T43: =T41/(Sanierungsdesign!$E$12*Sanierungsdesign!$E$10)/86400 -> 0 | AG43: =Sanierungsdesign!$E$12*AH43*Sanierungsdesign!$E$10/1000000 -> 1731.6 | AH43: 266400 | AI43: 3.083333333 | AJ43: =$D$5+((-Sanierungsdesign!$E$12)/4*PI()*$D$3)*(-LN((4*$D$4*AH43)/(Sanierungsdesign!$E$13^2))-$D$19) -> -690.1870737 | AK43: -963.3370737 | AL43: -1950.90133 | AM43: =$D$3*$T$7*$AH$7*(AK43-$D$5)*(1/Sanierungsdesign!$E$15)/1000000 -> -174.0751481 | AN43: =$D$5+(-Sanierungsdesign!$E$12/(4*PI()*$D$3))*(-LN((4*$D$4*AH43)/(Sanierungsdesign!$E$13+Sanierungsdesign!$E$15)^2)-$D$19) -> 187.375909 | AO43: -85.77409103 | AP43: =(2*PI()*Sanierungsdesign!$E$10*$D$3)*(LN((Sanierungsdesign!$E$13+Sanierungsdesign!$E$15)/Sanierungsdesign!$E$13)*(AJ43-AN43))*$AH$7/1000000 -> -78.34793868 | AQ43: 459.017901 | AR43: 1036.003402 | AS43: =AU43/Sanierungsdesign!$E$11 -> -0.7057539065 | AT43: 213120 | AU43: -5.646031252 | AZ43: =(AY43/(AH43*Sanierungsdesign!$E$10))*1000000 ->  | BA43: =AZ43/Sanierungsdesign!$E$12 ->  | BB43: =$D$5+((-(Sanierungsdesign!$E$12)*MIN($BA$7:$BA$932))/(4*PI()*$D$3))*(-LN((4*$D$4*AH43)/(Sanierungsdesign!$E$13)^2)-$D$19) ->  | BC43: =(BB43-273.15)/Heterogenität!$D$4 ->  | BD43: =IF(AI43<Berechnung!$D$7,AI43,#N/A) -> 
A44: 1,2-Dichlorethan | B44: =IFERROR(IF(Schadstoffbelastung!E16/$B$45>0.1,1,0),0) -> 0 | C44: =IF(B44=1,Stoffdatenbank!H17,"") ->  | D44: =IF(B44=1,Stoffdatenbank!I17,"") ->  | N44: ausschlaggebender Schadstoff | Q44: =C76 ->  | AG44: =Sanierungsdesign!$E$12*AH44*Sanierungsdesign!$E$10/1000000 -> 1778.4 | AH44: 273600 | AI44: 3.166666667 | AJ44: =$D$5+((-Sanierungsdesign!$E$12)/4*PI()*$D$3)*(-LN((4*$D$4*AH44)/(Sanierungsdesign!$E$13^2))-$D$19) -> -652.8292287 | AK44: -925.9792287 | AL44: -1876.176938 | AM44: =$D$3*$T$7*$AH$7*(AK44-$D$5)*(1/Sanierungsdesign!$E$15)/1000000 -> -168.8580283 | AN44: =$D$5+(-Sanierungsdesign!$E$12/(4*PI()*$D$3))*(-LN((4*$D$4*AH44)/(Sanierungsdesign!$E$13+Sanierungsdesign!$E$15)^2)-$D$19) -> 189.386732 | AO44: -83.76326801 | AP44: =(2*PI()*Sanierungsdesign!$E$10*$D$3)*(LN((Sanierungsdesign!$E$13+Sanierungsdesign!$E$15)/Sanierungsdesign!$E$13)*(AJ44-AN44))*$AH$7/1000000 -> -75.19219219 | AQ44: 471.4237902 | AR44: 1064.003494 | AS44: =AU44/Sanierungsdesign!$E$11 -> -0.6787217699 | AT44: 218880 | AU44: -5.429774159 | AZ44: =(AY44/(AH44*Sanierungsdesign!$E$10))*1000000 ->  | BA44: =AZ44/Sanierungsdesign!$E$12 ->  | BB44: =$D$5+((-(Sanierungsdesign!$E$12)*MIN($BA$7:$BA$932))/(4*PI()*$D$3))*(-LN((4*$D$4*AH44)/(Sanierungsdesign!$E$13)^2)-$D$19) ->  | BC44: =(BB44-273.15)/Heterogenität!$D$4 ->  | BD44: =IF(AI44<Berechnung!$D$7,AI44,#N/A) -> 
A45: LCKW | B45: =Schadstoffbelastung!E17 -> 0 | D45: =IF(B45=1,Stoffdatenbank!I18,"") ->  | AG45: =Sanierungsdesign!$E$12*AH45*Sanierungsdesign!$E$10/1000000 -> 1825.2 | AH45: 280800 | AI45: 3.25 | AJ45: =$D$5+((-Sanierungsdesign!$E$12)/4*PI()*$D$3)*(-LN((4*$D$4*AH45)/(Sanierungsdesign!$E$13^2))-$D$19) -> -616.441828 | AK45: -889.591828 | AL45: -1803.393661 | AM45: =$D$3*$T$7*$AH$7*(AK45-$D$5)*(1/Sanierungsdesign!$E$15)/1000000 -> -163.7764336 | AN45: =$D$5+(-Sanierungsdesign!$E$12/(4*PI()*$D$3))*(-LN((4*$D$4*AH45)/(Sanierungsdesign!$E$13+Sanierungsdesign!$E$15)^2)-$D$19) -> 191.3453199 | AO45: -81.80468012 | AP45: =(2*PI()*Sanierungsdesign!$E$10*$D$3)*(LN((Sanierungsdesign!$E$13+Sanierungsdesign!$E$15)/Sanierungsdesign!$E$13)*(AJ45-AN45))*$AH$7/1000000 -> -72.11842247 | AQ45: 483.8296794 | AR45: 1092.003586 | AS45: =AU45/Sanierungsdesign!$E$11 -> -0.6523918467 | AT45: 224640 | AU45: -5.219134774 | AZ45: =(AY45/(AH45*Sanierungsdesign!$E$10))*1000000 ->  | BA45: =AZ45/Sanierungsdesign!$E$12 ->  | BB45: =$D$5+((-(Sanierungsdesign!$E$12)*MIN($BA$7:$BA$932))/(4*PI()*$D$3))*(-LN((4*$D$4*AH45)/(Sanierungsdesign!$E$13)^2)-$D$19) ->  | BC45: =(BB45-273.15)/Heterogenität!$D$4 ->  | BD45: =IF(AI45<Berechnung!$D$7,AI45,#N/A) -> 
A46: Benzol | B46: =IFERROR(IF(Schadstoffbelastung!E18/$B$63>0.1,1,0),0) -> 0 | C46: =IF(B46=1,Stoffdatenbank!H19,"") ->  | D46: =IF(B46=1,Stoffdatenbank!I19,"") ->  | AG46: =Sanierungsdesign!$E$12*AH46*Sanierungsdesign!$E$10/1000000 -> 1872 | AH46: 288000 | AI46: 3.333333333 | AJ46: =$D$5+((-Sanierungsdesign!$E$12)/4*PI()*$D$3)*(-LN((4*$D$4*AH46)/(Sanierungsdesign!$E$13^2))-$D$19) -> -580.975727 | AK46: -854.125727 | AL46: -1732.453198 | AM46: =$D$3*$T$7*$AH$7*(AK46-$D$5)*(1/Sanierungsdesign!$E$15)/1000000 -> -158.8235007 | AN46: =$D$5+(-Sanierungsdesign!$E$12/(4*PI()*$D$3))*(-LN((4*$D$4*AH46)/(Sanierungsdesign!$E$13+Sanierungsdesign!$E$15)^2)-$D$19) -> 193.2543179 | AO46: -79.8956821 | AP46: =(2*PI()*Sanierungsdesign!$E$10*$D$3)*(LN((Sanierungsdesign!$E$13+Sanierungsdesign!$E$15)/Sanierungsdesign!$E$13)*(AJ46-AN46))*$AH$7/1000000 -> -69.12247814 | AQ46: 496.2355686 | AR46: 1120.003678 | AS46: =AU46/Sanierungsdesign!$E$11 -> -0.626728576 | AT46: 230400 | AU46: -5.013828608 | AZ46: =(AY46/(AH46*Sanierungsdesign!$E$10))*1000000 ->  | BA46: =AZ46/Sanierungsdesign!$E$12 ->  | BB46: =$D$5+((-(Sanierungsdesign!$E$12)*MIN($BA$7:$BA$932))/(4*PI()*$D$3))*(-LN((4*$D$4*AH46)/(Sanierungsdesign!$E$13)^2)-$D$19) ->  | BC46: =(BB46-273.15)/Heterogenität!$D$4 ->  | BD46: =IF(AI46<Berechnung!$D$7,AI46,#N/A) -> 
A47: Toluol | B47: =IFERROR(IF(Schadstoffbelastung!E19/$B$63>0.1,1,0),0) -> 0 | C47: =IF(B47=1,Stoffdatenbank!H20,"") ->  | D47: =IF(B47=1,Stoffdatenbank!I20,"") ->  | AG47: =Sanierungsdesign!$E$12*AH47*Sanierungsdesign!$E$10/1000000 -> 1918.8 | AH47: 295200 | AI47: 3.416666667 | AJ47: =$D$5+((-Sanierungsdesign!$E$12)/4*PI()*$D$3)*(-LN((4*$D$4*AH47)/(Sanierungsdesign!$E$13^2))-$D$19) -> -546.3854223 | AK47: -819.5354223 | AL47: -1663.264531 | AM47: =$D$3*$T$7*$AH$7*(AK47-$D$5)*(1/Sanierungsdesign!$E$15)/1000000 -> -153.9928751 | AN47: =$D$5+(-Sanierungsdesign!$E$12/(4*PI()*$D$3))*(-LN((4*$D$4*AH47)/(Sanierungsdesign!$E$13+Sanierungsdesign!$E$15)^2)-$D$19) -> 195.1161753 | AO47: -78.03382468 | AP47: =(2*PI()*Sanierungsdesign!$E$10*$D$3)*(LN((Sanierungsdesign!$E$13+Sanierungsdesign!$E$15)/Sanierungsdesign!$E$13)*(AJ47-AN47))*$AH$7/1000000 -> -66.20051535 | AQ47: 508.6414578 | AR47: 1148.00377 | AS47: =AU47/Sanierungsdesign!$E$11 -> -0.6016990316 | AT47: 236160 | AU47: -4.813592252 | AZ47: =(AY47/(AH47*Sanierungsdesign!$E$10))*1000000 ->  | BA47: =AZ47/Sanierungsdesign!$E$12 ->  | BB47: =$D$5+((-(Sanierungsdesign!$E$12)*MIN($BA$7:$BA$932))/(4*PI()*$D$3))*(-LN((4*$D$4*AH47)/(Sanierungsdesign!$E$13)^2)-$D$19) ->  | BC47: =(BB47-273.15)/Heterogenität!$D$4 ->  | BD47: =IF(AI47<Berechnung!$D$7,AI47,#N/A) -> 
A48: Ethylbenzol | B48: =IFERROR(IF(Schadstoffbelastung!E20/$B$63>0.1,1,0),0) -> 0 | C48: =IF(B48=1,Stoffdatenbank!H21,"") ->  | D48: =IF(B48=1,Stoffdatenbank!I21,"") ->  | AG48: =Sanierungsdesign!$E$12*AH48*Sanierungsdesign!$E$10/1000000 -> 1965.6 | AH48: 302400 | AI48: 3.5 | AJ48: =$D$5+((-Sanierungsdesign!$E$12)/4*PI()*$D$3)*(-LN((4*$D$4*AH48)/(Sanierungsdesign!$E$13^2))-$D$19) -> -512.6287005 | AK48: -785.7787005 | AL48: -1595.743225 | AM48: =$D$3*$T$7*$AH$7*(AK48-$D$5)*(1/Sanierungsdesign!$E$15)/1000000 -> -149.2786615 | AN48: =$D$5+(-Sanierungsdesign!$E$12/(4*PI()*$D$3))*(-LN((4*$D$4*AH48)/(Sanierungsdesign!$E$13+Sanierungsdesign!$E$15)^2)-$D$19) -> 196.9331643 | AO48: -76.21683569 | AP48: =(2*PI()*Sanierungsdesign!$E$10*$D$3)*(LN((Sanierungsdesign!$E$13+Sanierungsdesign!$E$15)/Sanierungsdesign!$E$13)*(AJ48-AN48))*$AH$7/1000000 -> -63.3489682 | AQ48: 521.047347 | AR48: 1176.003862 | AS48: =AU48/Sanierungsdesign!$E$11 -> -0.5772726677 | AT48: 241920 | AU48: -4.618181342 | AZ48: =(AY48/(AH48*Sanierungsdesign!$E$10))*1000000 ->  | BA48: =AZ48/Sanierungsdesign!$E$12 ->  | BB48: =$D$5+((-(Sanierungsdesign!$E$12)*MIN($BA$7:$BA$932))/(4*PI()*$D$3))*(-LN((4*$D$4*AH48)/(Sanierungsdesign!$E$13)^2)-$D$19) ->  | BC48: =(BB48-273.15)/Heterogenität!$D$4 ->  | BD48: =IF(AI48<Berechnung!$D$7,AI48,#N/A) -> 
A49: o-Xylol | B49: =IFERROR(IF(Schadstoffbelastung!E21/$B$63>0.1,1,0),0) -> 0 | C49: =IF(B49=1,Stoffdatenbank!H22,"") ->  | D49: =IF(B49=1,Stoffdatenbank!I22,"") ->  | AG49: =Sanierungsdesign!$E$12*AH49*Sanierungsdesign!$E$10/1000000 -> 2012.4 | AH49: 309600 | AI49: 3.583333333 | AJ49: =$D$5+((-Sanierungsdesign!$E$12)/4*PI()*$D$3)*(-LN((4*$D$4*AH49)/(Sanierungsdesign!$E$13^2))-$D$19) -> -479.6663288 | AK49: -752.8163288 | AL49: -1529.810804 | AM49: =$D$3*$T$7*$AH$7*(AK49-$D$5)*(1/Sanierungsdesign!$E$15)/1000000 -> -144.6753809 | AN49: =$D$5+(-Sanierungsdesign!$E$12/(4*PI()*$D$3))*(-LN((4*$D$4*AH49)/(Sanierungsdesign!$E$13+Sanierungsdesign!$E$15)^2)-$D$19) -> 198.7073966 | AO49: -74.44260337 | AP49: =(2*PI()*Sanierungsdesign!$E$10*$D$3)*(LN((Sanierungsdesign!$E$13+Sanierungsdesign!$E$15)/Sanierungsdesign!$E$13)*(AJ49-AN49))*$AH$7/1000000 -> -60.56452254 | AQ49: 533.4532362 | AR49: 1204.003954 | AS49: =AU49/Sanierungsdesign!$E$11 -> -0.5534210955 | AT49: 247680 | AU49: -4.427368764 | AZ49: =(AY49/(AH49*Sanierungsdesign!$E$10))*1000000 ->  | BA49: =AZ49/Sanierungsdesign!$E$12 ->  | BB49: =$D$5+((-(Sanierungsdesign!$E$12)*MIN($BA$7:$BA$932))/(4*PI()*$D$3))*(-LN((4*$D$4*AH49)/(Sanierungsdesign!$E$13)^2)-$D$19) ->  | BC49: =(BB49-273.15)/Heterogenität!$D$4 ->  | BD49: =IF(AI49<Berechnung!$D$7,AI49,#N/A) -> 
A50: m-Xylol | B50: =IFERROR(IF(Schadstoffbelastung!E22/$B$63>0.1,1,0),0) -> 0 | C50: =IF(B50=1,Stoffdatenbank!H23,"") ->  | D50: =IF(B50=1,Stoffdatenbank!I23,"") ->  | AG50: =Sanierungsdesign!$E$12*AH50*Sanierungsdesign!$E$10/1000000 -> 2059.2 | AH50: 316800 | AI50: 3.666666667 | AJ50: =$D$5+((-Sanierungsdesign!$E$12)/4*PI()*$D$3)*(-LN((4*$D$4*AH50)/(Sanierungsdesign!$E$13^2))-$D$19) -> -447.4617803 | AK50: -720.6117803 | AL50: -1465.394206 | AM50: =$D$3*$T$7*$AH$7*(AK50-$D$5)*(1/Sanierungsdesign!$E$15)/1000000 -> -140.1779323 | AN50: =$D$5+(-Sanierungsdesign!$E$12/(4*PI()*$D$3))*(-LN((4*$D$4*AH50)/(Sanierungsdesign!$E$13+Sanierungsdesign!$E$15)^2)-$D$19) -> 200.4408384 | AO50: -72.70916165 | AP50: =(2*PI()*Sanierungsdesign!$E$10*$D$3)*(LN((Sanierungsdesign!$E$13+Sanierungsdesign!$E$15)/Sanierungsdesign!$E$13)*(AJ50-AN50))*$AH$7/1000000 -> -57.84409283 | AQ50: 545.8591255 | AR50: 1232.004046 | AS50: =AU50/Sanierungsdesign!$E$11 -> -0.5301178842 | AT50: 253440 | AU50: -4.240943074 | AZ50: =(AY50/(AH50*Sanierungsdesign!$E$10))*1000000 ->  | BA50: =AZ50/Sanierungsdesign!$E$12 ->  | BB50: =$D$5+((-(Sanierungsdesign!$E$12)*MIN($BA$7:$BA$932))/(4*PI()*$D$3))*(-LN((4*$D$4*AH50)/(Sanierungsdesign!$E$13)^2)-$D$19) ->  | BC50: =(BB50-273.15)/Heterogenität!$D$4 ->  | BD50: =IF(AI50<Berechnung!$D$7,AI50,#N/A) -> 
A51: p-Xylol | B51: =IFERROR(IF(Schadstoffbelastung!E23/$B$63>0.1,1,0),0) -> 0 | C51: =IF(B51=1,Stoffdatenbank!H24,"") ->  | D51: =IF(B51=1,Stoffdatenbank!I24,"") ->  | AG51: =Sanierungsdesign!$E$12*AH51*Sanierungsdesign!$E$10/1000000 -> 2106 | AH51: 324000 | AI51: 3.75 | AJ51: =$D$5+((-Sanierungsdesign!$E$12)/4*PI()*$D$3)*(-LN((4*$D$4*AH51)/(Sanierungsdesign!$E$13^2))-$D$19) -> -415.9809911 | AK51: -689.1309911 | AL51: -1402.425294 | AM51: =$D$3*$T$7*$AH$7*(AK51-$D$5)*(1/Sanierungsdesign!$E$15)/1000000 -> -135.7815585 | AN51: =$D$5+(-Sanierungsdesign!$E$12/(4*PI()*$D$3))*(-LN((4*$D$4*AH51)/(Sanierungsdesign!$E$13+Sanierungsdesign!$E$15)^2)-$D$19) -> 202.135323 | AO51: -71.01467698 | AP51: =(2*PI()*Sanierungsdesign!$E$10*$D$3)*(LN((Sanierungsdesign!$E$13+Sanierungsdesign!$E$15)/Sanierungsdesign!$E$13)*(AJ51-AN51))*$AH$7/1000000 -> -55.18480158 | AQ51: 558.2650147 | AR51: 1260.004138 | AS51: =AU51/Sanierungsdesign!$E$11 -> -0.5073383852 | AT51: 259200 | AU51: -4.058707081 | AZ51: =(AY51/(AH51*Sanierungsdesign!$E$10))*1000000 ->  | BA51: =AZ51/Sanierungsdesign!$E$12 ->  | BB51: =$D$5+((-(Sanierungsdesign!$E$12)*MIN($BA$7:$BA$932))/(4*PI()*$D$3))*(-LN((4*$D$4*AH51)/(Sanierungsdesign!$E$13)^2)-$D$19) ->  | BC51: =(BB51-273.15)/Heterogenität!$D$4 ->  | BD51: =IF(AI51<Berechnung!$D$7,AI51,#N/A) -> 
A52: n-Propylbenzol | B52: =IFERROR(IF(Schadstoffbelastung!E24/$B$63>0.1,1,0),0) -> 0 | C52: =IF(B52=1,Stoffdatenbank!H25,"") ->  | D52: =IF(B52=1,Stoffdatenbank!I25,"") ->  | AG52: =Sanierungsdesign!$E$12*AH52*Sanierungsdesign!$E$10/1000000 -> 2152.8 | AH52: 331200 | AI52: 3.833333333 | AJ52: =$D$5+((-Sanierungsdesign!$E$12)/4*PI()*$D$3)*(-LN((4*$D$4*AH52)/(Sanierungsdesign!$E$13^2))-$D$19) -> -385.1921437 | AK52: -658.3421437 | AL52: -1340.840428 | AM52: =$D$3*$T$7*$AH$7*(AK52-$D$5)*(1/Sanierungsdesign!$E$15)/1000000 -> -131.4818163 | AN52: =$D$5+(-Sanierungsdesign!$E$12/(4*PI()*$D$3))*(-LN((4*$D$4*AH52)/(Sanierungsdesign!$E$13+Sanierungsdesign!$E$15)^2)-$D$19) -> 203.7925632 | AO52: -69.35743677 | AP52: =(2*PI()*Sanierungsdesign!$E$10*$D$3)*(LN((Sanierungsdesign!$E$13+Sanierungsdesign!$E$15)/Sanierungsdesign!$E$13)*(AJ52-AN52))*$AH$7/1000000 -> -52.58396106 | AQ52: 570.6709039 | AR52: 1288.00423 | AS52: =AU52/Sanierungsdesign!$E$11 -> -0.4850595752 | AT52: 264960 | AU52: -3.880476602 | AZ52: =(AY52/(AH52*Sanierungsdesign!$E$10))*1000000 ->  | BA52: =AZ52/Sanierungsdesign!$E$12 ->  | BB52: =$D$5+((-(Sanierungsdesign!$E$12)*MIN($BA$7:$BA$932))/(4*PI()*$D$3))*(-LN((4*$D$4*AH52)/(Sanierungsdesign!$E$13)^2)-$D$19) ->  | BC52: =(BB52-273.15)/Heterogenität!$D$4 ->  | BD52: =IF(AI52<Berechnung!$D$7,AI52,#N/A) -> 
A53: Isopropylbenzol | B53: =IFERROR(IF(Schadstoffbelastung!E25/$B$63>0.1,1,0),0) -> 0 | C53: =IF(B53=1,Stoffdatenbank!H26,"") ->  | D53: =IF(B53=1,Stoffdatenbank!I26,"") ->  | AG53: =Sanierungsdesign!$E$12*AH53*Sanierungsdesign!$E$10/1000000 -> 2199.6 | AH53: 338400 | AI53: 3.916666667 | AJ53: =$D$5+((-Sanierungsdesign!$E$12)/4*PI()*$D$3)*(-LN((4*$D$4*AH53)/(Sanierungsdesign!$E$13^2))-$D$19) -> -355.0654737 | AK53: -628.2154737 | AL53: -1280.580071 | AM53: =$D$3*$T$7*$AH$7*(AK53-$D$5)*(1/Sanierungsdesign!$E$15)/1000000 -> -127.2745488 | AN53: =$D$5+(-Sanierungsdesign!$E$12/(4*PI()*$D$3))*(-LN((4*$D$4*AH53)/(Sanierungsdesign!$E$13+Sanierungsdesign!$E$15)^2)-$D$19) -> 205.4141611 | AO53: -67.73583891 | AP53: =(2*PI()*Sanierungsdesign!$E$10*$D$3)*(LN((Sanierungsdesign!$E$13+Sanierungsdesign!$E$15)/Sanierungsdesign!$E$13)*(AJ53-AN53))*$AH$7/1000000 -> -50.03905694 | AQ53: 583.0767931 | AR53: 1316.004322 | AS53: =AU53/Sanierungsdesign!$E$11 -> -0.4632599168 | AT53: 270720 | AU53: -3.706079334 | AZ53: =(AY53/(AH53*Sanierungsdesign!$E$10))*1000000 ->  | BA53: =AZ53/Sanierungsdesign!$E$12 ->  | BB53: =$D$5+((-(Sanierungsdesign!$E$12)*MIN($BA$7:$BA$932))/(4*PI()*$D$3))*(-LN((4*$D$4*AH53)/(Sanierungsdesign!$E$13)^2)-$D$19) ->  | BC53: =(BB53-273.15)/Heterogenität!$D$4 ->  | BD53: =IF(AI53<Berechnung!$D$7,AI53,#N/A) -> 
A54: o-Ethyltoluol | B54: =IFERROR(IF(Schadstoffbelastung!E26/$B$63>0.1,1,0),0) -> 0 | C54: =IF(B54=1,Stoffdatenbank!H27,"") ->  | D54: =IF(B54=1,Stoffdatenbank!I27,"") ->  | AG54: =Sanierungsdesign!$E$12*AH54*Sanierungsdesign!$E$10/1000000 -> 2246.4 | AH54: 345600 | AI54: 4 | AJ54: =$D$5+((-Sanierungsdesign!$E$12)/4*PI()*$D$3)*(-LN((4*$D$4*AH54)/(Sanierungsdesign!$E$13^2))-$D$19) -> -325.5730967 | AK54: -598.7230967 | AL54: -1221.588447 | AM54: =$D$3*$T$7*$AH$7*(AK54-$D$5)*(1/Sanierungsdesign!$E$15)/1000000 -> -123.1558619 | AN54: =$D$5+(-Sanierungsdesign!$E$12/(4*PI()*$D$3))*(-LN((4*$D$4*AH54)/(Sanierungsdesign!$E$13+Sanierungsdesign!$E$15)^2)-$D$19) -> 207.0016175 | AO54: -66.1483825 | AP54: =(2*PI()*Sanierungsdesign!$E$10*$D$3)*(LN((Sanierungsdesign!$E$13+Sanierungsdesign!$E$15)/Sanierungsdesign!$E$13)*(AJ54-AN54))*$AH$7/1000000 -> -47.54773375 | AQ54: 595.4826823 | AR54: 1344.004414 | AS54: =AU54/Sanierungsdesign!$E$11 -> -0.4419192328 | AT54: 276480 | AU54: -3.535353862 | AZ54: =(AY54/(AH54*Sanierungsdesign!$E$10))*1000000 ->  | BA54: =AZ54/Sanierungsdesign!$E$12 ->  | BB54: =$D$5+((-(Sanierungsdesign!$E$12)*MIN($BA$7:$BA$932))/(4*PI()*$D$3))*(-LN((4*$D$4*AH54)/(Sanierungsdesign!$E$13)^2)-$D$19) ->  | BC54: =(BB54-273.15)/Heterogenität!$D$4 ->  | BD54: =IF(AI54<Berechnung!$D$7,AI54,#N/A) -> 
A55: m-Ethyltoluol | B55: =IFERROR(IF(Schadstoffbelastung!E27/$B$63>0.1,1,0),0) -> 0 | C55: =IF(B55=1,Stoffdatenbank!H28,"") ->  | D55: =IF(B55=1,Stoffdatenbank!I28,"") ->  | AG55: =Sanierungsdesign!$E$12*AH55*Sanierungsdesign!$E$10/1000000 -> 2293.2 | AH55: 352800 | AI55: 4.083333333 | AJ55: =$D$5+((-Sanierungsdesign!$E$12)/4*PI()*$D$3)*(-LN((4*$D$4*AH55)/(Sanierungsdesign!$E$13^2))-$D$19) -> -296.6888535 | AK55: -569.8388535 | AL55: -1163.813233 | AM55: =$D$3*$T$7*$AH$7*(AK55-$D$5)*(1/Sanierungsdesign!$E$15)/1000000 -> -119.1221026 | AN55: =$D$5+(-Sanierungsdesign!$E$12/(4*PI()*$D$3))*(-LN((4*$D$4*AH55)/(Sanierungsdesign!$E$13+Sanierungsdesign!$E$15)^2)-$D$19) -> 208.5563405 | AO55: -64.59365949 | AP55: =(2*PI()*Sanierungsdesign!$E$10*$D$3)*(LN((Sanierungsdesign!$E$13+Sanierungsdesign!$E$15)/Sanierungsdesign!$E$13)*(AJ55-AN55))*$AH$7/1000000 -> -45.10778173 | AQ55: 607.8885715 | AR55: 1372.004506 | AS55: =AU55/Sanierungsdesign!$E$11 -> -0.4210185944 | AT55: 282240 | AU55: -3.368148755 | AZ55: =(AY55/(AH55*Sanierungsdesign!$E$10))*1000000 ->  | BA55: =AZ55/Sanierungsdesign!$E$12 ->  | BB55: =$D$5+((-(Sanierungsdesign!$E$12)*MIN($BA$7:$BA$932))/(4*PI()*$D$3))*(-LN((4*$D$4*AH55)/(Sanierungsdesign!$E$13)^2)-$D$19) ->  | BC55: =(BB55-273.15)/Heterogenität!$D$4 ->  | BD55: =IF(AI55<Berechnung!$D$7,AI55,#N/A) -> 
A56: p-Ethyltoluol | B56: =IFERROR(IF(Schadstoffbelastung!E28/$B$63>0.1,1,0),0) -> 0 | C56: =IF(B56=1,Stoffdatenbank!H29,"") ->  | D56: =IF(B56=1,Stoffdatenbank!I29,"") ->  | AG56: =Sanierungsdesign!$E$12*AH56*Sanierungsdesign!$E$10/1000000 -> 2340 | AH56: 360000 | AI56: 4.166666667 | AJ56: =$D$5+((-Sanierungsdesign!$E$12)/4*PI()*$D$3)*(-LN((4*$D$4*AH56)/(Sanierungsdesign!$E$13^2))-$D$19) -> -268.3881705 | AK56: -541.5381705 | AL56: -1107.205275 | AM56: =$D$3*$T$7*$AH$7*(AK56-$D$5)*(1/Sanierungsdesign!$E$15)/1000000 -> -115.1698389 | AN56: =$D$5+(-Sanierungsdesign!$E$12/(4*PI()*$D$3))*(-LN((4*$D$4*AH56)/(Sanierungsdesign!$E$13+Sanierungsdesign!$E$15)^2)-$D$19) -> 210.0796528 | AO56: -63.07034719 | AP56: =(2*PI()*Sanierungsdesign!$E$10*$D$3)*(LN((Sanierungsdesign!$E$13+Sanierungsdesign!$E$15)/Sanierungsdesign!$E$13)*(AJ56-AN56))*$AH$7/1000000 -> -42.71712506 | AQ56: 620.2944607 | AR56: 1400.004598 | AS56: =AU56/Sanierungsdesign!$E$11 -> -0.4005402202 | AT56: 288000 | AU56: -3.204321761 | AZ56: =(AY56/(AH56*Sanierungsdesign!$E$10))*1000000 ->  | BA56: =AZ56/Sanierungsdesign!$E$12 ->  | BB56: =$D$5+((-(Sanierungsdesign!$E$12)*MIN($BA$7:$BA$932))/(4*PI()*$D$3))*(-LN((4*$D$4*AH56)/(Sanierungsdesign!$E$13)^2)-$D$19) ->  | BC56: =(BB56-273.15)/Heterogenität!$D$4 ->  | BD56: =IF(AI56<Berechnung!$D$7,AI56,#N/A) -> 
A57: 1,2-Diethylbenzol | B57: =IFERROR(IF(Schadstoffbelastung!E29/$B$63>0.1,1,0),0) -> 0 | C57: =IF(B57=1,Stoffdatenbank!H30,"") ->  | D57: =IF(B57=1,Stoffdatenbank!I30,"") ->  | AG57: =Sanierungsdesign!$E$12*AH57*Sanierungsdesign!$E$10/1000000 -> 2386.8 | AH57: 367200 | AI57: 4.25 | AJ57: =$D$5+((-Sanierungsdesign!$E$12)/4*PI()*$D$3)*(-LN((4*$D$4*AH57)/(Sanierungsdesign!$E$13^2))-$D$19) -> -240.647934 | AK57: -513.797934 | AL57: -1051.71834 | AM57: =$D$3*$T$7*$AH$7*(AK57-$D$5)*(1/Sanierungsdesign!$E$15)/1000000 -> -111.295843 | AN57: =$D$5+(-Sanierungsdesign!$E$12/(4*PI()*$D$3))*(-LN((4*$D$4*AH57)/(Sanierungsdesign!$E$13+Sanierungsdesign!$E$15)^2)-$D$19) -> 211.5727985 | AO57: -61.57720148 | AP57: =(2*PI()*Sanierungsdesign!$E$10*$D$3)*(LN((Sanierungsdesign!$E$13+Sanierungsdesign!$E$15)/Sanierungsdesign!$E$13)*(AJ57-AN57))*$AH$7/1000000 -> -40.37381125 | AQ57: 632.70035 | AR57: 1428.00469 | AS57: =AU57/Sanierungsdesign!$E$11 -> -0.3804673851 | AT57: 293760 | AU57: -3.04373908 | AZ57: =(AY57/(AH57*Sanierungsdesign!$E$10))*1000000 ->  | BA57: =AZ57/Sanierungsdesign!$E$12 ->  | BB57: =$D$5+((-(Sanierungsdesign!$E$12)*MIN($BA$7:$BA$932))/(4*PI()*$D$3))*(-LN((4*$D$4*AH57)/(Sanierungsdesign!$E$13)^2)-$D$19) ->  | BC57: =(BB57-273.15)/Heterogenität!$D$4 ->  | BD57: =IF(AI57<Berechnung!$D$7,AI57,#N/A) -> 
A58: 1,3-Diethylbenzol | B58: =IFERROR(IF(Schadstoffbelastung!E30/$B$63>0.1,1,0),0) -> 0 | C58: =IF(B58=1,Stoffdatenbank!H31,"") ->  | D58: =IF(B58=1,Stoffdatenbank!I31,"") ->  | AG58: =Sanierungsdesign!$E$12*AH58*Sanierungsdesign!$E$10/1000000 -> 2433.6 | AH58: 374400 | AI58: 4.333333333 | AJ58: =$D$5+((-Sanierungsdesign!$E$12)/4*PI()*$D$3)*(-LN((4*$D$4*AH58)/(Sanierungsdesign!$E$13^2))-$D$19) -> -213.4463771 | AK58: -486.5963771 | AL58: -997.3088907 | AM58: =$D$3*$T$7*$AH$7*(AK58-$D$5)*(1/Sanierungsdesign!$E$15)/1000000 -> -107.4970751 | AN58: =$D$5+(-Sanierungsdesign!$E$12/(4*PI()*$D$3))*(-LN((4*$D$4*AH58)/(Sanierungsdesign!$E$13+Sanierungsdesign!$E$15)^2)-$D$19) -> 213.0369493 | AO58: -60.11305073 | AP58: =(2*PI()*Sanierungsdesign!$E$10*$D$3)*(LN((Sanierungsdesign!$E$13+Sanierungsdesign!$E$15)/Sanierungsdesign!$E$13)*(AJ58-AN58))*$AH$7/1000000 -> -38.07600157 | AQ58: 645.1062392 | AR58: 1456.004782 | AS58: =AU58/Sanierungsdesign!$E$11 -> -0.3607843385 | AT58: 299520 | AU58: -2.886274708 | AZ58: =(AY58/(AH58*Sanierungsdesign!$E$10))*1000000 ->  | BA58: =AZ58/Sanierungsdesign!$E$12 ->  | BB58: =$D$5+((-(Sanierungsdesign!$E$12)*MIN($BA$7:$BA$932))/(4*PI()*$D$3))*(-LN((4*$D$4*AH58)/(Sanierungsdesign!$E$13)^2)-$D$19) ->  | BC58: =(BB58-273.15)/Heterogenität!$D$4 ->  | BD58: =IF(AI58<Berechnung!$D$7,AI58,#N/A) -> 
A59: 1,4-Diethylbenzol | B59: =IFERROR(IF(Schadstoffbelastung!E31/$B$63>0.1,1,0),0) -> 0 | C59: =IF(B59=1,Stoffdatenbank!H32,"") ->  | D59: =IF(B59=1,Stoffdatenbank!I32,"") ->  | AG59: =Sanierungsdesign!$E$12*AH59*Sanierungsdesign!$E$10/1000000 -> 2480.4 | AH59: 381600 | AI59: 4.416666667 | AJ59: =$D$5+((-Sanierungsdesign!$E$12)/4*PI()*$D$3)*(-LN((4*$D$4*AH59)/(Sanierungsdesign!$E$13^2))-$D$19) -> -186.7629767 | AK59: -459.9129767 | AL59: -943.9358746 | AM59: =$D$3*$T$7*$AH$7*(AK59-$D$5)*(1/Sanierungsdesign!$E$15)/1000000 -> -103.7706692 | AN59: =$D$5+(-Sanierungsdesign!$E$12/(4*PI()*$D$3))*(-LN((4*$D$4*AH59)/(Sanierungsdesign!$E$13+Sanierungsdesign!$E$15)^2)-$D$19) -> 214.4732097 | AO59: -58.67679027 | AP59: =(2*PI()*Sanierungsdesign!$E$10*$D$3)*(LN((Sanierungsdesign!$E$13+Sanierungsdesign!$E$15)/Sanierungsdesign!$E$13)*(AJ59-AN59))*$AH$7/1000000 -> -35.82196236 | AQ59: 657.5121284 | AR59: 1484.004874 | AS59: =AU59/Sanierungsdesign!$E$11 -> -0.34147623 | AT59: 305280 | AU59: -2.73180984 | AZ59: =(AY59/(AH59*Sanierungsdesign!$E$10))*1000000 ->  | BA59: =AZ59/Sanierungsdesign!$E$12 ->  | BB59: =$D$5+((-(Sanierungsdesign!$E$12)*MIN($BA$7:$BA$932))/(4*PI()*$D$3))*(-LN((4*$D$4*AH59)/(Sanierungsdesign!$E$13)^2)-$D$19) ->  | BC59: =(BB59-273.15)/Heterogenität!$D$4 ->  | BD59: =IF(AI59<Berechnung!$D$7,AI59,#N/A) -> 
A60: 1,2,3-Trimethylbenzol | B60: =IFERROR(IF(Schadstoffbelastung!E32/$B$63>0.1,1,0),0) -> 0 | C60: =IF(B60=1,Stoffdatenbank!H33,"") ->  | D60: =IF(B60=1,Stoffdatenbank!I33,"") ->  | AG60: =Sanierungsdesign!$E$12*AH60*Sanierungsdesign!$E$10/1000000 -> 2527.2 | AH60: 388800 | AI60: 4.5 | AJ60: =$D$5+((-Sanierungsdesign!$E$12)/4*PI()*$D$3)*(-LN((4*$D$4*AH60)/(Sanierungsdesign!$E$13^2))-$D$19) -> -160.5783608 | AK60: -433.7283608 | AL60: -891.5605437 | AM60: =$D$3*$T$7*$AH$7*(AK60-$D$5)*(1/Sanierungsdesign!$E$15)/1000000 -> -100.1139197 | AN60: =$D$5+(-Sanierungsdesign!$E$12/(4*PI()*$D$3))*(-LN((4*$D$4*AH60)/(Sanierungsdesign!$E$13+Sanierungsdesign!$E$15)^2)-$D$19) -> 215.8826226 | AO60: -57.26737738 | AP60: =(2*PI()*Sanierungsdesign!$E$10*$D$3)*(LN((Sanierungsdesign!$E$13+Sanierungsdesign!$E$15)/Sanierungsdesign!$E$13)*(AJ60-AN60))*$AH$7/1000000 -> -33.6100572 | AQ60: 669.9180176 | AR60: 1512.004966 | AS60: =AU60/Sanierungsdesign!$E$11 -> -0.3225290419 | AT60: 311040 | AU60: -2.580232335 | AZ60: =(AY60/(AH60*Sanierungsdesign!$E$10))*1000000 ->  | BA60: =AZ60/Sanierungsdesign!$E$12 ->  | BB60: =$D$5+((-(Sanierungsdesign!$E$12)*MIN($BA$7:$BA$932))/(4*PI()*$D$3))*(-LN((4*$D$4*AH60)/(Sanierungsdesign!$E$13)^2)-$D$19) ->  | BC60: =(BB60-273.15)/Heterogenität!$D$4 ->  | BD60: =IF(AI60<Berechnung!$D$7,AI60,#N/A) -> 
A61: 1,2,4-Trimethylbenzol | B61: =IFERROR(IF(Schadstoffbelastung!E33/$B$63>0.1,1,0),0) -> 0 | C61: =IF(B61=1,Stoffdatenbank!H34,"") ->  | D61: =IF(B61=1,Stoffdatenbank!I34,"") ->  | AG61: =Sanierungsdesign!$E$12*AH61*Sanierungsdesign!$E$10/1000000 -> 2574 | AH61: 396000 | AI61: 4.583333333 | AJ61: =$D$5+((-Sanierungsdesign!$E$12)/4*PI()*$D$3)*(-LN((4*$D$4*AH61)/(Sanierungsdesign!$E$13^2))-$D$19) -> -134.8742238 | AK61: -408.0242238 | AL61: -840.1462825 | AM61: =$D$3*$T$7*$AH$7*(AK61-$D$5)*(1/Sanierungsdesign!$E$15)/1000000 -> -96.52427043 | AN61: =$D$5+(-Sanierungsdesign!$E$12/(4*PI()*$D$3))*(-LN((4*$D$4*AH61)/(Sanierungsdesign!$E$13+Sanierungsdesign!$E$15)^2)-$D$19) -> 217.2661733 | AO61: -55.88382674 | AP61: =(2*PI()*Sanierungsdesign!$E$10*$D$3)*(LN((Sanierungsdesign!$E$13+Sanierungsdesign!$E$15)/Sanierungsdesign!$E$13)*(AJ61-AN61))*$AH$7/1000000 -> -31.43873976 | AQ61: 682.3239068 | AR61: 1540.005058 | AS61: =AU61/Sanierungsdesign!$E$11 -> -0.3039295283 | AT61: 316800 | AU61: -2.431436227 | AZ61: =(AY61/(AH61*Sanierungsdesign!$E$10))*1000000 ->  | BA61: =AZ61/Sanierungsdesign!$E$12 ->  | BB61: =$D$5+((-(Sanierungsdesign!$E$12)*MIN($BA$7:$BA$932))/(4*PI()*$D$3))*(-LN((4*$D$4*AH61)/(Sanierungsdesign!$E$13)^2)-$D$19) ->  | BC61: =(BB61-273.15)/Heterogenität!$D$4 ->  | BD61: =IF(AI61<Berechnung!$D$7,AI61,#N/A) -> 
A62: 1,3,5-Trimethylbenzol | B62: =IFERROR(IF(Schadstoffbelastung!E34/$B$63>0.1,1,0),0) -> 0 | C62: =IF(B62=1,Stoffdatenbank!H35,"") ->  | D62: =IF(B62=1,Stoffdatenbank!I35,"") ->  | AG62: =Sanierungsdesign!$E$12*AH62*Sanierungsdesign!$E$10/1000000 -> 2620.8 | AH62: 403200 | AI62: 4.666666667 | AJ62: =$D$5+((-Sanierungsdesign!$E$12)/4*PI()*$D$3)*(-LN((4*$D$4*AH62)/(Sanierungsdesign!$E$13^2))-$D$19) -> -109.6332497 | AK62: -382.7832497 | AL62: -789.6584549 | AM62: =$D$3*$T$7*$AH$7*(AK62-$D$5)*(1/Sanierungsdesign!$E$15)/1000000 -> -92.99930302 | AN62: =$D$5+(-Sanierungsdesign!$E$12/(4*PI()*$D$3))*(-LN((4*$D$4*AH62)/(Sanierungsdesign!$E$13+Sanierungsdesign!$E$15)^2)-$D$19) -> 218.6247937 | AO62: -54.5252063 | AP62: =(2*PI()*Sanierungsdesign!$E$10*$D$3)*(LN((Sanierungsdesign!$E$13+Sanierungsdesign!$E$15)/Sanierungsdesign!$E$13)*(AJ62-AN62))*$AH$7/1000000 -> -29.30654729 | AQ62: 694.729796 | AR62: 1568.00515 | AS62: =AU62/Sanierungsdesign!$E$11 -> -0.2856651594 | AT62: 322560 | AU62: -2.285321276 | AZ62: =(AY62/(AH62*Sanierungsdesign!$E$10))*1000000 ->  | BA62: =AZ62/Sanierungsdesign!$E$12 ->  | BB62: =$D$5+((-(Sanierungsdesign!$E$12)*MIN($BA$7:$BA$932))/(4*PI()*$D$3))*(-LN((4*$D$4*AH62)/(Sanierungsdesign!$E$13)^2)-$D$19) ->  | BC62: =(BB62-273.15)/Heterogenität!$D$4 ->  | BD62: =IF(AI62<Berechnung!$D$7,AI62,#N/A) -> 
A63: AKW | B63: =Schadstoffbelastung!E35 -> 0 | D63: =IF(B63=1,Stoffdatenbank!I36,"") ->  | AG63: =Sanierungsdesign!$E$12*AH63*Sanierungsdesign!$E$10/1000000 -> 2667.6 | AH63: 410400 | AI63: 4.75 | AJ63: =$D$5+((-Sanierungsdesign!$E$12)/4*PI()*$D$3)*(-LN((4*$D$4*AH63)/(Sanierungsdesign!$E$13^2))-$D$19) -> -84.83904196 | AK63: -357.989042 | AL63: -740.0642643 | AM63: =$D$3*$T$7*$AH$7*(AK63-$D$5)*(1/Sanierungsdesign!$E$15)/1000000 -> -89.5367277 | AN63: =$D$5+(-Sanierungsdesign!$E$12/(4*PI()*$D$3))*(-LN((4*$D$4*AH63)/(Sanierungsdesign!$E$13+Sanierungsdesign!$E$15)^2)-$D$19) -> 219.9593665 | AO63: -53.19063351 | AP63: =(2*PI()*Sanierungsdesign!$E$10*$D$3)*(LN((Sanierungsdesign!$E$13+Sanierungsdesign!$E$15)/Sanierungsdesign!$E$13)*(AJ63-AN63))*$AH$7/1000000 -> -27.21209473 | AQ63: 707.1356852 | AR63: 1596.005242 | AS63: =AU63/Sanierungsdesign!$E$11 -> -0.2677240708 | AT63: 328320 | AU63: -2.141792566 | AZ63: =(AY63/(AH63*Sanierungsdesign!$E$10))*1000000 ->  | BA63: =AZ63/Sanierungsdesign!$E$12 ->  | BB63: =$D$5+((-(Sanierungsdesign!$E$12)*MIN($BA$7:$BA$932))/(4*PI()*$D$3))*(-LN((4*$D$4*AH63)/(Sanierungsdesign!$E$13)^2)-$D$19) ->  | BC63: =(BB63-273.15)/Heterogenität!$D$4 ->  | BD63: =IF(AI63<Berechnung!$D$7,AI63,#N/A) -> 
A64: n-Pentan | B64: =IFERROR(IF(Schadstoffbelastung!E36/$B$70>0.1,1,0),0) -> 0 | C64: =IF(B64=1,Stoffdatenbank!H37,"") ->  | D64: =IF(B64=1,Stoffdatenbank!I37,"") ->  | AG64: =Sanierungsdesign!$E$12*AH64*Sanierungsdesign!$E$10/1000000 -> 2714.4 | AH64: 417600 | AI64: 4.833333333 | AJ64: =$D$5+((-Sanierungsdesign!$E$12)/4*PI()*$D$3)*(-LN((4*$D$4*AH64)/(Sanierungsdesign!$E$13^2))-$D$19) -> -60.47605981 | AK64: -333.6260598 | AL64: -691.3326252 | AM64: =$D$3*$T$7*$AH$7*(AK64-$D$5)*(1/Sanierungsdesign!$E$15)/1000000 -> -86.13437415 | AN64: =$D$5+(-Sanierungsdesign!$E$12/(4*PI()*$D$3))*(-LN((4*$D$4*AH64)/(Sanierungsdesign!$E$13+Sanierungsdesign!$E$15)^2)-$D$19) -> 221.2707281 | AO64: -51.87927186 | AP64: =(2*PI()*Sanierungsdesign!$E$10*$D$3)*(LN((Sanierungsdesign!$E$13+Sanierungsdesign!$E$15)/Sanierungsdesign!$E$13)*(AJ64-AN64))*$AH$7/1000000 -> -25.15406928 | AQ64: 719.5415745 | AR64: 1624.005334 | AS64: =AU64/Sanierungsdesign!$E$11 -> -0.2500950169 | AT64: 334080 | AU64: -2.000760135 | AZ64: =(AY64/(AH64*Sanierungsdesign!$E$10))*1000000 ->  | BA64: =AZ64/Sanierungsdesign!$E$12 ->  | BB64: =$D$5+((-(Sanierungsdesign!$E$12)*MIN($BA$7:$BA$932))/(4*PI()*$D$3))*(-LN((4*$D$4*AH64)/(Sanierungsdesign!$E$13)^2)-$D$19) ->  | BC64: =(BB64-273.15)/Heterogenität!$D$4 ->  | BD64: =IF(AI64<Berechnung!$D$7,AI64,#N/A) -> 
A65: n-Hexan | B65: =IFERROR(IF(Schadstoffbelastung!E37/$B$70>0.1,1,0),0) -> 0 | C65: =IF(B65=1,Stoffdatenbank!H38,"") ->  | D65: =IF(B65=1,Stoffdatenbank!I38,"") ->  | AG65: =Sanierungsdesign!$E$12*AH65*Sanierungsdesign!$E$10/1000000 -> 2761.2 | AH65: 424800 | AI65: 4.916666667 | AJ65: =$D$5+((-Sanierungsdesign!$E$12)/4*PI()*$D$3)*(-LN((4*$D$4*AH65)/(Sanierungsdesign!$E$13^2))-$D$19) -> -36.52955935 | AK65: -309.6795594 | AL65: -643.4340465 | AM65: =$D$3*$T$7*$AH$7*(AK65-$D$5)*(1/Sanierungsdesign!$E$15)/1000000 -> -82.79018334 | AN65: =$D$5+(-Sanierungsdesign!$E$12/(4*PI()*$D$3))*(-LN((4*$D$4*AH65)/(Sanierungsdesign!$E$13+Sanierungsdesign!$E$15)^2)-$D$19) -> 222.5596722 | AO65: -50.59032775 | AP65: =(2*PI()*Sanierungsdesign!$E$10*$D$3)*(LN((Sanierungsdesign!$E$13+Sanierungsdesign!$E$15)/Sanierungsdesign!$E$13)*(AJ65-AN65))*$AH$7/1000000 -> -23.13122549 | AQ65: 731.9474637 | AR65: 1652.005426 | AS65: =AU65/Sanierungsdesign!$E$11 -> -0.2327673291 | AT65: 339840 | AU65: -1.862138633 | AZ65: =(AY65/(AH65*Sanierungsdesign!$E$10))*1000000 ->  | BA65: =AZ65/Sanierungsdesign!$E$12 ->  | BB65: =$D$5+((-(Sanierungsdesign!$E$12)*MIN($BA$7:$BA$932))/(4*PI()*$D$3))*(-LN((4*$D$4*AH65)/(Sanierungsdesign!$E$13)^2)-$D$19) ->  | BC65: =(BB65-273.15)/Heterogenität!$D$4 ->  | BD65: =IF(AI65<Berechnung!$D$7,AI65,#N/A) -> 
A66: n-Heptan | B66: =IFERROR(IF(Schadstoffbelastung!E38/$B$70>0.1,1,0),0) -> 0 | C66: =IF(B66=1,Stoffdatenbank!H39,"") ->  | D66: =IF(B66=1,Stoffdatenbank!I39,"") ->  | AG66: =Sanierungsdesign!$E$12*AH66*Sanierungsdesign!$E$10/1000000 -> 2808 | AH66: 432000 | AI66: 5 | AJ66: =$D$5+((-Sanierungsdesign!$E$12)/4*PI()*$D$3)*(-LN((4*$D$4*AH66)/(Sanierungsdesign!$E$13^2))-$D$19) -> -12.9855402 | AK66: -286.1355402 | AL66: -596.3405242 | AM66: =$D$3*$T$7*$AH$7*(AK66-$D$5)*(1/Sanierungsdesign!$E$15)/1000000 -> -79.50220009 | AN66: =$D$5+(-Sanierungsdesign!$E$12/(4*PI()*$D$3))*(-LN((4*$D$4*AH66)/(Sanierungsdesign!$E$13+Sanierungsdesign!$E$15)^2)-$D$19) -> 223.8269524 | AO66: -49.3230476 | AP66: =(2*PI()*Sanierungsdesign!$E$10*$D$3)*(LN((Sanierungsdesign!$E$13+Sanierungsdesign!$E$15)/Sanierungsdesign!$E$13)*(AJ66-AN66))*$AH$7/1000000 -> -21.14238068 | AQ66: 744.3533529 | AR66: 1680.005517 | AS66: =AU66/Sanierungsdesign!$E$11 -> -0.2157308769 | AT66: 345600 | AU66: -1.725847015 | AZ66: =(AY66/(AH66*Sanierungsdesign!$E$10))*1000000 ->  | BA66: =AZ66/Sanierungsdesign!$E$12 ->  | BB66: =$D$5+((-(Sanierungsdesign!$E$12)*MIN($BA$7:$BA$932))/(4*PI()*$D$3))*(-LN((4*$D$4*AH66)/(Sanierungsdesign!$E$13)^2)-$D$19) ->  | BC66: =(BB66-273.15)/Heterogenität!$D$4 ->  | BD66: =IF(AI66<Berechnung!$D$7,AI66,#N/A) -> 
A67: n-Octan | B67: =IFERROR(IF(Schadstoffbelastung!E39/$B$70>0.1,1,0),0) -> 0 | C67: =IF(B67=1,Stoffdatenbank!H40,"") ->  | D67: =IF(B67=1,Stoffdatenbank!I40,"") ->  | AG67: =Sanierungsdesign!$E$12*AH67*Sanierungsdesign!$E$10/1000000 -> 2854.8 | AH67: 439200 | AI67: 5.083333333 | AJ67: =$D$5+((-Sanierungsdesign!$E$12)/4*PI()*$D$3)*(-LN((4*$D$4*AH67)/(Sanierungsdesign!$E$13^2))-$D$19) -> 10.16930374 | AK67: -262.9806963 | AL67: -550.0254429 | AM67: =$D$3*$T$7*$AH$7*(AK67-$D$5)*(1/Sanierungsdesign!$E$15)/1000000 -> -76.26856616 | AN67: =$D$5+(-Sanierungsdesign!$E$12/(4*PI()*$D$3))*(-LN((4*$D$4*AH67)/(Sanierungsdesign!$E$13+Sanierungsdesign!$E$15)^2)-$D$19) -> 225.0732848 | AO67: -48.07671518 | AP67: =(2*PI()*Sanierungsdesign!$E$10*$D$3)*(LN((Sanierungsdesign!$E$13+Sanierungsdesign!$E$15)/Sanierungsdesign!$E$13)*(AJ67-AN67))*$AH$7/1000000 -> -19.18641085 | AQ67: 756.7592421 | AR67: 1708.005609 | AS67: =AU67/Sanierungsdesign!$E$11 -> -0.1989760318 | AT67: 351360 | AU67: -1.591808254 | AZ67: =(AY67/(AH67*Sanierungsdesign!$E$10))*1000000 ->  | BA67: =AZ67/Sanierungsdesign!$E$12 ->  | BB67: =$D$5+((-(Sanierungsdesign!$E$12)*MIN($BA$7:$BA$932))/(4*PI()*$D$3))*(-LN((4*$D$4*AH67)/(Sanierungsdesign!$E$13)^2)-$D$19) ->  | BC67: =(BB67-273.15)/Heterogenität!$D$4 ->  | BD67: =IF(AI67<Berechnung!$D$7,AI67,#N/A) -> 
A68: n-Nonan | B68: =IFERROR(IF(Schadstoffbelastung!E40/$B$70>0.1,1,0),0) -> 0 | C68: =IF(B68=1,Stoffdatenbank!H41,"") ->  | D68: =IF(B68=1,Stoffdatenbank!I41,"") ->  | AG68: =Sanierungsdesign!$E$12*AH68*Sanierungsdesign!$E$10/1000000 -> 2901.6 | AH68: 446400 | AI68: 5.166666667 | AJ68: =$D$5+((-Sanierungsdesign!$E$12)/4*PI()*$D$3)*(-LN((4*$D$4*AH68)/(Sanierungsdesign!$E$13^2))-$D$19) -> 32.94762943 | AK68: -240.2023706 | AL68: -504.4634858 | AM68: =$D$3*$T$7*$AH$7*(AK68-$D$5)*(1/Sanierungsdesign!$E$15)/1000000 -> -73.08751399 | AN68: =$D$5+(-Sanierungsdesign!$E$12/(4*PI()*$D$3))*(-LN((4*$D$4*AH68)/(Sanierungsdesign!$E$13+Sanierungsdesign!$E$15)^2)-$D$19) -> 226.2993508 | AO68: -46.85064924 | AP68: =(2*PI()*Sanierungsdesign!$E$10*$D$3)*(LN((Sanierungsdesign!$E$13+Sanierungsdesign!$E$15)/Sanierungsdesign!$E$13)*(AJ68-AN68))*$AH$7/1000000 -> -17.26224682 | AQ68: 769.1651313 | AR68: 1736.005701 | AS68: =AU68/Sanierungsdesign!$E$11 -> -0.1824936353 | AT68: 357120 | AU68: -1.459949083 | AZ68: =(AY68/(AH68*Sanierungsdesign!$E$10))*1000000 ->  | BA68: =AZ68/Sanierungsdesign!$E$12 ->  | BB68: =$D$5+((-(Sanierungsdesign!$E$12)*MIN($BA$7:$BA$932))/(4*PI()*$D$3))*(-LN((4*$D$4*AH68)/(Sanierungsdesign!$E$13)^2)-$D$19) ->  | BC68: =(BB68-273.15)/Heterogenität!$D$4 ->  | BD68: =IF(AI68<Berechnung!$D$7,AI68,#N/A) -> 
A69: n-Decan | B69: =IFERROR(IF(Schadstoffbelastung!E41/$B$70>0.1,1,0),0) -> 0 | C69: =IF(B69=1,Stoffdatenbank!H42,"") ->  | D69: =IF(B69=1,Stoffdatenbank!I42,"") ->  | AG69: =Sanierungsdesign!$E$12*AH69*Sanierungsdesign!$E$10/1000000 -> 2948.4 | AH69: 453600 | AI69: 5.25 | AJ69: =$D$5+((-Sanierungsdesign!$E$12)/4*PI()*$D$3)*(-LN((4*$D$4*AH69)/(Sanierungsdesign!$E$13^2))-$D$19) -> 55.36148623 | AK69: -217.7885138 | AL69: -459.6305515 | AM69: =$D$3*$T$7*$AH$7*(AK69-$D$5)*(1/Sanierungsdesign!$E$15)/1000000 -> -69.95736083 | AN69: =$D$5+(-Sanierungsdesign!$E$12/(4*PI()*$D$3))*(-LN((4*$D$4*AH69)/(Sanierungsdesign!$E$13+Sanierungsdesign!$E$15)^2)-$D$19) -> 227.5057988 | AO69: -45.64420119 | AP69: =(2*PI()*Sanierungsdesign!$E$10*$D$3)*(LN((Sanierungsdesign!$E$13+Sanierungsdesign!$E$15)/Sanierungsdesign!$E$13)*(AJ69-AN69))*$AH$7/1000000 -> -15.36887074 | AQ69: 781.5710205 | AR69: 1764.005793 | AS69: =AU69/Sanierungsdesign!$E$11 -> -0.1662749686 | AT69: 362880 | AU69: -1.330199749 | AZ69: =(AY69/(AH69*Sanierungsdesign!$E$10))*1000000 ->  | BA69: =AZ69/Sanierungsdesign!$E$12 ->  | BB69: =$D$5+((-(Sanierungsdesign!$E$12)*MIN($BA$7:$BA$932))/(4*PI()*$D$3))*(-LN((4*$D$4*AH69)/(Sanierungsdesign!$E$13)^2)-$D$19) ->  | BC69: =(BB69-273.15)/Heterogenität!$D$4 ->  | BD69: =IF(AI69<Berechnung!$D$7,AI69,#N/A) -> 
A70: n-Alkane | B70: =Schadstoffbelastung!E42 -> 0 | D70: =IF(B70=1,Stoffdatenbank!I43,"") ->  | AG70: =Sanierungsdesign!$E$12*AH70*Sanierungsdesign!$E$10/1000000 -> 2995.2 | AH70: 460800 | AI70: 5.333333333 | AJ70: =$D$5+((-Sanierungsdesign!$E$12)/4*PI()*$D$3)*(-LN((4*$D$4*AH70)/(Sanierungsdesign!$E$13^2))-$D$19) -> 77.4223542 | AK70: -195.7276458 | AL70: -415.5036769 | AM70: =$D$3*$T$7*$AH$7*(AK70-$D$5)*(1/Sanierungsdesign!$E$15)/1000000 -> -66.87650349 | AN70: =$D$5+(-Sanierungsdesign!$E$12/(4*PI()*$D$3))*(-LN((4*$D$4*AH70)/(Sanierungsdesign!$E$13+Sanierungsdesign!$E$15)^2)-$D$19) -> 228.6932469 | AO70: -44.45675311 | AP70: =(2*PI()*Sanierungsdesign!$E$10*$D$3)*(LN((Sanierungsdesign!$E$13+Sanierungsdesign!$E$15)/Sanierungsdesign!$E$13)*(AJ70-AN70))*$AH$7/1000000 -> -13.50531285 | AQ70: 793.9769098 | AR70: 1792.005885 | AS70: =AU70/Sanierungsdesign!$E$11 -> -0.1503117245 | AT70: 368640 | AU70: -1.202493796 | AZ70: =(AY70/(AH70*Sanierungsdesign!$E$10))*1000000 ->  | BA70: =AZ70/Sanierungsdesign!$E$12 ->  | BB70: =$D$5+((-(Sanierungsdesign!$E$12)*MIN($BA$7:$BA$932))/(4*PI()*$D$3))*(-LN((4*$D$4*AH70)/(Sanierungsdesign!$E$13)^2)-$D$19) ->  | BC70: =(BB70-273.15)/Heterogenität!$D$4 ->  | BD70: =IF(AI70<Berechnung!$D$7,AI70,#N/A) -> 
A71: Methyl-tert-butylether | B71: =IFERROR(IF(Schadstoffbelastung!E43/$B$74>0.1,1,0),0) -> 0 | C71: =IF(B71=1,Stoffdatenbank!H44,"") ->  | D71: =IF(B71=1,Stoffdatenbank!I44,"") ->  | AG71: =Sanierungsdesign!$E$12*AH71*Sanierungsdesign!$E$10/1000000 -> 3042 | AH71: 468000 | AI71: =AH71/86400 -> 5.416666667 | AJ71: =$D$5+((-Sanierungsdesign!$E$12)/4*PI()*$D$3)*(-LN((4*$D$4*AH71)/(Sanierungsdesign!$E$13^2))-$D$19) -> 99.14117939 | AK71: =AJ71-273.15 -> -174.0088206 | AL71: -372.0609677 | AM71: =$D$3*$T$7*$AH$7*(AK71-$D$5)*(1/Sanierungsdesign!$E$15)/1000000 -> -63.8434133 | AN71: =$D$5+(-Sanierungsdesign!$E$12/(4*PI()*$D$3))*(-LN((4*$D$4*AH71)/(Sanierungsdesign!$E$13+Sanierungsdesign!$E$15)^2)-$D$19) -> 229.8622842 | AO71: =AN71-273.15 -> -43.28771583 | AP71: =(2*PI()*Sanierungsdesign!$E$10*$D$3)*(LN((Sanierungsdesign!$E$13+Sanierungsdesign!$E$15)/Sanierungsdesign!$E$13)*(AJ71-AN71))*$AH$7/1000000 -> -11.67064849 | AQ71: 806.382799 | AR71: 1820.005977 | AS71: =AU71/Sanierungsdesign!$E$11 -> -0.1345959826 | AT71: 374400 | AU71: -1.076767861 | AY71: =AG71-AX71 ->  | AZ71: =(AY71/(AH71*Sanierungsdesign!$E$10))*1000000 ->  | BA71: =AZ71/Sanierungsdesign!$E$12 ->  | BB71: =$D$5+((-(Sanierungsdesign!$E$12)*MIN($BA$7:$BA$932))/(4*PI()*$D$3))*(-LN((4*$D$4*AH71)/(Sanierungsdesign!$E$13)^2)-$D$19) ->  | BC71: =(BB71-273.15)/Heterogenität!$D$4 ->  | BD71: =IF(AI71<Berechnung!$D$7,AI71,#N/A) -> 
A72: Ethyl-tert-butylether | B72: =IFERROR(IF(Schadstoffbelastung!E44/$B$74>0.1,1,0),0) -> 0 | C72: =IF(B72=1,Stoffdatenbank!H45,"") ->  | D72: =IF(B72=1,Stoffdatenbank!I45,"") ->  | AG72: =Sanierungsdesign!$E$12*AH72*Sanierungsdesign!$E$10/1000000 -> 3088.8 | AH72: 475200 | AI72: 5.5 | AJ72: =$D$5+((-Sanierungsdesign!$E$12)/4*PI()*$D$3)*(-LN((4*$D$4*AH72)/(Sanierungsdesign!$E$13^2))-$D$19) -> 120.5284065 | AK72: -152.6215935 | AL72: =$T$4*$T$7*$AH$7*(AJ72-$D$2)/1000000 -> -329.2815318 | AM72: =$D$3*$T$7*$AH$7*(AK72-$D$5)*(1/Sanierungsdesign!$E$15)/1000000 -> -60.85663164 | AN72: =$D$5+(-Sanierungsdesign!$E$12/(4*PI()*$D$3))*(-LN((4*$D$4*AH72)/(Sanierungsdesign!$E$13+Sanierungsdesign!$E$15)^2)-$D$19) -> 231.0134729 | AO72: -42.13652715 | AP72: =(2*PI()*Sanierungsdesign!$E$10*$D$3)*(LN((Sanierungsdesign!$E$13+Sanierungsdesign!$E$15)/Sanierungsdesign!$E$13)*(AJ72-AN72))*$AH$7/1000000 -> -9.863995378 | AQ72: =$T$20*AH72 -> 818.7886882 | AR72: =$D$12*AQ72/1000000 -> 1848.006069 | AS72: =AU72/Sanierungsdesign!$E$11 -> -0.1191201851 | AT72: =$T$18/$D$24*AH72 -> 380160 | AU72: =($D$10*$T$18)*(AJ72-$D$2)/1000000 -> -0.9529614805 | AV72: =($D$17*$L$10*$T$28+$L$2*$D$10*$T$28+$D$16*$L$4*$T$28+$D$18*$L$7*$T$28)*(AJ72-$D$5)/1000000 ->  | AW72: =AV72*$D$28 ->  | AX72: =AL72+AM72+AR72+(0.5*AP72)-(2*AW72)+AS72 ->  | AZ72: =(AY72/(AH72*Sanierungsdesign!$E$10))*1000000 ->  | BA72: =AZ72/Sanierungsdesign!$E$12 ->  | BB72: =$D$5+((-(Sanierungsdesign!$E$12)*MIN($BA$7:$BA$932))/(4*PI()*$D$3))*(-LN((4*$D$4*AH72)/(Sanierungsdesign!$E$13)^2)-$D$19) ->  | BC72: =(BB72-273.15)/Heterogenität!$D$4 ->  | BD72: =IF(AI72<Berechnung!$D$7,AI72,#N/A) -> 
A73: tert-Butylalkohol | B73: =IFERROR(IF(Schadstoffbelastung!E45/$B$74>0.1,1,0),0) -> 0 | C73: =IF(B73=1,Stoffdatenbank!H46,"") ->  | D73: =IF(B73=1,Stoffdatenbank!I46,"") ->  | AG73: =Sanierungsdesign!$E$12*AH73*Sanierungsdesign!$E$10/1000000 -> 3135.6 | AH73: =AH72+$D$24 -> 482400 | AI73: 5.583333333 | AJ73: =$D$5+((-Sanierungsdesign!$E$12)/4*PI()*$D$3)*(-LN((4*$D$4*AH73)/(Sanierungsdesign!$E$13^2))-$D$19) -> 141.5940089 | AK73: -131.5559911 | AL73: -287.1454202 | AM73: =$D$3*$T$7*$AH$7*(AK73-$D$5)*(1/Sanierungsdesign!$E$15)/1000000 -> -57.9147657 | AN73: =$D$5+(-Sanierungsdesign!$E$12/(4*PI()*$D$3))*(-LN((4*$D$4*AH73)/(Sanierungsdesign!$E$13+Sanierungsdesign!$E$15)^2)-$D$19) -> 232.1473498 | AO73: -41.00265022 | AP73: =(2*PI()*Sanierungsdesign!$E$10*$D$3)*(LN((Sanierungsdesign!$E$13+Sanierungsdesign!$E$15)/Sanierungsdesign!$E$13)*(AJ73-AN73))*$AH$7/1000000 -> -8.08451101 | AQ73: 831.1945774 | AR73: 1876.006161 | AS73: =AU73/Sanierungsdesign!$E$11 -> -0.1038771151 | AT73: 385920 | AU73: -0.8310169211 | AZ73: =(AY73/(AH73*Sanierungsdesign!$E$10))*1000000 ->  | BA73: =AZ73/Sanierungsdesign!$E$12 ->  | BB73: =$D$5+((-(Sanierungsdesign!$E$12)*MIN($BA$7:$BA$932))/(4*PI()*$D$3))*(-LN((4*$D$4*AH73)/(Sanierungsdesign!$E$13)^2)-$D$19) ->  | BC73: =(BB73-273.15)/Heterogenität!$D$4 ->  | BD73: =IF(AI73<Berechnung!$D$7,AI73,#N/A) -> 
A74: Oxigenate | B74: =Schadstoffbelastung!E46 -> 0 | D74: =IF(B74=1,Stoffdatenbank!I47,"") ->  | AG74: =Sanierungsdesign!$E$12*AH74*Sanierungsdesign!$E$10/1000000 -> 3182.4 | AH74: 489600 | AI74: 5.666666667 | AJ74: =$D$5+((-Sanierungsdesign!$E$12)/4*PI()*$D$3)*(-LN((4*$D$4*AH74)/(Sanierungsdesign!$E$13^2))-$D$19) -> 162.3475169 | AK74: -110.8024831 | AL74: -245.6335702 | AM74: =$D$3*$T$7*$AH$7*(AK74-$D$5)*(1/Sanierungsdesign!$E$15)/1000000 -> -55.01648457 | AN74: =$D$5+(-Sanierungsdesign!$E$12/(4*PI()*$D$3))*(-LN((4*$D$4*AH74)/(Sanierungsdesign!$E$13+Sanierungsdesign!$E$15)^2)-$D$19) -> 233.2644279 | AO74: -39.8855721 | AP74: =(2*PI()*Sanierungsdesign!$E$10*$D$3)*(LN((Sanierungsdesign!$E$13+Sanierungsdesign!$E$15)/Sanierungsdesign!$E$13)*(AJ74-AN74))*$AH$7/1000000 -> -6.331390346 | AQ74: 843.6004666 | AR74: 1904.006253 | AS74: =AU74/Sanierungsdesign!$E$11 -> -0.08885987679 | AT74: 391680 | AU74: -0.7108790143 | AZ74: =(AY74/(AH74*Sanierungsdesign!$E$10))*1000000 ->  | BA74: =AZ74/Sanierungsdesign!$E$12 ->  | BB74: =$D$5+((-(Sanierungsdesign!$E$12)*MIN($BA$7:$BA$932))/(4*PI()*$D$3))*(-LN((4*$D$4*AH74)/(Sanierungsdesign!$E$13)^2)-$D$19) ->  | BC74: =(BB74-273.15)/Heterogenität!$D$4 ->  | BD74: =IF(AI74<Berechnung!$D$7,AI74,#N/A) -> 
AG75: =Sanierungsdesign!$E$12*AH75*Sanierungsdesign!$E$10/1000000 -> 3229.2 | AH75: 496800 | AI75: 5.75 | AJ75: =$D$5+((-Sanierungsdesign!$E$12)/4*PI()*$D$3)*(-LN((4*$D$4*AH75)/(Sanierungsdesign!$E$13^2))-$D$19) -> 182.7980431 | AK75: -90.35195694 | AL75: -204.7277544 | AM75: =$D$3*$T$7*$AH$7*(AK75-$D$5)*(1/Sanierungsdesign!$E$15)/1000000 -> -52.16051562 | AN75: =$D$5+(-Sanierungsdesign!$E$12/(4*PI()*$D$3))*(-LN((4*$D$4*AH75)/(Sanierungsdesign!$E$13+Sanierungsdesign!$E$15)^2)-$D$19) -> 234.3651977 | AO75: -38.78480227 | AP75: =(2*PI()*Sanierungsdesign!$E$10*$D$3)*(LN((Sanierungsdesign!$E$13+Sanierungsdesign!$E$15)/Sanierungsdesign!$E$13)*(AJ75-AN75))*$AH$7/1000000 -> -4.603863599 | AQ75: 856.0063558 | AR75: 1932.006345 | AS75: =AU75/Sanierungsdesign!$E$11 -> -0.07406187604 | AT75: 397440 | AU75: -0.5924950083 | AZ75: =(AY75/(AH75*Sanierungsdesign!$E$10))*1000000 ->  | BA75: =AZ75/Sanierungsdesign!$E$12 ->  | BB75: =$D$5+((-(Sanierungsdesign!$E$12)*MIN($BA$7:$BA$932))/(4*PI()*$D$3))*(-LN((4*$D$4*AH75)/(Sanierungsdesign!$E$13)^2)-$D$19) ->  | BC75: =(BB75-273.15)/Heterogenität!$D$4 ->  | BD75: =IF(AI75<Berechnung!$D$7,AI75,#N/A) -> 
C76: =OFFSET(A31,MATCH(MAX(C32:C74),(C32:C74),0),0) ->  | D76: =OFFSET(A31,MATCH(MAX(D32:D74),(D32:D74),0),0) ->  | AG76: =Sanierungsdesign!$E$12*AH76*Sanierungsdesign!$E$10/1000000 -> 3276 | AH76: 504000 | AI76: 5.833333333 | AJ76: =$D$5+((-Sanierungsdesign!$E$12)/4*PI()*$D$3)*(-LN((4*$D$4*AH76)/(Sanierungsdesign!$E$13^2))-$D$19) -> 202.9543068 | AK76: -70.19569316 | AL76: -164.4105319 | AM76: =$D$3*$T$7*$AH$7*(AK76-$D$5)*(1/Sanierungsdesign!$E$15)/1000000 -> -49.34564118 | AN76: =$D$5+(-Sanierungsdesign!$E$12/(4*PI()*$D$3))*(-LN((4*$D$4*AH76)/(Sanierungsdesign!$E$13+Sanierungsdesign!$E$15)^2)-$D$19) -> 235.4501286 | AO76: -37.6998714 | AP76: =(2*PI()*Sanierungsdesign!$E$10*$D$3)*(LN((Sanierungsdesign!$E$13+Sanierungsdesign!$E$15)/Sanierungsdesign!$E$13)*(AJ76-AN76))*$AH$7/1000000 -> -2.901194217 | AQ76: 868.412245 | AR76: 1960.006437 | AS76: =AU76/Sanierungsdesign!$E$11 -> -0.05947680357 | AT76: 403200 | AU76: -0.4758144285 | AZ76: =(AY76/(AH76*Sanierungsdesign!$E$10))*1000000 ->  | BA76: =AZ76/Sanierungsdesign!$E$12 ->  | BB76: =$D$5+((-(Sanierungsdesign!$E$12)*MIN($BA$7:$BA$932))/(4*PI()*$D$3))*(-LN((4*$D$4*AH76)/(Sanierungsdesign!$E$13)^2)-$D$19) ->  | BC76: =(BB76-273.15)/Heterogenität!$D$4 ->  | BD76: =IF(AI76<Berechnung!$D$7,AI76,#N/A) -> 
C77: =MAX(C32:C74) -> 0 | D77: =MAX(D32:D74) -> 0 | AG77: =Sanierungsdesign!$E$12*AH77*Sanierungsdesign!$E$10/1000000 -> 3322.8 | AH77: 511200 | AI77: 5.916666667 | AJ77: =$D$5+((-Sanierungsdesign!$E$12)/4*PI()*$D$3)*(-LN((4*$D$4*AH77)/(Sanierungsdesign!$E$13^2))-$D$19) -> 222.8246565 | AK77: -50.32534348 | AL77: -124.6652042 | AM77: =$D$3*$T$7*$AH$7*(AK77-$D$5)*(1/Sanierungsdesign!$E$15)/1000000 -> -46.57069539 | AN77: =$D$5+(-Sanierungsdesign!$E$12/(4*PI()*$D$3))*(-LN((4*$D$4*AH77)/(Sanierungsdesign!$E$13+Sanierungsdesign!$E$15)^2)-$D$19) -> 236.5196699 | AO77: -36.63033014 | AP77: =(2*PI()*Sanierungsdesign!$E$10*$D$3)*(LN((Sanierungsdesign!$E$13+Sanierungsdesign!$E$15)/Sanierungsdesign!$E$13)*(AJ77-AN77))*$AH$7/1000000 -> -1.222676989 | AQ77: 880.8181343 | AR77: 1988.006529 | AS77: =AU77/Sanierungsdesign!$E$11 -> -0.04509861854 | AT77: 408960 | AU77: -0.3607889483 | AZ77: =(AY77/(AH77*Sanierungsdesign!$E$10))*1000000 ->  | BA77: =AZ77/Sanierungsdesign!$E$12 ->  | BB77: =$D$5+((-(Sanierungsdesign!$E$12)*MIN($BA$7:$BA$932))/(4*PI()*$D$3))*(-LN((4*$D$4*AH77)/(Sanierungsdesign!$E$13)^2)-$D$19) ->  | BC77: =(BB77-273.15)/Heterogenität!$D$4 ->  | BD77: =IF(AI77<Berechnung!$D$7,AI77,#N/A) -> 
AG78: =Sanierungsdesign!$E$12*AH78*Sanierungsdesign!$E$10/1000000 -> 3369.6 | AH78: 518400 | AI78: 6 | AJ78: =$D$5+((-Sanierungsdesign!$E$12)/4*PI()*$D$3)*(-LN((4*$D$4*AH78)/(Sanierungsdesign!$E$13^2))-$D$19) -> 242.4170901 | AK78: -30.73290992 | AL78: -85.47577349 | AM78: =$D$3*$T$7*$AH$7*(AK78-$D$5)*(1/Sanierungsdesign!$E$15)/1000000 -> -43.8345613 | AN78: =$D$5+(-Sanierungsdesign!$E$12/(4*PI()*$D$3))*(-LN((4*$D$4*AH78)/(Sanierungsdesign!$E$13+Sanierungsdesign!$E$15)^2)-$D$19) -> 237.574252 | AO78: -35.575748 | AP78: =(2*PI()*Sanierungsdesign!$E$10*$D$3)*(LN((Sanierungsdesign!$E$13+Sanierungsdesign!$E$15)/Sanierungsdesign!$E$13)*(AJ78-AN78))*$AH$7/1000000 -> 0.4323637028 | AQ78: 893.2240235 | AR78: 2016.006621 | AS78: =AU78/Sanierungsdesign!$E$11 -> -0.03092153362 | AT78: 414720 | AU78: -0.247372269 | AZ78: =(AY78/(AH78*Sanierungsdesign!$E$10))*1000000 ->  | BA78: =AZ78/Sanierungsdesign!$E$12 ->  | BB78: =$D$5+((-(Sanierungsdesign!$E$12)*MIN($BA$7:$BA$932))/(4*PI()*$D$3))*(-LN((4*$D$4*AH78)/(Sanierungsdesign!$E$13)^2)-$D$19) ->  | BC78: =(BB78-273.15)/Heterogenität!$D$4 ->  | BD78: =IF(AI78<Berechnung!$D$7,AI78,#N/A) -> 
AG79: =Sanierungsdesign!$E$12*AH79*Sanierungsdesign!$E$10/1000000 -> 3416.4 | AH79: 525600 | AI79: 6.083333333 | AJ79: =$D$5+((-Sanierungsdesign!$E$12)/4*PI()*$D$3)*(-LN((4*$D$4*AH79)/(Sanierungsdesign!$E$13^2))-$D$19) -> 261.7392745 | AK79: -11.41072545 | AL79: -46.82690389 | AM79: =$D$3*$T$7*$AH$7*(AK79-$D$5)*(1/Sanierungsdesign!$E$15)/1000000 -> -41.1361682 | AN79: =$D$5+(-Sanierungsdesign!$E$12/(4*PI()*$D$3))*(-LN((4*$D$4*AH79)/(Sanierungsdesign!$E$13+Sanierungsdesign!$E$15)^2)-$D$19) -> 238.6142877 | AO79: -34.53571228 | AP79: =(2*PI()*Sanierungsdesign!$E$10*$D$3)*(LN((Sanierungsdesign!$E$13+Sanierungsdesign!$E$15)/Sanierungsdesign!$E$13)*(AJ79-AN79))*$AH$7/1000000 -> 2.064575518 | AQ79: 905.6299127 | AR79: 2044.006713 | AS79: =AU79/Sanierungsdesign!$E$11 -> -0.01694000094 | AT79: 420480 | AU79: -0.1355200075 | AZ79: =(AY79/(AH79*Sanierungsdesign!$E$10))*1000000 ->  | BA79: =AZ79/Sanierungsdesign!$E$12 ->  | BB79: =$D$5+((-(Sanierungsdesign!$E$12)*MIN($BA$7:$BA$932))/(4*PI()*$D$3))*(-LN((4*$D$4*AH79)/(Sanierungsdesign!$E$13)^2)-$D$19) ->  | BC79: =(BB79-273.15)/Heterogenität!$D$4 ->  | BD79: =IF(AI79<Berechnung!$D$7,AI79,#N/A) -> 
AG80: =Sanierungsdesign!$E$12*AH80*Sanierungsdesign!$E$10/1000000 -> 3463.2 | AH80: 532800 | AI80: 6.166666667 | AJ80: =$D$5+((-Sanierungsdesign!$E$12)/4*PI()*$D$3)*(-LN((4*$D$4*AH80)/(Sanierungsdesign!$E$13^2))-$D$19) -> 280.798564 | AK80: 7.648563984 | AL80: -8.703885599 | AM80: =$D$3*$T$7*$AH$7*(AK80-$D$5)*(1/Sanierungsdesign!$E$15)/1000000 -> -38.47448906 | AN80: =$D$5+(-Sanierungsdesign!$E$12/(4*PI()*$D$3))*(-LN((4*$D$4*AH80)/(Sanierungsdesign!$E$13+Sanierungsdesign!$E$15)^2)-$D$19) -> 239.6401729 | AO80: -33.50982714 | AP80: =(2*PI()*Sanierungsdesign!$E$10*$D$3)*(LN((Sanierungsdesign!$E$13+Sanierungsdesign!$E$15)/Sanierungsdesign!$E$13)*(AJ80-AN80))*$AH$7/1000000 -> 3.67457968 | AQ80: 918.0358019 | AR80: 2072.006805 | AS80: =AU80/Sanierungsdesign!$E$11 -> -0.003148699101 | AT80: 426240 | AU80: -0.02518959281 | AZ80: =(AY80/(AH80*Sanierungsdesign!$E$10))*1000000 ->  | BA80: =AZ80/Sanierungsdesign!$E$12 ->  | BB80: =$D$5+((-(Sanierungsdesign!$E$12)*MIN($BA$7:$BA$932))/(4*PI()*$D$3))*(-LN((4*$D$4*AH80)/(Sanierungsdesign!$E$13)^2)-$D$19) ->  | BC80: =(BB80-273.15)/Heterogenität!$D$4 ->  | BD80: =IF(AI80<Berechnung!$D$7,AI80,#N/A) -> 
AG81: =Sanierungsdesign!$E$12*AH81*Sanierungsdesign!$E$10/1000000 -> 3510 | AH81: 540000 | AI81: 6.25 | AJ81: =$D$5+((-Sanierungsdesign!$E$12)/4*PI()*$D$3)*(-LN((4*$D$4*AH81)/(Sanierungsdesign!$E$13^2))-$D$19) -> 299.6020163 | AK81: 26.4520163 | AL81: 28.90739886 | AM81: =$D$3*$T$7*$AH$7*(AK81-$D$5)*(1/Sanierungsdesign!$E$15)/1000000 -> -35.84853825 | AN81: =$D$5+(-Sanierungsdesign!$E$12/(4*PI()*$D$3))*(-LN((4*$D$4*AH81)/(Sanierungsdesign!$E$13+Sanierungsdesign!$E$15)^2)-$D$19) -> 240.6522873 | AO81: -32.49771269 | AP81: =(2*PI()*Sanierungsdesign!$E$10*$D$3)*(LN((Sanierungsdesign!$E$13+Sanierungsdesign!$E$15)/Sanierungsdesign!$E$13)*(AJ81-AN81))*$AH$7/1000000 -> 5.262972395 | AQ81: 930.4416911 | AR81: 2100.006897 | AS81: =AU81/Sanierungsdesign!$E$11 -> 0.01045747899 | AT81: 432000 | AU81: 0.08365983195 | AZ81: =(AY81/(AH81*Sanierungsdesign!$E$10))*1000000 ->  | BA81: =AZ81/Sanierungsdesign!$E$12 ->  | BB81: =$D$5+((-(Sanierungsdesign!$E$12)*MIN($BA$7:$BA$932))/(4*PI()*$D$3))*(-LN((4*$D$4*AH81)/(Sanierungsdesign!$E$13)^2)-$D$19) ->  | BC81: =(BB81-273.15)/Heterogenität!$D$4 ->  | BD81: =IF(AI81<Berechnung!$D$7,AI81,#N/A) -> 
AG82: =Sanierungsdesign!$E$12*AH82*Sanierungsdesign!$E$10/1000000 -> 3556.8 | AH82: 547200 | AI82: 6.333333333 | AJ82: =$D$5+((-Sanierungsdesign!$E$12)/4*PI()*$D$3)*(-LN((4*$D$4*AH82)/(Sanierungsdesign!$E$13^2))-$D$19) -> 318.1564089 | AK82: 45.00640893 | AL82: 66.02050594 | AM82: =$D$3*$T$7*$AH$7*(AK82-$D$5)*(1/Sanierungsdesign!$E$15)/1000000 -> -33.25736926 | AN82: =$D$5+(-Sanierungsdesign!$E$12/(4*PI()*$D$3))*(-LN((4*$D$4*AH82)/(Sanierungsdesign!$E$13+Sanierungsdesign!$E$15)^2)-$D$19) -> 241.6509959 | AO82: -31.49900413 | AP82: =(2*PI()*Sanierungsdesign!$E$10*$D$3)*(LN((Sanierungsdesign!$E$13+Sanierungsdesign!$E$15)/Sanierungsdesign!$E$13)*(AJ82-AN82))*$AH$7/1000000 -> 6.830326176 | AQ82: 942.8475803 | AR82: 2128.006989 | AS82: =AU82/Sanierungsdesign!$E$11 -> 0.0238834375 | AT82: 437760 | AU82: 0.1910675 | AZ82: =(AY82/(AH82*Sanierungsdesign!$E$10))*1000000 ->  | BA82: =AZ82/Sanierungsdesign!$E$12 ->  | BB82: =$D$5+((-(Sanierungsdesign!$E$12)*MIN($BA$7:$BA$932))/(4*PI()*$D$3))*(-LN((4*$D$4*AH82)/(Sanierungsdesign!$E$13)^2)-$D$19) ->  | BC82: =(BB82-273.15)/Heterogenität!$D$4 ->  | BD82: =IF(AI82<Berechnung!$D$7,AI82,#N/A) -> 
AG83: =Sanierungsdesign!$E$12*AH83*Sanierungsdesign!$E$10/1000000 -> 3603.6 | AH83: 554400 | AI83: 6.416666667 | AJ83: =$D$5+((-Sanierungsdesign!$E$12)/4*PI()*$D$3)*(-LN((4*$D$4*AH83)/(Sanierungsdesign!$E$13^2))-$D$19) -> 336.4682535 | AK83: 63.31825353 | AL83: 102.6484605 | AM83: =$D$3*$T$7*$AH$7*(AK83-$D$5)*(1/Sanierungsdesign!$E$15)/1000000 -> -30.70007274 | AN83: =$D$5+(-Sanierungsdesign!$E$12/(4*PI()*$D$3))*(-LN((4*$D$4*AH83)/(Sanierungsdesign!$E$13+Sanierungsdesign!$E$15)^2)-$D$19) -> 242.636649 | AO83: -30.51335095 | AP83: =(2*PI()*Sanierungsdesign!$E$10*$D$3)*(LN((Sanierungsdesign!$E$13+Sanierungsdesign!$E$15)/Sanierungsdesign!$E$13)*(AJ83-AN83))*$AH$7/1000000 -> 8.377191085 | AQ83: 955.2534695 | AR83: 2156.007081 | AS83: =AU83/Sanierungsdesign!$E$11 -> 0.03713388826 | AT83: 443520 | AU83: 0.2970711061 | AZ83: =(AY83/(AH83*Sanierungsdesign!$E$10))*1000000 ->  | BA83: =AZ83/Sanierungsdesign!$E$12 ->  | BB83: =$D$5+((-(Sanierungsdesign!$E$12)*MIN($BA$7:$BA$932))/(4*PI()*$D$3))*(-LN((4*$D$4*AH83)/(Sanierungsdesign!$E$13)^2)-$D$19) ->  | BC83: =(BB83-273.15)/Heterogenität!$D$4 ->  | BD83: =IF(AI83<Berechnung!$D$7,AI83,#N/A) -> 
AG84: =Sanierungsdesign!$E$12*AH84*Sanierungsdesign!$E$10/1000000 -> 3650.4 | AH84: 561600 | AI84: 6.5 | AJ84: =$D$5+((-Sanierungsdesign!$E$12)/4*PI()*$D$3)*(-LN((4*$D$4*AH84)/(Sanierungsdesign!$E$13^2))-$D$19) -> 354.5438097 | AK84: 81.39380967 | AL84: 138.803783 | AM84: =$D$3*$T$7*$AH$7*(AK84-$D$5)*(1/Sanierungsdesign!$E$15)/1000000 -> -28.17577451 | AN84: =$D$5+(-Sanierungsdesign!$E$12/(4*PI()*$D$3))*(-LN((4*$D$4*AH84)/(Sanierungsdesign!$E$13+Sanierungsdesign!$E$15)^2)-$D$19) -> 243.6095838 | AO84: -29.54041623 | AP84: =(2*PI()*Sanierungsdesign!$E$10*$D$3)*(LN((Sanierungsdesign!$E$13+Sanierungsdesign!$E$15)/Sanierungsdesign!$E$13)*(AJ84-AN84))*$AH$7/1000000 -> 9.904095889 | AQ84: 967.6593588 | AR84: 2184.007173 | AS84: =AU84/Sanierungsdesign!$E$11 -> 0.05021336068 | AT84: 449280 | AU84: 0.4017068854 | AZ84: =(AY84/(AH84*Sanierungsdesign!$E$10))*1000000 ->  | BA84: =AZ84/Sanierungsdesign!$E$12 ->  | BB84: =$D$5+((-(Sanierungsdesign!$E$12)*MIN($BA$7:$BA$932))/(4*PI()*$D$3))*(-LN((4*$D$4*AH84)/(Sanierungsdesign!$E$13)^2)-$D$19) ->  | BC84: =(BB84-273.15)/Heterogenität!$D$4 ->  | BD84: =IF(AI84<Berechnung!$D$7,AI84,#N/A) -> 
AG85: =Sanierungsdesign!$E$12*AH85*Sanierungsdesign!$E$10/1000000 -> 3697.2 | AH85: 568800 | AI85: 6.583333333 | AJ85: =$D$5+((-Sanierungsdesign!$E$12)/4*PI()*$D$3)*(-LN((4*$D$4*AH85)/(Sanierungsdesign!$E$13^2))-$D$19) -> 372.3890977 | AK85: 99.23909768 | AL85: 174.4985157 | AM85: =$D$3*$T$7*$AH$7*(AK85-$D$5)*(1/Sanierungsdesign!$E$15)/1000000 -> -25.68363382 | AN85: =$D$5+(-Sanierungsdesign!$E$12/(4*PI()*$D$3))*(-LN((4*$D$4*AH85)/(Sanierungsdesign!$E$13+Sanierungsdesign!$E$15)^2)-$D$19) -> 244.5701241 | AO85: -28.57987593 | AP85: =(2*PI()*Sanierungsdesign!$E$10*$D$3)*(LN((Sanierungsdesign!$E$13+Sanierungsdesign!$E$15)/Sanierungsdesign!$E$13)*(AJ85-AN85))*$AH$7/1000000 -> 11.41154915 | AQ85: 980.065248 | AR85: 2212.007265 | AS85: =AU85/Sanierungsdesign!$E$11 -> 0.06312621108 | AT85: 455040 | AU85: 0.5050096886 | AZ85: =(AY85/(AH85*Sanierungsdesign!$E$10))*1000000 ->  | BA85: =AZ85/Sanierungsdesign!$E$12 ->  | BB85: =$D$5+((-(Sanierungsdesign!$E$12)*MIN($BA$7:$BA$932))/(4*PI()*$D$3))*(-LN((4*$D$4*AH85)/(Sanierungsdesign!$E$13)^2)-$D$19) ->  | BC85: =(BB85-273.15)/Heterogenität!$D$4 ->  | BD85: =IF(AI85<Berechnung!$D$7,AI85,#N/A) -> 
AG86: =Sanierungsdesign!$E$12*AH86*Sanierungsdesign!$E$10/1000000 -> 3744 | AH86: 576000 | AI86: 6.666666667 | AJ86: =$D$5+((-Sanierungsdesign!$E$12)/4*PI()*$D$3)*(-LN((4*$D$4*AH86)/(Sanierungsdesign!$E$13^2))-$D$19) -> 390.0099107 | AK86: 116.8599107 | AL86: 209.7442461 | AM86: =$D$3*$T$7*$AH$7*(AK86-$D$5)*(1/Sanierungsdesign!$E$15)/1000000 -> -23.22284165 | AN86: =$D$5+(-Sanierungsdesign!$E$12/(4*PI()*$D$3))*(-LN((4*$D$4*AH86)/(Sanierungsdesign!$E$13+Sanierungsdesign!$E$15)^2)-$D$19) -> 245.5185818 | AO86: -27.63141821 | AP86: =(2*PI()*Sanierungsdesign!$E$10*$D$3)*(LN((Sanierungsdesign!$E$13+Sanierungsdesign!$E$15)/Sanierungsdesign!$E$13)*(AJ86-AN86))*$AH$7/1000000 -> 12.90004023 | AQ86: 992.4711372 | AR86: 2240.007357 | AS86: =AU86/Sanierungsdesign!$E$11 -> 0.07587663138 | AT86: 460800 | AU86: 0.607013051 | AZ86: =(AY86/(AH86*Sanierungsdesign!$E$10))*1000000 ->  | BA86: =AZ86/Sanierungsdesign!$E$12 ->  | BB86: =$D$5+((-(Sanierungsdesign!$E$12)*MIN($BA$7:$BA$932))/(4*PI()*$D$3))*(-LN((4*$D$4*AH86)/(Sanierungsdesign!$E$13)^2)-$D$19) ->  | BC86: =(BB86-273.15)/Heterogenität!$D$4 ->  | BD86: =IF(AI86<Berechnung!$D$7,AI86,#N/A) -> 
AG87: =Sanierungsdesign!$E$12*AH87*Sanierungsdesign!$E$10/1000000 -> 3790.8 | AH87: 583200 | AI87: 6.75 | AJ87: =$D$5+((-Sanierungsdesign!$E$12)/4*PI()*$D$3)*(-LN((4*$D$4*AH87)/(Sanierungsdesign!$E$13^2))-$D$19) -> 407.411826 | AK87: 134.261826 | AL87: 244.55213 | AM87: =$D$3*$T$7*$AH$7*(AK87-$D$5)*(1/Sanierungsdesign!$E$15)/1000000 -> -20.79261911 | AN87: =$D$5+(-Sanierungsdesign!$E$12/(4*PI()*$D$3))*(-LN((4*$D$4*AH87)/(Sanierungsdesign!$E$13+Sanierungsdesign!$E$15)^2)-$D$19) -> 246.4552571 | AO87: -26.69474288 | AP87: =(2*PI()*Sanierungsdesign!$E$10*$D$3)*(LN((Sanierungsdesign!$E$13+Sanierungsdesign!$E$15)/Sanierungsdesign!$E$13)*(AJ87-AN87))*$AH$7/1000000 -> 14.37004025 | AQ87: 1004.877026 | AR87: 2268.007449 | AS87: =AU87/Sanierungsdesign!$E$11 -> 0.08846865726 | AT87: 466560 | AU87: 0.7077492581 | AZ87: =(AY87/(AH87*Sanierungsdesign!$E$10))*1000000 ->  | BA87: =AZ87/Sanierungsdesign!$E$12 ->  | BB87: =$D$5+((-(Sanierungsdesign!$E$12)*MIN($BA$7:$BA$932))/(4*PI()*$D$3))*(-LN((4*$D$4*AH87)/(Sanierungsdesign!$E$13)^2)-$D$19) ->  | BC87: =(BB87-273.15)/Heterogenität!$D$4 ->  | BD87: =IF(AI87<Berechnung!$D$7,AI87,#N/A) -> 
AG88: =Sanierungsdesign!$E$12*AH88*Sanierungsdesign!$E$10/1000000 -> 3837.6 | AH88: 590400 | AI88: 6.833333333 | AJ88: =$D$5+((-Sanierungsdesign!$E$12)/4*PI()*$D$3)*(-LN((4*$D$4*AH88)/(Sanierungsdesign!$E$13^2))-$D$19) -> 424.6002154 | AK88: 151.4502154 | AL88: 278.9329125 | AM88: =$D$3*$T$7*$AH$7*(AK88-$D$5)*(1/Sanierungsdesign!$E$15)/1000000 -> -18.39221601 | AN88: =$D$5+(-Sanierungsdesign!$E$12/(4*PI()*$D$3))*(-LN((4*$D$4*AH88)/(Sanierungsdesign!$E$13+Sanierungsdesign!$E$15)^2)-$D$19) -> 247.3804392 | AO88: -25.76956079 | AP88: =(2*PI()*Sanierungsdesign!$E$10*$D$3)*(LN((Sanierungsdesign!$E$13+Sanierungsdesign!$E$15)/Sanierungsdesign!$E$13)*(AJ88-AN88))*$AH$7/1000000 -> 15.82200302 | AQ88: 1017.282916 | AR88: 2296.007541 | AS88: =AU88/Sanierungsdesign!$E$11 -> 0.1009061759 | AT88: 472320 | AU88: 0.8072494069 | AZ88: =(AY88/(AH88*Sanierungsdesign!$E$10))*1000000 ->  | BA88: =AZ88/Sanierungsdesign!$E$12 ->  | BB88: =$D$5+((-(Sanierungsdesign!$E$12)*MIN($BA$7:$BA$932))/(4*PI()*$D$3))*(-LN((4*$D$4*AH88)/(Sanierungsdesign!$E$13)^2)-$D$19) ->  | BC88: =(BB88-273.15)/Heterogenität!$D$4 ->  | BD88: =IF(AI88<Berechnung!$D$7,AI88,#N/A) -> 
AG89: =Sanierungsdesign!$E$12*AH89*Sanierungsdesign!$E$10/1000000 -> 3884.4 | AH89: 597600 | AI89: 6.916666667 | AJ89: =$D$5+((-Sanierungsdesign!$E$12)/4*PI()*$D$3)*(-LN((4*$D$4*AH89)/(Sanierungsdesign!$E$13^2))-$D$19) -> 441.5802556 | AK89: 168.4302556 | AL89: 312.896948 | AM89: =$D$3*$T$7*$AH$7*(AK89-$D$5)*(1/Sanierungsdesign!$E$15)/1000000 -> -16.02090942 | AN89: =$D$5+(-Sanierungsdesign!$E$12/(4*PI()*$D$3))*(-LN((4*$D$4*AH89)/(Sanierungsdesign!$E$13+Sanierungsdesign!$E$15)^2)-$D$19) -> 248.2944067 | AO89: -24.85559331 | AP89: =(2*PI()*Sanierungsdesign!$E$10*$D$3)*(LN((Sanierungsdesign!$E$13+Sanierungsdesign!$E$15)/Sanierungsdesign!$E$13)*(AJ89-AN89))*$AH$7/1000000 -> 17.2563658 | AQ89: 1029.688805 | AR89: 2324.007633 | AS89: =AU89/Sanierungsdesign!$E$11 -> 0.1131929329 | AT89: 478080 | AU89: 0.9055434636 | AZ89: =(AY89/(AH89*Sanierungsdesign!$E$10))*1000000 ->  | BA89: =AZ89/Sanierungsdesign!$E$12 ->  | BB89: =$D$5+((-(Sanierungsdesign!$E$12)*MIN($BA$7:$BA$932))/(4*PI()*$D$3))*(-LN((4*$D$4*AH89)/(Sanierungsdesign!$E$13)^2)-$D$19) ->  | BC89: =(BB89-273.15)/Heterogenität!$D$4 ->  | BD89: =IF(AI89<Berechnung!$D$7,AI89,#N/A) -> 
AG90: =Sanierungsdesign!$E$12*AH90*Sanierungsdesign!$E$10/1000000 -> 3931.2 | AH90: 604800 | AI90: 7 | AJ90: =$D$5+((-Sanierungsdesign!$E$12)/4*PI()*$D$3)*(-LN((4*$D$4*AH90)/(Sanierungsdesign!$E$13^2))-$D$19) -> 458.3569371 | AK90: 185.2069371 | AL90: 346.4542188 | AM90: =$D$3*$T$7*$AH$7*(AK90-$D$5)*(1/Sanierungsdesign!$E$15)/1000000 -> -13.67800239 | AN90: =$D$5+(-Sanierungsdesign!$E$12/(4*PI()*$D$3))*(-LN((4*$D$4*AH90)/(Sanierungsdesign!$E$13+Sanierungsdesign!$E$15)^2)-$D$19) -> 249.1974282 | AO90: -23.9525718 | AP90: =(2*PI()*Sanierungsdesign!$E$10*$D$3)*(LN((Sanierungsdesign!$E$13+Sanierungsdesign!$E$15)/Sanierungsdesign!$E$13)*(AJ90-AN90))*$AH$7/1000000 -> 18.67355017 | AQ90: 1042.094694 | AR90: 2352.007724 | AS90: =AU90/Sanierungsdesign!$E$11 -> 0.1253325397 | AT90: 483840 | AU90: 1.002660318 | AZ90: =(AY90/(AH90*Sanierungsdesign!$E$10))*1000000 ->  | BA90: =AZ90/Sanierungsdesign!$E$12 ->  | BB90: =$D$5+((-(Sanierungsdesign!$E$12)*MIN($BA$7:$BA$932))/(4*PI()*$D$3))*(-LN((4*$D$4*AH90)/(Sanierungsdesign!$E$13)^2)-$D$19) ->  | BC90: =(BB90-273.15)/Heterogenität!$D$4 ->  | BD90: =IF(AI90<Berechnung!$D$7,AI90,#N/A) -> 
AG91: =Sanierungsdesign!$E$12*AH91*Sanierungsdesign!$E$10/1000000 -> 3978 | AH91: 612000 | AI91: 7.083333333 | AJ91: =$D$5+((-Sanierungsdesign!$E$12)/4*PI()*$D$3)*(-LN((4*$D$4*AH91)/(Sanierungsdesign!$E$13^2))-$D$19) -> 474.9350734 | AK91: 201.7850734 | AL91: 379.6143528 | AM91: =$D$3*$T$7*$AH$7*(AK91-$D$5)*(1/Sanierungsdesign!$E$15)/1000000 -> -11.36282273 | AN91: =$D$5+(-Sanierungsdesign!$E$12/(4*PI()*$D$3))*(-LN((4*$D$4*AH91)/(Sanierungsdesign!$E$13+Sanierungsdesign!$E$15)^2)-$D$19) -> 250.0897628 | AO91: -23.0602372 | AP91: =(2*PI()*Sanierungsdesign!$E$10*$D$3)*(LN((Sanierungsdesign!$E$13+Sanierungsdesign!$E$15)/Sanierungsdesign!$E$13)*(AJ91-AN91))*$AH$7/1000000 -> 20.07396273 | AQ91: 1054.500583 | AR91: 2380.007816 | AS91: =AU91/Sanierungsdesign!$E$11 -> 0.1373284791 | AT91: 489600 | AU91: 1.098627833 | AZ91: =(AY91/(AH91*Sanierungsdesign!$E$10))*1000000 ->  | BA91: =AZ91/Sanierungsdesign!$E$12 ->  | BB91: =$D$5+((-(Sanierungsdesign!$E$12)*MIN($BA$7:$BA$932))/(4*PI()*$D$3))*(-LN((4*$D$4*AH91)/(Sanierungsdesign!$E$13)^2)-$D$19) ->  | BC91: =(BB91-273.15)/Heterogenität!$D$4 ->  | BD91: =IF(AI91<Berechnung!$D$7,AI91,#N/A) -> 
AG92: =Sanierungsdesign!$E$12*AH92*Sanierungsdesign!$E$10/1000000 -> 4024.8 | AH92: 619200 | AI92: 7.166666667 | AJ92: =$D$5+((-Sanierungsdesign!$E$12)/4*PI()*$D$3)*(-LN((4*$D$4*AH92)/(Sanierungsdesign!$E$13^2))-$D$19) -> 491.3193089 | AK92: 218.1693089 | AL92: 412.3866401 | AM92: =$D$3*$T$7*$AH$7*(AK92-$D$5)*(1/Sanierungsdesign!$E$15)/1000000 -> -9.074721812 | AN92: =$D$5+(-Sanierungsdesign!$E$12/(4*PI()*$D$3))*(-LN((4*$D$4*AH92)/(Sanierungsdesign!$E$13+Sanierungsdesign!$E$15)^2)-$D$19) -> 250.9716605 | AO92: -22.17833949 | AP92: =(2*PI()*Sanierungsdesign!$E$10*$D$3)*(LN((Sanierungsdesign!$E$13+Sanierungsdesign!$E$15)/Sanierungsdesign!$E$13)*(AJ92-AN92))*$AH$7/1000000 -> 21.45799582 | AQ92: 1066.906472 | AR92: 2408.007908 | AS92: =AU92/Sanierungsdesign!$E$11 -> 0.1491841119 | AT92: 495360 | AU92: 1.193472895 | AZ92: =(AY92/(AH92*Sanierungsdesign!$E$10))*1000000 ->  | BA92: =AZ92/Sanierungsdesign!$E$12 ->  | BB92: =$D$5+((-(Sanierungsdesign!$E$12)*MIN($BA$7:$BA$932))/(4*PI()*$D$3))*(-LN((4*$D$4*AH92)/(Sanierungsdesign!$E$13)^2)-$D$19) ->  | BC92: =(BB92-273.15)/Heterogenität!$D$4 ->  | BD92: =IF(AI92<Berechnung!$D$7,AI92,#N/A) -> 
AG93: =Sanierungsdesign!$E$12*AH93*Sanierungsdesign!$E$10/1000000 -> 4071.6 | AH93: 626400 | AI93: 7.25 | AJ93: =$D$5+((-Sanierungsdesign!$E$12)/4*PI()*$D$3)*(-LN((4*$D$4*AH93)/(Sanierungsdesign!$E$13^2))-$D$19) -> 507.514127 | AK93: 234.364127 | AL93: 444.7800485 | AM93: =$D$3*$T$7*$AH$7*(AK93-$D$5)*(1/Sanierungsdesign!$E$15)/1000000 -> -6.813073521 | AN93: =$D$5+(-Sanierungsdesign!$E$12/(4*PI()*$D$3))*(-LN((4*$D$4*AH93)/(Sanierungsdesign!$E$13+Sanierungsdesign!$E$15)^2)-$D$19) -> 251.8433626 | AO93: -21.30663736 | AP93: =(2*PI()*Sanierungsdesign!$E$10*$D$3)*(LN((Sanierungsdesign!$E$13+Sanierungsdesign!$E$15)/Sanierungsdesign!$E$13)*(AJ93-AN93))*$AH$7/1000000 -> 22.82602817 | AQ93: 1079.312362 | AR93: 2436.008 | AS93: =AU93/Sanierungsdesign!$E$11 -> 0.1609026823 | AT93: 501120 | AU93: 1.287221458 | AZ93: =(AY93/(AH93*Sanierungsdesign!$E$10))*1000000 ->  | BA93: =AZ93/Sanierungsdesign!$E$12 ->  | BB93: =$D$5+((-(Sanierungsdesign!$E$12)*MIN($BA$7:$BA$932))/(4*PI()*$D$3))*(-LN((4*$D$4*AH93)/(Sanierungsdesign!$E$13)^2)-$D$19) ->  | BC93: =(BB93-273.15)/Heterogenität!$D$4 ->  | BD93: =IF(AI93<Berechnung!$D$7,AI93,#N/A) -> 
AG94: =Sanierungsdesign!$E$12*AH94*Sanierungsdesign!$E$10/1000000 -> 4118.4 | AH94: 633600 | AI94: 7.333333333 | AJ94: =$D$5+((-Sanierungsdesign!$E$12)/4*PI()*$D$3)*(-LN((4*$D$4*AH94)/(Sanierungsdesign!$E$13^2))-$D$19) -> 523.5238574 | AK94: 250.3738574 | AL94: 476.8032384 | AM94: =$D$3*$T$7*$AH$7*(AK94-$D$5)*(1/Sanierungsdesign!$E$15)/1000000 -> -4.577273204 | AN94: =$D$5+(-Sanierungsdesign!$E$12/(4*PI()*$D$3))*(-LN((4*$D$4*AH94)/(Sanierungsdesign!$E$13+Sanierungsdesign!$E$15)^2)-$D$19) -> 252.7051022 | AO94: -20.44489776 | AP94: =(2*PI()*Sanierungsdesign!$E$10*$D$3)*(LN((Sanierungsdesign!$E$13+Sanierungsdesign!$E$15)/Sanierungsdesign!$E$13)*(AJ94-AN94))*$AH$7/1000000 -> 24.17842553 | AQ94: 1091.718251 | AR94: 2464.008092 | AS94: =AU94/Sanierungsdesign!$E$11 -> 0.1724873232 | AT94: 506880 | AU94: 1.379898586 | AZ94: =(AY94/(AH94*Sanierungsdesign!$E$10))*1000000 ->  | BA94: =AZ94/Sanierungsdesign!$E$12 ->  | BB94: =$D$5+((-(Sanierungsdesign!$E$12)*MIN($BA$7:$BA$932))/(4*PI()*$D$3))*(-LN((4*$D$4*AH94)/(Sanierungsdesign!$E$13)^2)-$D$19) ->  | BC94: =(BB94-273.15)/Heterogenität!$D$4 ->  | BD94: =IF(AI94<Berechnung!$D$7,AI94,#N/A) -> 
AG95: =Sanierungsdesign!$E$12*AH95*Sanierungsdesign!$E$10/1000000 -> 4165.2 | AH95: 640800 | AI95: 7.416666667 | AJ95: =$D$5+((-Sanierungsdesign!$E$12)/4*PI()*$D$3)*(-LN((4*$D$4*AH95)/(Sanierungsdesign!$E$13^2))-$D$19) -> 539.352683 | AK95: 266.202683 | AL95: 508.4645767 | AM95: =$D$3*$T$7*$AH$7*(AK95-$D$5)*(1/Sanierungsdesign!$E$15)/1000000 -> -2.366736708 | AN95: =$D$5+(-Sanierungsdesign!$E$12/(4*PI()*$D$3))*(-LN((4*$D$4*AH95)/(Sanierungsdesign!$E$13+Sanierungsdesign!$E$15)^2)-$D$19) -> 253.5571045 | AO95: -19.59289554 | AP95: =(2*PI()*Sanierungsdesign!$E$10*$D$3)*(LN((Sanierungsdesign!$E$13+Sanierungsdesign!$E$15)/Sanierungsdesign!$E$13)*(AJ95-AN95))*$AH$7/1000000 -> 25.51554123 | AQ95: 1104.12414 | AR95: 2492.008184 | AS95: =AU95/Sanierungsdesign!$E$11 -> 0.1839410614 | AT95: 512640 | AU95: 1.471528491 | AZ95: =(AY95/(AH95*Sanierungsdesign!$E$10))*1000000 ->  | BA95: =AZ95/Sanierungsdesign!$E$12 ->  | BB95: =$D$5+((-(Sanierungsdesign!$E$12)*MIN($BA$7:$BA$932))/(4*PI()*$D$3))*(-LN((4*$D$4*AH95)/(Sanierungsdesign!$E$13)^2)-$D$19) ->  | BC95: =(BB95-273.15)/Heterogenität!$D$4 ->  | BD95: =IF(AI95<Berechnung!$D$7,AI95,#N/A) -> 
AG96: =Sanierungsdesign!$E$12*AH96*Sanierungsdesign!$E$10/1000000 -> 4212 | AH96: 648000 | AI96: 7.5 | AJ96: =$D$5+((-Sanierungsdesign!$E$12)/4*PI()*$D$3)*(-LN((4*$D$4*AH96)/(Sanierungsdesign!$E$13^2))-$D$19) -> 555.0046466 | AK96: 281.8546466 | AL96: 539.7721495 | AM96: =$D$3*$T$7*$AH$7*(AK96-$D$5)*(1/Sanierungsdesign!$E$15)/1000000 -> -0.1808994607 | AN96: =$D$5+(-Sanierungsdesign!$E$12/(4*PI()*$D$3))*(-LN((4*$D$4*AH96)/(Sanierungsdesign!$E$13+Sanierungsdesign!$E$15)^2)-$D$19) -> 254.3995869 | AO96: -18.7504131 | AP96: =(2*PI()*Sanierungsdesign!$E$10*$D$3)*(LN((Sanierungsdesign!$E$13+Sanierungsdesign!$E$15)/Sanierungsdesign!$E$13)*(AJ96-AN96))*$AH$7/1000000 -> 26.83771678 | AQ96: 1116.530029 | AR96: 2520.008276 | AS96: =AU96/Sanierungsdesign!$E$11 -> 0.1952668223 | AT96: 518400 | AU96: 1.562134578 | AZ96: =(AY96/(AH96*Sanierungsdesign!$E$10))*1000000 ->  | BA96: =AZ96/Sanierungsdesign!$E$12 ->  | BB96: =$D$5+((-(Sanierungsdesign!$E$12)*MIN($BA$7:$BA$932))/(4*PI()*$D$3))*(-LN((4*$D$4*AH96)/(Sanierungsdesign!$E$13)^2)-$D$19) ->  | BC96: =(BB96-273.15)/Heterogenität!$D$4 ->  | BD96: =IF(AI96<Berechnung!$D$7,AI96,#N/A) -> 
AG97: =Sanierungsdesign!$E$12*AH97*Sanierungsdesign!$E$10/1000000 -> 4258.8 | AH97: 655200 | AI97: 7.583333333 | AJ97: =$D$5+((-Sanierungsdesign!$E$12)/4*PI()*$D$3)*(-LN((4*$D$4*AH97)/(Sanierungsdesign!$E$13^2))-$D$19) -> 570.4836567 | AK97: 297.3336567 | AL97: 570.7337753 | AM97: =$D$3*$T$7*$AH$7*(AK97-$D$5)*(1/Sanierungsdesign!$E$15)/1000000 -> 1.980784395 | AN97: =$D$5+(-Sanierungsdesign!$E$12/(4*PI()*$D$3))*(-LN((4*$D$4*AH97)/(Sanierungsdesign!$E$13+Sanierungsdesign!$E$15)^2)-$D$19) -> 255.23276 | AO97: -17.91724004 | AP97: =(2*PI()*Sanierungsdesign!$E$10*$D$3)*(LN((Sanierungsdesign!$E$13+Sanierungsdesign!$E$15)/Sanierungsdesign!$E$13)*(AJ97-AN97))*$AH$7/1000000 -> 28.14528235 | AQ97: 1128.935919 | AR97: 2548.008368 | AS97: =AU97/Sanierungsdesign!$E$11 -> 0.206467434 | AT97: 524160 | AU97: 1.651739472 | AZ97: =(AY97/(AH97*Sanierungsdesign!$E$10))*1000000 ->  | BA97: =AZ97/Sanierungsdesign!$E$12 ->  | BB97: =$D$5+((-(Sanierungsdesign!$E$12)*MIN($BA$7:$BA$932))/(4*PI()*$D$3))*(-LN((4*$D$4*AH97)/(Sanierungsdesign!$E$13)^2)-$D$19) ->  | BC97: =(BB97-273.15)/Heterogenität!$D$4 ->  | BD97: =IF(AI97<Berechnung!$D$7,AI97,#N/A) -> 
AG98: =Sanierungsdesign!$E$12*AH98*Sanierungsdesign!$E$10/1000000 -> 4305.6 | AH98: 662400 | AI98: 7.666666667 | AJ98: =$D$5+((-Sanierungsdesign!$E$12)/4*PI()*$D$3)*(-LN((4*$D$4*AH98)/(Sanierungsdesign!$E$13^2))-$D$19) -> 585.793494 | AK98: 312.643494 | AL98: 601.3570159 | AM98: =$D$3*$T$7*$AH$7*(AK98-$D$5)*(1/Sanierungsdesign!$E$15)/1000000 -> 4.118842817 | AN98: =$D$5+(-Sanierungsdesign!$E$12/(4*PI()*$D$3))*(-LN((4*$D$4*AH98)/(Sanierungsdesign!$E$13+Sanierungsdesign!$E$15)^2)-$D$19) -> 256.0568271 | AO98: -17.09317288 | AP98: =(2*PI()*Sanierungsdesign!$E$10*$D$3)*(LN((Sanierungsdesign!$E$13+Sanierungsdesign!$E$15)/Sanierungsdesign!$E$13)*(AJ98-AN98))*$AH$7/1000000 -> 29.43855731 | AQ98: 1141.341808 | AR98: 2576.00846 | AS98: =AU98/Sanierungsdesign!$E$11 -> 0.2175456322 | AT98: 529920 | AU98: 1.740365058 | AZ98: =(AY98/(AH98*Sanierungsdesign!$E$10))*1000000 ->  | BA98: =AZ98/Sanierungsdesign!$E$12 ->  | BB98: =$D$5+((-(Sanierungsdesign!$E$12)*MIN($BA$7:$BA$932))/(4*PI()*$D$3))*(-LN((4*$D$4*AH98)/(Sanierungsdesign!$E$13)^2)-$D$19) ->  | BC98: =(BB98-273.15)/Heterogenität!$D$4 ->  | BD98: =IF(AI98<Berechnung!$D$7,AI98,#N/A) -> 
AG99: =Sanierungsdesign!$E$12*AH99*Sanierungsdesign!$E$10/1000000 -> 4352.4 | AH99: 669600 | AI99: 7.75 | AJ99: =$D$5+((-Sanierungsdesign!$E$12)/4*PI()*$D$3)*(-LN((4*$D$4*AH99)/(Sanierungsdesign!$E$13^2))-$D$19) -> 600.9378162 | AK99: 327.7878162 | AL99: 631.6491879 | AM99: =$D$3*$T$7*$AH$7*(AK99-$D$5)*(1/Sanierungsdesign!$E$15)/1000000 -> 6.233786641 | AN99: =$D$5+(-Sanierungsdesign!$E$12/(4*PI()*$D$3))*(-LN((4*$D$4*AH99)/(Sanierungsdesign!$E$13+Sanierungsdesign!$E$15)^2)-$D$19) -> 256.8719853 | AO99: -16.27801474 | AP99: =(2*PI()*Sanierungsdesign!$E$10*$D$3)*(LN((Sanierungsdesign!$E$13+Sanierungsdesign!$E$15)/Sanierungsdesign!$E$13)*(AJ99-AN99))*$AH$7/1000000 -> 30.71785064 | AQ99: 1153.747697 | AR99: 2604.008552 | AS99: =AU99/Sanierungsdesign!$E$11 -> 0.2285040638 | AT99: 535680 | AU99: 1.82803251 | AZ99: =(AY99/(AH99*Sanierungsdesign!$E$10))*1000000 ->  | BA99: =AZ99/Sanierungsdesign!$E$12 ->  | BB99: =$D$5+((-(Sanierungsdesign!$E$12)*MIN($BA$7:$BA$932))/(4*PI()*$D$3))*(-LN((4*$D$4*AH99)/(Sanierungsdesign!$E$13)^2)-$D$19) ->  | BC99: =(BB99-273.15)/Heterogenität!$D$4 ->  | BD99: =IF(AI99<Berechnung!$D$7,AI99,#N/A) -> 
AG100: =Sanierungsdesign!$E$12*AH100*Sanierungsdesign!$E$10/1000000 -> 4399.2 | AH100: 676800 | AI100: 7.833333333 | AJ100: =$D$5+((-Sanierungsdesign!$E$12)/4*PI()*$D$3)*(-LN((4*$D$4*AH100)/(Sanierungsdesign!$E$13^2))-$D$19) -> 615.920164 | AK100: 342.770164 | AL100: 661.6173732 | AM100: =$D$3*$T$7*$AH$7*(AK100-$D$5)*(1/Sanierungsdesign!$E$15)/1000000 -> 8.326110312 | AN100: =$D$5+(-Sanierungsdesign!$E$12/(4*PI()*$D$3))*(-LN((4*$D$4*AH100)/(Sanierungsdesign!$E$13+Sanierungsdesign!$E$15)^2)-$D$19) -> 257.678425 | AO100: -15.47157502 | AP100: =(2*PI()*Sanierungsdesign!$E$10*$D$3)*(LN((Sanierungsdesign!$E$13+Sanierungsdesign!$E$15)/Sanierungsdesign!$E$13)*(AJ100-AN100))*$AH$7/1000000 -> 31.98346142 | AQ100: 1166.153586 | AR100: 2632.008644 | AS100: =AU100/Sanierungsdesign!$E$11 -> 0.2393452907 | AT100: 541440 | AU100: 1.914762325 | AZ100: =(AY100/(AH100*Sanierungsdesign!$E$10))*1000000 ->  | BA100: =AZ100/Sanierungsdesign!$E$12 ->  | BB100: =$D$5+((-(Sanierungsdesign!$E$12)*MIN($BA$7:$BA$932))/(4*PI()*$D$3))*(-LN((4*$D$4*AH100)/(Sanierungsdesign!$E$13)^2)-$D$19) ->  | BC100: =(BB100-273.15)/Heterogenität!$D$4 ->  | BD100: =IF(AI100<Berechnung!$D$7,AI100,#N/A) -> 
AG101: =Sanierungsdesign!$E$12*AH101*Sanierungsdesign!$E$10/1000000 -> 4446 | AH101: 684000 | AI101: 7.916666667 | AJ101: =$D$5+((-Sanierungsdesign!$E$12)/4*PI()*$D$3)*(-LN((4*$D$4*AH101)/(Sanierungsdesign!$E$13^2))-$D$19) -> 630.7439654 | AK101: 357.5939654 | AL101: 691.268429 | AM101: =$D$3*$T$7*$AH$7*(AK101-$D$5)*(1/Sanierungsdesign!$E$15)/1000000 -> 10.39629258 | AN101: =$D$5+(-Sanierungsdesign!$E$12/(4*PI()*$D$3))*(-LN((4*$D$4*AH101)/(Sanierungsdesign!$E$13+Sanierungsdesign!$E$15)^2)-$D$19) -> 258.4763308 | AO101: -14.67366922 | AP101: =(2*PI()*Sanierungsdesign!$E$10*$D$3)*(LN((Sanierungsdesign!$E$13+Sanierungsdesign!$E$15)/Sanierungsdesign!$E$13)*(AJ101-AN101))*$AH$7/1000000 -> 33.23567925 | AQ101: 1178.559475 | AR101: 2660.008736 | AS101: =AU101/Sanierungsdesign!$E$11 -> 0.2500717934 | AT101: 547200 | AU101: 2.000574347 | AZ101: =(AY101/(AH101*Sanierungsdesign!$E$10))*1000000 ->  | BA101: =AZ101/Sanierungsdesign!$E$12 ->  | BB101: =$D$5+((-(Sanierungsdesign!$E$12)*MIN($BA$7:$BA$932))/(4*PI()*$D$3))*(-LN((4*$D$4*AH101)/(Sanierungsdesign!$E$13)^2)-$D$19) ->  | BC101: =(BB101-273.15)/Heterogenität!$D$4 ->  | BD101: =IF(AI101<Berechnung!$D$7,AI101,#N/A) -> 
AG102: =Sanierungsdesign!$E$12*AH102*Sanierungsdesign!$E$10/1000000 -> 4492.8 | AH102: 691200 | AI102: 8 | AJ102: =$D$5+((-Sanierungsdesign!$E$12)/4*PI()*$D$3)*(-LN((4*$D$4*AH102)/(Sanierungsdesign!$E$13^2))-$D$19) -> 645.412541 | AK102: 372.262541 | AL102: 720.6089968 | AM102: =$D$3*$T$7*$AH$7*(AK102-$D$5)*(1/Sanierungsdesign!$E$15)/1000000 -> 12.44479714 | AN102: =$D$5+(-Sanierungsdesign!$E$12/(4*PI()*$D$3))*(-LN((4*$D$4*AH102)/(Sanierungsdesign!$E$13+Sanierungsdesign!$E$15)^2)-$D$19) -> 259.2658814 | AO102: -13.88411861 | AP102: =(2*PI()*Sanierungsdesign!$E$10*$D$3)*(LN((Sanierungsdesign!$E$13+Sanierungsdesign!$E$15)/Sanierungsdesign!$E$13)*(AJ102-AN102))*$AH$7/1000000 -> 34.47478461 | AQ102: 1190.965365 | AR102: 2688.008828 | AS102: =AU102/Sanierungsdesign!$E$11 -> 0.2606859746 | AT102: 552960 | AU102: 2.085487797 | AZ102: =(AY102/(AH102*Sanierungsdesign!$E$10))*1000000 ->  | BA102: =AZ102/Sanierungsdesign!$E$12 ->  | BB102: =$D$5+((-(Sanierungsdesign!$E$12)*MIN($BA$7:$BA$932))/(4*PI()*$D$3))*(-LN((4*$D$4*AH102)/(Sanierungsdesign!$E$13)^2)-$D$19) ->  | BC102: =(BB102-273.15)/Heterogenität!$D$4 ->  | BD102: =IF(AI102<Berechnung!$D$7,AI102,#N/A) -> 
AG103: =Sanierungsdesign!$E$12*AH103*Sanierungsdesign!$E$10/1000000 -> 4539.6 | AH103: 698400 | AI103: 8.083333333 | AJ103: =$D$5+((-Sanierungsdesign!$E$12)/4*PI()*$D$3)*(-LN((4*$D$4*AH103)/(Sanierungsdesign!$E$13^2))-$D$19) -> 659.9291078 | AK103: 386.7791078 | AL103: 749.6455117 | AM103: =$D$3*$T$7*$AH$7*(AK103-$D$5)*(1/Sanierungsdesign!$E$15)/1000000 -> 14.4720733 | AN103: =$D$5+(-Sanierungsdesign!$E$12/(4*PI()*$D$3))*(-LN((4*$D$4*AH103)/(Sanierungsdesign!$E$13+Sanierungsdesign!$E$15)^2)-$D$19) -> 260.04725 | AO103: -13.10275002 | AP103: =(2*PI()*Sanierungsdesign!$E$10*$D$3)*(LN((Sanierungsdesign!$E$13+Sanierungsdesign!$E$15)/Sanierungsdesign!$E$13)*(AJ103-AN103))*$AH$7/1000000 -> 35.70104927 | AQ103: 1203.371254 | AR103: 2716.00892 | AS103: =AU103/Sanierungsdesign!$E$11 -> 0.2711901624 | AT103: 558720 | AU103: 2.169521299 | AZ103: =(AY103/(AH103*Sanierungsdesign!$E$10))*1000000 ->  | BA103: =AZ103/Sanierungsdesign!$E$12 ->  | BB103: =$D$5+((-(Sanierungsdesign!$E$12)*MIN($BA$7:$BA$932))/(4*PI()*$D$3))*(-LN((4*$D$4*AH103)/(Sanierungsdesign!$E$13)^2)-$D$19) ->  | BC103: =(BB103-273.15)/Heterogenität!$D$4 ->  | BD103: =IF(AI103<Berechnung!$D$7,AI103,#N/A) -> 
AG104: =Sanierungsdesign!$E$12*AH104*Sanierungsdesign!$E$10/1000000 -> 4586.4 | AH104: 705600 | AI104: 8.166666667 | AJ104: =$D$5+((-Sanierungsdesign!$E$12)/4*PI()*$D$3)*(-LN((4*$D$4*AH104)/(Sanierungsdesign!$E$13^2))-$D$19) -> 674.2967842 | AK104: 401.1467842 | AL104: 778.3842111 | AM104: =$D$3*$T$7*$AH$7*(AK104-$D$5)*(1/Sanierungsdesign!$E$15)/1000000 -> 16.47855651 | AN104: =$D$5+(-Sanierungsdesign!$E$12/(4*PI()*$D$3))*(-LN((4*$D$4*AH104)/(Sanierungsdesign!$E$13+Sanierungsdesign!$E$15)^2)-$D$19) -> 260.8206044 | AO104: -12.32939561 | AP104: =(2*PI()*Sanierungsdesign!$E$10*$D$3)*(LN((Sanierungsdesign!$E$13+Sanierungsdesign!$E$15)/Sanierungsdesign!$E$13)*(AJ104-AN104))*$AH$7/1000000 -> 36.91473663 | AQ104: 1215.777143 | AR104: 2744.009012 | AS104: =AU104/Sanierungsdesign!$E$11 -> 0.281586613 | AT104: 564480 | AU104: 2.252692904 | AZ104: =(AY104/(AH104*Sanierungsdesign!$E$10))*1000000 ->  | BA104: =AZ104/Sanierungsdesign!$E$12 ->  | BB104: =$D$5+((-(Sanierungsdesign!$E$12)*MIN($BA$7:$BA$932))/(4*PI()*$D$3))*(-LN((4*$D$4*AH104)/(Sanierungsdesign!$E$13)^2)-$D$19) ->  | BC104: =(BB104-273.15)/Heterogenität!$D$4 ->  | BD104: =IF(AI104<Berechnung!$D$7,AI104,#N/A) -> 
AG105: =Sanierungsdesign!$E$12*AH105*Sanierungsdesign!$E$10/1000000 -> 4633.2 | AH105: 712800 | AI105: 8.25 | AJ105: =$D$5+((-Sanierungsdesign!$E$12)/4*PI()*$D$3)*(-LN((4*$D$4*AH105)/(Sanierungsdesign!$E$13^2))-$D$19) -> 688.5185933 | AK105: 415.3685933 | AL105: 806.8311419 | AM105: =$D$3*$T$7*$AH$7*(AK105-$D$5)*(1/Sanierungsdesign!$E$15)/1000000 -> 18.46466898 | AN105: =$D$5+(-Sanierungsdesign!$E$12/(4*PI()*$D$3))*(-LN((4*$D$4*AH105)/(Sanierungsdesign!$E$13+Sanierungsdesign!$E$15)^2)-$D$19) -> 261.5861074 | AO105: -11.56389265 | AP105: =(2*PI()*Sanierungsdesign!$E$10*$D$3)*(LN((Sanierungsdesign!$E$13+Sanierungsdesign!$E$15)/Sanierungsdesign!$E$13)*(AJ105-AN105))*$AH$7/1000000 -> 38.11610208 | AQ105: 1228.183032 | AR105: 2772.009104 | AS105: =AU105/Sanierungsdesign!$E$11 -> 0.2918775141 | AT105: 570240 | AU105: 2.335020113 | AZ105: =(AY105/(AH105*Sanierungsdesign!$E$10))*1000000 ->  | BA105: =AZ105/Sanierungsdesign!$E$12 ->  | BB105: =$D$5+((-(Sanierungsdesign!$E$12)*MIN($BA$7:$BA$932))/(4*PI()*$D$3))*(-LN((4*$D$4*AH105)/(Sanierungsdesign!$E$13)^2)-$D$19) ->  | BC105: =(BB105-273.15)/Heterogenität!$D$4 ->  | BD105: =IF(AI105<Berechnung!$D$7,AI105,#N/A) -> 
AG106: =Sanierungsdesign!$E$12*AH106*Sanierungsdesign!$E$10/1000000 -> 4680 | AH106: 720000 | AI106: 8.333333333 | AJ106: =$D$5+((-Sanierungsdesign!$E$12)/4*PI()*$D$3)*(-LN((4*$D$4*AH106)/(Sanierungsdesign!$E$13^2))-$D$19) -> 702.5974672 | AK106: 429.4474672 | AL106: 834.9921691 | AM106: =$D$3*$T$7*$AH$7*(AK106-$D$5)*(1/Sanierungsdesign!$E$15)/1000000 -> 20.43082019 | AN106: =$D$5+(-Sanierungsdesign!$E$12/(4*PI()*$D$3))*(-LN((4*$D$4*AH106)/(Sanierungsdesign!$E$13+Sanierungsdesign!$E$15)^2)-$D$19) -> 262.3439167 | AO106: -10.80608331 | AP106: =(2*PI()*Sanierungsdesign!$E$10*$D$3)*(LN((Sanierungsdesign!$E$13+Sanierungsdesign!$E$15)/Sanierungsdesign!$E$13)*(AJ106-AN106))*$AH$7/1000000 -> 39.3053933 | AQ106: 1240.588921 | AR106: 2800.009196 | AS106: =AU106/Sanierungsdesign!$E$11 -> 0.3020649873 | AT106: 576000 | AU106: 2.416519898 | AZ106: =(AY106/(AH106*Sanierungsdesign!$E$10))*1000000 ->  | BA106: =AZ106/Sanierungsdesign!$E$12 ->  | BB106: =$D$5+((-(Sanierungsdesign!$E$12)*MIN($BA$7:$BA$932))/(4*PI()*$D$3))*(-LN((4*$D$4*AH106)/(Sanierungsdesign!$E$13)^2)-$D$19) ->  | BC106: =(BB106-273.15)/Heterogenität!$D$4 ->  | BD106: =IF(AI106<Berechnung!$D$7,AI106,#N/A) -> 
AG107: =Sanierungsdesign!$E$12*AH107*Sanierungsdesign!$E$10/1000000 -> 4726.8 | AH107: 727200 | AI107: 8.416666667 | AJ107: =$D$5+((-Sanierungsdesign!$E$12)/4*PI()*$D$3)*(-LN((4*$D$4*AH107)/(Sanierungsdesign!$E$13^2))-$D$19) -> 716.5362505 | AK107: 443.3862505 | AL107: 862.8729824 | AM107: =$D$3*$T$7*$AH$7*(AK107-$D$5)*(1/Sanierungsdesign!$E$15)/1000000 -> 22.37740738 | AN107: =$D$5+(-Sanierungsdesign!$E$12/(4*PI()*$D$3))*(-LN((4*$D$4*AH107)/(Sanierungsdesign!$E$13+Sanierungsdesign!$E$15)^2)-$D$19) -> 263.0941855 | AO107: -10.05581449 | AP107: =(2*PI()*Sanierungsdesign!$E$10*$D$3)*(LN((Sanierungsdesign!$E$13+Sanierungsdesign!$E$15)/Sanierungsdesign!$E$13)*(AJ107-AN107))*$AH$7/1000000 -> 40.48285058 | AQ107: 1252.994811 | AR107: 2828.009288 | AS107: =AU107/Sanierungsdesign!$E$11 -> 0.3121510909 | AT107: 581760 | AU107: 2.497208727 | AZ107: =(AY107/(AH107*Sanierungsdesign!$E$10))*1000000 ->  | BA107: =AZ107/Sanierungsdesign!$E$12 ->  | BB107: =$D$5+((-(Sanierungsdesign!$E$12)*MIN($BA$7:$BA$932))/(4*PI()*$D$3))*(-LN((4*$D$4*AH107)/(Sanierungsdesign!$E$13)^2)-$D$19) ->  | BC107: =(BB107-273.15)/Heterogenität!$D$4 ->  | BD107: =IF(AI107<Berechnung!$D$7,AI107,#N/A) -> 
AG108: =Sanierungsdesign!$E$12*AH108*Sanierungsdesign!$E$10/1000000 -> 4773.6 | AH108: 734400 | AI108: 8.5 | AJ108: =$D$5+((-Sanierungsdesign!$E$12)/4*PI()*$D$3)*(-LN((4*$D$4*AH108)/(Sanierungsdesign!$E$13^2))-$D$19) -> 730.3377037 | AK108: 457.1877037 | AL108: 890.4791035 | AM108: =$D$3*$T$7*$AH$7*(AK108-$D$5)*(1/Sanierungsdesign!$E$15)/1000000 -> 24.30481606 | AN108: =$D$5+(-Sanierungsdesign!$E$12/(4*PI()*$D$3))*(-LN((4*$D$4*AH108)/(Sanierungsdesign!$E$13+Sanierungsdesign!$E$15)^2)-$D$19) -> 263.8370624 | AO108: -9.312937599 | AP108: =(2*PI()*Sanierungsdesign!$E$10*$D$3)*(LN((Sanierungsdesign!$E$13+Sanierungsdesign!$E$15)/Sanierungsdesign!$E$13)*(AJ108-AN108))*$AH$7/1000000 -> 41.64870711 | AQ108: 1265.4007 | AR108: 2856.00938 | AS108: =AU108/Sanierungsdesign!$E$11 -> 0.3221378224 | AT108: 587520 | AU108: 2.577102579 | AZ108: =(AY108/(AH108*Sanierungsdesign!$E$10))*1000000 ->  | BA108: =AZ108/Sanierungsdesign!$E$12 ->  | BB108: =$D$5+((-(Sanierungsdesign!$E$12)*MIN($BA$7:$BA$932))/(4*PI()*$D$3))*(-LN((4*$D$4*AH108)/(Sanierungsdesign!$E$13)^2)-$D$19) ->  | BC108: =(BB108-273.15)/Heterogenität!$D$4 ->  | BD108: =IF(AI108<Berechnung!$D$7,AI108,#N/A) -> 
AG109: =Sanierungsdesign!$E$12*AH109*Sanierungsdesign!$E$10/1000000 -> 4820.4 | AH109: 741600 | AI109: 8.583333333 | AJ109: =$D$5+((-Sanierungsdesign!$E$12)/4*PI()*$D$3)*(-LN((4*$D$4*AH109)/(Sanierungsdesign!$E$13^2))-$D$19) -> 744.0045063 | AK109: 470.8545063 | AL109: 917.8158922 | AM109: =$D$3*$T$7*$AH$7*(AK109-$D$5)*(1/Sanierungsdesign!$E$15)/1000000 -> 26.21342045 | AN109: =$D$5+(-Sanierungsdesign!$E$12/(4*PI()*$D$3))*(-LN((4*$D$4*AH109)/(Sanierungsdesign!$E$13+Sanierungsdesign!$E$15)^2)-$D$19) -> 264.5726916 | AO109: -8.577308405 | AP109: =(2*PI()*Sanierungsdesign!$E$10*$D$3)*(LN((Sanierungsdesign!$E$13+Sanierungsdesign!$E$15)/Sanierungsdesign!$E$13)*(AJ109-AN109))*$AH$7/1000000 -> 42.80318925 | AQ109: 1277.806589 | AR109: 2884.009472 | AS109: =AU109/Sanierungsdesign!$E$11 -> 0.3320271208 | AT109: 593280 | AU109: 2.656216966 | AZ109: =(AY109/(AH109*Sanierungsdesign!$E$10))*1000000 ->  | BA109: =AZ109/Sanierungsdesign!$E$12 ->  | BB109: =$D$5+((-(Sanierungsdesign!$E$12)*MIN($BA$7:$BA$932))/(4*PI()*$D$3))*(-LN((4*$D$4*AH109)/(Sanierungsdesign!$E$13)^2)-$D$19) ->  | BC109: =(BB109-273.15)/Heterogenität!$D$4 ->  | BD109: =IF(AI109<Berechnung!$D$7,AI109,#N/A) -> 
AG110: =Sanierungsdesign!$E$12*AH110*Sanierungsdesign!$E$10/1000000 -> 4867.2 | AH110: 748800 | AI110: 8.666666667 | AJ110: =$D$5+((-Sanierungsdesign!$E$12)/4*PI()*$D$3)*(-LN((4*$D$4*AH110)/(Sanierungsdesign!$E$13^2))-$D$19) -> 757.5392606 | AK110: 484.3892606 | AL110: 944.8885533 | AM110: =$D$3*$T$7*$AH$7*(AK110-$D$5)*(1/Sanierungsdesign!$E$15)/1000000 -> 28.10358393 | AN110: =$D$5+(-Sanierungsdesign!$E$12/(4*PI()*$D$3))*(-LN((4*$D$4*AH110)/(Sanierungsdesign!$E$13+Sanierungsdesign!$E$15)^2)-$D$19) -> 265.3012131 | AO110: -7.84878685 | AP110: =(2*PI()*Sanierungsdesign!$E$10*$D$3)*(LN((Sanierungsdesign!$E$13+Sanierungsdesign!$E$15)/Sanierungsdesign!$E$13)*(AJ110-AN110))*$AH$7/1000000 -> 43.94651679 | AQ110: 1290.212478 | AR110: 2912.009564 | AS110: =AU110/Sanierungsdesign!$E$11 -> 0.3418208689 | AT110: 599040 | AU110: 2.734566952 | AZ110: =(AY110/(AH110*Sanierungsdesign!$E$10))*1000000 ->  | BA110: =AZ110/Sanierungsdesign!$E$12 ->  | BB110: =$D$5+((-(Sanierungsdesign!$E$12)*MIN($BA$7:$BA$932))/(4*PI()*$D$3))*(-LN((4*$D$4*AH110)/(Sanierungsdesign!$E$13)^2)-$D$19) ->  | BC110: =(BB110-273.15)/Heterogenität!$D$4 ->  | BD110: =IF(AI110<Berechnung!$D$7,AI110,#N/A) -> 
AG111: =Sanierungsdesign!$E$12*AH111*Sanierungsdesign!$E$10/1000000 -> 4914 | AH111: 756000 | AI111: 8.75 | AJ111: =$D$5+((-Sanierungsdesign!$E$12)/4*PI()*$D$3)*(-LN((4*$D$4*AH111)/(Sanierungsdesign!$E$13^2))-$D$19) -> 770.9444936 | AK111: 497.7944936 | AL111: 971.7021418 | AM111: =$D$3*$T$7*$AH$7*(AK111-$D$5)*(1/Sanierungsdesign!$E$15)/1000000 -> 29.97565944 | AN111: =$D$5+(-Sanierungsdesign!$E$12/(4*PI()*$D$3))*(-LN((4*$D$4*AH111)/(Sanierungsdesign!$E$13+Sanierungsdesign!$E$15)^2)-$D$19) -> 266.0227631 | AO111: -7.127236901 | AP111: =(2*PI()*Sanierungsdesign!$E$10*$D$3)*(LN((Sanierungsdesign!$E$13+Sanierungsdesign!$E$15)/Sanierungsdesign!$E$13)*(AJ111-AN111))*$AH$7/1000000 -> 45.07890324 | AQ111: 1302.618368 | AR111: 2940.009656 | AS111: =AU111/Sanierungsdesign!$E$11 -> 0.3515208956 | AT111: 604800 | AU111: 2.812167165 | AZ111: =(AY111/(AH111*Sanierungsdesign!$E$10))*1000000 ->  | BA111: =AZ111/Sanierungsdesign!$E$12 ->  | BB111: =$D$5+((-(Sanierungsdesign!$E$12)*MIN($BA$7:$BA$932))/(4*PI()*$D$3))*(-LN((4*$D$4*AH111)/(Sanierungsdesign!$E$13)^2)-$D$19) ->  | BC111: =(BB111-273.15)/Heterogenität!$D$4 ->  | BD111: =IF(AI111<Berechnung!$D$7,AI111,#N/A) -> 
AG112: =Sanierungsdesign!$E$12*AH112*Sanierungsdesign!$E$10/1000000 -> 4960.8 | AH112: 763200 | AI112: 8.833333333 | AJ112: =$D$5+((-Sanierungsdesign!$E$12)/4*PI()*$D$3)*(-LN((4*$D$4*AH112)/(Sanierungsdesign!$E$13^2))-$D$19) -> 784.2226609 | AK112: 511.0726609 | AL112: 998.2615693 | AM112: =$D$3*$T$7*$AH$7*(AK112-$D$5)*(1/Sanierungsdesign!$E$15)/1000000 -> 31.8299899 | AN112: =$D$5+(-Sanierungsdesign!$E$12/(4*PI()*$D$3))*(-LN((4*$D$4*AH112)/(Sanierungsdesign!$E$13+Sanierungsdesign!$E$15)^2)-$D$19) -> 266.7374736 | AO112: -6.41252639 | AP112: =(2*PI()*Sanierungsdesign!$E$10*$D$3)*(LN((Sanierungsdesign!$E$13+Sanierungsdesign!$E$15)/Sanierungsdesign!$E$13)*(AJ112-AN112))*$AH$7/1000000 -> 46.200556 | AQ112: 1315.024257 | AR112: 2968.009748 | AS112: =AU112/Sanierungsdesign!$E$11 -> 0.3611289775 | AT112: 610560 | AU112: 2.88903182 | AZ112: =(AY112/(AH112*Sanierungsdesign!$E$10))*1000000 ->  | BA112: =AZ112/Sanierungsdesign!$E$12 ->  | BB112: =$D$5+((-(Sanierungsdesign!$E$12)*MIN($BA$7:$BA$932))/(4*PI()*$D$3))*(-LN((4*$D$4*AH112)/(Sanierungsdesign!$E$13)^2)-$D$19) ->  | BC112: =(BB112-273.15)/Heterogenität!$D$4 ->  | BD112: =IF(AI112<Berechnung!$D$7,AI112,#N/A) -> 
AG113: =Sanierungsdesign!$E$12*AH113*Sanierungsdesign!$E$10/1000000 -> 5007.6 | AH113: 770400 | AI113: 8.916666667 | AJ113: =$D$5+((-Sanierungsdesign!$E$12)/4*PI()*$D$3)*(-LN((4*$D$4*AH113)/(Sanierungsdesign!$E$13^2))-$D$19) -> 797.3761488 | AK113: 524.2261488 | AL113: 1024.571609 | AM113: =$D$3*$T$7*$AH$7*(AK113-$D$5)*(1/Sanierungsdesign!$E$15)/1000000 -> 33.66690855 | AN113: =$D$5+(-Sanierungsdesign!$E$12/(4*PI()*$D$3))*(-LN((4*$D$4*AH113)/(Sanierungsdesign!$E$13+Sanierungsdesign!$E$15)^2)-$D$19) -> 267.4454731 | AO113: -5.704526875 | AP113: =(2*PI()*Sanierungsdesign!$E$10*$D$3)*(LN((Sanierungsdesign!$E$13+Sanierungsdesign!$E$15)/Sanierungsdesign!$E$13)*(AJ113-AN113))*$AH$7/1000000 -> 47.31167666 | AQ113: 1327.430146 | AR113: 2996.00984 | AS113: =AU113/Sanierungsdesign!$E$11 -> 0.3706468413 | AT113: 616320 | AU113: 2.96517473 | AZ113: =(AY113/(AH113*Sanierungsdesign!$E$10))*1000000 ->  | BA113: =AZ113/Sanierungsdesign!$E$12 ->  | BB113: =$D$5+((-(Sanierungsdesign!$E$12)*MIN($BA$7:$BA$932))/(4*PI()*$D$3))*(-LN((4*$D$4*AH113)/(Sanierungsdesign!$E$13)^2)-$D$19) ->  | BC113: =(BB113-273.15)/Heterogenität!$D$4 ->  | BD113: =IF(AI113<Berechnung!$D$7,AI113,#N/A) -> 
AG114: =Sanierungsdesign!$E$12*AH114*Sanierungsdesign!$E$10/1000000 -> 5054.4 | AH114: 777600 | AI114: 9 | AJ114: =$D$5+((-Sanierungsdesign!$E$12)/4*PI()*$D$3)*(-LN((4*$D$4*AH114)/(Sanierungsdesign!$E$13^2))-$D$19) -> 810.4072769 | AK114: 537.2572769 | AL114: 1050.6369 | AM114: =$D$3*$T$7*$AH$7*(AK114-$D$5)*(1/Sanierungsdesign!$E$15)/1000000 -> 35.48673933 | AN114: =$D$5+(-Sanierungsdesign!$E$12/(4*PI()*$D$3))*(-LN((4*$D$4*AH114)/(Sanierungsdesign!$E$13+Sanierungsdesign!$E$15)^2)-$D$19) -> 268.1468865 | AO114: -5.003113498 | AP114: =(2*PI()*Sanierungsdesign!$E$10*$D$3)*(LN((Sanierungsdesign!$E$13+Sanierungsdesign!$E$15)/Sanierungsdesign!$E$13)*(AJ114-AN114))*$AH$7/1000000 -> 48.41246116 | AQ114: 1339.836035 | AR114: 3024.009931 | AS114: =AU114/Sanierungsdesign!$E$11 -> 0.3800761655 | AT114: 622080 | AU114: 3.040609324 | AZ114: =(AY114/(AH114*Sanierungsdesign!$E$10))*1000000 ->  | BA114: =AZ114/Sanierungsdesign!$E$12 ->  | BB114: =$D$5+((-(Sanierungsdesign!$E$12)*MIN($BA$7:$BA$932))/(4*PI()*$D$3))*(-LN((4*$D$4*AH114)/(Sanierungsdesign!$E$13)^2)-$D$19) ->  | BC114: =(BB114-273.15)/Heterogenität!$D$4 ->  | BD114: =IF(AI114<Berechnung!$D$7,AI114,#N/A) -> 
AG115: =Sanierungsdesign!$E$12*AH115*Sanierungsdesign!$E$10/1000000 -> 5101.2 | AH115: 784800 | AI115: 9.083333333 | AJ115: =$D$5+((-Sanierungsdesign!$E$12)/4*PI()*$D$3)*(-LN((4*$D$4*AH115)/(Sanierungsdesign!$E$13^2))-$D$19) -> 823.3183006 | AK115: 550.1683006 | AL115: 1076.461955 | AM115: =$D$3*$T$7*$AH$7*(AK115-$D$5)*(1/Sanierungsdesign!$E$15)/1000000 -> 37.28979724 | AN115: =$D$5+(-Sanierungsdesign!$E$12/(4*PI()*$D$3))*(-LN((4*$D$4*AH115)/(Sanierungsdesign!$E$13+Sanierungsdesign!$E$15)^2)-$D$19) -> 268.8418351 | AO115: -4.308164852 | AP115: =(2*PI()*Sanierungsdesign!$E$10*$D$3)*(LN((Sanierungsdesign!$E$13+Sanierungsdesign!$E$15)/Sanierungsdesign!$E$13)*(AJ115-AN115))*$AH$7/1000000 -> 49.50310004 | AQ115: 1352.241924 | AR115: 3052.010023 | AS115: =AU115/Sanierungsdesign!$E$11 -> 0.3894185823 | AT115: 627840 | AU115: 3.115348659 | AZ115: =(AY115/(AH115*Sanierungsdesign!$E$10))*1000000 ->  | BA115: =AZ115/Sanierungsdesign!$E$12 ->  | BB115: =$D$5+((-(Sanierungsdesign!$E$12)*MIN($BA$7:$BA$932))/(4*PI()*$D$3))*(-LN((4*$D$4*AH115)/(Sanierungsdesign!$E$13)^2)-$D$19) ->  | BC115: =(BB115-273.15)/Heterogenität!$D$4 ->  | BD115: =IF(AI115<Berechnung!$D$7,AI115,#N/A) -> 
AG116: =Sanierungsdesign!$E$12*AH116*Sanierungsdesign!$E$10/1000000 -> 5148 | AH116: 792000 | AI116: 9.166666667 | AJ116: =$D$5+((-Sanierungsdesign!$E$12)/4*PI()*$D$3)*(-LN((4*$D$4*AH116)/(Sanierungsdesign!$E$13^2))-$D$19) -> 836.1114139 | AK116: 562.9614139 | AL116: 1102.051161 | AM116: =$D$3*$T$7*$AH$7*(AK116-$D$5)*(1/Sanierungsdesign!$E$15)/1000000 -> 39.07638864 | AN116: =$D$5+(-Sanierungsdesign!$E$12/(4*PI()*$D$3))*(-LN((4*$D$4*AH116)/(Sanierungsdesign!$E$13+Sanierungsdesign!$E$15)^2)-$D$19) -> 269.5304371 | AO116: -3.619562858 | AP116: =(2*PI()*Sanierungsdesign!$E$10*$D$3)*(LN((Sanierungsdesign!$E$13+Sanierungsdesign!$E$15)/Sanierungsdesign!$E$13)*(AJ116-AN116))*$AH$7/1000000 -> 50.5837786 | AQ116: 1364.647814 | AR116: 3080.010115 | AS116: =AU116/Sanierungsdesign!$E$11 -> 0.3986756791 | AT116: 633600 | AU116: 3.189405433 | AZ116: =(AY116/(AH116*Sanierungsdesign!$E$10))*1000000 ->  | BA116: =AZ116/Sanierungsdesign!$E$12 ->  | BB116: =$D$5+((-(Sanierungsdesign!$E$12)*MIN($BA$7:$BA$932))/(4*PI()*$D$3))*(-LN((4*$D$4*AH116)/(Sanierungsdesign!$E$13)^2)-$D$19) ->  | BC116: =(BB116-273.15)/Heterogenität!$D$4 ->  | BD116: =IF(AI116<Berechnung!$D$7,AI116,#N/A) -> 
AG117: =Sanierungsdesign!$E$12*AH117*Sanierungsdesign!$E$10/1000000 -> 5194.8 | AH117: 799200 | AI117: 9.25 | AJ117: =$D$5+((-Sanierungsdesign!$E$12)/4*PI()*$D$3)*(-LN((4*$D$4*AH117)/(Sanierungsdesign!$E$13^2))-$D$19) -> 848.7887508 | AK117: 575.6387508 | AL117: 1127.408788 | AM117: =$D$3*$T$7*$AH$7*(AK117-$D$5)*(1/Sanierungsdesign!$E$15)/1000000 -> 40.84681156 | AN117: =$D$5+(-Sanierungsdesign!$E$12/(4*PI()*$D$3))*(-LN((4*$D$4*AH117)/(Sanierungsdesign!$E$13+Sanierungsdesign!$E$15)^2)-$D$19) -> 270.2128074 | AO117: -2.937192641 | AP117: =(2*PI()*Sanierungsdesign!$E$10*$D$3)*(LN((Sanierungsdesign!$E$13+Sanierungsdesign!$E$15)/Sanierungsdesign!$E$13)*(AJ117-AN117))*$AH$7/1000000 -> 51.65467714 | AQ117: 1377.053703 | AR117: 3108.010207 | AS117: =AU117/Sanierungsdesign!$E$11 -> 0.407849 | AT117: 639360 | AU117: 3.262792 | AZ117: =(AY117/(AH117*Sanierungsdesign!$E$10))*1000000 ->  | BA117: =AZ117/Sanierungsdesign!$E$12 ->  | BB117: =$D$5+((-(Sanierungsdesign!$E$12)*MIN($BA$7:$BA$932))/(4*PI()*$D$3))*(-LN((4*$D$4*AH117)/(Sanierungsdesign!$E$13)^2)-$D$19) ->  | BC117: =(BB117-273.15)/Heterogenität!$D$4 ->  | BD117: =IF(AI117<Berechnung!$D$7,AI117,#N/A) -> 
AG118: =Sanierungsdesign!$E$12*AH118*Sanierungsdesign!$E$10/1000000 -> 5241.6 | AH118: 806400 | AI118: 9.333333333 | AJ118: =$D$5+((-Sanierungsdesign!$E$12)/4*PI()*$D$3)*(-LN((4*$D$4*AH118)/(Sanierungsdesign!$E$13^2))-$D$19) -> 861.352388 | AK118: 588.202388 | AL118: 1152.538989 | AM118: =$D$3*$T$7*$AH$7*(AK118-$D$5)*(1/Sanierungsdesign!$E$15)/1000000 -> 42.60135604 | AN118: =$D$5+(-Sanierungsdesign!$E$12/(4*PI()*$D$3))*(-LN((4*$D$4*AH118)/(Sanierungsdesign!$E$13+Sanierungsdesign!$E$15)^2)-$D$19) -> 270.8890576 | AO118: -2.26094242 | AP118: =(2*PI()*Sanierungsdesign!$E$10*$D$3)*(LN((Sanierungsdesign!$E$13+Sanierungsdesign!$E$15)/Sanierungsdesign!$E$13)*(AJ118-AN118))*$AH$7/1000000 -> 52.71597107 | AQ118: 1389.459592 | AR118: 3136.010299 | AS118: =AU118/Sanierungsdesign!$E$11 -> 0.416940048 | AT118: 645120 | AU118: 3.335520384 | AZ118: =(AY118/(AH118*Sanierungsdesign!$E$10))*1000000 ->  | BA118: =AZ118/Sanierungsdesign!$E$12 ->  | BB118: =$D$5+((-(Sanierungsdesign!$E$12)*MIN($BA$7:$BA$932))/(4*PI()*$D$3))*(-LN((4*$D$4*AH118)/(Sanierungsdesign!$E$13)^2)-$D$19) ->  | BC118: =(BB118-273.15)/Heterogenität!$D$4 ->  | BD118: =IF(AI118<Berechnung!$D$7,AI118,#N/A) -> 
AG119: =Sanierungsdesign!$E$12*AH119*Sanierungsdesign!$E$10/1000000 -> 5288.4 | AH119: 813600 | AI119: 9.416666667 | AJ119: =$D$5+((-Sanierungsdesign!$E$12)/4*PI()*$D$3)*(-LN((4*$D$4*AH119)/(Sanierungsdesign!$E$13^2))-$D$19) -> 873.804347 | AK119: 600.654347 | AL119: 1177.445807 | AM119: =$D$3*$T$7*$AH$7*(AK119-$D$5)*(1/Sanierungsdesign!$E$15)/1000000 -> 44.34030437 | AN119: =$D$5+(-Sanierungsdesign!$E$12/(4*PI()*$D$3))*(-LN((4*$D$4*AH119)/(Sanierungsdesign!$E$13+Sanierungsdesign!$E$15)^2)-$D$19) -> 271.5592966 | AO119: -1.59070339 | AP119: =(2*PI()*Sanierungsdesign!$E$10*$D$3)*(LN((Sanierungsdesign!$E$13+Sanierungsdesign!$E$15)/Sanierungsdesign!$E$13)*(AJ119-AN119))*$AH$7/1000000 -> 53.76783116 | AQ119: 1401.865481 | AR119: 3164.010391 | AS119: =AU119/Sanierungsdesign!$E$11 -> 0.4259502855 | AT119: 650880 | AU119: 3.407602284 | AZ119: =(AY119/(AH119*Sanierungsdesign!$E$10))*1000000 ->  | BA119: =AZ119/Sanierungsdesign!$E$12 ->  | BB119: =$D$5+((-(Sanierungsdesign!$E$12)*MIN($BA$7:$BA$932))/(4*PI()*$D$3))*(-LN((4*$D$4*AH119)/(Sanierungsdesign!$E$13)^2)-$D$19) ->  | BC119: =(BB119-273.15)/Heterogenität!$D$4 ->  | BD119: =IF(AI119<Berechnung!$D$7,AI119,#N/A) -> 
AG120: =Sanierungsdesign!$E$12*AH120*Sanierungsdesign!$E$10/1000000 -> 5335.2 | AH120: 820800 | AI120: 9.5 | AJ120: =$D$5+((-Sanierungsdesign!$E$12)/4*PI()*$D$3)*(-LN((4*$D$4*AH120)/(Sanierungsdesign!$E$13^2))-$D$19) -> 886.1465957 | AK120: 612.9965957 | AL120: 1202.13318 | AM120: =$D$3*$T$7*$AH$7*(AK120-$D$5)*(1/Sanierungsdesign!$E$15)/1000000 -> 46.06393136 | AN120: =$D$5+(-Sanierungsdesign!$E$12/(4*PI()*$D$3))*(-LN((4*$D$4*AH120)/(Sanierungsdesign!$E$13+Sanierungsdesign!$E$15)^2)-$D$19) -> 272.2236304 | AO120: -0.9263696273 | AP120: =(2*PI()*Sanierungsdesign!$E$10*$D$3)*(LN((Sanierungsdesign!$E$13+Sanierungsdesign!$E$15)/Sanierungsdesign!$E$13)*(AJ120-AN120))*$AH$7/1000000 -> 54.81042363 | AQ120: 1414.27137 | AR120: 3192.010483 | AS120: =AU120/Sanierungsdesign!$E$11 -> 0.4348811367 | AT120: 656640 | AU120: 3.479049093 | AZ120: =(AY120/(AH120*Sanierungsdesign!$E$10))*1000000 ->  | BA120: =AZ120/Sanierungsdesign!$E$12 ->  | BB120: =$D$5+((-(Sanierungsdesign!$E$12)*MIN($BA$7:$BA$932))/(4*PI()*$D$3))*(-LN((4*$D$4*AH120)/(Sanierungsdesign!$E$13)^2)-$D$19) ->  | BC120: =(BB120-273.15)/Heterogenität!$D$4 ->  | BD120: =IF(AI120<Berechnung!$D$7,AI120,#N/A) -> 
AG121: =Sanierungsdesign!$E$12*AH121*Sanierungsdesign!$E$10/1000000 -> 5382 | AH121: 828000 | AI121: 9.583333333 | AJ121: =$D$5+((-Sanierungsdesign!$E$12)/4*PI()*$D$3)*(-LN((4*$D$4*AH121)/(Sanierungsdesign!$E$13^2))-$D$19) -> 898.3810505 | AK121: 625.2310505 | AL121: 1226.604939 | AM121: =$D$3*$T$7*$AH$7*(AK121-$D$5)*(1/Sanierungsdesign!$E$15)/1000000 -> 47.77250466 | AN121: =$D$5+(-Sanierungsdesign!$E$12/(4*PI()*$D$3))*(-LN((4*$D$4*AH121)/(Sanierungsdesign!$E$13+Sanierungsdesign!$E$15)^2)-$D$19) -> 272.882162 | AO121: -0.2678379801 | AP121: =(2*PI()*Sanierungsdesign!$E$10*$D$3)*(LN((Sanierungsdesign!$E$13+Sanierungsdesign!$E$15)/Sanierungsdesign!$E$13)*(AJ121-AN121))*$AH$7/1000000 -> 55.84391038 | AQ121: 1426.67726 | AR121: 3220.010575 | AS121: =AU121/Sanierungsdesign!$E$11 -> 0.4437339881 | AT121: 662400 | AU121: 3.549871905 | AZ121: =(AY121/(AH121*Sanierungsdesign!$E$10))*1000000 ->  | BA121: =AZ121/Sanierungsdesign!$E$12 ->  | BB121: =$D$5+((-(Sanierungsdesign!$E$12)*MIN($BA$7:$BA$932))/(4*PI()*$D$3))*(-LN((4*$D$4*AH121)/(Sanierungsdesign!$E$13)^2)-$D$19) ->  | BC121: =(BB121-273.15)/Heterogenität!$D$4 ->  | BD121: =IF(AI121<Berechnung!$D$7,AI121,#N/A) -> 
AG122: =Sanierungsdesign!$E$12*AH122*Sanierungsdesign!$E$10/1000000 -> 5428.8 | AH122: 835200 | AI122: 9.666666667 | AJ122: =$D$5+((-Sanierungsdesign!$E$12)/4*PI()*$D$3)*(-LN((4*$D$4*AH122)/(Sanierungsdesign!$E$13^2))-$D$19) -> 910.5095779 | AK122: 637.3595779 | AL122: 1250.864819 | AM122: =$D$3*$T$7*$AH$7*(AK122-$D$5)*(1/Sanierungsdesign!$E$15)/1000000 -> 49.46628492 | AN122: =$D$5+(-Sanierungsdesign!$E$12/(4*PI()*$D$3))*(-LN((4*$D$4*AH122)/(Sanierungsdesign!$E$13+Sanierungsdesign!$E$15)^2)-$D$19) -> 273.534992 | AO122: 0.3849920228 | AP122: =(2*PI()*Sanierungsdesign!$E$10*$D$3)*(LN((Sanierungsdesign!$E$13+Sanierungsdesign!$E$15)/Sanierungsdesign!$E$13)*(AJ122-AN122))*$AH$7/1000000 -> 56.86844908 | AQ122: 1439.083149 | AR122: 3248.010667 | AS122: =AU122/Sanierungsdesign!$E$11 -> 0.4525101905 | AT122: 668160 | AU122: 3.620081524 | AZ122: =(AY122/(AH122*Sanierungsdesign!$E$10))*1000000 ->  | BA122: =AZ122/Sanierungsdesign!$E$12 ->  | BB122: =$D$5+((-(Sanierungsdesign!$E$12)*MIN($BA$7:$BA$932))/(4*PI()*$D$3))*(-LN((4*$D$4*AH122)/(Sanierungsdesign!$E$13)^2)-$D$19) ->  | BC122: =(BB122-273.15)/Heterogenität!$D$4 ->  | BD122: =IF(AI122<Berechnung!$D$7,AI122,#N/A) -> 
AG123: =Sanierungsdesign!$E$12*AH123*Sanierungsdesign!$E$10/1000000 -> 5475.6 | AH123: 842400 | AI123: 9.75 | AJ123: =$D$5+((-Sanierungsdesign!$E$12)/4*PI()*$D$3)*(-LN((4*$D$4*AH123)/(Sanierungsdesign!$E$13^2))-$D$19) -> 922.5339964 | AK123: 649.3839964 | AL123: 1274.916457 | AM123: =$D$3*$T$7*$AH$7*(AK123-$D$5)*(1/Sanierungsdesign!$E$15)/1000000 -> 51.14552612 | AN123: =$D$5+(-Sanierungsdesign!$E$12/(4*PI()*$D$3))*(-LN((4*$D$4*AH123)/(Sanierungsdesign!$E$13+Sanierungsdesign!$E$15)^2)-$D$19) -> 274.1822183 | AO123: 1.032218266 | AP123: =(2*PI()*Sanierungsdesign!$E$10*$D$3)*(LN((Sanierungsdesign!$E$13+Sanierungsdesign!$E$15)/Sanierungsdesign!$E$13)*(AJ123-AN123))*$AH$7/1000000 -> 57.88419335 | AQ123: 1451.489038 | AR123: 3276.010759 | AS123: =AU123/Sanierungsdesign!$E$11 -> 0.4612110598 | AT123: 673920 | AU123: 3.689688479 | AZ123: =(AY123/(AH123*Sanierungsdesign!$E$10))*1000000 ->  | BA123: =AZ123/Sanierungsdesign!$E$12 ->  | BB123: =$D$5+((-(Sanierungsdesign!$E$12)*MIN($BA$7:$BA$932))/(4*PI()*$D$3))*(-LN((4*$D$4*AH123)/(Sanierungsdesign!$E$13)^2)-$D$19) ->  | BC123: =(BB123-273.15)/Heterogenität!$D$4 ->  | BD123: =IF(AI123<Berechnung!$D$7,AI123,#N/A) -> 
AG124: =Sanierungsdesign!$E$12*AH124*Sanierungsdesign!$E$10/1000000 -> 5522.4 | AH124: 849600 | AI124: 9.833333333 | AJ124: =$D$5+((-Sanierungsdesign!$E$12)/4*PI()*$D$3)*(-LN((4*$D$4*AH124)/(Sanierungsdesign!$E$13^2))-$D$19) -> 934.4560783 | AK124: 661.3060783 | AL124: 1298.763397 | AM124: =$D$3*$T$7*$AH$7*(AK124-$D$5)*(1/Sanierungsdesign!$E$15)/1000000 -> 52.81047573 | AN124: =$D$5+(-Sanierungsdesign!$E$12/(4*PI()*$D$3))*(-LN((4*$D$4*AH124)/(Sanierungsdesign!$E$13+Sanierungsdesign!$E$15)^2)-$D$19) -> 274.8239361 | AO124: 1.673936133 | AP124: =(2*PI()*Sanierungsdesign!$E$10*$D$3)*(LN((Sanierungsdesign!$E$13+Sanierungsdesign!$E$15)/Sanierungsdesign!$E$13)*(AJ124-AN124))*$AH$7/1000000 -> 58.89129288 | AQ124: 1463.894927 | AR124: 3304.010851 | AS124: =AU124/Sanierungsdesign!$E$11 -> 0.4698378783 | AT124: 679680 | AU124: 3.758703026 | AZ124: =(AY124/(AH124*Sanierungsdesign!$E$10))*1000000 ->  | BA124: =AZ124/Sanierungsdesign!$E$12 ->  | BB124: =$D$5+((-(Sanierungsdesign!$E$12)*MIN($BA$7:$BA$932))/(4*PI()*$D$3))*(-LN((4*$D$4*AH124)/(Sanierungsdesign!$E$13)^2)-$D$19) ->  | BC124: =(BB124-273.15)/Heterogenität!$D$4 ->  | BD124: =IF(AI124<Berechnung!$D$7,AI124,#N/A) -> 
AG125: =Sanierungsdesign!$E$12*AH125*Sanierungsdesign!$E$10/1000000 -> 5569.2 | AH125: 856800 | AI125: 9.916666667 | AJ125: =$D$5+((-Sanierungsdesign!$E$12)/4*PI()*$D$3)*(-LN((4*$D$4*AH125)/(Sanierungsdesign!$E$13^2))-$D$19) -> 946.2775507 | AK125: 673.1275507 | AL125: 1322.409096 | AM125: =$D$3*$T$7*$AH$7*(AK125-$D$5)*(1/Sanierungsdesign!$E$15)/1000000 -> 54.46137496 | AN125: =$D$5+(-Sanierungsdesign!$E$12/(4*PI()*$D$3))*(-LN((4*$D$4*AH125)/(Sanierungsdesign!$E$13+Sanierungsdesign!$E$15)^2)-$D$19) -> 275.4602386 | AO125: 2.310238596 | AP125: =(2*PI()*Sanierungsdesign!$E$10*$D$3)*(LN((Sanierungsdesign!$E$13+Sanierungsdesign!$E$15)/Sanierungsdesign!$E$13)*(AJ125-AN125))*$AH$7/1000000 -> 59.88989357 | AQ125: 1476.300817 | AR125: 3332.010943 | AS125: =AU125/Sanierungsdesign!$E$11 -> 0.4783918957 | AT125: 685440 | AU125: 3.827135165 | AZ125: =(AY125/(AH125*Sanierungsdesign!$E$10))*1000000 ->  | BA125: =AZ125/Sanierungsdesign!$E$12 ->  | BB125: =$D$5+((-(Sanierungsdesign!$E$12)*MIN($BA$7:$BA$932))/(4*PI()*$D$3))*(-LN((4*$D$4*AH125)/(Sanierungsdesign!$E$13)^2)-$D$19) ->  | BC125: =(BB125-273.15)/Heterogenität!$D$4 ->  | BD125: =IF(AI125<Berechnung!$D$7,AI125,#N/A) -> 
AG126: =Sanierungsdesign!$E$12*AH126*Sanierungsdesign!$E$10/1000000 -> 5616 | AH126: 864000 | AI126: 10 | AJ126: =$D$5+((-Sanierungsdesign!$E$12)/4*PI()*$D$3)*(-LN((4*$D$4*AH126)/(Sanierungsdesign!$E$13^2))-$D$19) -> 958.0000975 | AK126: 684.8500975 | AL126: 1345.85692 | AM126: =$D$3*$T$7*$AH$7*(AK126-$D$5)*(1/Sanierungsdesign!$E$15)/1000000 -> 56.09845898 | AN126: =$D$5+(-Sanierungsdesign!$E$12/(4*PI()*$D$3))*(-LN((4*$D$4*AH126)/(Sanierungsdesign!$E$13+Sanierungsdesign!$E$15)^2)-$D$19) -> 276.0912163 | AO126: 2.941216289 | AP126: =(2*PI()*Sanierungsdesign!$E$10*$D$3)*(LN((Sanierungsdesign!$E$13+Sanierungsdesign!$E$15)/Sanierungsdesign!$E$13)*(AJ126-AN126))*$AH$7/1000000 -> 60.88013768 | AQ126: 1488.706706 | AR126: 3360.011035 | AS126: =AU126/Sanierungsdesign!$E$11 -> 0.4868743305 | AT126: 691200 | AU126: 3.894994644 | AZ126: =(AY126/(AH126*Sanierungsdesign!$E$10))*1000000 ->  | BA126: =AZ126/Sanierungsdesign!$E$12 ->  | BB126: =$D$5+((-(Sanierungsdesign!$E$12)*MIN($BA$7:$BA$932))/(4*PI()*$D$3))*(-LN((4*$D$4*AH126)/(Sanierungsdesign!$E$13)^2)-$D$19) ->  | BC126: =(BB126-273.15)/Heterogenität!$D$4 ->  | BD126: =IF(AI126<Berechnung!$D$7,AI126,#N/A) -> 
AG127: =Sanierungsdesign!$E$12*AH127*Sanierungsdesign!$E$10/1000000 -> 5662.8 | AH127: 871200 | AI127: 10.08333333 | AJ127: =$D$5+((-Sanierungsdesign!$E$12)/4*PI()*$D$3)*(-LN((4*$D$4*AH127)/(Sanierungsdesign!$E$13^2))-$D$19) -> 969.6253606 | AK127: 696.4753606 | AL127: 1369.110154 | AM127: =$D$3*$T$7*$AH$7*(AK127-$D$5)*(1/Sanierungsdesign!$E$15)/1000000 -> 57.72195708 | AN127: =$D$5+(-Sanierungsdesign!$E$12/(4*PI()*$D$3))*(-LN((4*$D$4*AH127)/(Sanierungsdesign!$E$13+Sanierungsdesign!$E$15)^2)-$D$19) -> 276.7169576 | AO127: 3.566957592 | AP127: =(2*PI()*Sanierungsdesign!$E$10*$D$3)*(LN((Sanierungsdesign!$E$13+Sanierungsdesign!$E$15)/Sanierungsdesign!$E$13)*(AJ127-AN127))*$AH$7/1000000 -> 61.8621639 | AQ127: 1501.112595 | AR127: 3388.011127 | AS127: =AU127/Sanierungsdesign!$E$11 -> 0.4952863709 | AT127: 696960 | AU127: 3.962290967 | AZ127: =(AY127/(AH127*Sanierungsdesign!$E$10))*1000000 ->  | BA127: =AZ127/Sanierungsdesign!$E$12 ->  | BB127: =$D$5+((-(Sanierungsdesign!$E$12)*MIN($BA$7:$BA$932))/(4*PI()*$D$3))*(-LN((4*$D$4*AH127)/(Sanierungsdesign!$E$13)^2)-$D$19) ->  | BC127: =(BB127-273.15)/Heterogenität!$D$4 ->  | BD127: =IF(AI127<Berechnung!$D$7,AI127,#N/A) -> 
AG128: =Sanierungsdesign!$E$12*AH128*Sanierungsdesign!$E$10/1000000 -> 5709.6 | AH128: 878400 | AI128: 10.16666667 | AJ128: =$D$5+((-Sanierungsdesign!$E$12)/4*PI()*$D$3)*(-LN((4*$D$4*AH128)/(Sanierungsdesign!$E$13^2))-$D$19) -> 981.1549414 | AK128: 708.0049414 | AL128: 1392.172001 | AM128: =$D$3*$T$7*$AH$7*(AK128-$D$5)*(1/Sanierungsdesign!$E$15)/1000000 -> 59.3320929 | AN128: =$D$5+(-Sanierungsdesign!$E$12/(4*PI()*$D$3))*(-LN((4*$D$4*AH128)/(Sanierungsdesign!$E$13+Sanierungsdesign!$E$15)^2)-$D$19) -> 277.3375487 | AO128: 4.187548703 | AP128: =(2*PI()*Sanierungsdesign!$E$10*$D$3)*(LN((Sanierungsdesign!$E$13+Sanierungsdesign!$E$15)/Sanierungsdesign!$E$13)*(AJ128-AN128))*$AH$7/1000000 -> 62.83610751 | AQ128: 1513.518484 | AR128: 3416.011219 | AS128: =AU128/Sanierungsdesign!$E$11 -> 0.5036291756 | AT128: 702720 | AU128: 4.029033405 | AZ128: =(AY128/(AH128*Sanierungsdesign!$E$10))*1000000 ->  | BA128: =AZ128/Sanierungsdesign!$E$12 ->  | BB128: =$D$5+((-(Sanierungsdesign!$E$12)*MIN($BA$7:$BA$932))/(4*PI()*$D$3))*(-LN((4*$D$4*AH128)/(Sanierungsdesign!$E$13)^2)-$D$19) ->  | BC128: =(BB128-273.15)/Heterogenität!$D$4 ->  | BD128: =IF(AI128<Berechnung!$D$7,AI128,#N/A) -> 
AG129: =Sanierungsdesign!$E$12*AH129*Sanierungsdesign!$E$10/1000000 -> 5756.4 | AH129: 885600 | AI129: 10.25 | AJ129: =$D$5+((-Sanierungsdesign!$E$12)/4*PI()*$D$3)*(-LN((4*$D$4*AH129)/(Sanierungsdesign!$E$13^2))-$D$19) -> 992.5904022 | AK129: 719.4404022 | AL129: 1415.045586 | AM129: =$D$3*$T$7*$AH$7*(AK129-$D$5)*(1/Sanierungsdesign!$E$15)/1000000 -> 60.92908462 | AN129: =$D$5+(-Sanierungsdesign!$E$12/(4*PI()*$D$3))*(-LN((4*$D$4*AH129)/(Sanierungsdesign!$E$13+Sanierungsdesign!$E$15)^2)-$D$19) -> 277.9530737 | AO129: 4.803073708 | AP129: =(2*PI()*Sanierungsdesign!$E$10*$D$3)*(LN((Sanierungsdesign!$E$13+Sanierungsdesign!$E$15)/Sanierungsdesign!$E$13)*(AJ129-AN129))*$AH$7/1000000 -> 63.80210047 | AQ129: 1525.924373 | AR129: 3444.011311 | AS129: =AU129/Sanierungsdesign!$E$11 -> 0.511903875 | AT129: 708480 | AU129: 4.095231 | AZ129: =(AY129/(AH129*Sanierungsdesign!$E$10))*1000000 ->  | BA129: =AZ129/Sanierungsdesign!$E$12 ->  | BB129: =$D$5+((-(Sanierungsdesign!$E$12)*MIN($BA$7:$BA$932))/(4*PI()*$D$3))*(-LN((4*$D$4*AH129)/(Sanierungsdesign!$E$13)^2)-$D$19) ->  | BC129: =(BB129-273.15)/Heterogenität!$D$4 ->  | BD129: =IF(AI129<Berechnung!$D$7,AI129,#N/A) -> 
AG130: =Sanierungsdesign!$E$12*AH130*Sanierungsdesign!$E$10/1000000 -> 5803.2 | AH130: 892800 | AI130: 10.33333333 | AJ130: =$D$5+((-Sanierungsdesign!$E$12)/4*PI()*$D$3)*(-LN((4*$D$4*AH130)/(Sanierungsdesign!$E$13^2))-$D$19) -> 1003.933267 | AK130: 730.7832671 | AL130: 1437.733958 | AM130: =$D$3*$T$7*$AH$7*(AK130-$D$5)*(1/Sanierungsdesign!$E$15)/1000000 -> 62.51314508 | AN130: =$D$5+(-Sanierungsdesign!$E$12/(4*PI()*$D$3))*(-LN((4*$D$4*AH130)/(Sanierungsdesign!$E$13+Sanierungsdesign!$E$15)^2)-$D$19) -> 278.5636146 | AO130: 5.413614649 | AP130: =(2*PI()*Sanierungsdesign!$E$10*$D$3)*(LN((Sanierungsdesign!$E$13+Sanierungsdesign!$E$15)/Sanierungsdesign!$E$13)*(AJ130-AN130))*$AH$7/1000000 -> 64.76027154 | AQ130: 1538.330263 | AR130: 3472.011403 | AS130: =AU130/Sanierungsdesign!$E$11 -> 0.5201115721 | AT130: 714240 | AU130: 4.160892577 | AZ130: =(AY130/(AH130*Sanierungsdesign!$E$10))*1000000 ->  | BA130: =AZ130/Sanierungsdesign!$E$12 ->  | BB130: =$D$5+((-(Sanierungsdesign!$E$12)*MIN($BA$7:$BA$932))/(4*PI()*$D$3))*(-LN((4*$D$4*AH130)/(Sanierungsdesign!$E$13)^2)-$D$19) ->  | BC130: =(BB130-273.15)/Heterogenität!$D$4 ->  | BD130: =IF(AI130<Berechnung!$D$7,AI130,#N/A) -> 
AG131: =Sanierungsdesign!$E$12*AH131*Sanierungsdesign!$E$10/1000000 -> 5850 | AH131: 900000 | AI131: 10.41666667 | AJ131: =$D$5+((-Sanierungsdesign!$E$12)/4*PI()*$D$3)*(-LN((4*$D$4*AH131)/(Sanierungsdesign!$E$13^2))-$D$19) -> 1015.185024 | AK131: 742.0350237 | AL131: 1460.240092 | AM131: =$D$3*$T$7*$AH$7*(AK131-$D$5)*(1/Sanierungsdesign!$E$15)/1000000 -> 64.08448203 | AN131: =$D$5+(-Sanierungsdesign!$E$12/(4*PI()*$D$3))*(-LN((4*$D$4*AH131)/(Sanierungsdesign!$E$13+Sanierungsdesign!$E$15)^2)-$D$19) -> 279.1692516 | AO131: 6.019251595 | AP131: =(2*PI()*Sanierungsdesign!$E$10*$D$3)*(LN((Sanierungsdesign!$E$13+Sanierungsdesign!$E$15)/Sanierungsdesign!$E$13)*(AJ131-AN131))*$AH$7/1000000 -> 65.71074637 | AQ131: 1550.736152 | AR131: 3500.011495 | AS131: =AU131/Sanierungsdesign!$E$11 -> 0.5282533431 | AT131: 720000 | AU131: 4.226026745 | AZ131: =(AY131/(AH131*Sanierungsdesign!$E$10))*1000000 ->  | BA131: =AZ131/Sanierungsdesign!$E$12 ->  | BB131: =$D$5+((-(Sanierungsdesign!$E$12)*MIN($BA$7:$BA$932))/(4*PI()*$D$3))*(-LN((4*$D$4*AH131)/(Sanierungsdesign!$E$13)^2)-$D$19) ->  | BC131: =(BB131-273.15)/Heterogenität!$D$4 ->  | BD131: =IF(AI131<Berechnung!$D$7,AI131,#N/A) -> 
AG132: =Sanierungsdesign!$E$12*AH132*Sanierungsdesign!$E$10/1000000 -> 5896.8 | AH132: 907200 | AI132: 10.5 | AJ132: =$D$5+((-Sanierungsdesign!$E$12)/4*PI()*$D$3)*(-LN((4*$D$4*AH132)/(Sanierungsdesign!$E$13^2))-$D$19) -> 1026.347124 | AK132: 753.1971239 | AL132: 1482.566892 | AM132: =$D$3*$T$7*$AH$7*(AK132-$D$5)*(1/Sanierungsdesign!$E$15)/1000000 -> 65.64329823 | AN132: =$D$5+(-Sanierungsdesign!$E$12/(4*PI()*$D$3))*(-LN((4*$D$4*AH132)/(Sanierungsdesign!$E$13+Sanierungsdesign!$E$15)^2)-$D$19) -> 279.7700627 | AO132: 6.620062696 | AP132: =(2*PI()*Sanierungsdesign!$E$10*$D$3)*(LN((Sanierungsdesign!$E$13+Sanierungsdesign!$E$15)/Sanierungsdesign!$E$13)*(AJ132-AN132))*$AH$7/1000000 -> 66.65364762 | AQ132: 1563.142041 | AR132: 3528.011587 | AS132: =AU132/Sanierungsdesign!$E$11 -> 0.5363302389 | AT132: 725760 | AU132: 4.290641911 | AZ132: =(AY132/(AH132*Sanierungsdesign!$E$10))*1000000 ->  | BA132: =AZ132/Sanierungsdesign!$E$12 ->  | BB132: =$D$5+((-(Sanierungsdesign!$E$12)*MIN($BA$7:$BA$932))/(4*PI()*$D$3))*(-LN((4*$D$4*AH132)/(Sanierungsdesign!$E$13)^2)-$D$19) ->  | BC132: =(BB132-273.15)/Heterogenität!$D$4 ->  | BD132: =IF(AI132<Berechnung!$D$7,AI132,#N/A) -> 
AG133: =Sanierungsdesign!$E$12*AH133*Sanierungsdesign!$E$10/1000000 -> 5943.6 | AH133: 914400 | AI133: 10.58333333 | AJ133: =$D$5+((-Sanierungsdesign!$E$12)/4*PI()*$D$3)*(-LN((4*$D$4*AH133)/(Sanierungsdesign!$E$13^2))-$D$19) -> 1037.420985 | AK133: 764.2709852 | AL133: 1504.717195 | AM133: =$D$3*$T$7*$AH$7*(AK133-$D$5)*(1/Sanierungsdesign!$E$15)/1000000 -> 67.18979165 | AN133: =$D$5+(-Sanierungsdesign!$E$12/(4*PI()*$D$3))*(-LN((4*$D$4*AH133)/(Sanierungsdesign!$E$13+Sanierungsdesign!$E$15)^2)-$D$19) -> 280.3661243 | AO133: 7.216124254 | AP133: =(2*PI()*Sanierungsdesign!$E$10*$D$3)*(LN((Sanierungsdesign!$E$13+Sanierungsdesign!$E$15)/Sanierungsdesign!$E$13)*(AJ133-AN133))*$AH$7/1000000 -> 67.58909503 | AQ133: 1575.54793 | AR133: 3556.011679 | AS133: =AU133/Sanierungsdesign!$E$11 -> 0.5443432849 | AT133: 731520 | AU133: 4.354746279 | AZ133: =(AY133/(AH133*Sanierungsdesign!$E$10))*1000000 ->  | BA133: =AZ133/Sanierungsdesign!$E$12 ->  | BB133: =$D$5+((-(Sanierungsdesign!$E$12)*MIN($BA$7:$BA$932))/(4*PI()*$D$3))*(-LN((4*$D$4*AH133)/(Sanierungsdesign!$E$13)^2)-$D$19) ->  | BC133: =(BB133-273.15)/Heterogenität!$D$4 ->  | BD133: =IF(AI133<Berechnung!$D$7,AI133,#N/A) -> 
AG134: =Sanierungsdesign!$E$12*AH134*Sanierungsdesign!$E$10/1000000 -> 5990.4 | AH134: 921600 | AI134: 10.66666667 | AJ134: =$D$5+((-Sanierungsdesign!$E$12)/4*PI()*$D$3)*(-LN((4*$D$4*AH134)/(Sanierungsdesign!$E$13^2))-$D$19) -> 1048.407992 | AK134: 775.2579919 | AL134: 1526.693767 | AM134: =$D$3*$T$7*$AH$7*(AK134-$D$5)*(1/Sanierungsdesign!$E$15)/1000000 -> 68.72415558 | AN134: =$D$5+(-Sanierungsdesign!$E$12/(4*PI()*$D$3))*(-LN((4*$D$4*AH134)/(Sanierungsdesign!$E$13+Sanierungsdesign!$E$15)^2)-$D$19) -> 280.9575108 | AO134: 7.80751077 | AP134: =(2*PI()*Sanierungsdesign!$E$10*$D$3)*(LN((Sanierungsdesign!$E$13+Sanierungsdesign!$E$15)/Sanierungsdesign!$E$13)*(AJ134-AN134))*$AH$7/1000000 -> 68.51720551 | AQ134: 1587.95382 | AR134: 3584.011771 | AS134: =AU134/Sanierungsdesign!$E$11 -> 0.5522934829 | AT134: 737280 | AU134: 4.418347863 | AZ134: =(AY134/(AH134*Sanierungsdesign!$E$10))*1000000 ->  | BA134: =AZ134/Sanierungsdesign!$E$12 ->  | BB134: =$D$5+((-(Sanierungsdesign!$E$12)*MIN($BA$7:$BA$932))/(4*PI()*$D$3))*(-LN((4*$D$4*AH134)/(Sanierungsdesign!$E$13)^2)-$D$19) ->  | BC134: =(BB134-273.15)/Heterogenität!$D$4 ->  | BD134: =IF(AI134<Berechnung!$D$7,AI134,#N/A) -> 
AG135: =Sanierungsdesign!$E$12*AH135*Sanierungsdesign!$E$10/1000000 -> 6037.2 | AH135: 928800 | AI135: =AH135/86400 -> 10.75 | AJ135: =$D$5+((-Sanierungsdesign!$E$12)/4*PI()*$D$3)*(-LN((4*$D$4*AH135)/(Sanierungsdesign!$E$13^2))-$D$19) -> 1059.309496 | AK135: =AJ135-273.15 -> 786.1594956 | AL135: 1548.499314 | AM135: =$D$3*$T$7*$AH$7*(AK135-$D$5)*(1/Sanierungsdesign!$E$15)/1000000 -> 70.24657881 | AN135: =$D$5+(-Sanierungsdesign!$E$12/(4*PI()*$D$3))*(-LN((4*$D$4*AH135)/(Sanierungsdesign!$E$13+Sanierungsdesign!$E$15)^2)-$D$19) -> 281.544295 | AO135: =AN135-273.15 -> 8.39429501 | AP135: =(2*PI()*Sanierungsdesign!$E$10*$D$3)*(LN((Sanierungsdesign!$E$13+Sanierungsdesign!$E$15)/Sanierungsdesign!$E$13)*(AJ135-AN135))*$AH$7/1000000 -> 69.43809328 | AQ135: 1600.359709 | AR135: 3612.011863 | AS135: =AU135/Sanierungsdesign!$E$11 -> 0.560181811 | AT135: 743040 | AU135: 4.481454488 | AY135: =AG135-AX135 ->  | AZ135: =(AY135/(AH135*Sanierungsdesign!$E$10))*1000000 ->  | BA135: =AZ135/Sanierungsdesign!$E$12 ->  | BB135: =$D$5+((-(Sanierungsdesign!$E$12)*MIN($BA$7:$BA$932))/(4*PI()*$D$3))*(-LN((4*$D$4*AH135)/(Sanierungsdesign!$E$13)^2)-$D$19) ->  | BC135: =(BB135-273.15)/Heterogenität!$D$4 ->  | BD135: =IF(AI135<Berechnung!$D$7,AI135,#N/A) -> 
AG136: =Sanierungsdesign!$E$12*AH136*Sanierungsdesign!$E$10/1000000 -> 6084 | AH136: 936000 | AI136: 10.83333333 | AJ136: =$D$5+((-Sanierungsdesign!$E$12)/4*PI()*$D$3)*(-LN((4*$D$4*AH136)/(Sanierungsdesign!$E$13^2))-$D$19) -> 1070.126817 | AK136: 796.9768171 | AL136: =$T$4*$T$7*$AH$7*(AJ136-$D$2)/1000000 -> 1570.136476 | AM136: =$D$3*$T$7*$AH$7*(AK136-$D$5)*(1/Sanierungsdesign!$E$15)/1000000 -> 71.75724577 | AN136: =$D$5+(-Sanierungsdesign!$E$12/(4*PI()*$D$3))*(-LN((4*$D$4*AH136)/(Sanierungsdesign!$E$13+Sanierungsdesign!$E$15)^2)-$D$19) -> 282.1265481 | AO136: 8.976548053 | AP136: =(2*PI()*Sanierungsdesign!$E$10*$D$3)*(LN((Sanierungsdesign!$E$13+Sanierungsdesign!$E$15)/Sanierungsdesign!$E$13)*(AJ136-AN136))*$AH$7/1000000 -> 70.35186987 | AQ136: =$T$20*AH136 -> 1612.765598 | AR136: =$D$12*AQ136/1000000 -> 3640.011955 | AS136: =AU136/Sanierungsdesign!$E$11 -> 0.5680092248 | AT136: =$T$18/$D$24*AH136 -> 748800 | AU136: =($D$10*$T$18)*(AJ136-$D$2)/1000000 -> 4.544073799 | AV136: =($D$17*$L$10*$T$28+$L$2*$D$10*$T$28+$D$16*$L$4*$T$28+$D$18*$L$7*$T$28)*(AJ136-$D$5)/1000000 ->  | AW136: =AV136*$D$28 ->  | AX136: =AL136+AM136+AR136+(0.5*AP136)-(2*AW136)+AS136 ->  | AZ136: =(AY136/(AH136*Sanierungsdesign!$E$10))*1000000 ->  | BA136: =AZ136/Sanierungsdesign!$E$12 ->  | BB136: =$D$5+((-(Sanierungsdesign!$E$12)*MIN($BA$7:$BA$932))/(4*PI()*$D$3))*(-LN((4*$D$4*AH136)/(Sanierungsdesign!$E$13)^2)-$D$19) ->  | BC136: =(BB136-273.15)/Heterogenität!$D$4 ->  | BD136: =IF(AI136<Berechnung!$D$7,AI136,#N/A) -> 
AG137: =Sanierungsdesign!$E$12*AH137*Sanierungsdesign!$E$10/1000000 -> 6130.8 | AH137: =AH136+$D$24 -> 943200 | AI137: 10.91666667 | AJ137: =$D$5+((-Sanierungsdesign!$E$12)/4*PI()*$D$3)*(-LN((4*$D$4*AH137)/(Sanierungsdesign!$E$13^2))-$D$19) -> 1080.861246 | AK137: 807.7112463 | AL137: 1591.607835 | AM137: =$D$3*$T$7*$AH$7*(AK137-$D$5)*(1/Sanierungsdesign!$E$15)/1000000 -> 73.25633662 | AN137: =$D$5+(-Sanierungsdesign!$E$12/(4*PI()*$D$3))*(-LN((4*$D$4*AH137)/(Sanierungsdesign!$E$13+Sanierungsdesign!$E$15)^2)-$D$19) -> 282.7043393 | AO137: 9.554339342 | AP137: =(2*PI()*Sanierungsdesign!$E$10*$D$3)*(LN((Sanierungsdesign!$E$13+Sanierungsdesign!$E$15)/Sanierungsdesign!$E$13)*(AJ137-AN137))*$AH$7/1000000 -> 71.25864427 | AQ137: 1625.171487 | AR137: 3668.012046 | AS137: =AU137/Sanierungsdesign!$E$11 -> 0.5757766578 | AT137: 754560 | AU137: 4.606213263 | AZ137: =(AY137/(AH137*Sanierungsdesign!$E$10))*1000000 ->  | BA137: =AZ137/Sanierungsdesign!$E$12 ->  | BB137: =$D$5+((-(Sanierungsdesign!$E$12)*MIN($BA$7:$BA$932))/(4*PI()*$D$3))*(-LN((4*$D$4*AH137)/(Sanierungsdesign!$E$13)^2)-$D$19) ->  | BC137: =(BB137-273.15)/Heterogenität!$D$4 ->  | BD137: =IF(AI137<Berechnung!$D$7,AI137,#N/A) -> 
AG138: =Sanierungsdesign!$E$12*AH138*Sanierungsdesign!$E$10/1000000 -> 6177.6 | AH138: 950400 | AI138: 11 | AJ138: =$D$5+((-Sanierungsdesign!$E$12)/4*PI()*$D$3)*(-LN((4*$D$4*AH138)/(Sanierungsdesign!$E$13^2))-$D$19) -> 1091.514044 | AK138: 818.3640442 | AL138: 1612.915912 | AM138: =$D$3*$T$7*$AH$7*(AK138-$D$5)*(1/Sanierungsdesign!$E$15)/1000000 -> 74.74402742 | AN138: =$D$5+(-Sanierungsdesign!$E$12/(4*PI()*$D$3))*(-LN((4*$D$4*AH138)/(Sanierungsdesign!$E$13+Sanierungsdesign!$E$15)^2)-$D$19) -> 283.2777367 | AO138: 10.12773674 | AP138: =(2*PI()*Sanierungsdesign!$E$10*$D$3)*(LN((Sanierungsdesign!$E$13+Sanierungsdesign!$E$15)/Sanierungsdesign!$E$13)*(AJ138-AN138))*$AH$7/1000000 -> 72.15852298 | AQ138: 1637.577376 | AR138: 3696.012138 | AS138: =AU138/Sanierungsdesign!$E$11 -> 0.5834850224 | AT138: 760320 | AU138: 4.667880179 | AZ138: =(AY138/(AH138*Sanierungsdesign!$E$10))*1000000 ->  | BA138: =AZ138/Sanierungsdesign!$E$12 ->  | BB138: =$D$5+((-(Sanierungsdesign!$E$12)*MIN($BA$7:$BA$932))/(4*PI()*$D$3))*(-LN((4*$D$4*AH138)/(Sanierungsdesign!$E$13)^2)-$D$19) ->  | BC138: =(BB138-273.15)/Heterogenität!$D$4 ->  | BD138: =IF(AI138<Berechnung!$D$7,AI138,#N/A) -> 
AG139: =Sanierungsdesign!$E$12*AH139*Sanierungsdesign!$E$10/1000000 -> 6224.4 | AH139: 957600 | AI139: 11.08333333 | AJ139: =$D$5+((-Sanierungsdesign!$E$12)/4*PI()*$D$3)*(-LN((4*$D$4*AH139)/(Sanierungsdesign!$E$13^2))-$D$19) -> 1102.086443 | AK139: 828.9364428 | AL139: 1634.063172 | AM139: =$D$3*$T$7*$AH$7*(AK139-$D$5)*(1/Sanierungsdesign!$E$15)/1000000 -> 76.22049027 | AN139: =$D$5+(-Sanierungsdesign!$E$12/(4*PI()*$D$3))*(-LN((4*$D$4*AH139)/(Sanierungsdesign!$E$13+Sanierungsdesign!$E$15)^2)-$D$19) -> 283.8468066 | AO139: 10.69680657 | AP139: =(2*PI()*Sanierungsdesign!$E$10*$D$3)*(LN((Sanierungsdesign!$E$13+Sanierungsdesign!$E$15)/Sanierungsdesign!$E$13)*(AJ139-AN139))*$AH$7/1000000 -> 73.05161009 | AQ139: 1649.983266 | AR139: 3724.01223 | AS139: =AU139/Sanierungsdesign!$E$11 -> 0.59113521 | AT139: 766080 | AU139: 4.72908168 | AZ139: =(AY139/(AH139*Sanierungsdesign!$E$10))*1000000 ->  | BA139: =AZ139/Sanierungsdesign!$E$12 ->  | BB139: =$D$5+((-(Sanierungsdesign!$E$12)*MIN($BA$7:$BA$932))/(4*PI()*$D$3))*(-LN((4*$D$4*AH139)/(Sanierungsdesign!$E$13)^2)-$D$19) ->  | BC139: =(BB139-273.15)/Heterogenität!$D$4 ->  | BD139: =IF(AI139<Berechnung!$D$7,AI139,#N/A) -> 
AG140: =Sanierungsdesign!$E$12*AH140*Sanierungsdesign!$E$10/1000000 -> 6271.2 | AH140: 964800 | AI140: 11.16666667 | AJ140: =$D$5+((-Sanierungsdesign!$E$12)/4*PI()*$D$3)*(-LN((4*$D$4*AH140)/(Sanierungsdesign!$E$13^2))-$D$19) -> 1112.579647 | AK140: 839.4296466 | AL140: 1655.052024 | AM140: =$D$3*$T$7*$AH$7*(AK140-$D$5)*(1/Sanierungsdesign!$E$15)/1000000 -> 77.68589336 | AN140: =$D$5+(-Sanierungsdesign!$E$12/(4*PI()*$D$3))*(-LN((4*$D$4*AH140)/(Sanierungsdesign!$E$13+Sanierungsdesign!$E$15)^2)-$D$19) -> 284.4116137 | AO140: 11.26161366 | AP140: =(2*PI()*Sanierungsdesign!$E$10*$D$3)*(LN((Sanierungsdesign!$E$13+Sanierungsdesign!$E$15)/Sanierungsdesign!$E$13)*(AJ140-AN140))*$AH$7/1000000 -> 73.93800735 | AQ140: 1662.389155 | AR140: 3752.012322 | AS140: =AU140/Sanierungsdesign!$E$11 -> 0.5987280923 | AT140: 771840 | AU140: 4.789824738 | AZ140: =(AY140/(AH140*Sanierungsdesign!$E$10))*1000000 ->  | BA140: =AZ140/Sanierungsdesign!$E$12 ->  | BB140: =$D$5+((-(Sanierungsdesign!$E$12)*MIN($BA$7:$BA$932))/(4*PI()*$D$3))*(-LN((4*$D$4*AH140)/(Sanierungsdesign!$E$13)^2)-$D$19) ->  | BC140: =(BB140-273.15)/Heterogenität!$D$4 ->  | BD140: =IF(AI140<Berechnung!$D$7,AI140,#N/A) -> 
AG141: =Sanierungsdesign!$E$12*AH141*Sanierungsdesign!$E$10/1000000 -> 6318 | AH141: 972000 | AI141: 11.25 | AJ141: =$D$5+((-Sanierungsdesign!$E$12)/4*PI()*$D$3)*(-LN((4*$D$4*AH141)/(Sanierungsdesign!$E$13^2))-$D$19) -> 1122.994833 | AK141: 849.8448333 | AL141: 1675.884823 | AM141: =$D$3*$T$7*$AH$7*(AK141-$D$5)*(1/Sanierungsdesign!$E$15)/1000000 -> 79.14040117 | AN141: =$D$5+(-Sanierungsdesign!$E$12/(4*PI()*$D$3))*(-LN((4*$D$4*AH141)/(Sanierungsdesign!$E$13+Sanierungsdesign!$E$15)^2)-$D$19) -> 284.9722214 | AO141: 11.8222214 | AP141: =(2*PI()*Sanierungsdesign!$E$10*$D$3)*(LN((Sanierungsdesign!$E$13+Sanierungsdesign!$E$15)/Sanierungsdesign!$E$13)*(AJ141-AN141))*$AH$7/1000000 -> 74.81781423 | AQ141: 1674.795044 | AR141: 3780.012414 | AS141: =AU141/Sanierungsdesign!$E$11 -> 0.6062645214 | AT141: 777600 | AU141: 4.850116171 | AZ141: =(AY141/(AH141*Sanierungsdesign!$E$10))*1000000 ->  | BA141: =AZ141/Sanierungsdesign!$E$12 ->  | BB141: =$D$5+((-(Sanierungsdesign!$E$12)*MIN($BA$7:$BA$932))/(4*PI()*$D$3))*(-LN((4*$D$4*AH141)/(Sanierungsdesign!$E$13)^2)-$D$19) ->  | BC141: =(BB141-273.15)/Heterogenität!$D$4 ->  | BD141: =IF(AI141<Berechnung!$D$7,AI141,#N/A) -> 
AG142: =Sanierungsdesign!$E$12*AH142*Sanierungsdesign!$E$10/1000000 -> 6364.8 | AH142: 979200 | AI142: 11.33333333 | AJ142: =$D$5+((-Sanierungsdesign!$E$12)/4*PI()*$D$3)*(-LN((4*$D$4*AH142)/(Sanierungsdesign!$E$13^2))-$D$19) -> 1133.333155 | AK142: 860.1831545 | AL142: 1696.563874 | AM142: =$D$3*$T$7*$AH$7*(AK142-$D$5)*(1/Sanierungsdesign!$E$15)/1000000 -> 80.5841745 | AN142: =$D$5+(-Sanierungsdesign!$E$12/(4*PI()*$D$3))*(-LN((4*$D$4*AH142)/(Sanierungsdesign!$E$13+Sanierungsdesign!$E$15)^2)-$D$19) -> 285.5286918 | AO142: 12.37869179 | AP142: =(2*PI()*Sanierungsdesign!$E$10*$D$3)*(LN((Sanierungsdesign!$E$13+Sanierungsdesign!$E$15)/Sanierungsdesign!$E$13)*(AJ142-AN142))*$AH$7/1000000 -> 75.69112802 | AQ142: 1687.200933 | AR142: 3808.012506 | AS142: =AU142/Sanierungsdesign!$E$11 -> 0.6137453306 | AT142: 783360 | AU142: 4.909962645 | AZ142: =(AY142/(AH142*Sanierungsdesign!$E$10))*1000000 ->  | BA142: =AZ142/Sanierungsdesign!$E$12 ->  | BB142: =$D$5+((-(Sanierungsdesign!$E$12)*MIN($BA$7:$BA$932))/(4*PI()*$D$3))*(-LN((4*$D$4*AH142)/(Sanierungsdesign!$E$13)^2)-$D$19) ->  | BC142: =(BB142-273.15)/Heterogenität!$D$4 ->  | BD142: =IF(AI142<Berechnung!$D$7,AI142,#N/A) -> 
AG143: =Sanierungsdesign!$E$12*AH143*Sanierungsdesign!$E$10/1000000 -> 6411.6 | AH143: 986400 | AI143: 11.41666667 | AJ143: =$D$5+((-Sanierungsdesign!$E$12)/4*PI()*$D$3)*(-LN((4*$D$4*AH143)/(Sanierungsdesign!$E$13^2))-$D$19) -> 1143.595736 | AK143: 870.4457364 | AL143: 1717.091428 | AM143: =$D$3*$T$7*$AH$7*(AK143-$D$5)*(1/Sanierungsdesign!$E$15)/1000000 -> 82.01737064 | AN143: =$D$5+(-Sanierungsdesign!$E$12/(4*PI()*$D$3))*(-LN((4*$D$4*AH143)/(Sanierungsdesign!$E$13+Sanierungsdesign!$E$15)^2)-$D$19) -> 286.0810854 | AO143: 12.93108542 | AP143: =(2*PI()*Sanierungsdesign!$E$10*$D$3)*(LN((Sanierungsdesign!$E$13+Sanierungsdesign!$E$15)/Sanierungsdesign!$E$13)*(AJ143-AN143))*$AH$7/1000000 -> 76.55804384 | AQ143: 1699.606822 | AR143: 3836.012598 | AS143: =AU143/Sanierungsdesign!$E$11 -> 0.6211713349 | AT143: 789120 | AU143: 4.969370679 | AZ143: =(AY143/(AH143*Sanierungsdesign!$E$10))*1000000 ->  | BA143: =AZ143/Sanierungsdesign!$E$12 ->  | BB143: =$D$5+((-(Sanierungsdesign!$E$12)*MIN($BA$7:$BA$932))/(4*PI()*$D$3))*(-LN((4*$D$4*AH143)/(Sanierungsdesign!$E$13)^2)-$D$19) ->  | BC143: =(BB143-273.15)/Heterogenität!$D$4 ->  | BD143: =IF(AI143<Berechnung!$D$7,AI143,#N/A) -> 
AG144: =Sanierungsdesign!$E$12*AH144*Sanierungsdesign!$E$10/1000000 -> 6458.4 | AH144: 993600 | AI144: 11.5 | AJ144: =$D$5+((-Sanierungsdesign!$E$12)/4*PI()*$D$3)*(-LN((4*$D$4*AH144)/(Sanierungsdesign!$E$13^2))-$D$19) -> 1153.783681 | AK144: 880.6336807 | AL144: 1737.46969 | AM144: =$D$3*$T$7*$AH$7*(AK144-$D$5)*(1/Sanierungsdesign!$E$15)/1000000 -> 83.44014344 | AN144: =$D$5+(-Sanierungsdesign!$E$12/(4*PI()*$D$3))*(-LN((4*$D$4*AH144)/(Sanierungsdesign!$E$13+Sanierungsdesign!$E$15)^2)-$D$19) -> 286.6294616 | AO144: 13.47946162 | AP144: =(2*PI()*Sanierungsdesign!$E$10*$D$3)*(LN((Sanierungsdesign!$E$13+Sanierungsdesign!$E$15)/Sanierungsdesign!$E$13)*(AJ144-AN144))*$AH$7/1000000 -> 77.41865476 | AQ144: 1712.012712 | AR144: 3864.01269 | AS144: =AU144/Sanierungsdesign!$E$11 -> 0.6285433314 | AT144: 794880 | AU144: 5.028346651 | AZ144: =(AY144/(AH144*Sanierungsdesign!$E$10))*1000000 ->  | BA144: =AZ144/Sanierungsdesign!$E$12 ->  | BB144: =$D$5+((-(Sanierungsdesign!$E$12)*MIN($BA$7:$BA$932))/(4*PI()*$D$3))*(-LN((4*$D$4*AH144)/(Sanierungsdesign!$E$13)^2)-$D$19) ->  | BC144: =(BB144-273.15)/Heterogenität!$D$4 ->  | BD144: =IF(AI144<Berechnung!$D$7,AI144,#N/A) -> 
AG145: =Sanierungsdesign!$E$12*AH145*Sanierungsdesign!$E$10/1000000 -> 6505.2 | AH145: 1000800 | AI145: 11.58333333 | AJ145: =$D$5+((-Sanierungsdesign!$E$12)/4*PI()*$D$3)*(-LN((4*$D$4*AH145)/(Sanierungsdesign!$E$13^2))-$D$19) -> 1163.898065 | AK145: 890.7480652 | AL145: 1757.700814 | AM145: =$D$3*$T$7*$AH$7*(AK145-$D$5)*(1/Sanierungsdesign!$E$15)/1000000 -> 84.85264343 | AN145: =$D$5+(-Sanierungsdesign!$E$12/(4*PI()*$D$3))*(-LN((4*$D$4*AH145)/(Sanierungsdesign!$E$13+Sanierungsdesign!$E$15)^2)-$D$19) -> 287.1738784 | AO145: 14.02387838 | AP145: =(2*PI()*Sanierungsdesign!$E$10*$D$3)*(LN((Sanierungsdesign!$E$13+Sanierungsdesign!$E$15)/Sanierungsdesign!$E$13)*(AJ145-AN145))*$AH$7/1000000 -> 78.27305184 | AQ145: 1724.418601 | AR145: 3892.012782 | AS145: =AU145/Sanierungsdesign!$E$11 -> 0.6358621 | AT145: 800640 | AU145: 5.0868968 | AZ145: =(AY145/(AH145*Sanierungsdesign!$E$10))*1000000 ->  | BA145: =AZ145/Sanierungsdesign!$E$12 ->  | BB145: =$D$5+((-(Sanierungsdesign!$E$12)*MIN($BA$7:$BA$932))/(4*PI()*$D$3))*(-LN((4*$D$4*AH145)/(Sanierungsdesign!$E$13)^2)-$D$19) ->  | BC145: =(BB145-273.15)/Heterogenität!$D$4 ->  | BD145: =IF(AI145<Berechnung!$D$7,AI145,#N/A) -> 
AG146: =Sanierungsdesign!$E$12*AH146*Sanierungsdesign!$E$10/1000000 -> 6552 | AH146: 1008000 | AI146: 11.66666667 | AJ146: =$D$5+((-Sanierungsdesign!$E$12)/4*PI()*$D$3)*(-LN((4*$D$4*AH146)/(Sanierungsdesign!$E$13^2))-$D$19) -> 1173.939945 | AK146: 900.7899445 | AL146: 1777.786912 | AM146: =$D$3*$T$7*$AH$7*(AK146-$D$5)*(1/Sanierungsdesign!$E$15)/1000000 -> 86.25501788 | AN146: =$D$5+(-Sanierungsdesign!$E$12/(4*PI()*$D$3))*(-LN((4*$D$4*AH146)/(Sanierungsdesign!$E$13+Sanierungsdesign!$E$15)^2)-$D$19) -> 287.7143925 | AO146: 14.56439248 | AP146: =(2*PI()*Sanierungsdesign!$E$10*$D$3)*(LN((Sanierungsdesign!$E$13+Sanierungsdesign!$E$15)/Sanierungsdesign!$E$13)*(AJ146-AN146))*$AH$7/1000000 -> 79.12132414 | AQ146: 1736.82449 | AR146: 3920.012874 | AS146: =AU146/Sanierungsdesign!$E$11 -> 0.6431284038 | AT146: 806400 | AU146: 5.145027231 | AZ146: =(AY146/(AH146*Sanierungsdesign!$E$10))*1000000 ->  | BA146: =AZ146/Sanierungsdesign!$E$12 ->  | BB146: =$D$5+((-(Sanierungsdesign!$E$12)*MIN($BA$7:$BA$932))/(4*PI()*$D$3))*(-LN((4*$D$4*AH146)/(Sanierungsdesign!$E$13)^2)-$D$19) ->  | BC146: =(BB146-273.15)/Heterogenität!$D$4 ->  | BD146: =IF(AI146<Berechnung!$D$7,AI146,#N/A) -> 
AG147: =Sanierungsdesign!$E$12*AH147*Sanierungsdesign!$E$10/1000000 -> 6598.8 | AH147: 1015200 | AI147: 11.75 | AJ147: =$D$5+((-Sanierungsdesign!$E$12)/4*PI()*$D$3)*(-LN((4*$D$4*AH147)/(Sanierungsdesign!$E$13^2))-$D$19) -> 1183.910351 | AK147: 910.7603508 | AL147: 1797.730047 | AM147: =$D$3*$T$7*$AH$7*(AK147-$D$5)*(1/Sanierungsdesign!$E$15)/1000000 -> 87.64741094 | AN147: =$D$5+(-Sanierungsdesign!$E$12/(4*PI()*$D$3))*(-LN((4*$D$4*AH147)/(Sanierungsdesign!$E$13+Sanierungsdesign!$E$15)^2)-$D$19) -> 288.2510595 | AO147: 15.10105948 | AP147: =(2*PI()*Sanierungsdesign!$E$10*$D$3)*(LN((Sanierungsdesign!$E$13+Sanierungsdesign!$E$15)/Sanierungsdesign!$E$13)*(AJ147-AN147))*$AH$7/1000000 -> 79.96355888 | AQ147: 1749.230379 | AR147: 3948.012966 | AS147: =AU147/Sanierungsdesign!$E$11 -> 0.6503429898 | AT147: 812160 | AU147: 5.202743918 | AZ147: =(AY147/(AH147*Sanierungsdesign!$E$10))*1000000 ->  | BA147: =AZ147/Sanierungsdesign!$E$12 ->  | BB147: =$D$5+((-(Sanierungsdesign!$E$12)*MIN($BA$7:$BA$932))/(4*PI()*$D$3))*(-LN((4*$D$4*AH147)/(Sanierungsdesign!$E$13)^2)-$D$19) ->  | BC147: =(BB147-273.15)/Heterogenität!$D$4 ->  | BD147: =IF(AI147<Berechnung!$D$7,AI147,#N/A) -> 
AG148: =Sanierungsdesign!$E$12*AH148*Sanierungsdesign!$E$10/1000000 -> 6645.6 | AH148: 1022400 | AI148: 11.83333333 | AJ148: =$D$5+((-Sanierungsdesign!$E$12)/4*PI()*$D$3)*(-LN((4*$D$4*AH148)/(Sanierungsdesign!$E$13^2))-$D$19) -> 1193.810294 | AK148: 920.6602942 | AL148: 1817.53224 | AM148: =$D$3*$T$7*$AH$7*(AK148-$D$5)*(1/Sanierungsdesign!$E$15)/1000000 -> 89.02996368 | AN148: =$D$5+(-Sanierungsdesign!$E$12/(4*PI()*$D$3))*(-LN((4*$D$4*AH148)/(Sanierungsdesign!$E$13+Sanierungsdesign!$E$15)^2)-$D$19) -> 288.7839337 | AO148: 15.63393374 | AP148: =(2*PI()*Sanierungsdesign!$E$10*$D$3)*(LN((Sanierungsdesign!$E$13+Sanierungsdesign!$E$15)/Sanierungsdesign!$E$13)*(AJ148-AN148))*$AH$7/1000000 -> 80.79984137 | AQ148: 1761.636269 | AR148: 3976.013058 | AS148: =AU148/Sanierungsdesign!$E$11 -> 0.6575065889 | AT148: 817920 | AU148: 5.260052711 | AZ148: =(AY148/(AH148*Sanierungsdesign!$E$10))*1000000 ->  | BA148: =AZ148/Sanierungsdesign!$E$12 ->  | BB148: =$D$5+((-(Sanierungsdesign!$E$12)*MIN($BA$7:$BA$932))/(4*PI()*$D$3))*(-LN((4*$D$4*AH148)/(Sanierungsdesign!$E$13)^2)-$D$19) ->  | BC148: =(BB148-273.15)/Heterogenität!$D$4 ->  | BD148: =IF(AI148<Berechnung!$D$7,AI148,#N/A) -> 
AG149: =Sanierungsdesign!$E$12*AH149*Sanierungsdesign!$E$10/1000000 -> 6692.4 | AH149: 1029600 | AI149: 11.91666667 | AJ149: =$D$5+((-Sanierungsdesign!$E$12)/4*PI()*$D$3)*(-LN((4*$D$4*AH149)/(Sanierungsdesign!$E$13^2))-$D$19) -> 1203.640764 | AK149: 930.4907637 | AL149: 1837.195469 | AM149: =$D$3*$T$7*$AH$7*(AK149-$D$5)*(1/Sanierungsdesign!$E$15)/1000000 -> 90.40281421 | AN149: =$D$5+(-Sanierungsdesign!$E$12/(4*PI()*$D$3))*(-LN((4*$D$4*AH149)/(Sanierungsdesign!$E$13+Sanierungsdesign!$E$15)^2)-$D$19) -> 289.3130685 | AO149: 16.1630685 | AP149: =(2*PI()*Sanierungsdesign!$E$10*$D$3)*(LN((Sanierungsdesign!$E$13+Sanierungsdesign!$E$15)/Sanierungsdesign!$E$13)*(AJ149-AN149))*$AH$7/1000000 -> 81.63025517 | AQ149: 1774.042158 | AR149: 4004.01315 | AS149: =AU149/Sanierungsdesign!$E$11 -> 0.6646199166 | AT149: 823680 | AU149: 5.316959333 | AZ149: =(AY149/(AH149*Sanierungsdesign!$E$10))*1000000 ->  | BA149: =AZ149/Sanierungsdesign!$E$12 ->  | BB149: =$D$5+((-(Sanierungsdesign!$E$12)*MIN($BA$7:$BA$932))/(4*PI()*$D$3))*(-LN((4*$D$4*AH149)/(Sanierungsdesign!$E$13)^2)-$D$19) ->  | BC149: =(BB149-273.15)/Heterogenität!$D$4 ->  | BD149: =IF(AI149<Berechnung!$D$7,AI149,#N/A) -> 
AG150: =Sanierungsdesign!$E$12*AH150*Sanierungsdesign!$E$10/1000000 -> 6739.2 | AH150: 1036800 | AI150: 12 | AJ150: =$D$5+((-Sanierungsdesign!$E$12)/4*PI()*$D$3)*(-LN((4*$D$4*AH150)/(Sanierungsdesign!$E$13^2))-$D$19) -> 1213.402728 | AK150: 940.2527277 | AL150: 1856.72167 | AM150: =$D$3*$T$7*$AH$7*(AK150-$D$5)*(1/Sanierungsdesign!$E$15)/1000000 -> 91.76609777 | AN150: =$D$5+(-Sanierungsdesign!$E$12/(4*PI()*$D$3))*(-LN((4*$D$4*AH150)/(Sanierungsdesign!$E$13+Sanierungsdesign!$E$15)^2)-$D$19) -> 289.8385159 | AO150: 16.68851589 | AP150: =(2*PI()*Sanierungsdesign!$E$10*$D$3)*(LN((Sanierungsdesign!$E$13+Sanierungsdesign!$E$15)/Sanierungsdesign!$E$13)*(AJ150-AN150))*$AH$7/1000000 -> 82.45488206 | AQ150: 1786.448047 | AR150: 4032.013242 | AS150: =AU150/Sanierungsdesign!$E$11 -> 0.6716836738 | AT150: 829440 | AU150: 5.37346939 | AZ150: =(AY150/(AH150*Sanierungsdesign!$E$10))*1000000 ->  | BA150: =AZ150/Sanierungsdesign!$E$12 ->  | BB150: =$D$5+((-(Sanierungsdesign!$E$12)*MIN($BA$7:$BA$932))/(4*PI()*$D$3))*(-LN((4*$D$4*AH150)/(Sanierungsdesign!$E$13)^2)-$D$19) ->  | BC150: =(BB150-273.15)/Heterogenität!$D$4 ->  | BD150: =IF(AI150<Berechnung!$D$7,AI150,#N/A) -> 
AG151: =Sanierungsdesign!$E$12*AH151*Sanierungsdesign!$E$10/1000000 -> 6786 | AH151: 1044000 | AI151: 12.08333333 | AJ151: =$D$5+((-Sanierungsdesign!$E$12)/4*PI()*$D$3)*(-LN((4*$D$4*AH151)/(Sanierungsdesign!$E$13^2))-$D$19) -> 1223.097134 | AK151: 949.9471344 | AL151: 1876.112742 | AM151: =$D$3*$T$7*$AH$7*(AK151-$D$5)*(1/Sanierungsdesign!$E$15)/1000000 -> 93.11994676 | AN151: =$D$5+(-Sanierungsdesign!$E$12/(4*PI()*$D$3))*(-LN((4*$D$4*AH151)/(Sanierungsdesign!$E$13+Sanierungsdesign!$E$15)^2)-$D$19) -> 290.3603269 | AO151: 17.21032693 | AP151: =(2*PI()*Sanierungsdesign!$E$10*$D$3)*(LN((Sanierungsdesign!$E$13+Sanierungsdesign!$E$15)/Sanierungsdesign!$E$13)*(AJ151-AN151))*$AH$7/1000000 -> 83.27380215 | AQ151: 1798.853936 | AR151: 4060.013334 | AS151: =AU151/Sanierungsdesign!$E$11 -> 0.6786985464 | AT151: 835200 | AU151: 5.429588371 | AZ151: =(AY151/(AH151*Sanierungsdesign!$E$10))*1000000 ->  | BA151: =AZ151/Sanierungsdesign!$E$12 ->  | BB151: =$D$5+((-(Sanierungsdesign!$E$12)*MIN($BA$7:$BA$932))/(4*PI()*$D$3))*(-LN((4*$D$4*AH151)/(Sanierungsdesign!$E$13)^2)-$D$19) ->  | BC151: =(BB151-273.15)/Heterogenität!$D$4 ->  | BD151: =IF(AI151<Berechnung!$D$7,AI151,#N/A) -> 
AG152: =Sanierungsdesign!$E$12*AH152*Sanierungsdesign!$E$10/1000000 -> 6832.8 | AH152: 1051200 | AI152: 12.16666667 | AJ152: =$D$5+((-Sanierungsdesign!$E$12)/4*PI()*$D$3)*(-LN((4*$D$4*AH152)/(Sanierungsdesign!$E$13^2))-$D$19) -> 1232.724912 | AK152: 959.5749122 | AL152: 1895.37054 | AM152: =$D$3*$T$7*$AH$7*(AK152-$D$5)*(1/Sanierungsdesign!$E$15)/1000000 -> 94.46449087 | AN152: =$D$5+(-Sanierungsdesign!$E$12/(4*PI()*$D$3))*(-LN((4*$D$4*AH152)/(Sanierungsdesign!$E$13+Sanierungsdesign!$E$15)^2)-$D$19) -> 290.8785516 | AO152: 17.72855161 | AP152: =(2*PI()*Sanierungsdesign!$E$10*$D$3)*(LN((Sanierungsdesign!$E$13+Sanierungsdesign!$E$15)/Sanierungsdesign!$E$13)*(AJ152-AN152))*$AH$7/1000000 -> 84.08709388 | AQ152: 1811.259825 | AR152: 4088.013426 | AS152: =AU152/Sanierungsdesign!$E$11 -> 0.6856652065 | AT152: 840960 | AU152: 5.485321652 | AZ152: =(AY152/(AH152*Sanierungsdesign!$E$10))*1000000 ->  | BA152: =AZ152/Sanierungsdesign!$E$12 ->  | BB152: =$D$5+((-(Sanierungsdesign!$E$12)*MIN($BA$7:$BA$932))/(4*PI()*$D$3))*(-LN((4*$D$4*AH152)/(Sanierungsdesign!$E$13)^2)-$D$19) ->  | BC152: =(BB152-273.15)/Heterogenität!$D$4 ->  | BD152: =IF(AI152<Berechnung!$D$7,AI152,#N/A) -> 
AG153: =Sanierungsdesign!$E$12*AH153*Sanierungsdesign!$E$10/1000000 -> 6879.6 | AH153: 1058400 | AI153: 12.25 | AJ153: =$D$5+((-Sanierungsdesign!$E$12)/4*PI()*$D$3)*(-LN((4*$D$4*AH153)/(Sanierungsdesign!$E$13^2))-$D$19) -> 1242.286971 | AK153: 969.1369709 | AL153: 1914.496885 | AM153: =$D$3*$T$7*$AH$7*(AK153-$D$5)*(1/Sanierungsdesign!$E$15)/1000000 -> 95.79985714 | AN153: =$D$5+(-Sanierungsdesign!$E$12/(4*PI()*$D$3))*(-LN((4*$D$4*AH153)/(Sanierungsdesign!$E$13+Sanierungsdesign!$E$15)^2)-$D$19) -> 291.3932389 | AO153: 18.24323889 | AP153: =(2*PI()*Sanierungsdesign!$E$10*$D$3)*(LN((Sanierungsdesign!$E$13+Sanierungsdesign!$E$15)/Sanierungsdesign!$E$13)*(AJ153-AN153))*$AH$7/1000000 -> 84.89483408 | AQ153: 1823.665715 | AR153: 4116.013518 | AS153: =AU153/Sanierungsdesign!$E$11 -> 0.6925843122 | AT153: 846720 | AU153: 5.540674497 | AZ153: =(AY153/(AH153*Sanierungsdesign!$E$10))*1000000 ->  | BA153: =AZ153/Sanierungsdesign!$E$12 ->  | BB153: =$D$5+((-(Sanierungsdesign!$E$12)*MIN($BA$7:$BA$932))/(4*PI()*$D$3))*(-LN((4*$D$4*AH153)/(Sanierungsdesign!$E$13)^2)-$D$19) ->  | BC153: =(BB153-273.15)/Heterogenität!$D$4 ->  | BD153: =IF(AI153<Berechnung!$D$7,AI153,#N/A) -> 
AG154: =Sanierungsdesign!$E$12*AH154*Sanierungsdesign!$E$10/1000000 -> 6926.4 | AH154: 1065600 | AI154: 12.33333333 | AJ154: =$D$5+((-Sanierungsdesign!$E$12)/4*PI()*$D$3)*(-LN((4*$D$4*AH154)/(Sanierungsdesign!$E$13^2))-$D$19) -> 1251.784202 | AK154: 978.6342016 | AL154: 1933.493558 | AM154: =$D$3*$T$7*$AH$7*(AK154-$D$5)*(1/Sanierungsdesign!$E$15)/1000000 -> 97.12617 | AN154: =$D$5+(-Sanierungsdesign!$E$12/(4*PI()*$D$3))*(-LN((4*$D$4*AH154)/(Sanierungsdesign!$E$13+Sanierungsdesign!$E$15)^2)-$D$19) -> 291.9044367 | AO154: 18.75443674 | AP154: =(2*PI()*Sanierungsdesign!$E$10*$D$3)*(LN((Sanierungsdesign!$E$13+Sanierungsdesign!$E$15)/Sanierungsdesign!$E$13)*(AJ154-AN154))*$AH$7/1000000 -> 85.69709804 | AQ154: 1836.071604 | AR154: 4144.01361 | AS154: =AU154/Sanierungsdesign!$E$11 -> 0.6994565083 | AT154: 852480 | AU154: 5.595652067 | AZ154: =(AY154/(AH154*Sanierungsdesign!$E$10))*1000000 ->  | BA154: =AZ154/Sanierungsdesign!$E$12 ->  | BB154: =$D$5+((-(Sanierungsdesign!$E$12)*MIN($BA$7:$BA$932))/(4*PI()*$D$3))*(-LN((4*$D$4*AH154)/(Sanierungsdesign!$E$13)^2)-$D$19) ->  | BC154: =(BB154-273.15)/Heterogenität!$D$4 ->  | BD154: =IF(AI154<Berechnung!$D$7,AI154,#N/A) -> 
AG155: =Sanierungsdesign!$E$12*AH155*Sanierungsdesign!$E$10/1000000 -> 6973.2 | AH155: 1072800 | AI155: 12.41666667 | AJ155: =$D$5+((-Sanierungsdesign!$E$12)/4*PI()*$D$3)*(-LN((4*$D$4*AH155)/(Sanierungsdesign!$E$13^2))-$D$19) -> 1261.217477 | AK155: 988.0674775 | AL155: 1952.362307 | AM155: =$D$3*$T$7*$AH$7*(AK155-$D$5)*(1/Sanierungsdesign!$E$15)/1000000 -> 98.4435514 | AN155: =$D$5+(-Sanierungsdesign!$E$12/(4*PI()*$D$3))*(-LN((4*$D$4*AH155)/(Sanierungsdesign!$E$13+Sanierungsdesign!$E$15)^2)-$D$19) -> 292.4121922 | AO155: 19.26219216 | AP155: =(2*PI()*Sanierungsdesign!$E$10*$D$3)*(LN((Sanierungsdesign!$E$13+Sanierungsdesign!$E$15)/Sanierungsdesign!$E$13)*(AJ155-AN155))*$AH$7/1000000 -> 86.49395951 | AQ155: 1848.477493 | AR155: 4172.013702 | AS155: =AU155/Sanierungsdesign!$E$11 -> 0.7062824267 | AT155: 858240 | AU155: 5.650259414 | AZ155: =(AY155/(AH155*Sanierungsdesign!$E$10))*1000000 ->  | BA155: =AZ155/Sanierungsdesign!$E$12 ->  | BB155: =$D$5+((-(Sanierungsdesign!$E$12)*MIN($BA$7:$BA$932))/(4*PI()*$D$3))*(-LN((4*$D$4*AH155)/(Sanierungsdesign!$E$13)^2)-$D$19) ->  | BC155: =(BB155-273.15)/Heterogenität!$D$4 ->  | BD155: =IF(AI155<Berechnung!$D$7,AI155,#N/A) -> 
AG156: =Sanierungsdesign!$E$12*AH156*Sanierungsdesign!$E$10/1000000 -> 7020 | AH156: 1080000 | AI156: 12.5 | AJ156: =$D$5+((-Sanierungsdesign!$E$12)/4*PI()*$D$3)*(-LN((4*$D$4*AH156)/(Sanierungsdesign!$E$13^2))-$D$19) -> 1270.587654 | AK156: 997.437654 | AL156: 1971.104843 | AM156: =$D$3*$T$7*$AH$7*(AK156-$D$5)*(1/Sanierungsdesign!$E$15)/1000000 -> 99.75212082 | AN156: =$D$5+(-Sanierungsdesign!$E$12/(4*PI()*$D$3))*(-LN((4*$D$4*AH156)/(Sanierungsdesign!$E$13+Sanierungsdesign!$E$15)^2)-$D$19) -> 292.9165512 | AO156: 19.76655119 | AP156: =(2*PI()*Sanierungsdesign!$E$10*$D$3)*(LN((Sanierungsdesign!$E$13+Sanierungsdesign!$E$15)/Sanierungsdesign!$E$13)*(AJ156-AN156))*$AH$7/1000000 -> 87.28549076 | AQ156: 1860.883382 | AR156: 4200.013794 | AS156: =AU156/Sanierungsdesign!$E$11 -> 0.7130626864 | AT156: 864000 | AU156: 5.704501491 | AZ156: =(AY156/(AH156*Sanierungsdesign!$E$10))*1000000 ->  | BA156: =AZ156/Sanierungsdesign!$E$12 ->  | BB156: =$D$5+((-(Sanierungsdesign!$E$12)*MIN($BA$7:$BA$932))/(4*PI()*$D$3))*(-LN((4*$D$4*AH156)/(Sanierungsdesign!$E$13)^2)-$D$19) ->  | BC156: =(BB156-273.15)/Heterogenität!$D$4 ->  | BD156: =IF(AI156<Berechnung!$D$7,AI156,#N/A) -> 
AG157: =Sanierungsdesign!$E$12*AH157*Sanierungsdesign!$E$10/1000000 -> 7066.8 | AH157: 1087200 | AI157: 12.58333333 | AJ157: =$D$5+((-Sanierungsdesign!$E$12)/4*PI()*$D$3)*(-LN((4*$D$4*AH157)/(Sanierungsdesign!$E$13^2))-$D$19) -> 1279.89557 | AK157: 1006.74557 | AL157: 1989.722842 | AM157: =$D$3*$T$7*$AH$7*(AK157-$D$5)*(1/Sanierungsdesign!$E$15)/1000000 -> 101.0519954 | AN157: =$D$5+(-Sanierungsdesign!$E$12/(4*PI()*$D$3))*(-LN((4*$D$4*AH157)/(Sanierungsdesign!$E$13+Sanierungsdesign!$E$15)^2)-$D$19) -> 293.417559 | AO157: 20.26755898 | AP157: =(2*PI()*Sanierungsdesign!$E$10*$D$3)*(LN((Sanierungsdesign!$E$13+Sanierungsdesign!$E$15)/Sanierungsdesign!$E$13)*(AJ157-AN157))*$AH$7/1000000 -> 88.07176262 | AQ157: 1873.289271 | AR157: 4228.013886 | AS157: =AU157/Sanierungsdesign!$E$11 -> 0.7197978942 | AT157: 869760 | AU157: 5.758383154 | AZ157: =(AY157/(AH157*Sanierungsdesign!$E$10))*1000000 ->  | BA157: =AZ157/Sanierungsdesign!$E$12 ->  | BB157: =$D$5+((-(Sanierungsdesign!$E$12)*MIN($BA$7:$BA$932))/(4*PI()*$D$3))*(-LN((4*$D$4*AH157)/(Sanierungsdesign!$E$13)^2)-$D$19) ->  | BC157: =(BB157-273.15)/Heterogenität!$D$4 ->  | BD157: =IF(AI157<Berechnung!$D$7,AI157,#N/A) -> 
AG158: =Sanierungsdesign!$E$12*AH158*Sanierungsdesign!$E$10/1000000 -> 7113.6 | AH158: 1094400 | AI158: 12.66666667 | AJ158: =$D$5+((-Sanierungsdesign!$E$12)/4*PI()*$D$3)*(-LN((4*$D$4*AH158)/(Sanierungsdesign!$E$13^2))-$D$19) -> 1289.142047 | AK158: 1015.992047 | AL158: 2008.21795 | AM158: =$D$3*$T$7*$AH$7*(AK158-$D$5)*(1/Sanierungsdesign!$E$15)/1000000 -> 102.3432898 | AN158: =$D$5+(-Sanierungsdesign!$E$12/(4*PI()*$D$3))*(-LN((4*$D$4*AH158)/(Sanierungsdesign!$E$13+Sanierungsdesign!$E$15)^2)-$D$19) -> 293.9152598 | AO158: 20.76525976 | AP158: =(2*PI()*Sanierungsdesign!$E$10*$D$3)*(LN((Sanierungsdesign!$E$13+Sanierungsdesign!$E$15)/Sanierungsdesign!$E$13)*(AJ158-AN158))*$AH$7/1000000 -> 88.85284454 | AQ158: 1885.695161 | AR158: 4256.013978 | AS158: =AU158/Sanierungsdesign!$E$11 -> 0.7264886449 | AT158: 875520 | AU158: 5.811909159 | AZ158: =(AY158/(AH158*Sanierungsdesign!$E$10))*1000000 ->  | BA158: =AZ158/Sanierungsdesign!$E$12 ->  | BB158: =$D$5+((-(Sanierungsdesign!$E$12)*MIN($BA$7:$BA$932))/(4*PI()*$D$3))*(-LN((4*$D$4*AH158)/(Sanierungsdesign!$E$13)^2)-$D$19) ->  | BC158: =(BB158-273.15)/Heterogenität!$D$4 ->  | BD158: =IF(AI158<Berechnung!$D$7,AI158,#N/A) -> 
AG159: =Sanierungsdesign!$E$12*AH159*Sanierungsdesign!$E$10/1000000 -> 7160.4 | AH159: 1101600 | AI159: 12.75 | AJ159: =$D$5+((-Sanierungsdesign!$E$12)/4*PI()*$D$3)*(-LN((4*$D$4*AH159)/(Sanierungsdesign!$E$13^2))-$D$19) -> 1298.32789 | AK159: 1025.17789 | AL159: 2026.591777 | AM159: =$D$3*$T$7*$AH$7*(AK159-$D$5)*(1/Sanierungsdesign!$E$15)/1000000 -> 103.6261167 | AN159: =$D$5+(-Sanierungsdesign!$E$12/(4*PI()*$D$3))*(-LN((4*$D$4*AH159)/(Sanierungsdesign!$E$13+Sanierungsdesign!$E$15)^2)-$D$19) -> 294.4096969 | AO159: 21.2596969 | AP159: =(2*PI()*Sanierungsdesign!$E$10*$D$3)*(LN((Sanierungsdesign!$E$13+Sanierungsdesign!$E$15)/Sanierungsdesign!$E$13)*(AJ159-AN159))*$AH$7/1000000 -> 89.62880457 | AQ159: 1898.10105 | AR159: 4284.01407 | AS159: =AU159/Sanierungsdesign!$E$11 -> 0.7331355215 | AT159: 881280 | AU159: 5.865084172 | AZ159: =(AY159/(AH159*Sanierungsdesign!$E$10))*1000000 ->  | BA159: =AZ159/Sanierungsdesign!$E$12 ->  | BB159: =$D$5+((-(Sanierungsdesign!$E$12)*MIN($BA$7:$BA$932))/(4*PI()*$D$3))*(-LN((4*$D$4*AH159)/(Sanierungsdesign!$E$13)^2)-$D$19) ->  | BC159: =(BB159-273.15)/Heterogenität!$D$4 ->  | BD159: =IF(AI159<Berechnung!$D$7,AI159,#N/A) -> 
AG160: =Sanierungsdesign!$E$12*AH160*Sanierungsdesign!$E$10/1000000 -> 7207.2 | AH160: 1108800 | AI160: 12.83333333 | AJ160: =$D$5+((-Sanierungsdesign!$E$12)/4*PI()*$D$3)*(-LN((4*$D$4*AH160)/(Sanierungsdesign!$E$13^2))-$D$19) -> 1307.453891 | AK160: 1034.303891 | AL160: 2044.845904 | AM160: =$D$3*$T$7*$AH$7*(AK160-$D$5)*(1/Sanierungsdesign!$E$15)/1000000 -> 104.9005863 | AN160: =$D$5+(-Sanierungsdesign!$E$12/(4*PI()*$D$3))*(-LN((4*$D$4*AH160)/(Sanierungsdesign!$E$13+Sanierungsdesign!$E$15)^2)-$D$19) -> 294.9009129 | AO160: 21.75091293 | AP160: =(2*PI()*Sanierungsdesign!$E$10*$D$3)*(LN((Sanierungsdesign!$E$13+Sanierungsdesign!$E$15)/Sanierungsdesign!$E$13)*(AJ160-AN160))*$AH$7/1000000 -> 90.39970945 | AQ160: 1910.506939 | AR160: 4312.014162 | AS160: =AU160/Sanierungsdesign!$E$11 -> 0.7397390957 | AT160: 887040 | AU160: 5.917912765 | AZ160: =(AY160/(AH160*Sanierungsdesign!$E$10))*1000000 ->  | BA160: =AZ160/Sanierungsdesign!$E$12 ->  | BB160: =$D$5+((-(Sanierungsdesign!$E$12)*MIN($BA$7:$BA$932))/(4*PI()*$D$3))*(-LN((4*$D$4*AH160)/(Sanierungsdesign!$E$13)^2)-$D$19) ->  | BC160: =(BB160-273.15)/Heterogenität!$D$4 ->  | BD160: =IF(AI160<Berechnung!$D$7,AI160,#N/A) -> 
AG161: =Sanierungsdesign!$E$12*AH161*Sanierungsdesign!$E$10/1000000 -> 7254 | AH161: 1116000 | AI161: 12.91666667 | AJ161: =$D$5+((-Sanierungsdesign!$E$12)/4*PI()*$D$3)*(-LN((4*$D$4*AH161)/(Sanierungsdesign!$E$13^2))-$D$19) -> 1316.520824 | AK161: 1043.370824 | AL161: 2062.981881 | AM161: =$D$3*$T$7*$AH$7*(AK161-$D$5)*(1/Sanierungsdesign!$E$15)/1000000 -> 106.1668069 | AN161: =$D$5+(-Sanierungsdesign!$E$12/(4*PI()*$D$3))*(-LN((4*$D$4*AH161)/(Sanierungsdesign!$E$13+Sanierungsdesign!$E$15)^2)-$D$19) -> 295.3889496 | AO161: 22.23894955 | AP161: =(2*PI()*Sanierungsdesign!$E$10*$D$3)*(LN((Sanierungsdesign!$E$13+Sanierungsdesign!$E$15)/Sanierungsdesign!$E$13)*(AJ161-AN161))*$AH$7/1000000 -> 91.16562462 | AQ161: 1922.912828 | AR161: 4340.014253 | AS161: =AU161/Sanierungsdesign!$E$11 -> 0.746299928 | AT161: 892800 | AU161: 5.970399424 | AZ161: =(AY161/(AH161*Sanierungsdesign!$E$10))*1000000 ->  | BA161: =AZ161/Sanierungsdesign!$E$12 ->  | BB161: =$D$5+((-(Sanierungsdesign!$E$12)*MIN($BA$7:$BA$932))/(4*PI()*$D$3))*(-LN((4*$D$4*AH161)/(Sanierungsdesign!$E$13)^2)-$D$19) ->  | BC161: =(BB161-273.15)/Heterogenität!$D$4 ->  | BD161: =IF(AI161<Berechnung!$D$7,AI161,#N/A) -> 
AG162: =Sanierungsdesign!$E$12*AH162*Sanierungsdesign!$E$10/1000000 -> 7300.8 | AH162: 1123200 | AI162: 13 | AJ162: =$D$5+((-Sanierungsdesign!$E$12)/4*PI()*$D$3)*(-LN((4*$D$4*AH162)/(Sanierungsdesign!$E$13^2))-$D$19) -> 1325.529447 | AK162: 1052.379447 | AL162: 2081.001227 | AM162: =$D$3*$T$7*$AH$7*(AK162-$D$5)*(1/Sanierungsdesign!$E$15)/1000000 -> 107.4248846 | AN162: =$D$5+(-Sanierungsdesign!$E$12/(4*PI()*$D$3))*(-LN((4*$D$4*AH162)/(Sanierungsdesign!$E$13+Sanierungsdesign!$E$15)^2)-$D$19) -> 295.8738476 | AO162: 22.72384765 | AP162: =(2*PI()*Sanierungsdesign!$E$10*$D$3)*(LN((Sanierungsdesign!$E$13+Sanierungsdesign!$E$15)/Sanierungsdesign!$E$13)*(AJ162-AN162))*$AH$7/1000000 -> 91.92661425 | AQ162: 1935.318718 | AR162: 4368.014345 | AS162: =AU162/Sanierungsdesign!$E$11 -> 0.7528185681 | AT162: 898560 | AU162: 6.022548545 | AZ162: =(AY162/(AH162*Sanierungsdesign!$E$10))*1000000 ->  | BA162: =AZ162/Sanierungsdesign!$E$12 ->  | BB162: =$D$5+((-(Sanierungsdesign!$E$12)*MIN($BA$7:$BA$932))/(4*PI()*$D$3))*(-LN((4*$D$4*AH162)/(Sanierungsdesign!$E$13)^2)-$D$19) ->  | BC162: =(BB162-273.15)/Heterogenität!$D$4 ->  | BD162: =IF(AI162<Berechnung!$D$7,AI162,#N/A) -> 
AG163: =Sanierungsdesign!$E$12*AH163*Sanierungsdesign!$E$10/1000000 -> 7347.6 | AH163: 1130400 | AI163: 13.08333333 | AJ163: =$D$5+((-Sanierungsdesign!$E$12)/4*PI()*$D$3)*(-LN((4*$D$4*AH163)/(Sanierungsdesign!$E$13^2))-$D$19) -> 1334.480508 | AK163: 1061.330508 | AL163: 2098.905432 | AM163: =$D$3*$T$7*$AH$7*(AK163-$D$5)*(1/Sanierungsdesign!$E$15)/1000000 -> 108.6749233 | AN163: =$D$5+(-Sanierungsdesign!$E$12/(4*PI()*$D$3))*(-LN((4*$D$4*AH163)/(Sanierungsdesign!$E$13+Sanierungsdesign!$E$15)^2)-$D$19) -> 296.3556473 | AO163: 23.20564734 | AP163: =(2*PI()*Sanierungsdesign!$E$10*$D$3)*(LN((Sanierungsdesign!$E$13+Sanierungsdesign!$E$15)/Sanierungsdesign!$E$13)*(AJ163-AN163))*$AH$7/1000000 -> 92.6827413 | AQ163: 1947.724607 | AR163: 4396.014437 | AS163: =AU163/Sanierungsdesign!$E$11 -> 0.7592955553 | AT163: 904320 | AU163: 6.074364442 | AZ163: =(AY163/(AH163*Sanierungsdesign!$E$10))*1000000 ->  | BA163: =AZ163/Sanierungsdesign!$E$12 ->  | BB163: =$D$5+((-(Sanierungsdesign!$E$12)*MIN($BA$7:$BA$932))/(4*PI()*$D$3))*(-LN((4*$D$4*AH163)/(Sanierungsdesign!$E$13)^2)-$D$19) ->  | BC163: =(BB163-273.15)/Heterogenität!$D$4 ->  | BD163: =IF(AI163<Berechnung!$D$7,AI163,#N/A) -> 
AG164: =Sanierungsdesign!$E$12*AH164*Sanierungsdesign!$E$10/1000000 -> 7394.4 | AH164: 1137600 | AI164: 13.16666667 | AJ164: =$D$5+((-Sanierungsdesign!$E$12)/4*PI()*$D$3)*(-LN((4*$D$4*AH164)/(Sanierungsdesign!$E$13^2))-$D$19) -> 1343.374735 | AK164: 1070.224735 | AL164: 2116.69596 | AM164: =$D$3*$T$7*$AH$7*(AK164-$D$5)*(1/Sanierungsdesign!$E$15)/1000000 -> 109.9170252 | AN164: =$D$5+(-Sanierungsdesign!$E$12/(4*PI()*$D$3))*(-LN((4*$D$4*AH164)/(Sanierungsdesign!$E$13+Sanierungsdesign!$E$15)^2)-$D$19) -> 296.834388 | AO164: 23.68438796 | AP164: =(2*PI()*Sanierungsdesign!$E$10*$D$3)*(LN((Sanierungsdesign!$E$13+Sanierungsdesign!$E$15)/Sanierungsdesign!$E$13)*(AJ164-AN164))*$AH$7/1000000 -> 93.43406751 | AQ164: 1960.130496 | AR164: 4424.014529 | AS164: =AU164/Sanierungsdesign!$E$11 -> 0.7657314185 | AT164: 910080 | AU164: 6.125851348 | AZ164: =(AY164/(AH164*Sanierungsdesign!$E$10))*1000000 ->  | BA164: =AZ164/Sanierungsdesign!$E$12 ->  | BB164: =$D$5+((-(Sanierungsdesign!$E$12)*MIN($BA$7:$BA$932))/(4*PI()*$D$3))*(-LN((4*$D$4*AH164)/(Sanierungsdesign!$E$13)^2)-$D$19) ->  | BC164: =(BB164-273.15)/Heterogenität!$D$4 ->  | BD164: =IF(AI164<Berechnung!$D$7,AI164,#N/A) -> 
AG165: =Sanierungsdesign!$E$12*AH165*Sanierungsdesign!$E$10/1000000 -> 7441.2 | AH165: 1144800 | AI165: 13.25 | AJ165: =$D$5+((-Sanierungsdesign!$E$12)/4*PI()*$D$3)*(-LN((4*$D$4*AH165)/(Sanierungsdesign!$E$13^2))-$D$19) -> 1352.212848 | AK165: 1079.062848 | AL165: 2134.374243 | AM165: =$D$3*$T$7*$AH$7*(AK165-$D$5)*(1/Sanierungsdesign!$E$15)/1000000 -> 111.1512905 | AN165: =$D$5+(-Sanierungsdesign!$E$12/(4*PI()*$D$3))*(-LN((4*$D$4*AH165)/(Sanierungsdesign!$E$13+Sanierungsdesign!$E$15)^2)-$D$19) -> 297.3101081 | AO165: 24.16010811 | AP165: =(2*PI()*Sanierungsdesign!$E$10*$D$3)*(LN((Sanierungsdesign!$E$13+Sanierungsdesign!$E$15)/Sanierungsdesign!$E$13)*(AJ165-AN165))*$AH$7/1000000 -> 94.18065346 | AQ165: 1972.536385 | AR165: 4452.014621 | AS165: =AU165/Sanierungsdesign!$E$11 -> 0.7721266766 | AT165: 915840 | AU165: 6.177013413 | AZ165: =(AY165/(AH165*Sanierungsdesign!$E$10))*1000000 ->  | BA165: =AZ165/Sanierungsdesign!$E$12 ->  | BB165: =$D$5+((-(Sanierungsdesign!$E$12)*MIN($BA$7:$BA$932))/(4*PI()*$D$3))*(-LN((4*$D$4*AH165)/(Sanierungsdesign!$E$13)^2)-$D$19) ->  | BC165: =(BB165-273.15)/Heterogenität!$D$4 ->  | BD165: =IF(AI165<Berechnung!$D$7,AI165,#N/A) -> 
AG166: =Sanierungsdesign!$E$12*AH166*Sanierungsdesign!$E$10/1000000 -> 7488 | AH166: 1152000 | AI166: 13.33333333 | AJ166: =$D$5+((-Sanierungsdesign!$E$12)/4*PI()*$D$3)*(-LN((4*$D$4*AH166)/(Sanierungsdesign!$E$13^2))-$D$19) -> 1360.995548 | AK166: 1087.845548 | AL166: 2151.94169 | AM166: =$D$3*$T$7*$AH$7*(AK166-$D$5)*(1/Sanierungsdesign!$E$15)/1000000 -> 112.3778174 | AN166: =$D$5+(-Sanierungsdesign!$E$12/(4*PI()*$D$3))*(-LN((4*$D$4*AH166)/(Sanierungsdesign!$E$13+Sanierungsdesign!$E$15)^2)-$D$19) -> 297.7828457 | AO166: 24.63284567 | AP166: =(2*PI()*Sanierungsdesign!$E$10*$D$3)*(LN((Sanierungsdesign!$E$13+Sanierungsdesign!$E$15)/Sanierungsdesign!$E$13)*(AJ166-AN166))*$AH$7/1000000 -> 94.92255859 | AQ166: 1984.942274 | AR166: 4480.014713 | AS166: =AU166/Sanierungsdesign!$E$11 -> 0.7784818388 | AT166: 921600 | AU166: 6.22785471 | AZ166: =(AY166/(AH166*Sanierungsdesign!$E$10))*1000000 ->  | BA166: =AZ166/Sanierungsdesign!$E$12 ->  | BB166: =$D$5+((-(Sanierungsdesign!$E$12)*MIN($BA$7:$BA$932))/(4*PI()*$D$3))*(-LN((4*$D$4*AH166)/(Sanierungsdesign!$E$13)^2)-$D$19) ->  | BC166: =(BB166-273.15)/Heterogenität!$D$4 ->  | BD166: =IF(AI166<Berechnung!$D$7,AI166,#N/A) -> 
AG167: =Sanierungsdesign!$E$12*AH167*Sanierungsdesign!$E$10/1000000 -> 7534.8 | AH167: 1159200 | AI167: 13.41666667 | AJ167: =$D$5+((-Sanierungsdesign!$E$12)/4*PI()*$D$3)*(-LN((4*$D$4*AH167)/(Sanierungsdesign!$E$13^2))-$D$19) -> 1369.723528 | AK167: 1096.573528 | AL167: 2169.399682 | AM167: =$D$3*$T$7*$AH$7*(AK167-$D$5)*(1/Sanierungsdesign!$E$15)/1000000 -> 113.5967023 | AN167: =$D$5+(-Sanierungsdesign!$E$12/(4*PI()*$D$3))*(-LN((4*$D$4*AH167)/(Sanierungsdesign!$E$13+Sanierungsdesign!$E$15)^2)-$D$19) -> 298.2526378 | AO167: 25.10263781 | AP167: =(2*PI()*Sanierungsdesign!$E$10*$D$3)*(LN((Sanierungsdesign!$E$13+Sanierungsdesign!$E$15)/Sanierungsdesign!$E$13)*(AJ167-AN167))*$AH$7/1000000 -> 95.65984123 | AQ167: 1997.348164 | AR167: 4508.014805 | AS167: =AU167/Sanierungsdesign!$E$11 -> 0.7847974047 | AT167: 927360 | AU167: 6.278379238 | AZ167: =(AY167/(AH167*Sanierungsdesign!$E$10))*1000000 ->  | BA167: =AZ167/Sanierungsdesign!$E$12 ->  | BB167: =$D$5+((-(Sanierungsdesign!$E$12)*MIN($BA$7:$BA$932))/(4*PI()*$D$3))*(-LN((4*$D$4*AH167)/(Sanierungsdesign!$E$13)^2)-$D$19) ->  | BC167: =(BB167-273.15)/Heterogenität!$D$4 ->  | BD167: =IF(AI167<Berechnung!$D$7,AI167,#N/A) -> 
AG168: =Sanierungsdesign!$E$12*AH168*Sanierungsdesign!$E$10/1000000 -> 7581.6 | AH168: 1166400 | AI168: 13.5 | AJ168: =$D$5+((-Sanierungsdesign!$E$12)/4*PI()*$D$3)*(-LN((4*$D$4*AH168)/(Sanierungsdesign!$E$13^2))-$D$19) -> 1378.397464 | AK168: 1105.247464 | AL168: 2186.749574 | AM168: =$D$3*$T$7*$AH$7*(AK168-$D$5)*(1/Sanierungsdesign!$E$15)/1000000 -> 114.80804 | AN168: =$D$5+(-Sanierungsdesign!$E$12/(4*PI()*$D$3))*(-LN((4*$D$4*AH168)/(Sanierungsdesign!$E$13+Sanierungsdesign!$E$15)^2)-$D$19) -> 298.719521 | AO168: 25.569521 | AP168: =(2*PI()*Sanierungsdesign!$E$10*$D$3)*(LN((Sanierungsdesign!$E$13+Sanierungsdesign!$E$15)/Sanierungsdesign!$E$13)*(AJ168-AN168))*$AH$7/1000000 -> 96.39255862 | AQ168: 2009.754053 | AR168: 4536.014897 | AS168: =AU168/Sanierungsdesign!$E$11 -> 0.7910738647 | AT168: 933120 | AU168: 6.328590917 | AZ168: =(AY168/(AH168*Sanierungsdesign!$E$10))*1000000 ->  | BA168: =AZ168/Sanierungsdesign!$E$12 ->  | BB168: =$D$5+((-(Sanierungsdesign!$E$12)*MIN($BA$7:$BA$932))/(4*PI()*$D$3))*(-LN((4*$D$4*AH168)/(Sanierungsdesign!$E$13)^2)-$D$19) ->  | BC168: =(BB168-273.15)/Heterogenität!$D$4 ->  | BD168: =IF(AI168<Berechnung!$D$7,AI168,#N/A) -> 
AG169: =Sanierungsdesign!$E$12*AH169*Sanierungsdesign!$E$10/1000000 -> 7628.4 | AH169: 1173600 | AI169: 13.58333333 | AJ169: =$D$5+((-Sanierungsdesign!$E$12)/4*PI()*$D$3)*(-LN((4*$D$4*AH169)/(Sanierungsdesign!$E$13^2))-$D$19) -> 1387.018021 | AK169: 1113.868021 | AL169: 2203.992697 | AM169: =$D$3*$T$7*$AH$7*(AK169-$D$5)*(1/Sanierungsdesign!$E$15)/1000000 -> 116.0119231 | AN169: =$D$5+(-Sanierungsdesign!$E$12/(4*PI()*$D$3))*(-LN((4*$D$4*AH169)/(Sanierungsdesign!$E$13+Sanierungsdesign!$E$15)^2)-$D$19) -> 299.183531 | AO169: 26.03353105 | AP169: =(2*PI()*Sanierungsdesign!$E$10*$D$3)*(LN((Sanierungsdesign!$E$13+Sanierungsdesign!$E$15)/Sanierungsdesign!$E$13)*(AJ169-AN169))*$AH$7/1000000 -> 97.12076695 | AQ169: 2022.159942 | AR169: 4564.014989 | AS169: =AU169/Sanierungsdesign!$E$11 -> 0.7973117 | AT169: 938880 | AU169: 6.3784936 | AZ169: =(AY169/(AH169*Sanierungsdesign!$E$10))*1000000 ->  | BA169: =AZ169/Sanierungsdesign!$E$12 ->  | BB169: =$D$5+((-(Sanierungsdesign!$E$12)*MIN($BA$7:$BA$932))/(4*PI()*$D$3))*(-LN((4*$D$4*AH169)/(Sanierungsdesign!$E$13)^2)-$D$19) ->  | BC169: =(BB169-273.15)/Heterogenität!$D$4 ->  | BD169: =IF(AI169<Berechnung!$D$7,AI169,#N/A) -> 
AG170: =Sanierungsdesign!$E$12*AH170*Sanierungsdesign!$E$10/1000000 -> 7675.2 | AH170: 1180800 | AI170: 13.66666667 | AJ170: =$D$5+((-Sanierungsdesign!$E$12)/4*PI()*$D$3)*(-LN((4*$D$4*AH170)/(Sanierungsdesign!$E$13^2))-$D$19) -> 1395.585853 | AK170: 1122.435853 | AL170: 2221.130356 | AM170: =$D$3*$T$7*$AH$7*(AK170-$D$5)*(1/Sanierungsdesign!$E$15)/1000000 -> 117.2084431 | AN170: =$D$5+(-Sanierungsdesign!$E$12/(4*PI()*$D$3))*(-LN((4*$D$4*AH170)/(Sanierungsdesign!$E$13+Sanierungsdesign!$E$15)^2)-$D$19) -> 299.6447031 | AO170: 26.49470309 | AP170: =(2*PI()*Sanierungsdesign!$E$10*$D$3)*(LN((Sanierungsdesign!$E$13+Sanierungsdesign!$E$15)/Sanierungsdesign!$E$13)*(AJ170-AN170))*$AH$7/1000000 -> 97.84452138 | AQ170: 2034.565831 | AR170: 4592.015081 | AS170: =AU170/Sanierungsdesign!$E$11 -> 0.8035113833 | AT170: 944640 | AU170: 6.428091066 | AZ170: =(AY170/(AH170*Sanierungsdesign!$E$10))*1000000 ->  | BA170: =AZ170/Sanierungsdesign!$E$12 ->  | BB170: =$D$5+((-(Sanierungsdesign!$E$12)*MIN($BA$7:$BA$932))/(4*PI()*$D$3))*(-LN((4*$D$4*AH170)/(Sanierungsdesign!$E$13)^2)-$D$19) ->  | BC170: =(BB170-273.15)/Heterogenität!$D$4 ->  | BD170: =IF(AI170<Berechnung!$D$7,AI170,#N/A) -> 
AG171: =Sanierungsdesign!$E$12*AH171*Sanierungsdesign!$E$10/1000000 -> 7722 | AH171: 1188000 | AI171: 13.75 | AJ171: =$D$5+((-Sanierungsdesign!$E$12)/4*PI()*$D$3)*(-LN((4*$D$4*AH171)/(Sanierungsdesign!$E$13^2))-$D$19) -> 1404.101601 | AK171: 1130.951601 | AL171: 2238.163835 | AM171: =$D$3*$T$7*$AH$7*(AK171-$D$5)*(1/Sanierungsdesign!$E$15)/1000000 -> 118.3976893 | AN171: =$D$5+(-Sanierungsdesign!$E$12/(4*PI()*$D$3))*(-LN((4*$D$4*AH171)/(Sanierungsdesign!$E$13+Sanierungsdesign!$E$15)^2)-$D$19) -> 300.1030716 | AO171: 26.95307164 | AP171: =(2*PI()*Sanierungsdesign!$E$10*$D$3)*(LN((Sanierungsdesign!$E$13+Sanierungsdesign!$E$15)/Sanierungsdesign!$E$13)*(AJ171-AN171))*$AH$7/1000000 -> 98.56387606 | AQ171: 2046.97172 | AR171: 4620.015173 | AS171: =AU171/Sanierungsdesign!$E$11 -> 0.8096733782 | AT171: 950400 | AU171: 6.477387026 | AZ171: =(AY171/(AH171*Sanierungsdesign!$E$10))*1000000 ->  | BA171: =AZ171/Sanierungsdesign!$E$12 ->  | BB171: =$D$5+((-(Sanierungsdesign!$E$12)*MIN($BA$7:$BA$932))/(4*PI()*$D$3))*(-LN((4*$D$4*AH171)/(Sanierungsdesign!$E$13)^2)-$D$19) ->  | BC171: =(BB171-273.15)/Heterogenität!$D$4 ->  | BD171: =IF(AI171<Berechnung!$D$7,AI171,#N/A) -> 
AG172: =Sanierungsdesign!$E$12*AH172*Sanierungsdesign!$E$10/1000000 -> 7768.8 | AH172: 1195200 | AI172: 13.83333333 | AJ172: =$D$5+((-Sanierungsdesign!$E$12)/4*PI()*$D$3)*(-LN((4*$D$4*AH172)/(Sanierungsdesign!$E$13^2))-$D$19) -> 1412.565893 | AK172: 1139.415893 | AL172: 2255.094392 | AM172: =$D$3*$T$7*$AH$7*(AK172-$D$5)*(1/Sanierungsdesign!$E$15)/1000000 -> 119.5797496 | AN172: =$D$5+(-Sanierungsdesign!$E$12/(4*PI()*$D$3))*(-LN((4*$D$4*AH172)/(Sanierungsdesign!$E$13+Sanierungsdesign!$E$15)^2)-$D$19) -> 300.5586706 | AO172: 27.40867058 | AP172: =(2*PI()*Sanierungsdesign!$E$10*$D$3)*(LN((Sanierungsdesign!$E$13+Sanierungsdesign!$E$15)/Sanierungsdesign!$E$13)*(AJ172-AN172))*$AH$7/1000000 -> 99.27888416 | AQ172: 2059.37761 | AR172: 4648.015265 | AS172: =AU172/Sanierungsdesign!$E$11 -> 0.8157981404 | AT172: 956160 | AU172: 6.526385123 | AZ172: =(AY172/(AH172*Sanierungsdesign!$E$10))*1000000 ->  | BA172: =AZ172/Sanierungsdesign!$E$12 ->  | BB172: =$D$5+((-(Sanierungsdesign!$E$12)*MIN($BA$7:$BA$932))/(4*PI()*$D$3))*(-LN((4*$D$4*AH172)/(Sanierungsdesign!$E$13)^2)-$D$19) ->  | BC172: =(BB172-273.15)/Heterogenität!$D$4 ->  | BD172: =IF(AI172<Berechnung!$D$7,AI172,#N/A) -> 
AG173: =Sanierungsdesign!$E$12*AH173*Sanierungsdesign!$E$10/1000000 -> 7815.6 | AH173: 1202400 | AI173: 13.91666667 | AJ173: =$D$5+((-Sanierungsdesign!$E$12)/4*PI()*$D$3)*(-LN((4*$D$4*AH173)/(Sanierungsdesign!$E$13^2))-$D$19) -> 1420.979349 | AK173: 1147.829349 | AL173: 2271.923263 | AM173: =$D$3*$T$7*$AH$7*(AK173-$D$5)*(1/Sanierungsdesign!$E$15)/1000000 -> 120.7547105 | AN173: =$D$5+(-Sanierungsdesign!$E$12/(4*PI()*$D$3))*(-LN((4*$D$4*AH173)/(Sanierungsdesign!$E$13+Sanierungsdesign!$E$15)^2)-$D$19) -> 301.0115332 | AO173: 27.86153317 | AP173: =(2*PI()*Sanierungsdesign!$E$10*$D$3)*(LN((Sanierungsdesign!$E$13+Sanierungsdesign!$E$15)/Sanierungsdesign!$E$13)*(AJ173-AN173))*$AH$7/1000000 -> 99.98959789 | AQ173: 2071.783499 | AR173: 4676.015357 | AS173: =AU173/Sanierungsdesign!$E$11 -> 0.8218861169 | AT173: 961920 | AU173: 6.575088935 | AZ173: =(AY173/(AH173*Sanierungsdesign!$E$10))*1000000 ->  | BA173: =AZ173/Sanierungsdesign!$E$12 ->  | BB173: =$D$5+((-(Sanierungsdesign!$E$12)*MIN($BA$7:$BA$932))/(4*PI()*$D$3))*(-LN((4*$D$4*AH173)/(Sanierungsdesign!$E$13)^2)-$D$19) ->  | BC173: =(BB173-273.15)/Heterogenität!$D$4 ->  | BD173: =IF(AI173<Berechnung!$D$7,AI173,#N/A) -> 
AG174: =Sanierungsdesign!$E$12*AH174*Sanierungsdesign!$E$10/1000000 -> 7862.4 | AH174: 1209600 | AI174: 14 | AJ174: =$D$5+((-Sanierungsdesign!$E$12)/4*PI()*$D$3)*(-LN((4*$D$4*AH174)/(Sanierungsdesign!$E$13^2))-$D$19) -> 1429.342575 | AK174: 1156.192575 | AL174: 2288.651663 | AM174: =$D$3*$T$7*$AH$7*(AK174-$D$5)*(1/Sanierungsdesign!$E$15)/1000000 -> 121.9226567 | AN174: =$D$5+(-Sanierungsdesign!$E$12/(4*PI()*$D$3))*(-LN((4*$D$4*AH174)/(Sanierungsdesign!$E$13+Sanierungsdesign!$E$15)^2)-$D$19) -> 301.4616921 | AO174: 28.31169208 | AP174: =(2*PI()*Sanierungsdesign!$E$10*$D$3)*(LN((Sanierungsdesign!$E$13+Sanierungsdesign!$E$15)/Sanierungsdesign!$E$13)*(AJ174-AN174))*$AH$7/1000000 -> 100.6960685 | AQ174: 2084.189388 | AR174: 4704.015449 | AS174: =AU174/Sanierungsdesign!$E$11 -> 0.8279377471 | AT174: 967680 | AU174: 6.623501977 | AZ174: =(AY174/(AH174*Sanierungsdesign!$E$10))*1000000 ->  | BA174: =AZ174/Sanierungsdesign!$E$12 ->  | BB174: =$D$5+((-(Sanierungsdesign!$E$12)*MIN($BA$7:$BA$932))/(4*PI()*$D$3))*(-LN((4*$D$4*AH174)/(Sanierungsdesign!$E$13)^2)-$D$19) ->  | BC174: =(BB174-273.15)/Heterogenität!$D$4 ->  | BD174: =IF(AI174<Berechnung!$D$7,AI174,#N/A) -> 
AG175: =Sanierungsdesign!$E$12*AH175*Sanierungsdesign!$E$10/1000000 -> 7909.2 | AH175: 1216800 | AI175: 14.08333333 | AJ175: =$D$5+((-Sanierungsdesign!$E$12)/4*PI()*$D$3)*(-LN((4*$D$4*AH175)/(Sanierungsdesign!$E$13^2))-$D$19) -> 1437.656167 | AK175: 1164.506167 | AL175: 2305.280783 | AM175: =$D$3*$T$7*$AH$7*(AK175-$D$5)*(1/Sanierungsdesign!$E$15)/1000000 -> 123.0836713 | AN175: =$D$5+(-Sanierungsdesign!$E$12/(4*PI()*$D$3))*(-LN((4*$D$4*AH175)/(Sanierungsdesign!$E$13+Sanierungsdesign!$E$15)^2)-$D$19) -> 301.9091794 | AO175: 28.75917941 | AP175: =(2*PI()*Sanierungsdesign!$E$10*$D$3)*(LN((Sanierungsdesign!$E$13+Sanierungsdesign!$E$15)/Sanierungsdesign!$E$13)*(AJ175-AN175))*$AH$7/1000000 -> 101.3983464 | AQ175: 2096.595277 | AR175: 4732.015541 | AS175: =AU175/Sanierungsdesign!$E$11 -> 0.8339534624 | AT175: 973440 | AU175: 6.671627699 | AZ175: =(AY175/(AH175*Sanierungsdesign!$E$10))*1000000 ->  | BA175: =AZ175/Sanierungsdesign!$E$12 ->  | BB175: =$D$5+((-(Sanierungsdesign!$E$12)*MIN($BA$7:$BA$932))/(4*PI()*$D$3))*(-LN((4*$D$4*AH175)/(Sanierungsdesign!$E$13)^2)-$D$19) ->  | BC175: =(BB175-273.15)/Heterogenität!$D$4 ->  | BD175: =IF(AI175<Berechnung!$D$7,AI175,#N/A) -> 
AG176: =Sanierungsdesign!$E$12*AH176*Sanierungsdesign!$E$10/1000000 -> 7956 | AH176: 1224000 | AI176: 14.16666667 | AJ176: =$D$5+((-Sanierungsdesign!$E$12)/4*PI()*$D$3)*(-LN((4*$D$4*AH176)/(Sanierungsdesign!$E$13^2))-$D$19) -> 1445.920711 | AK176: 1172.770711 | AL176: 2321.811797 | AM176: =$D$3*$T$7*$AH$7*(AK176-$D$5)*(1/Sanierungsdesign!$E$15)/1000000 -> 124.2378363 | AN176: =$D$5+(-Sanierungsdesign!$E$12/(4*PI()*$D$3))*(-LN((4*$D$4*AH176)/(Sanierungsdesign!$E$13+Sanierungsdesign!$E$15)^2)-$D$19) -> 302.3540267 | AO176: 29.20402669 | AP176: =(2*PI()*Sanierungsdesign!$E$10*$D$3)*(LN((Sanierungsdesign!$E$13+Sanierungsdesign!$E$15)/Sanierungsdesign!$E$13)*(AJ176-AN176))*$AH$7/1000000 -> 102.0964811 | AQ176: 2109.001167 | AR176: 4760.015633 | AS176: =AU176/Sanierungsdesign!$E$11 -> 0.8399336865 | AT176: 979200 | AU176: 6.719469492 | AZ176: =(AY176/(AH176*Sanierungsdesign!$E$10))*1000000 ->  | BA176: =AZ176/Sanierungsdesign!$E$12 ->  | BB176: =$D$5+((-(Sanierungsdesign!$E$12)*MIN($BA$7:$BA$932))/(4*PI()*$D$3))*(-LN((4*$D$4*AH176)/(Sanierungsdesign!$E$13)^2)-$D$19) ->  | BC176: =(BB176-273.15)/Heterogenität!$D$4 ->  | BD176: =IF(AI176<Berechnung!$D$7,AI176,#N/A) -> 
AG177: =Sanierungsdesign!$E$12*AH177*Sanierungsdesign!$E$10/1000000 -> 8002.8 | AH177: 1231200 | AI177: 14.25 | AJ177: =$D$5+((-Sanierungsdesign!$E$12)/4*PI()*$D$3)*(-LN((4*$D$4*AH177)/(Sanierungsdesign!$E$13^2))-$D$19) -> 1454.136782 | AK177: 1180.986782 | AL177: 2338.245853 | AM177: =$D$3*$T$7*$AH$7*(AK177-$D$5)*(1/Sanierungsdesign!$E$15)/1000000 -> 125.385232 | AN177: =$D$5+(-Sanierungsdesign!$E$12/(4*PI()*$D$3))*(-LN((4*$D$4*AH177)/(Sanierungsdesign!$E$13+Sanierungsdesign!$E$15)^2)-$D$19) -> 302.7962649 | AO177: 29.64626487 | AP177: =(2*PI()*Sanierungsdesign!$E$10*$D$3)*(LN((Sanierungsdesign!$E$13+Sanierungsdesign!$E$15)/Sanierungsdesign!$E$13)*(AJ177-AN177))*$AH$7/1000000 -> 102.7905211 | AQ177: 2121.407056 | AR177: 4788.015725 | AS177: =AU177/Sanierungsdesign!$E$11 -> 0.8458788358 | AT177: 984960 | AU177: 6.767030686 | AZ177: =(AY177/(AH177*Sanierungsdesign!$E$10))*1000000 ->  | BA177: =AZ177/Sanierungsdesign!$E$12 ->  | BB177: =$D$5+((-(Sanierungsdesign!$E$12)*MIN($BA$7:$BA$932))/(4*PI()*$D$3))*(-LN((4*$D$4*AH177)/(Sanierungsdesign!$E$13)^2)-$D$19) ->  | BC177: =(BB177-273.15)/Heterogenität!$D$4 ->  | BD177: =IF(AI177<Berechnung!$D$7,AI177,#N/A) -> 
AG178: =Sanierungsdesign!$E$12*AH178*Sanierungsdesign!$E$10/1000000 -> 8049.6 | AH178: 1238400 | AI178: 14.33333333 | AJ178: =$D$5+((-Sanierungsdesign!$E$12)/4*PI()*$D$3)*(-LN((4*$D$4*AH178)/(Sanierungsdesign!$E$13^2))-$D$19) -> 1462.304947 | AK178: 1189.154947 | AL178: 2354.584084 | AM178: =$D$3*$T$7*$AH$7*(AK178-$D$5)*(1/Sanierungsdesign!$E$15)/1000000 -> 126.5259373 | AN178: =$D$5+(-Sanierungsdesign!$E$12/(4*PI()*$D$3))*(-LN((4*$D$4*AH178)/(Sanierungsdesign!$E$13+Sanierungsdesign!$E$15)^2)-$D$19) -> 303.2359244 | AO178: 30.08592439 | AP178: =(2*PI()*Sanierungsdesign!$E$10*$D$3)*(LN((Sanierungsdesign!$E$13+Sanierungsdesign!$E$15)/Sanierungsdesign!$E$13)*(AJ178-AN178))*$AH$7/1000000 -> 103.4805142 | AQ178: 2133.812945 | AR178: 4816.015817 | AS178: =AU178/Sanierungsdesign!$E$11 -> 0.8517893193 | AT178: 990720 | AU178: 6.814314554 | AZ178: =(AY178/(AH178*Sanierungsdesign!$E$10))*1000000 ->  | BA178: =AZ178/Sanierungsdesign!$E$12 ->  | BB178: =$D$5+((-(Sanierungsdesign!$E$12)*MIN($BA$7:$BA$932))/(4*PI()*$D$3))*(-LN((4*$D$4*AH178)/(Sanierungsdesign!$E$13)^2)-$D$19) ->  | BC178: =(BB178-273.15)/Heterogenität!$D$4 ->  | BD178: =IF(AI178<Berechnung!$D$7,AI178,#N/A) -> 
AG179: =Sanierungsdesign!$E$12*AH179*Sanierungsdesign!$E$10/1000000 -> 8096.4 | AH179: 1245600 | AI179: 14.41666667 | AJ179: =$D$5+((-Sanierungsdesign!$E$12)/4*PI()*$D$3)*(-LN((4*$D$4*AH179)/(Sanierungsdesign!$E$13^2))-$D$19) -> 1470.425759 | AK179: 1197.275759 | AL179: 2370.8276 | AM179: =$D$3*$T$7*$AH$7*(AK179-$D$5)*(1/Sanierungsdesign!$E$15)/1000000 -> 127.6600297 | AN179: =$D$5+(-Sanierungsdesign!$E$12/(4*PI()*$D$3))*(-LN((4*$D$4*AH179)/(Sanierungsdesign!$E$13+Sanierungsdesign!$E$15)^2)-$D$19) -> 303.6730352 | AO179: 30.52303515 | AP179: =(2*PI()*Sanierungsdesign!$E$10*$D$3)*(LN((Sanierungsdesign!$E$13+Sanierungsdesign!$E$15)/Sanierungsdesign!$E$13)*(AJ179-AN179))*$AH$7/1000000 -> 104.1665073 | AQ179: 2146.218834 | AR179: 4844.015909 | AS179: =AU179/Sanierungsdesign!$E$11 -> 0.8576655389 | AT179: 996480 | AU179: 6.861324312 | AZ179: =(AY179/(AH179*Sanierungsdesign!$E$10))*1000000 ->  | BA179: =AZ179/Sanierungsdesign!$E$12 ->  | BB179: =$D$5+((-(Sanierungsdesign!$E$12)*MIN($BA$7:$BA$932))/(4*PI()*$D$3))*(-LN((4*$D$4*AH179)/(Sanierungsdesign!$E$13)^2)-$D$19) ->  | BC179: =(BB179-273.15)/Heterogenität!$D$4 ->  | BD179: =IF(AI179<Berechnung!$D$7,AI179,#N/A) -> 
AG180: =Sanierungsdesign!$E$12*AH180*Sanierungsdesign!$E$10/1000000 -> 8143.2 | AH180: 1252800 | AI180: 14.5 | AJ180: =$D$5+((-Sanierungsdesign!$E$12)/4*PI()*$D$3)*(-LN((4*$D$4*AH180)/(Sanierungsdesign!$E$13^2))-$D$19) -> 1478.499765 | AK180: 1205.349765 | AL180: 2386.977492 | AM180: =$D$3*$T$7*$AH$7*(AK180-$D$5)*(1/Sanierungsdesign!$E$15)/1000000 -> 128.7875855 | AN180: =$D$5+(-Sanierungsdesign!$E$12/(4*PI()*$D$3))*(-LN((4*$D$4*AH180)/(Sanierungsdesign!$E$13+Sanierungsdesign!$E$15)^2)-$D$19) -> 304.1076265 | AO180: 30.95762652 | AP180: =(2*PI()*Sanierungsdesign!$E$10*$D$3)*(LN((Sanierungsdesign!$E$13+Sanierungsdesign!$E$15)/Sanierungsdesign!$E$13)*(AJ180-AN180))*$AH$7/1000000 -> 104.8485465 | AQ180: 2158.624723 | AR180: 4872.016001 | AS180: =AU180/Sanierungsdesign!$E$11 -> 0.8635078897 | AT180: 1002240 | AU180: 6.908063117 | AZ180: =(AY180/(AH180*Sanierungsdesign!$E$10))*1000000 ->  | BA180: =AZ180/Sanierungsdesign!$E$12 ->  | BB180: =$D$5+((-(Sanierungsdesign!$E$12)*MIN($BA$7:$BA$932))/(4*PI()*$D$3))*(-LN((4*$D$4*AH180)/(Sanierungsdesign!$E$13)^2)-$D$19) ->  | BC180: =(BB180-273.15)/Heterogenität!$D$4 ->  | BD180: =IF(AI180<Berechnung!$D$7,AI180,#N/A) -> 
AG181: =Sanierungsdesign!$E$12*AH181*Sanierungsdesign!$E$10/1000000 -> 8190 | AH181: 1260000 | AI181: 14.58333333 | AJ181: =$D$5+((-Sanierungsdesign!$E$12)/4*PI()*$D$3)*(-LN((4*$D$4*AH181)/(Sanierungsdesign!$E$13^2))-$D$19) -> 1486.527501 | AK181: 1213.377501 | AL181: 2403.034835 | AM181: =$D$3*$T$7*$AH$7*(AK181-$D$5)*(1/Sanierungsdesign!$E$15)/1000000 -> 129.9086797 | AN181: =$D$5+(-Sanierungsdesign!$E$12/(4*PI()*$D$3))*(-LN((4*$D$4*AH181)/(Sanierungsdesign!$E$13+Sanierungsdesign!$E$15)^2)-$D$19) -> 304.5397274 | AO181: 31.38972739 | AP181: =(2*PI()*Sanierungsdesign!$E$10*$D$3)*(LN((Sanierungsdesign!$E$13+Sanierungsdesign!$E$15)/Sanierungsdesign!$E$13)*(AJ181-AN181))*$AH$7/1000000 -> 105.5266772 | AQ181: 2171.030613 | AR181: 4900.016093 | AS181: =AU181/Sanierungsdesign!$E$11 -> 0.8693167597 | AT181: 1008000 | AU181: 6.954534078 | AZ181: =(AY181/(AH181*Sanierungsdesign!$E$10))*1000000 ->  | BA181: =AZ181/Sanierungsdesign!$E$12 ->  | BB181: =$D$5+((-(Sanierungsdesign!$E$12)*MIN($BA$7:$BA$932))/(4*PI()*$D$3))*(-LN((4*$D$4*AH181)/(Sanierungsdesign!$E$13)^2)-$D$19) ->  | BC181: =(BB181-273.15)/Heterogenität!$D$4 ->  | BD181: =IF(AI181<Berechnung!$D$7,AI181,#N/A) -> 
AG182: =Sanierungsdesign!$E$12*AH182*Sanierungsdesign!$E$10/1000000 -> 8236.8 | AH182: 1267200 | AI182: 14.66666667 | AJ182: =$D$5+((-Sanierungsdesign!$E$12)/4*PI()*$D$3)*(-LN((4*$D$4*AH182)/(Sanierungsdesign!$E$13^2))-$D$19) -> 1494.509495 | AK182: 1221.359495 | AL182: 2419.000682 | AM182: =$D$3*$T$7*$AH$7*(AK182-$D$5)*(1/Sanierungsdesign!$E$15)/1000000 -> 131.0233859 | AN182: =$D$5+(-Sanierungsdesign!$E$12/(4*PI()*$D$3))*(-LN((4*$D$4*AH182)/(Sanierungsdesign!$E$13+Sanierungsdesign!$E$15)^2)-$D$19) -> 304.9693661 | AO182: 31.81936612 | AP182: =(2*PI()*Sanierungsdesign!$E$10*$D$3)*(LN((Sanierungsdesign!$E$13+Sanierungsdesign!$E$15)/Sanierungsdesign!$E$13)*(AJ182-AN182))*$AH$7/1000000 -> 106.2009439 | AQ182: 2183.436502 | AR182: 4928.016185 | AS182: =AU182/Sanierungsdesign!$E$11 -> 0.8750925306 | AT182: 1013760 | AU182: 7.000740245 | AZ182: =(AY182/(AH182*Sanierungsdesign!$E$10))*1000000 ->  | BA182: =AZ182/Sanierungsdesign!$E$12 ->  | BB182: =$D$5+((-(Sanierungsdesign!$E$12)*MIN($BA$7:$BA$932))/(4*PI()*$D$3))*(-LN((4*$D$4*AH182)/(Sanierungsdesign!$E$13)^2)-$D$19) ->  | BC182: =(BB182-273.15)/Heterogenität!$D$4 ->  | BD182: =IF(AI182<Berechnung!$D$7,AI182,#N/A) -> 
AG183: =Sanierungsdesign!$E$12*AH183*Sanierungsdesign!$E$10/1000000 -> 8283.6 | AH183: 1274400 | AI183: 14.75 | AJ183: =$D$5+((-Sanierungsdesign!$E$12)/4*PI()*$D$3)*(-LN((4*$D$4*AH183)/(Sanierungsdesign!$E$13^2))-$D$19) -> 1502.446265 | AK183: 1229.296265 | AL183: 2434.876071 | AM183: =$D$3*$T$7*$AH$7*(AK183-$D$5)*(1/Sanierungsdesign!$E$15)/1000000 -> 132.1317764 | AN183: =$D$5+(-Sanierungsdesign!$E$12/(4*PI()*$D$3))*(-LN((4*$D$4*AH183)/(Sanierungsdesign!$E$13+Sanierungsdesign!$E$15)^2)-$D$19) -> 305.3965706 | AO183: 32.24657063 | AP183: =(2*PI()*Sanierungsdesign!$E$10*$D$3)*(LN((Sanierungsdesign!$E$13+Sanierungsdesign!$E$15)/Sanierungsdesign!$E$13)*(AJ183-AN183))*$AH$7/1000000 -> 106.8713903 | AQ183: 2195.842391 | AR183: 4956.016277 | AS183: =AU183/Sanierungsdesign!$E$11 -> 0.8808355774 | AT183: 1019520 | AU183: 7.046684619 | AZ183: =(AY183/(AH183*Sanierungsdesign!$E$10))*1000000 ->  | BA183: =AZ183/Sanierungsdesign!$E$12 ->  | BB183: =$D$5+((-(Sanierungsdesign!$E$12)*MIN($BA$7:$BA$932))/(4*PI()*$D$3))*(-LN((4*$D$4*AH183)/(Sanierungsdesign!$E$13)^2)-$D$19) ->  | BC183: =(BB183-273.15)/Heterogenität!$D$4 ->  | BD183: =IF(AI183<Berechnung!$D$7,AI183,#N/A) -> 
AG184: =Sanierungsdesign!$E$12*AH184*Sanierungsdesign!$E$10/1000000 -> 8330.4 | AH184: 1281600 | AI184: 14.83333333 | AJ184: =$D$5+((-Sanierungsdesign!$E$12)/4*PI()*$D$3)*(-LN((4*$D$4*AH184)/(Sanierungsdesign!$E$13^2))-$D$19) -> 1510.338321 | AK184: 1237.188321 | AL184: 2450.662021 | AM184: =$D$3*$T$7*$AH$7*(AK184-$D$5)*(1/Sanierungsdesign!$E$15)/1000000 -> 133.2339224 | AN184: =$D$5+(-Sanierungsdesign!$E$12/(4*PI()*$D$3))*(-LN((4*$D$4*AH184)/(Sanierungsdesign!$E$13+Sanierungsdesign!$E$15)^2)-$D$19) -> 305.8213683 | AO184: 32.67136834 | AP184: =(2*PI()*Sanierungsdesign!$E$10*$D$3)*(LN((Sanierungsdesign!$E$13+Sanierungsdesign!$E$15)/Sanierungsdesign!$E$13)*(AJ184-AN184))*$AH$7/1000000 -> 107.5380596 | AQ184: 2208.24828 | AR184: 4984.016369 | AS184: =AU184/Sanierungsdesign!$E$11 -> 0.8865462689 | AT184: 1025280 | AU184: 7.092370151 | AZ184: =(AY184/(AH184*Sanierungsdesign!$E$10))*1000000 ->  | BA184: =AZ184/Sanierungsdesign!$E$12 ->  | BB184: =$D$5+((-(Sanierungsdesign!$E$12)*MIN($BA$7:$BA$932))/(4*PI()*$D$3))*(-LN((4*$D$4*AH184)/(Sanierungsdesign!$E$13)^2)-$D$19) ->  | BC184: =(BB184-273.15)/Heterogenität!$D$4 ->  | BD184: =IF(AI184<Berechnung!$D$7,AI184,#N/A) -> 
AG185: =Sanierungsdesign!$E$12*AH185*Sanierungsdesign!$E$10/1000000 -> 8377.2 | AH185: 1288800 | AI185: 14.91666667 | AJ185: =$D$5+((-Sanierungsdesign!$E$12)/4*PI()*$D$3)*(-LN((4*$D$4*AH185)/(Sanierungsdesign!$E$13^2))-$D$19) -> 1518.186163 | AK185: 1245.036163 | AL185: 2466.359533 | AM185: =$D$3*$T$7*$AH$7*(AK185-$D$5)*(1/Sanierungsdesign!$E$15)/1000000 -> 134.3298938 | AN185: =$D$5+(-Sanierungsdesign!$E$12/(4*PI()*$D$3))*(-LN((4*$D$4*AH185)/(Sanierungsdesign!$E$13+Sanierungsdesign!$E$15)^2)-$D$19) -> 306.2437862 | AO185: 33.09378622 | AP185: =(2*PI()*Sanierungsdesign!$E$10*$D$3)*(LN((Sanierungsdesign!$E$13+Sanierungsdesign!$E$15)/Sanierungsdesign!$E$13)*(AJ185-AN185))*$AH$7/1000000 -> 108.200994 | AQ185: 2220.654169 | AR185: 5012.01646 | AS185: =AU185/Sanierungsdesign!$E$11 -> 0.8922249674 | AT185: 1031040 | AU185: 7.13779974 | AZ185: =(AY185/(AH185*Sanierungsdesign!$E$10))*1000000 ->  | BA185: =AZ185/Sanierungsdesign!$E$12 ->  | BB185: =$D$5+((-(Sanierungsdesign!$E$12)*MIN($BA$7:$BA$932))/(4*PI()*$D$3))*(-LN((4*$D$4*AH185)/(Sanierungsdesign!$E$13)^2)-$D$19) ->  | BC185: =(BB185-273.15)/Heterogenität!$D$4 ->  | BD185: =IF(AI185<Berechnung!$D$7,AI185,#N/A) -> 
AG186: =Sanierungsdesign!$E$12*AH186*Sanierungsdesign!$E$10/1000000 -> 8424 | AH186: 1296000 | AI186: 15 | AJ186: =$D$5+((-Sanierungsdesign!$E$12)/4*PI()*$D$3)*(-LN((4*$D$4*AH186)/(Sanierungsdesign!$E$13^2))-$D$19) -> 1525.990284 | AK186: 1252.840284 | AL186: 2481.969593 | AM186: =$D$3*$T$7*$AH$7*(AK186-$D$5)*(1/Sanierungsdesign!$E$15)/1000000 -> 135.4197596 | AN186: =$D$5+(-Sanierungsdesign!$E$12/(4*PI()*$D$3))*(-LN((4*$D$4*AH186)/(Sanierungsdesign!$E$13+Sanierungsdesign!$E$15)^2)-$D$19) -> 306.6638508 | AO186: 33.51385079 | AP186: =(2*PI()*Sanierungsdesign!$E$10*$D$3)*(LN((Sanierungsdesign!$E$13+Sanierungsdesign!$E$15)/Sanierungsdesign!$E$13)*(AJ186-AN186))*$AH$7/1000000 -> 108.8602351 | AQ186: 2233.060059 | AR186: 5040.016552 | AS186: =AU186/Sanierungsdesign!$E$11 -> 0.8978720297 | AT186: 1036800 | AU186: 7.182976237 | AZ186: =(AY186/(AH186*Sanierungsdesign!$E$10))*1000000 ->  | BA186: =AZ186/Sanierungsdesign!$E$12 ->  | BB186: =$D$5+((-(Sanierungsdesign!$E$12)*MIN($BA$7:$BA$932))/(4*PI()*$D$3))*(-LN((4*$D$4*AH186)/(Sanierungsdesign!$E$13)^2)-$D$19) ->  | BC186: =(BB186-273.15)/Heterogenität!$D$4 ->  | BD186: =IF(AI186<Berechnung!$D$7,AI186,#N/A) -> 
AG187: =Sanierungsdesign!$E$12*AH187*Sanierungsdesign!$E$10/1000000 -> 8470.8 | AH187: 1303200 | AI187: 15.08333333 | AJ187: =$D$5+((-Sanierungsdesign!$E$12)/4*PI()*$D$3)*(-LN((4*$D$4*AH187)/(Sanierungsdesign!$E$13^2))-$D$19) -> 1533.751169 | AK187: 1260.601169 | AL187: 2497.493171 | AM187: =$D$3*$T$7*$AH$7*(AK187-$D$5)*(1/Sanierungsdesign!$E$15)/1000000 -> 136.5035873 | AN187: =$D$5+(-Sanierungsdesign!$E$12/(4*PI()*$D$3))*(-LN((4*$D$4*AH187)/(Sanierungsdesign!$E$13+Sanierungsdesign!$E$15)^2)-$D$19) -> 307.0815881 | AO187: 33.93158811 | AP187: =(2*PI()*Sanierungsdesign!$E$10*$D$3)*(LN((Sanierungsdesign!$E$13+Sanierungsdesign!$E$15)/Sanierungsdesign!$E$13)*(AJ187-AN187))*$AH$7/1000000 -> 109.515824 | AQ187: 2245.465948 | AR187: 5068.016644 | AS187: =AU187/Sanierungsdesign!$E$11 -> 0.9034878061 | AT187: 1042560 | AU187: 7.227902449 | AZ187: =(AY187/(AH187*Sanierungsdesign!$E$10))*1000000 ->  | BA187: =AZ187/Sanierungsdesign!$E$12 ->  | BB187: =$D$5+((-(Sanierungsdesign!$E$12)*MIN($BA$7:$BA$932))/(4*PI()*$D$3))*(-LN((4*$D$4*AH187)/(Sanierungsdesign!$E$13)^2)-$D$19) ->  | BC187: =(BB187-273.15)/Heterogenität!$D$4 ->  | BD187: =IF(AI187<Berechnung!$D$7,AI187,#N/A) -> 
AG188: =Sanierungsdesign!$E$12*AH188*Sanierungsdesign!$E$10/1000000 -> 8517.6 | AH188: 1310400 | AI188: 15.16666667 | AJ188: =$D$5+((-Sanierungsdesign!$E$12)/4*PI()*$D$3)*(-LN((4*$D$4*AH188)/(Sanierungsdesign!$E$13^2))-$D$19) -> 1541.469294 | AK188: 1268.319294 | AL188: 2512.931219 | AM188: =$D$3*$T$7*$AH$7*(AK188-$D$5)*(1/Sanierungsdesign!$E$15)/1000000 -> 137.5814435 | AN188: =$D$5+(-Sanierungsdesign!$E$12/(4*PI()*$D$3))*(-LN((4*$D$4*AH188)/(Sanierungsdesign!$E$13+Sanierungsdesign!$E$15)^2)-$D$19) -> 307.4970238 | AO188: 34.34702384 | AP188: =(2*PI()*Sanierungsdesign!$E$10*$D$3)*(LN((Sanierungsdesign!$E$13+Sanierungsdesign!$E$15)/Sanierungsdesign!$E$13)*(AJ188-AN188))*$AH$7/1000000 -> 110.1678007 | AQ188: 2257.871837 | AR188: 5096.016736 | AS188: =AU188/Sanierungsdesign!$E$11 -> 0.9090726414 | AT188: 1048320 | AU188: 7.272581131 | AZ188: =(AY188/(AH188*Sanierungsdesign!$E$10))*1000000 ->  | BA188: =AZ188/Sanierungsdesign!$E$12 ->  | BB188: =$D$5+((-(Sanierungsdesign!$E$12)*MIN($BA$7:$BA$932))/(4*PI()*$D$3))*(-LN((4*$D$4*AH188)/(Sanierungsdesign!$E$13)^2)-$D$19) ->  | BC188: =(BB188-273.15)/Heterogenität!$D$4 ->  | BD188: =IF(AI188<Berechnung!$D$7,AI188,#N/A) -> 
AG189: =Sanierungsdesign!$E$12*AH189*Sanierungsdesign!$E$10/1000000 -> 8564.4 | AH189: 1317600 | AI189: 15.25 | AJ189: =$D$5+((-Sanierungsdesign!$E$12)/4*PI()*$D$3)*(-LN((4*$D$4*AH189)/(Sanierungsdesign!$E$13^2))-$D$19) -> 1549.145128 | AK189: 1275.995128 | AL189: 2528.284675 | AM189: =$D$3*$T$7*$AH$7*(AK189-$D$5)*(1/Sanierungsdesign!$E$15)/1000000 -> 138.6533935 | AN189: =$D$5+(-Sanierungsdesign!$E$12/(4*PI()*$D$3))*(-LN((4*$D$4*AH189)/(Sanierungsdesign!$E$13+Sanierungsdesign!$E$15)^2)-$D$19) -> 307.9101832 | AO189: 34.7601832 | AP189: =(2*PI()*Sanierungsdesign!$E$10*$D$3)*(LN((Sanierungsdesign!$E$13+Sanierungsdesign!$E$15)/Sanierungsdesign!$E$13)*(AJ189-AN189))*$AH$7/1000000 -> 110.816205 | AQ189: 2270.277726 | AR189: 5124.016828 | AS189: =AU189/Sanierungsdesign!$E$11 -> 0.9146268748 | AT189: 1054080 | AU189: 7.317014998 | AZ189: =(AY189/(AH189*Sanierungsdesign!$E$10))*1000000 ->  | BA189: =AZ189/Sanierungsdesign!$E$12 ->  | BB189: =$D$5+((-(Sanierungsdesign!$E$12)*MIN($BA$7:$BA$932))/(4*PI()*$D$3))*(-LN((4*$D$4*AH189)/(Sanierungsdesign!$E$13)^2)-$D$19) ->  | BC189: =(BB189-273.15)/Heterogenität!$D$4 ->  | BD189: =IF(AI189<Berechnung!$D$7,AI189,#N/A) -> 
AG190: =Sanierungsdesign!$E$12*AH190*Sanierungsdesign!$E$10/1000000 -> 8611.2 | AH190: 1324800 | AI190: 15.33333333 | AJ190: =$D$5+((-Sanierungsdesign!$E$12)/4*PI()*$D$3)*(-LN((4*$D$4*AH190)/(Sanierungsdesign!$E$13^2))-$D$19) -> 1556.779132 | AK190: 1283.629132 | AL190: 2543.55446 | AM190: =$D$3*$T$7*$AH$7*(AK190-$D$5)*(1/Sanierungsdesign!$E$15)/1000000 -> 139.7195019 | AN190: =$D$5+(-Sanierungsdesign!$E$12/(4*PI()*$D$3))*(-LN((4*$D$4*AH190)/(Sanierungsdesign!$E$13+Sanierungsdesign!$E$15)^2)-$D$19) -> 308.321091 | AO190: 35.171091 | AP190: =(2*PI()*Sanierungsdesign!$E$10*$D$3)*(LN((Sanierungsdesign!$E$13+Sanierungsdesign!$E$15)/Sanierungsdesign!$E$13)*(AJ190-AN190))*$AH$7/1000000 -> 111.4610757 | AQ190: 2282.683616 | AR190: 5152.01692 | AS190: =AU190/Sanierungsdesign!$E$11 -> 0.9201508396 | AT190: 1059840 | AU190: 7.361206717 | AZ190: =(AY190/(AH190*Sanierungsdesign!$E$10))*1000000 ->  | BA190: =AZ190/Sanierungsdesign!$E$12 ->  | BB190: =$D$5+((-(Sanierungsdesign!$E$12)*MIN($BA$7:$BA$932))/(4*PI()*$D$3))*(-LN((4*$D$4*AH190)/(Sanierungsdesign!$E$13)^2)-$D$19) ->  | BC190: =(BB190-273.15)/Heterogenität!$D$4 ->  | BD190: =IF(AI190<Berechnung!$D$7,AI190,#N/A) -> 
AG191: =Sanierungsdesign!$E$12*AH191*Sanierungsdesign!$E$10/1000000 -> 8658 | AH191: 1332000 | AI191: 15.41666667 | AJ191: =$D$5+((-Sanierungsdesign!$E$12)/4*PI()*$D$3)*(-LN((4*$D$4*AH191)/(Sanierungsdesign!$E$13^2))-$D$19) -> 1564.371758 | AK191: 1291.221758 | AL191: 2558.741481 | AM191: =$D$3*$T$7*$AH$7*(AK191-$D$5)*(1/Sanierungsdesign!$E$15)/1000000 -> 140.7798318 | AN191: =$D$5+(-Sanierungsdesign!$E$12/(4*PI()*$D$3))*(-LN((4*$D$4*AH191)/(Sanierungsdesign!$E$13+Sanierungsdesign!$E$15)^2)-$D$19) -> 308.7297716 | AO191: 35.57977165 | AP191: =(2*PI()*Sanierungsdesign!$E$10*$D$3)*(LN((Sanierungsdesign!$E$13+Sanierungsdesign!$E$15)/Sanierungsdesign!$E$13)*(AJ191-AN191))*$AH$7/1000000 -> 112.1024511 | AQ191: 2295.089505 | AR191: 5180.017012 | AS191: =AU191/Sanierungsdesign!$E$11 -> 0.9256448642 | AT191: 1065600 | AU191: 7.405158914 | AZ191: =(AY191/(AH191*Sanierungsdesign!$E$10))*1000000 ->  | BA191: =AZ191/Sanierungsdesign!$E$12 ->  | BB191: =$D$5+((-(Sanierungsdesign!$E$12)*MIN($BA$7:$BA$932))/(4*PI()*$D$3))*(-LN((4*$D$4*AH191)/(Sanierungsdesign!$E$13)^2)-$D$19) ->  | BC191: =(BB191-273.15)/Heterogenität!$D$4 ->  | BD191: =IF(AI191<Berechnung!$D$7,AI191,#N/A) -> 
AG192: =Sanierungsdesign!$E$12*AH192*Sanierungsdesign!$E$10/1000000 -> 8704.8 | AH192: 1339200 | AI192: 15.5 | AJ192: =$D$5+((-Sanierungsdesign!$E$12)/4*PI()*$D$3)*(-LN((4*$D$4*AH192)/(Sanierungsdesign!$E$13^2))-$D$19) -> 1571.923454 | AK192: 1298.773454 | AL192: 2573.846632 | AM192: =$D$3*$T$7*$AH$7*(AK192-$D$5)*(1/Sanierungsdesign!$E$15)/1000000 -> 141.8344457 | AN192: =$D$5+(-Sanierungsdesign!$E$12/(4*PI()*$D$3))*(-LN((4*$D$4*AH192)/(Sanierungsdesign!$E$13+Sanierungsdesign!$E$15)^2)-$D$19) -> 309.1362491 | AO192: 35.98624915 | AP192: =(2*PI()*Sanierungsdesign!$E$10*$D$3)*(LN((Sanierungsdesign!$E$13+Sanierungsdesign!$E$15)/Sanierungsdesign!$E$13)*(AJ192-AN192))*$AH$7/1000000 -> 112.740369 | AQ192: 2307.495394 | AR192: 5208.017104 | AS192: =AU192/Sanierungsdesign!$E$11 -> 0.9311092712 | AT192: 1071360 | AU192: 7.44887417 | AZ192: =(AY192/(AH192*Sanierungsdesign!$E$10))*1000000 ->  | BA192: =AZ192/Sanierungsdesign!$E$12 ->  | BB192: =$D$5+((-(Sanierungsdesign!$E$12)*MIN($BA$7:$BA$932))/(4*PI()*$D$3))*(-LN((4*$D$4*AH192)/(Sanierungsdesign!$E$13)^2)-$D$19) ->  | BC192: =(BB192-273.15)/Heterogenität!$D$4 ->  | BD192: =IF(AI192<Berechnung!$D$7,AI192,#N/A) -> 
AG193: =Sanierungsdesign!$E$12*AH193*Sanierungsdesign!$E$10/1000000 -> 8751.6 | AH193: 1346400 | AI193: 15.58333333 | AJ193: =$D$5+((-Sanierungsdesign!$E$12)/4*PI()*$D$3)*(-LN((4*$D$4*AH193)/(Sanierungsdesign!$E$13^2))-$D$19) -> 1579.434658 | AK193: 1306.284658 | AL193: 2588.870789 | AM193: =$D$3*$T$7*$AH$7*(AK193-$D$5)*(1/Sanierungsdesign!$E$15)/1000000 -> 142.8834048 | AN193: =$D$5+(-Sanierungsdesign!$E$12/(4*PI()*$D$3))*(-LN((4*$D$4*AH193)/(Sanierungsdesign!$E$13+Sanierungsdesign!$E$15)^2)-$D$19) -> 309.5405471 | AO193: 36.39054714 | AP193: =(2*PI()*Sanierungsdesign!$E$10*$D$3)*(LN((Sanierungsdesign!$E$13+Sanierungsdesign!$E$15)/Sanierungsdesign!$E$13)*(AJ193-AN193))*$AH$7/1000000 -> 113.3748664 | AQ193: 2319.901283 | AR193: 5236.017196 | AS193: =AU193/Sanierungsdesign!$E$11 -> 0.9365443783 | AT193: 1077120 | AU193: 7.492355027 | AZ193: =(AY193/(AH193*Sanierungsdesign!$E$10))*1000000 ->  | BA193: =AZ193/Sanierungsdesign!$E$12 ->  | BB193: =$D$5+((-(Sanierungsdesign!$E$12)*MIN($BA$7:$BA$932))/(4*PI()*$D$3))*(-LN((4*$D$4*AH193)/(Sanierungsdesign!$E$13)^2)-$D$19) ->  | BC193: =(BB193-273.15)/Heterogenität!$D$4 ->  | BD193: =IF(AI193<Berechnung!$D$7,AI193,#N/A) -> 
AG194: =Sanierungsdesign!$E$12*AH194*Sanierungsdesign!$E$10/1000000 -> 8798.4 | AH194: 1353600 | AI194: 15.66666667 | AJ194: =$D$5+((-Sanierungsdesign!$E$12)/4*PI()*$D$3)*(-LN((4*$D$4*AH194)/(Sanierungsdesign!$E$13^2))-$D$19) -> 1586.905802 | AK194: 1313.755802 | AL194: 2603.814817 | AM194: =$D$3*$T$7*$AH$7*(AK194-$D$5)*(1/Sanierungsdesign!$E$15)/1000000 -> 143.9267694 | AN194: =$D$5+(-Sanierungsdesign!$E$12/(4*PI()*$D$3))*(-LN((4*$D$4*AH194)/(Sanierungsdesign!$E$13+Sanierungsdesign!$E$15)^2)-$D$19) -> 309.9426889 | AO194: 36.79268886 | AP194: =(2*PI()*Sanierungsdesign!$E$10*$D$3)*(LN((Sanierungsdesign!$E$13+Sanierungsdesign!$E$15)/Sanierungsdesign!$E$13)*(AJ194-AN194))*$AH$7/1000000 -> 114.0059798 | AQ194: 2332.307172 | AR194: 5264.017288 | AS194: =AU194/Sanierungsdesign!$E$11 -> 0.9419504981 | AT194: 1082880 | AU194: 7.535603985 | AZ194: =(AY194/(AH194*Sanierungsdesign!$E$10))*1000000 ->  | BA194: =AZ194/Sanierungsdesign!$E$12 ->  | BB194: =$D$5+((-(Sanierungsdesign!$E$12)*MIN($BA$7:$BA$932))/(4*PI()*$D$3))*(-LN((4*$D$4*AH194)/(Sanierungsdesign!$E$13)^2)-$D$19) ->  | BC194: =(BB194-273.15)/Heterogenität!$D$4 ->  | BD194: =IF(AI194<Berechnung!$D$7,AI194,#N/A) -> 
AG195: =Sanierungsdesign!$E$12*AH195*Sanierungsdesign!$E$10/1000000 -> 8845.2 | AH195: 1360800 | AI195: 15.75 | AJ195: =$D$5+((-Sanierungsdesign!$E$12)/4*PI()*$D$3)*(-LN((4*$D$4*AH195)/(Sanierungsdesign!$E$13^2))-$D$19) -> 1594.337311 | AK195: 1321.187311 | AL195: 2618.679566 | AM195: =$D$3*$T$7*$AH$7*(AK195-$D$5)*(1/Sanierungsdesign!$E$15)/1000000 -> 144.9645989 | AN195: =$D$5+(-Sanierungsdesign!$E$12/(4*PI()*$D$3))*(-LN((4*$D$4*AH195)/(Sanierungsdesign!$E$13+Sanierungsdesign!$E$15)^2)-$D$19) -> 310.3426972 | AO195: 37.1926972 | AP195: =(2*PI()*Sanierungsdesign!$E$10*$D$3)*(LN((Sanierungsdesign!$E$13+Sanierungsdesign!$E$15)/Sanierungsdesign!$E$13)*(AJ195-AN195))*$AH$7/1000000 -> 114.6337451 | AQ195: 2344.713062 | AR195: 5292.01738 | AS195: =AU195/Sanierungsdesign!$E$11 -> 0.947327938 | AT195: 1088640 | AU195: 7.578623504 | AZ195: =(AY195/(AH195*Sanierungsdesign!$E$10))*1000000 ->  | BA195: =AZ195/Sanierungsdesign!$E$12 ->  | BB195: =$D$5+((-(Sanierungsdesign!$E$12)*MIN($BA$7:$BA$932))/(4*PI()*$D$3))*(-LN((4*$D$4*AH195)/(Sanierungsdesign!$E$13)^2)-$D$19) ->  | BC195: =(BB195-273.15)/Heterogenität!$D$4 ->  | BD195: =IF(AI195<Berechnung!$D$7,AI195,#N/A) -> 
AG196: =Sanierungsdesign!$E$12*AH196*Sanierungsdesign!$E$10/1000000 -> 8892 | AH196: 1368000 | AI196: 15.83333333 | AJ196: =$D$5+((-Sanierungsdesign!$E$12)/4*PI()*$D$3)*(-LN((4*$D$4*AH196)/(Sanierungsdesign!$E$13^2))-$D$19) -> 1601.729603 | AK196: 1328.579603 | AL196: 2633.465873 | AM196: =$D$3*$T$7*$AH$7*(AK196-$D$5)*(1/Sanierungsdesign!$E$15)/1000000 -> 145.9969516 | AN196: =$D$5+(-Sanierungsdesign!$E$12/(4*PI()*$D$3))*(-LN((4*$D$4*AH196)/(Sanierungsdesign!$E$13+Sanierungsdesign!$E$15)^2)-$D$19) -> 310.7405947 | AO196: 37.59059466 | AP196: =(2*PI()*Sanierungsdesign!$E$10*$D$3)*(LN((Sanierungsdesign!$E$13+Sanierungsdesign!$E$15)/Sanierungsdesign!$E$13)*(AJ196-AN196))*$AH$7/1000000 -> 115.2581976 | AQ196: 2357.118951 | AR196: 5320.017472 | AS196: =AU196/Sanierungsdesign!$E$11 -> 0.9526770008 | AT196: 1094400 | AU196: 7.621416006 | AZ196: =(AY196/(AH196*Sanierungsdesign!$E$10))*1000000 ->  | BA196: =AZ196/Sanierungsdesign!$E$12 ->  | BB196: =$D$5+((-(Sanierungsdesign!$E$12)*MIN($BA$7:$BA$932))/(4*PI()*$D$3))*(-LN((4*$D$4*AH196)/(Sanierungsdesign!$E$13)^2)-$D$19) ->  | BC196: =(BB196-273.15)/Heterogenität!$D$4 ->  | BD196: =IF(AI196<Berechnung!$D$7,AI196,#N/A) -> 
AG197: =Sanierungsdesign!$E$12*AH197*Sanierungsdesign!$E$10/1000000 -> 8938.8 | AH197: 1375200 | AI197: 15.91666667 | AJ197: =$D$5+((-Sanierungsdesign!$E$12)/4*PI()*$D$3)*(-LN((4*$D$4*AH197)/(Sanierungsdesign!$E$13^2))-$D$19) -> 1609.083091 | AK197: 1335.933091 | AL197: 2648.174561 | AM197: =$D$3*$T$7*$AH$7*(AK197-$D$5)*(1/Sanierungsdesign!$E$15)/1000000 -> 147.0238852 | AN197: =$D$5+(-Sanierungsdesign!$E$12/(4*PI()*$D$3))*(-LN((4*$D$4*AH197)/(Sanierungsdesign!$E$13+Sanierungsdesign!$E$15)^2)-$D$19) -> 311.1364034 | AO197: 37.98640341 | AP197: =(2*PI()*Sanierungsdesign!$E$10*$D$3)*(LN((Sanierungsdesign!$E$13+Sanierungsdesign!$E$15)/Sanierungsdesign!$E$13)*(AJ197-AN197))*$AH$7/1000000 -> 115.8793722 | AQ197: 2369.52484 | AR197: 5348.017564 | AS197: =AU197/Sanierungsdesign!$E$11 -> 0.9579979844 | AT197: 1100160 | AU197: 7.663983875 | AZ197: =(AY197/(AH197*Sanierungsdesign!$E$10))*1000000 ->  | BA197: =AZ197/Sanierungsdesign!$E$12 ->  | BB197: =$D$5+((-(Sanierungsdesign!$E$12)*MIN($BA$7:$BA$932))/(4*PI()*$D$3))*(-LN((4*$D$4*AH197)/(Sanierungsdesign!$E$13)^2)-$D$19) ->  | BC197: =(BB197-273.15)/Heterogenität!$D$4 ->  | BD197: =IF(AI197<Berechnung!$D$7,AI197,#N/A) -> 
AG198: =Sanierungsdesign!$E$12*AH198*Sanierungsdesign!$E$10/1000000 -> 8985.6 | AH198: 1382400 | AI198: 16 | AJ198: =$D$5+((-Sanierungsdesign!$E$12)/4*PI()*$D$3)*(-LN((4*$D$4*AH198)/(Sanierungsdesign!$E$13^2))-$D$19) -> 1616.398179 | AK198: 1343.248179 | AL198: 2662.806441 | AM198: =$D$3*$T$7*$AH$7*(AK198-$D$5)*(1/Sanierungsdesign!$E$15)/1000000 -> 148.0454562 | AN198: =$D$5+(-Sanierungsdesign!$E$12/(4*PI()*$D$3))*(-LN((4*$D$4*AH198)/(Sanierungsdesign!$E$13+Sanierungsdesign!$E$15)^2)-$D$19) -> 311.5301453 | AO198: 38.38014527 | AP198: =(2*PI()*Sanierungsdesign!$E$10*$D$3)*(LN((Sanierungsdesign!$E$13+Sanierungsdesign!$E$15)/Sanierungsdesign!$E$13)*(AJ198-AN198))*$AH$7/1000000 -> 116.497303 | AQ198: 2381.930729 | AR198: 5376.017656 | AS198: =AU198/Sanierungsdesign!$E$11 -> 0.9632911821 | AT198: 1105920 | AU198: 7.706329456 | AZ198: =(AY198/(AH198*Sanierungsdesign!$E$10))*1000000 ->  | BA198: =AZ198/Sanierungsdesign!$E$12 ->  | BB198: =$D$5+((-(Sanierungsdesign!$E$12)*MIN($BA$7:$BA$932))/(4*PI()*$D$3))*(-LN((4*$D$4*AH198)/(Sanierungsdesign!$E$13)^2)-$D$19) ->  | BC198: =(BB198-273.15)/Heterogenität!$D$4 ->  | BD198: =IF(AI198<Berechnung!$D$7,AI198,#N/A) -> 
AG199: =Sanierungsdesign!$E$12*AH199*Sanierungsdesign!$E$10/1000000 -> 9032.4 | AH199: 1389600 | AI199: =AH199/86400 -> 16.08333333 | AJ199: =$D$5+((-Sanierungsdesign!$E$12)/4*PI()*$D$3)*(-LN((4*$D$4*AH199)/(Sanierungsdesign!$E$13^2))-$D$19) -> 1623.675266 | AK199: =AJ199-273.15 -> 1350.525266 | AL199: 2677.36231 | AM199: =$D$3*$T$7*$AH$7*(AK199-$D$5)*(1/Sanierungsdesign!$E$15)/1000000 -> 149.0617203 | AN199: =$D$5+(-Sanierungsdesign!$E$12/(4*PI()*$D$3))*(-LN((4*$D$4*AH199)/(Sanierungsdesign!$E$13+Sanierungsdesign!$E$15)^2)-$D$19) -> 311.9218417 | AO199: =AN199-273.15 -> 38.77184171 | AP199: =(2*PI()*Sanierungsdesign!$E$10*$D$3)*(LN((Sanierungsdesign!$E$13+Sanierungsdesign!$E$15)/Sanierungsdesign!$E$13)*(AJ199-AN199))*$AH$7/1000000 -> 117.1120237 | AQ199: 2394.336618 | AR199: 5404.017748 | AS199: =AU199/Sanierungsdesign!$E$11 -> 0.9685568825 | AT199: 1111680 | AU199: 7.74845506 | AY199: =AG199-AX199 ->  | AZ199: =(AY199/(AH199*Sanierungsdesign!$E$10))*1000000 ->  | BA199: =AZ199/Sanierungsdesign!$E$12 ->  | BB199: =$D$5+((-(Sanierungsdesign!$E$12)*MIN($BA$7:$BA$932))/(4*PI()*$D$3))*(-LN((4*$D$4*AH199)/(Sanierungsdesign!$E$13)^2)-$D$19) ->  | BC199: =(BB199-273.15)/Heterogenität!$D$4 ->  | BD199: =IF(AI199<Berechnung!$D$7,AI199,#N/A) -> 
AG200: =Sanierungsdesign!$E$12*AH200*Sanierungsdesign!$E$10/1000000 -> 9079.2 | AH200: 1396800 | AI200: 16.16666667 | AJ200: =$D$5+((-Sanierungsdesign!$E$12)/4*PI()*$D$3)*(-LN((4*$D$4*AH200)/(Sanierungsdesign!$E$13^2))-$D$19) -> 1630.914745 | AK200: 1357.764745 | AL200: =$T$4*$T$7*$AH$7*(AJ200-$D$2)/1000000 -> 2691.842956 | AM200: =$D$3*$T$7*$AH$7*(AK200-$D$5)*(1/Sanierungsdesign!$E$15)/1000000 -> 150.0727324 | AN200: =$D$5+(-Sanierungsdesign!$E$12/(4*PI()*$D$3))*(-LN((4*$D$4*AH200)/(Sanierungsdesign!$E$13+Sanierungsdesign!$E$15)^2)-$D$19) -> 312.3115139 | AO200: 39.16151386 | AP200: =(2*PI()*Sanierungsdesign!$E$10*$D$3)*(LN((Sanierungsdesign!$E$13+Sanierungsdesign!$E$15)/Sanierungsdesign!$E$13)*(AJ200-AN200))*$AH$7/1000000 -> 117.7235676 | AQ200: =$T$20*AH200 -> 2406.742508 | AR200: =$D$12*AQ200/1000000 -> 5432.01784 | AS200: =AU200/Sanierungsdesign!$E$11 -> 0.9737953698 | AT200: =$T$18/$D$24*AH200 -> 1117440 | AU200: =($D$10*$T$18)*(AJ200-$D$2)/1000000 -> 7.790362959 | AV200: =($D$17*$L$10*$T$28+$L$2*$D$10*$T$28+$D$16*$L$4*$T$28+$D$18*$L$7*$T$28)*(AJ200-$D$5)/1000000 ->  | AW200: =AV200*$D$28 ->  | AX200: =AL200+AM200+AR200+(0.5*AP200)-(2*AW200)+AS200 ->  | AZ200: =(AY200/(AH200*Sanierungsdesign!$E$10))*1000000 ->  | BA200: =AZ200/Sanierungsdesign!$E$12 ->  | BB200: =$D$5+((-(Sanierungsdesign!$E$12)*MIN($BA$7:$BA$932))/(4*PI()*$D$3))*(-LN((4*$D$4*AH200)/(Sanierungsdesign!$E$13)^2)-$D$19) ->  | BC200: =(BB200-273.15)/Heterogenität!$D$4 ->  | BD200: =IF(AI200<Berechnung!$D$7,AI200,#N/A) -> 
... 734 more rows

Sheet Heterogenität (hidden)
A3: Heterogenität (Gini-Koeffizient) | C3: Gering | D3: 0.2
A4: Korrekturfaktor | D4: =1/(1-(1-2.45068336614863*(Schadstoffbelastung!$K$4*Schadstoffbelastung!$K$5)^-0.457209937280527)*$D$3) -> 
F6: Sondierung | G6: Gini-Koeffizient
C15: Höhe | D15: 0.4

Sheet Stoffdatenbank (hidden)
B2: Abbaurate (Permang.) | C2: Abbaurate (Sufat-Radikal) | D2: Abbaurate (ERD) | E2: Abbaurate (O2) | F2: Abbaurate (Nitrat) | G2: Abbaurate (Sulfat) | H2: Ver-dampfungswärme | I2: Gemisch-siedetemp. mit Wasser | J2: Sorptions-koeffizient | K2: Henry-Koeffizient | L2: Diffussions-koeffizient (in Wasser) | M2: Diffussions-koeffizient (in Luft) | N2: Löslichkeit | O2: Dampf-druck | P2: Siede-punkt | Q2: Dichte | R2: Molekular-gewicht
A3: Verbindung | B3: lPM [mol-1 s-1] | C3: lPM [mol-1 s-1] | D3: lERD [d-1] | E3: lOx [d-1] | F3: lNO3 [d-1] | G3: lSO4 [d-1] | H3: ΔHv [kJ/kg] | I3: °C | J3: KOC [L/kg] | K3: H (15°C) [-] | L3: Dw (15°C) [m²/s] | M3: Da (15°C) [m²/s] | N3: Lw (20°C) [mg/L] | O3: Po (15°C) [Pa] | P3: °C | Q3: [kg/L] | R3: Mm [g/mol] | S3: Bemerkung
A4: Leichtflüchtige chlorierte Kohlenwasserstoffe (LCKW)
A5: Tetrachlorethen | B5: 0.038 | E5: -- | F5: -- | G5: -- | H5: 239.22 | I5: 88.7 | J5: =0.36*1000 -> 360 | K5: 0.64 | L5: 7.49e-10 | M5: 6.62e-06 | N5: 160 | O5: 1479 | P5: 121.075 | Q5: 1.624 | R5: 166
A6: Trichlorethen | B6: 0.67 | E6: -- | F6: -- | G6: -- | H6: 263.15 | I6: 73.5 | J6: 130 | K6: 0.33 | L6: 8.08e-10 | M6: 7.12e-06 | N6: 1000 | O6: 6064 | P6: 86.975 | Q6: 1.4642 | R6: 131
A7: cis-1,2-Dichlorethen | E7: -- | F7: -- | G7: -- | H7: 319.07 | I7: 55.3 | J7: 50 | K7: 0.2 | L7: 8.95e-10 | M7: 7.88e-06 | N7: 3500 | O7: 17284 | P7: 60.1875 | Q7: 1.2837 | R7: 97 | S7: LW (cDCE) bei 25 °C
A8: trans-1,2-Dichlorethen | B8: 43.6 | E8: -- | F8: -- | G8: -- | H8: 306.55 | I8: 45.3 | J8: 60 | K8: 0.19 | L8: 8.86e-10 | M8: 8.83e-06 | N8: 6300 | O8: 29294 | P8: 48.066 | Q8: 1.2565 | R8: 97
A9: 1,1-Dichlorethen | B9: 2.32 | E9: -- | F9: -- | G9: -- | H9: 274.33 | I9: =I7 -> 55.3 | J9: 70.51 | K9: 0.8 | L9: 1.173e-09 | M9: 9.865e-06 | N9: 2500 | O9: 6792.77 | P9: 31.4 | Q9: 1.218 | R9: 97
A10: Vinylchlorid | E10: 0.03 | F10: 0.002 | G10: 0.002 | H10: 364.6 | I10: -13 | J10: 60 | K10: 6.78 | L10: 5.78e-10 | M10: 5.94e-06 | N10: 1100 | O10: 285916 | P10: -13.758 | Q10: 0.9121 | R10: 63
A11: Tetrachlormethan | E11: -- | F11: -- | G11: -- | H11: 201.95 | I11: 66 | J11: 285.6 | K11: 1.153 | L11: 7.293e-10 | M11: 6.323e-06 | N11: 800 | O11: 11940 | P11: 76.76 | Q11: 1.594 | R11: 154
A12: Trichlormethan | E12: -- | F12: -- | G12: -- | H12: 273.11 | I12: 56.1 | J12: 51.21 | K12: 0.185 | L12: 8.245e-10 | M12: 7.141e-06 | N12: 8200 | O12: 20900 | P12: 61.12 | Q12: 1.485 | R12: 119
A13: Dichlormethan | E13: -- | F13: -- | G13: -- | H13: 343.36 | I13: 43.5 | J13: 12.15 | K13: 0.1159 | L13: 9.83e-10 | M13: 8.441e-06 | N13: 17799 | O13: 39156.78 | P13: 39.95 | Q13: 1.328 | R13: 85
A14: 1,1,1-Trichlorethan | E14: -- | F14: -- | G14: -- | H14: 243.62 | I14: 86 | J14: 144 | K14: 1 | L14: 7.61e-10 | M14: 6.77e-06 | N14: 1300 | O14: 1369.81 | P14: 74.05 | Q14: 1.339 | R14: 133.404
A15: 1,1,2-Trichlorethan | E15: -- | F15: -- | G15: -- | H15: 301.34 | I15: 86 | J15: 43.64 | K15: 0.038 | L15: 6.8e-10 | M15: 7.6e-06 | N15: 4500 | O15: 2500 | P15: 13.65 | Q15: 1.441 | R15: 133.404 | S15: D abgeschätzt
A16: 1,1-Dichlorethan | E16: -- | F16: -- | G16: -- | H16: 310.28 | I16: 72.8 | J16: 35.74 | K16: 0.257 | L16: 1.14e-09 | M16: 8.7e-06 | N16: 8690 | O16: 29100 | P16: 57.4 | Q16: 1.235 | R16: 98.96 | S16: D abgeschätzt
A17: 1,2-Dichlorethan | E17: -- | F17: -- | G17: -- | H17: 354.69 | I17: 72.845 | J17: 39.6 | K17: 0.0508 | L17: 9.2e-10 | M17: 7.83e-06 | N17: 8690 | O17: 10000 | P17: 83.6 | R17: 98.96
A18: (Mono)aromatische Kohlenwasserstoffe (AKW)
A19: Benzol | B19: 7e-06 | C19: 1680000000 | D19: -- | E19: 0.15 | F19: 0.0015 | G19: 0.01 | H19: 434.62 | I19: 69.3 | J19: 80 | K19: 0.15 | L19: 8.15e-10 | M19: 7.59e-06 | N19: 1770 | O19: 7941 | P19: 80.15 | Q19: 0.877 | R19: 78
A20: Toluol | B20: 0.00057 | C20: 1870000000 | D20: -- | E20: 0.23 | F20: 0.5 | G20: 0.05 | H20: 390.22 | I20: 84.6 | J20: 300 | K20: 0.16 | L20: 7.34e-10 | M20: 6.9e-06 | N20: 520 | O20: 2215 | P20: 110.7 | Q20: 0.87 | R20: 92
A21: Ethylbenzol | B21: 0.00707 | C21: 1000000000 | D21: -- | E21: 0.15 | F21: 0.25 | G21: 0.003 | H21: 386.76 | I21: 91.5 | J21: 1100 | K21: 0.19 | L21: 6.76e-10 | M21: 6.39e-06 | N21: 170 | O21: 728 | P21: 136.2 | Q21: 0.866 | R21: 106
A22: o-Xylol | B22: 0.00147 | D22: -- | E22: 0.07 | F22: 0.025 | G22: 0.04 | H22: 396.23 | I22: 93.3 | J22: 830 | K22: 0.12 | L22: 6.8e-10 | M22: 6.42e-06 | N22: 180 | O22: 492 | P22: 143.9 | Q22: 0.88 | R22: 106
A23: m-Xylol | B23: 0.001 | D23: -- | E23: 0.1 | F23: 0.1 | G23: 0.08 | H23: 386.79 | I23: 93.3 | J23: 980 | K23: 0.16 | L23: 6.71e-10 | M23: 6.36e-06 | N23: 174 | O23: 615 | P23: 139.2 | Q23: 0.864 | R23: 106
A24: p-Xylol | B24: 0.00222 | C24: 2700000000 | D24: -- | E24: 0.1 | F24: 0.05 | G24: 0.04 | H24: 396.23 | I24: 93.3 | J24: 880 | K24: 0.15 | L24: 6.71e-10 | M24: 6.36e-06 | N24: 200 | O24: 657 | P24: 138.3 | Q24: 0.861 | R24: 106
A25: n-Propylbenzol | D25: -- | E25: 0.1 | F25: 0.02 | G25: 0.003 | H25: 383.33 | I25: 96.5 | J25: 980 | K25: 0.2 | L25: 6.2e-10 | M25: 6e-06 | N25: 60 | O25: 237 | P25: 158.9 | Q25: 0.86 | R25: 120 | S25: LW bei 25 °C
A26: Isopropylbenzol | D26: -- | E26: 0.15 | F26: 0.02 | G26: 0.02 | H26: 366.67 | I26: 95 | J26: 940 | K26: 0.43 | L26: 6.2e-10 | M26: 6e-06 | N26: 50 | O26: 427 | P26: 151.9 | Q26: 0.862 | R26: 120 | S26: LW bei 25 °C
A27: o-Ethyltoluol | D27: -- | E27: 0.05 | F27: 0.02 | G27: 0.04 | H27: 395.25 | I27: 96.5 | J27: 790 | K27: 0.11 | L27: 6.3e-10 | M27: 6e-06 | N27: 93 | O27: 202 | P27: 165.2 | Q27: 0.88 | R27: 120
A28: m-Ethyltoluol | D28: -- | E28: 0.15 | F28: 0.1 | G28: 0.08 | H28: 390 | I28: 96.5 | J28: 760 | K28: 0.1 | L28: 6.2e-10 | M28: 6e-06 | N28: 97 | O28: 202 | P28: 161.4 | Q28: 0.864 | R28: 120
A29: p-Ethyltoluol | D29: -- | E29: 0.15 | F29: 0.05 | G29: 0.04 | H29: 388.92 | I29: 96.5 | J29: 900 | K29: 0.12 | L29: 6.2e-10 | M29: 6e-06 | N29: 95 | O29: 230 | P29: 162 | Q29: 0.861 | R29: 120
A30: 1,2-Diethylbenzol | D30: -- | E30: 0.07 | F30: 0.015 | G30: 0.04 | H30: 394.03 | I30: 96.5 | J30: 500 | K30: 0.16 | L30: 5.9e-10 | M30: 5.7e-06 | N30: 24 | O30: 67 | P30: 182.9 | Q30: 0.88 | R30: 134
A31: 1,3-Diethylbenzol | D31: -- | E31: 0.07 | F31: 0.05 | G31: 0.08 | H31: 391.79 | I31: 96.5 | J31: 420 | K31: 0.23 | L31: 5.8e-10 | M31: 5.6e-06 | N31: 27 | O31: 109 | P31: 180.9 | Q31: 0.86 | R31: 134
A32: 1,4-Diethylbenzol | D32: -- | E32: 0.07 | F32: 0.03 | G32: 0.04 | H32: 391.79 | I32: 96.5 | J32: 460 | K32: 0.23 | L32: 5.8e-10 | M32: 5.6e-06 | N32: 25 | O32: 101 | P32: 183.7 | Q32: 0.862 | R32: 134
A33: 1,2,3-Trimethylbenzol | D33: -- | E33: 0.12 | F33: 0.003 | G33: 0.03 | H33: 408.33 | I33: 96.5 | J33: 650 | K33: 0.08 | L33: 6.4e-10 | M33: 6e-06 | N33: 75 | O33: 125 | P33: 176.1 | Q33: 0.894 | R33: 120
A34: 1,2,4-Trimethylbenzol | D34: -- | E34: 0.17 | F34: 0.003 | G34: 0.05 | H34: 391.67 | I34: 96.5 | J34: 650 | K34: 0.12 | L34: 6.3e-10 | M34: 6e-06 | N34: 60 | O34: 147 | P34: 169.3 | Q34: 0.876 | R34: 120 | S34: LW bei 25 °C
A35: 1,3,5-Trimethylbenzol | D35: -- | E35: 0.05 | F35: 0.003 | G35: 0.05 | H35: 395.92 | I35: 96.5 | J35: 670 | K35: 0.48 | L35: 6.3e-10 | M35: 6e-06 | N35: 20 | O35: 193 | P35: 164.7 | Q35: 0.865 | R35: 120
A36: n-Alkane
A37: n-Pentan | C37: 125000000 | D37: -- | E37: 0.06 | F37: 0.01 | G37: 0.005 | H37: 370 | I37: 34.6 | J37: 870 | K37: 35.69 | L37: 7.01e-10 | M37: 6.89e-06 | N37: 39000 | O37: 46219 | P37: 36.05 | Q37: 0.626 | R37: 72
A38: n-Hexan | C38: 160000000 | D38: -- | E38: 0.11 | F38: 0.01 | G38: 0.005 | H38: 360.47 | I38: 61.6 | J38: 2040 | K38: 46.48 | L38: 6.49e-10 | M38: 6.36e-06 | N38: 10000 | O38: 12922 | P38: 68.75 | Q38: 0.66 | R38: 86
A39: n-Heptan | C39: 247000000 | D39: -- | E39: 0.15 | F39: 0.01 | G39: 0.005 | H39: 360 | I39: 79.6 | J39: 5250 | K39: 69.3 | L39: 6.05e-10 | M39: 5.92e-06 | N39: 2200 | O39: 3645 | P39: 98.35 | Q39: 0.684 | R39: 100 | S39: LW bei 25 °C
A40: n-Octan | C40: 337000000 | D40: -- | E40: 0.19 | F40: 0.01 | G40: 0.005 | H40: 359.65 | I40: 89.5 | J40: 17380 | K40: 70.89 | L40: 5.69e-10 | M40: 5.58e-06 | N40: 700 | O40: 1041 | P40: 125.6 | Q40: 0.7025 | R40: 114
A41: n-Nonan | D41: -- | E41: 0.22 | F41: 0.01 | G41: 0.005 | H41: 363.28 | I41: 94.8 | J41: 27540 | K41: 156.63 | L41: 5.41e-10 | M41: 5.31e-06 | N41: 120 | O41: 351 | P41: 150.7 | Q41: 0.72 | R41: 128 | S41: LW bei 25 °C
A42: n-Decan | D42: -- | E42: 0.22 | F42: 0.01 | G42: 0.005 | H42: 361.27 | I42: 97.2 | J42: 218780 | K42: 140.3 | L42: 5.13e-10 | M42: 5.05e-06 | N42: 50 | O42: 118 | P42: 174.1 | Q42: 0.73 | R42: 142
A43: Oxigenate
A44: MTBE (Methyl-tert-butylether) | C44: 31000000 | D44: -- | E44: 0.07 | F44: 0.003 | G44: 0.002 | H44: 340.34 | I44: 52.4 | J44: 11 | K44: 0.027 | L44: 9.513e-10 | M44: 8.286e-06 | N44: 51259 | O44: 33300 | P44: 55.65 | Q44: 0.74 | R44: 88.148
A45: ETBE (Ethyl-tert-butylether) | D45: -- | E45: 0.07 | F45: 0.003 | G45: 0.002 | H45: 323.37 | I45: 65.2 | J45: 9 | K45: 0.081 | L45: 7.337962963e-10 | M45: 6.944444444e-06 | N45: 12000 | O45: 16500 | P45: 72.825 | Q45: 0.75 | R45: 102.1748
A46: TBA (tert-Butylalkohol) | C46: 740000 | D46: -- | E46: 0.07 | F46: 0.001 | G46: 0.002 | H46: 620.6 | I46: 79.9 | J46: 37 | K46: 0.00061 | L46: 7e-10 | M46: =M44/(L44/L46) -> 6.097130243e-06 | N46: mischbar | O46: 5430 | P46: 82.35 | Q46: 0.79 | R46: 74.1216
A47: blau = berechnet, grau = abgeschätzt
A50: n-Pentan | C50: 125000000 | D50: -- | E50: 0.06 | F50: 0.01 | G50: 0.005 | H50: 370 | I50: 34.6 | J50: 870 | K50: 35.69 | L50: 7.01e-10 | M50: 6.89e-06 | N50: 39000 | O50: 46219 | P50: 36.05 | Q50: 0.626 | R50: 72
A51: n-Hexan | C51: 160000000 | D51: -- | E51: 0.11 | F51: 0.01 | G51: 0.005 | H51: 360.47 | I51: 61.6 | J51: 2040 | K51: 46.48 | L51: 6.49e-10 | M51: 6.36e-06 | N51: 10000 | O51: 12922 | P51: 68.75 | Q51: 0.66 | R51: 86
A52: n-Heptan | C52: 247000000 | D52: -- | E52: 0.15 | F52: 0.01 | G52: 0.005 | H52: 360 | I52: 79.6 | J52: 5250 | K52: 69.3 | L52: 6.05e-10 | M52: 5.92e-06 | N52: 2200 | O52: 3645 | P52: 98.35 | Q52: 0.684 | R52: 100 | S52: LW bei 25 °C
A53: n-Octan | C53: 337000000 | D53: -- | E53: 0.19 | F53: 0.01 | G53: 0.005 | H53: 359.65 | I53: 89.5 | J53: 17380 | K53: 70.89 | L53: 5.69e-10 | M53: 5.58e-06 | N53: 700 | O53: 1041 | P53: 125.6 | Q53: 0.7025 | R53: 114
A54: n-Nonan | D54: -- | E54: 0.22 | F54: 0.01 | G54: 0.005 | H54: 363.28 | I54: 94.8 | J54: 27540 | K54: 156.63 | L54: 5.41e-10 | M54: 5.31e-06 | N54: 120 | O54: 351 | P54: 150.7 | Q54: 0.72 | R54: 128 | S54: LW bei 25 °C
A55: n-Decan | D55: -- | E55: 0.22 | F55: 0.01 | G55: 0.005 | H55: 361.27 | I55: 97.2 | J55: 218780 | K55: 140.3 | L55: 5.13e-10 | M55: 5.05e-06 | N55: 50 | O55: 118 | P55: 174.1 | Q55: 0.73 | R55: 142

Sheet Schadstoffkonzentrationen Unge (hidden)
A2: Mittlere Schadstoffmasse im gesättigten Boden (Einheitsfläche) (MB) [mg/m²]
A3: Sondierung Nr. | B3: 1 | C3: 2 | D3: 3 | E3: 4 | F3: 5 | G3: 6 | H3: 7 | I3: 8 | J3: 9 | K3: 10 | L3: 11 | M3: 12 | N3: 13 | O3: 14 | P3: 15 | Q3: 16 | R3: 17 | S3: 18 | T3: 19 | U3: 20 | V3: Summe [kg] | W3: Mittlere Flächen-Konz. (MB) [mg/m²] | X3: Standard-abweich. (MB) [mg/m²] | Y3: MB + 2 s [mg/m²] | Z3: Inventar (MB-bezogen) [kg]
A4: Bezeichnung
A5: Flächenrepräsentanz [m²] | V5: =IF(SUM(B5:U5)=Schadstoffbelastung!$K$6,SUM(B5:U5),"Σ ≠ "&Schadstoffbelastung!$K$6&"!") -> 0
A6: Leichtflüchtige chlorierte Kohlenwasserstoffe (LCKW) | V6: kg
A7: Tetrachlorethen | V7: =SUMPRODUCT($B$5:$U$5,B7:U7)*10^-6 -> 0 | W7: =IFERROR(AVERAGE($B7:$U7),0) -> 0 | X7: =IF(SUM($B7:$U7)>0,_xlfn.STDEV.S(B7:U7),"") ->  | Y7: =IF(SUM($B7:$U7)>0,W7+X7*2,"") ->  | Z7: =IFERROR(Y7*$V$5/1000/1000,0) -> 0
A8: Trichlorethen | V8: =SUMPRODUCT($B$5:$U$5,B8:U8)*10^-6 -> 0 | W8: =IFERROR(AVERAGE($B8:$U8),0) -> 0 | X8: =IF(SUM($B8:$U8)>0,_xlfn.STDEV.S(B8:U8),"") ->  | Y8: =IF(SUM($B8:$U8)>0,W8+X8*2,"") ->  | Z8: =IFERROR(Y8*$V$5/1000/1000,0) -> 0
A9: cis-1,2-Dichlorethen | V9: 0 | W9: 0 | X9: =IF(SUM($B9:$U9)>0,_xlfn.STDEV.S(B9:U9),"") ->  | Z9: 0
A10: trans-1,2-Dichlorethen | V10: 0 | W10: 0 | X10: =IF(SUM($B10:$U10)>0,_xlfn.STDEV.S(B10:U10),"") ->  | Z10: 0
A11: 1,1-Dichlorethen | V11: 0 | W11: 0 | Z11: 0
A12: Vinylchlorid | V12: =SUMPRODUCT($B$5:$U$5,B12:U12)*10^-6 -> 0 | W12: 0 | Z12: 0
A13: Tetrachlormethan | V13: 0 | W13: 0 | Z13: 0
A14: Trichlormethan | V14: 0 | W14: 0 | Z14: 0
A15: Dichlormethan | V15: 0 | W15: 0 | Z15: 0
A16: 1,1,1-Trichlorethan | V16: =SUMPRODUCT($B$5:$U$5,B16:U16)*10^-6 -> 0 | W16: 0 | Z16: 0
A17: 1,1,2-Trichlorethan | V17: 0 | W17: 0 | Z17: 0
A18: 1,1-Dichlorethan | V18: 0 | W18: 0 | Z18: 0
A19: 1,2-Dichlorethan | V19: 0 | W19: 0 | Z19: =IFERROR(Y19*$V$5/1000/1000,0) -> 0
A20: LCKW | B20: =IF(SUM(B7:B19)>0,SUM(B7:B19),"") ->  | C20: =IF(SUM(C7:C19)>0,SUM(C7:C19),"") ->  | V20: =SUM(V7:V19) -> 0 | W20: 0 | Y20: =IF(SUM($B20:$U20)>0,W20+X20*2,"") ->  | Z20: =SUM(Z7:Z19) -> 0
A21: (Mono)aromatische Kohlenwasserstoffe (AKW)
A22: Benzol | V22: =SUMPRODUCT($B$5:$U$5,B22:U22)*10^-6 -> 0 | W22: =IFERROR(AVERAGE($B22:$U22),0) -> 0 | X22: =IF(SUM($B22:$U22)>0,_xlfn.STDEV.S(B22:U22),"") ->  | Y22: =IF(SUM($B22:$U22)>0,W22+X22*2,"") ->  | Z22: =IFERROR(Y22*$V$5/1000/1000,0) -> 0
A23: Toluol | V23: =SUMPRODUCT($B$5:$U$5,B23:U23)*10^-6 -> 0 | W23: =IFERROR(AVERAGE($B23:$U23),0) -> 0 | X23: =IF(SUM($B23:$U23)>0,_xlfn.STDEV.S(B23:U23),"") ->  | Y23: =IF(SUM($B23:$U23)>0,W23+X23*2,"") ->  | Z23: 0
A24: Ethylbenzol | V24: 0 | W24: 0 | Z24: 0
A25: o-Xylol | V25: 0 | W25: 0 | Z25: 0
A26: m-Xylol | V26: 0 | W26: 0 | Z26: 0
A27: p-Xylol | V27: 0 | W27: 0 | Z27: 0
A28: n-Propylbenzol | V28: 0 | W28: 0 | Z28: 0
A29: Isopropylbenzol | V29: 0 | W29: 0 | Z29: 0
A30: o-Ethyltoluol | V30: 0 | W30: 0 | Z30: 0
A31: m-Ethyltoluol | V31: 0 | W31: 0 | Z31: 0
A32: p-Ethyltoluol | V32: 0 | W32: 0 | Z32: 0
A33: 1,2-Diethylbenzol | V33: 0 | W33: 0 | Z33: 0
A34: 1,3-Diethylbenzol | V34: 0 | W34: 0 | Z34: 0
A35: 1,4-Diethylbenzol | V35: 0 | W35: 0 | Z35: 0
A36: 1,2,3-Trimethylbenzol | V36: 0 | W36: 0 | Z36: 0
A37: 1,2,4-Trimethylbenzol | V37: 0 | W37: 0 | Z37: 0
A38: 1,3,5-Trimethylbenzol | V38: 0 | W38: 0 | Z38: 0
A39: BTEX | B39: =IF(SUM(B22:B27)>0,SUM(B22:B27),"") ->  | C39: =IF(SUM(C22:C27)>0,SUM(C22:C27),"") ->  | U39: =IF(SUM(U22:U27)>0,SUM(U22:U27),"") ->  | V39: =SUM(V22:V27) -> 0 | W39: 0 | Z39: =SUM(Z22:Z27) -> 0
A40: AKW | B40: =IF(SUM(B22:B38)>0,SUM(B22:B38),"") ->  | C40: =IF(SUM(C22:C38)>0,SUM(C22:C38),"") ->  | V40: =SUM(V22:V38) -> 0 | W40: 0 | Z40: =SUM(Z22:Z38) -> 0
A41: =Stoffdatenbank!$A$36 -> n-Alkane | B41: =[3]Stoffdatenbank!$A$36 -> n-Alkane | C41: =[3]Stoffdatenbank!$A$36 -> n-Alkane | D41: =[3]Stoffdatenbank!$A$36 -> n-Alkane | E41: =[3]Stoffdatenbank!$A$36 -> n-Alkane | F41: =[3]Stoffdatenbank!$A$36 -> n-Alkane | G41: =[3]Stoffdatenbank!$A$36 -> n-Alkane | H41: =[3]Stoffdatenbank!$A$36 -> n-Alkane | I41: =[3]Stoffdatenbank!$A$36 -> n-Alkane | J41: =[3]Stoffdatenbank!$A$36 -> n-Alkane | K41: =[3]Stoffdatenbank!$A$36 -> n-Alkane | L41: =[3]Stoffdatenbank!$A$36 -> n-Alkane | M41: =[3]Stoffdatenbank!$A$36 -> n-Alkane | N41: =[3]Stoffdatenbank!$A$36 -> n-Alkane | O41: =[3]Stoffdatenbank!$A$36 -> n-Alkane | P41: =[3]Stoffdatenbank!$A$36 -> n-Alkane | Q41: =[3]Stoffdatenbank!$A$36 -> n-Alkane | R41: =[3]Stoffdatenbank!$A$36 -> n-Alkane | S41: =[3]Stoffdatenbank!$A$36 -> n-Alkane | T41: =[3]Stoffdatenbank!$A$36 -> n-Alkane | U41: =[3]Stoffdatenbank!$A$36 -> n-Alkane | V41: =[3]Stoffdatenbank!$A$36 -> n-Alkane
A42: =Stoffdatenbank!$A$37 -> n-Pentan | V42: =SUMPRODUCT($B$5:$U$5,B42:U42)*10^-6 -> 0 | W42: 0 | X42: =IF(SUM($B42:$U42)>0,_xlfn.STDEV.S(B42:U42),"") ->  | Y42: =IF(SUM($B42:$U42)>0,W42+X42*2,"") ->  | Z42: =IFERROR(Y42*$V$5/1000/1000,0) -> 0
A43: =Stoffdatenbank!$A$38 -> n-Hexan | V43: 0 | W43: 0 | Z43: 0
A44: =Stoffdatenbank!$A$39 -> n-Heptan | V44: 0 | W44: 0 | Z44: 0
A45: =Stoffdatenbank!$A$40 -> n-Octan | V45: 0 | W45: 0 | Z45: 0
A46: =Stoffdatenbank!$A$41 -> n-Nonan | V46: 0 | W46: 0 | Z46: 0
A47: =Stoffdatenbank!$A$42 -> n-Decan | V47: 0 | W47: 0 | Z47: 0
A48: =Stoffdatenbank!$A$36 -> n-Alkane | B48: =IF(SUM(B42:B47)>0,SUM(B42:B47),"") ->  | C48: =IF(SUM(C42:C47)>0,SUM(C42:C47),"") ->  | V48: =SUM(V42:V46) -> 0 | W48: 0 | Z48: =SUM(Z42:Z47) -> 0
A49: Oxigenate
A50: MTBE (Methyl-tert-butylether) | V50: =SUMPRODUCT($B$5:$U$5,B50:U50)*10^-6 -> 0 | W50: 0 | X50: =IF(SUM($B50:$U50)>0,_xlfn.STDEV.S(B50:U50),"") ->  | Y50: =IF(SUM($B50:$U50)>0,W50+X50*2,"") ->  | Z50: =IFERROR(Y50*$V$5/1000/1000,0) -> 0
A51: ETBE (Ethyl-tert-butylether) | V51: 0 | W51: 0 | X51: =IF(SUM($B51:$U51)>0,_xlfn.STDEV.S(B51:U51),"") ->  | Y51: =IF(SUM($B51:$U51)>0,W51+X51*2,"") ->  | Z51: 0
A52: TBA (tert-Butylalkohol) | V52: 0 | W52: 0 | X52: =IF(SUM($B52:$U52)>0,_xlfn.STDEV.S(B52:U52),"") ->  | Y52: =IF(SUM($B52:$U52)>0,W52+X52*2,"") ->  | Z52: 0
A53: Oxigenate | B53: =IF(SUM(B50:B52)>0,SUM(B50:B52),"") ->  | C53: =IF(SUM(C50:C52)>0,SUM(C50:C52),"") ->  | V53: =SUM(V50:V52) -> 0 | W53: 0 | X53: =IF(SUM($B53:$U53)>0,_xlfn.STDEV.S(B53:U53),"") ->  | Y53: =IF(SUM($B53:$U53)>0,W53+X53*2,"") ->  | Z53: =SUM(Z50:Z52) -> 0
A56: Analysierte Schadstoffkonzentrationen im gesättigten Boden [mg/kg]
A57: Sondierung | B57: 1 | C57: 2 | D57: 3 | E57: 4 | F57: 5 | G57: 6 | H57: 7 | I57: 8 | J57: 9 | K57: 10 | L57: 11 | M57: 12 | N57: 13 | O57: 14 | P57: 15 | Q57: 16 | R57: 17 | S57: 18 | T57: 19 | U57: 20 | W57: Minimum [mg/kg OS] | X57: Maximum [mg/kg OS] | Y57: Median [mg/kg OS] | Z57: Mittlere Konz. (MW) [mg/kg OS] | AA57: Standard-abweich. [mg/kg OS] | AB57: MW + 2 s [mg/kg OS] | AC57: Inventar (Mittelwert-bezogen) [kg]
A59: Flächenrepräsentanz [m²]
A60: Leichtflüchtige chlorierte Kohlenwasserstoffe (LCKW)
